Workbook

Sheet AER CF (hidden)
B1: AER CONDITIONAL FORMATTING
B4: CONDITIONAL FORMATTING MAP
F5: =INDEX(dms_CF_3.6.1, MATCH(dms_TradingName,dms_CF_TradingName))="Y" | G5: =INDEX(dms_CF_3.6.5, MATCH(dms_TradingName,dms_CF_TradingName))="Y" | H5: =INDEX(dms_CF_3.6.6, MATCH(dms_TradingName,dms_CF_TradingName))="Y" | I5: =INDEX(dms_CF_3.6.7.1, MATCH(dms_TradingName,dms_CF_TradingName))="Y" | J5: =INDEX(dms_CF_3.6.7.2, MATCH(dms_TradingName,dms_CF_TradingName))="Y" | K5: =INDEX(dms_CF_3.6.7.3, MATCH(dms_TradingName,dms_CF_TradingName))="Y" | L5: =INDEX(dms_CF_3.6.7.4, MATCH(dms_TradingName,dms_CF_TradingName))="Y" | M5: =INDEX(dms_CF_3.6.8, MATCH(dms_TradingName,dms_CF_TradingName))="Y" | N5: =INDEX(dms_CF_4.1, MATCH(dms_TradingName,dms_CF_TradingName))="Y" | O5: =INDEX(dms_CF_6.6.1, MATCH(dms_TradingName,dms_CF_TradingName))="Y" | P5: =INDEX(dms_CF_6.8, MATCH(dms_TradingName,dms_CF_TradingName))="Y" | Q5: =INDEX(dms_CF_7.12, MATCH(dms_TradingName,dms_CF_TradingName))="Y" | R5: =INDEX(dms_CF_8.1_A, MATCH(dms_TradingName,dms_CF_TradingName))="Y" | S5: =INDEX(dms_CF_8.1_B, MATCH(dms_TradingName,dms_CF_TradingName))="Y" | T5: =INDEX(dms_CF_8.1_Neg, MATCH(dms_TradingName,dms_CF_TradingName))="Y" | U5: =INDEX(dms_CF_4.4.1_Neg, MATCH(dms_TradingName,dms_CF_TradingName))="Y"
B6: dms_CF_TradingName | C6: JurisdictionList | D6: Sector | E6: Segment | F6: dms_CF_3.6.1 | G6: dms_CF_3.6.5 | H6: dms_CF_3.6.6 | I6: dms_CF_3.6.7.1 | J6: dms_CF_3.6.7.2 | K6: dms_CF_3.6.7.3 | L6: dms_CF_3.6.7.4 | M6: dms_CF_3.6.8 | N6: dms_CF_4.1 | O6: dms_CF_6.6.1 | P6: dms_CF_6.8 | Q6: dms_CF_7.12 | R6: dms_CF_8.1_A | S6: dms_CF_8.1_B | T6: dms_CF_8.1_Neg | U6: dms_CF_4.4.1 | V6: dms_CF_MAIFI_flag | W6: Spare1 | X6: Spare2
B7: ActewAGL Distribution | C7: ACT | D7: Electricity | E7: Distribution | G7: Y | I7: Y | J7: Y | K7: N | L7: Y | M7: N | N7: Y | O7: N | P7: Y | Q7: Y | R7: N | S7: Y | T7: Y | U7: N | V7: N | W7: N | X7: N
B8: Ausgrid | C8: NSW | D8: Electricity | E8: Distribution | G8: Y | I8: N | J8: N | K8: N | L8: Y | M8: N | N8: Y | O8: N | P8: Y | Q8: Y | R8: N | S8: Y | T8: Y | U8: N | V8: N | W8: N | X8: N
B9: AusNet (D) | C9: Vic | D9: Electricity | E9: Distribution | G9: N | I9: N | J9: N | K9: N | L9: N | M9: N | N9: Y | O9: N | P9: Y | Q9: N | R9: N | S9: N | T9: Y | U9: N | V9: N | W9: N | X9: N
B10: AusNet (T) | C10: Vic | D10: Electricity | E10: Transmission | G10: N | I10: N | J10: N | K10: N | L10: N | M10: N | N10: Y | O10: N | P10: Y | Q10: N | R10: N | S10: N | T10: Y | U10: N | V10: N | W10: N | X10: N
B11: CitiPower | C11: Vic | D11: Electricity | E11: Distribution | G11: N | I11: N | J11: N | K11: N | L11: N | M11: N | N11: Y | O11: N | P11: Y | Q11: N | R11: N | S11: N | T11: Y | U11: N | V11: N | W11: N | X11: N
B12: Directlink | C12: Qld | D12: Electricity | E12: Transmission | G12: N | I12: N | J12: N | K12: N | L12: N | M12: N | N12: Y | O12: N | P12: Y | Q12: N | R12: N | S12: Y | T12: Y | U12: N | V12: N | W12: N | X12: N
B13: ElectraNet | C13: SA | D13: Electricity | E13: Transmission | G13: N | I13: N | J13: N | K13: N | L13: N | M13: N | N13: Y | O13: N | P13: Y | Q13: N | R13: N | S13: Y | T13: Y | U13: N | V13: N | W13: N | X13: N
B14: Endeavour Energy | C14: NSW | D14: Electricity | E14: Distribution | G14: Y | I14: N | J14: N | K14: N | L14: Y | M14: N | N14: Y | O14: N | P14: Y | Q14: Y | R14: N | S14: Y | T14: Y | U14: Y | V14: N | W14: N | X14: N
B15: Energex | C15: Qld | D15: Electricity | E15: Distribution | G15: Y | I15: N | J15: N | K15: N | L15: N | M15: N | N15: Y | O15: N | P15: Y | Q15: Y | R15: N | S15: Y | T15: Y | U15: Y | V15: N | W15: N | X15: N
B16: Ergon Energy | C16: Qld | D16: Electricity | E16: Distribution | G16: Y | I16: N | J16: N | K16: N | L16: N | M16: N | N16: Y | O16: N | P16: Y | Q16: Y | R16: N | S16: Y | T16: Y | U16: N | V16: N | W16: N | X16: N
B17: Essential Energy | C17: NSW | D17: Electricity | E17: Distribution | G17: Y | I17: N | J17: N | K17: N | L17: Y | M17: N | N17: Y | O17: N | P17: Y | Q17: Y | R17: N | S17: Y | T17: Y | U17: N | V17: N | W17: N | X17: N
B18: Jemena Electricity | C18: Vic | D18: Electricity | E18: Distribution | G18: N | I18: N | J18: N | K18: N | L18: N | M18: N | N18: Y | O18: N | P18: Y | Q18: N | R18: N | S18: N | T18: Y | U18: N | V18: N | W18: N | X18: N
B19: Murraylink | C19: SA | D19: Electricity | E19: Transmission | G19: N | I19: N | J19: N | K19: N | L19: N | M19: N | N19: Y | O19: N | P19: Y | Q19: N | R19: N | S19: Y | T19: Y | U19: N | V19: N | W19: N | X19: N
B20: Power and Water | C20: NT | D20: Electricity | E20: Distribution | G20: N | I20: N | J20: Y | K20: N | L20: N | M20: Y | N20: Y | O20: Y | P20: Y | Q20: Y | R20: N | S20: Y | T20: Y | U20: N | V20: N | W20: N | X20: N
B21: Powercor Australia | C21: Vic | D21: Electricity | E21: Distribution | G21: N | I21: N | J21: N | K21: N | L21: N | M21: N | N21: Y | O21: N | P21: Y | Q21: N | R21: N | S21: N | T21: Y | U21: N | V21: N | W21: N | X21: N
B22: Powerlink | C22: Qld | D22: Electricity | E22: Transmission | G22: N | I22: N | J22: N | K22: N | L22: N | M22: N | N22: Y | O22: N | P22: Y | Q22: N | R22: N | S22: Y | T22: Y | U22: N | V22: N | W22: N | X22: N
B23: SA Power Networks | C23: SA | D23: Electricity | E23: Distribution | G23: Y | I23: N | J23: N | K23: N | L23: N | M23: N | N23: Y | O23: N | P23: Y | Q23: Y | R23: Y | S23: Y | T23: N | U23: N | V23: N | W23: N | X23: N
B24: TasNetworks (D) | C24: Tas | D24: Electricity | E24: Distribution | G24: Y | I24: N | J24: N | K24: N | L24: N | M24: N | N24: Y | O24: N | P24: Y | Q24: Y | R24: N | S24: Y | T24: Y | U24: N | V24: N | W24: N | X24: N
B25: TasNetworks (T) | C25: Tas | D25: Electricity | E25: Transmission | G25: N | I25: N | J25: N | K25: N | L25: N | M25: N | N25: Y | O25: N | P25: Y | Q25: N | R25: N | S25: Y | T25: Y | U25: N | V25: N | W25: N | X25: N
B26: TransGrid | C26: NSW | D26: Electricity | E26: Transmission | G26: N | I26: N | J26: N | K26: N | L26: N | M26: N | N26: Y | O26: N | P26: Y | Q26: N | R26: N | S26: Y | T26: Y | U26: N | V26: N | W26: N | X26: N
B27: United Energy | C27: Vic | D27: Electricity | E27: Distribution | G27: N | I27: N | J27: N | K27: N | L27: N | M27: N | N27: Y | O27: N | P27: Y | Q27: N | R27: N | S27: N | T27: Y | U27: N | V27: N | W27: N | X27: N
B30: Confidential
B31: Amended
B33: Worksheet 6.2 STPIS reliability
B34: Formula | F34: Applied to:
B36: =INDEX(dms_CBD_flag,MATCH(dms_TradingName,dms_TradingName_List))="NO" | F36: $D$11,$D$17,$D$23,$D$33,$D$39,$D$45,$D$55,$D$61,$D$67,$D$77,$D$83,$D$89
B37: =INDEX(dms_Urban_flag,MATCH(dms_TradingName,dms_TradingName_List))="NO" | F37: $D$12,$D$18,$D$24,$D$56,$D$62,$D$78,$D$68,$D$84
B38: =INDEX(dms_ShortRural_flag,MATCH(dms_TradingName,dms_TradingName_List))="NO" | F38: $D$13,$D$19,$D$25,$D$57,$D$63,$D$69,$D$79,$D$85
B39: =INDEX(dms_LongRural_flag,MATCH(dms_TradingName,dms_TradingName_List))="NO" | F39: $D$14,$D$20,$D$26,$D$58,$D$64,$D$65,$D$70,$D$71,$D$80,$D$86
B40: =INDEX(dms_FeederType_5_flag,MATCH(dms_TradingName,dms_TradingName_List))="NO" | F40: $D$87,$D$81,$D$71,$D$65,$D$59,$D$49,$D$43,$D$37,$D$21,$D$15
B41: =dms_MAIFI_Flag="No" | F41: $D$55:$D$72
B44: Business & other details
B45: =(INDEX(dms_Model_Span,MATCH(dms_Model,dms_Model_List))>1)
B46: =(INDEX(dms_Model_Span,MATCH(dms_Model,dms_Model_List))=1)
B49: STYLES IN USE | C49: dms_H
C50: dms_1
C51: dms_2
C52: dms_3
C53: dms_4
C54: dms_5
C55: dms_NUM
C56: dms_NUM%
B57: 5.5555 | C57: dms_NUM3d
B58: Text goes here | C58: dms_Row_Locked
C59: dms_Row1
C60: dms_Row2
C61: dms_T1
C62: dms_T2
C63: dms_BH
C64: dms_BY1
C65: dms_BY2
C66: dms_GH
C67: dms_GY1
C68: dms_GY2
C127: 0
C128: =IFERROR(IF(dms_Model="ARR",(MAX(0,dms_0608_LastRow-dms_0608_OffsetRows)),"not an ARR"),"0") -> not an ARR

Sheet AER NRs (hidden)
B1: AER NAMED RANGES
B3: DROP DOWN SELECTORS USED IN WORKBOOKS
B5: COVER SHEET | C5: dms_DataQuality_List | D5: dms_Confid_status_List
C6: -- select -- | D6: -- select --
C7: Actual | D7: Public
C8: Estimate | D8: Confidential
C9: Consolidated
C12: For all files either AER or business needs to be able to specify the type of submission | D12: For PTRM & RFM templates we must provide a choice in case they change their form of control - otherwise it is drawn from the business specific lookup table above.
C13: dms_SourceList | D13: dms_FormControl_Choices
C14: -- select -- | D14: Revenue cap
C15: After appeal | D15: Revenue yield
C16: Draft decision | D16: Weighted average price cap
C17: Final decision
C18: PTRM update 1
C19: PTRM update 2
C20: PTRM update 3
C21: PTRM update 4
C22: PTRM update 5
C23: PTRM update 6
C24: PTRM update 7
C25: Regulatory proposal
C26: Reporting
C27: Revised regulatory proposal
L30: This is used to create an image to insert on 6.3 STPIS sheet - not for dropdown lists.
B31: CA & RESET RINS DNSP | C31: dms_DNSP_020301_SubstationType | D31: dms_DNSP_020301_ProjectType | E31: dms_DNSP_020301_ProjectTrigger | F31: dms_DNSP_020302_ProjectType | G31: dms_DNSP_020302_ProjectTrigger | H31: dms_STPIS_Exclusion_List | I31: dms_Reason_Interruption | J31: dms_Reason_Interruption_Detailed | L31: Reason for interruption
C32: Subtransmission substation | D32: New substation establishment | E32: Demand growth | F32: New line on new route - single circuit | G32: Demand growth | H32: Weather | I32: Animal | J32: Animal impact | L32: Animal | M32: Animal impact
C33: Zone substation | D33: Substation upgrade - capacity | E33: Voltage issues | F33: New line on new route - dual circuit | G33: Voltage issues | H33: Equipment failure | I33: Asset failure | J33: Animal nesting/burrowing, etc and other | M33: Animal nesting/burrowing, etc and other
C34: Switching station | D34: Substation upgrade - voltage | E34: Reactive power issue | F34: New line on new route - other | G34: Reactive power issue | H34: Operational error | I34: Other | J34: Other | M34: Other
C35: Other | D35: Other | E35: Fault level issues | F35: Line rebuild over existing route - single circuit | G35: Fault level issues | H35: Vegetation | I35: Overloads | J35: LV | L35: Asset failure | M35: LV
E36: Safety | F36: Line rebuild over existing route - dual circuit | G36: Net market benefit | H36: Animals | I36: Planned | J36: Distribution substation | M36: Distribution substation
E37: Environment | F37: Reconductor - Single circuit | G37: Safety | H37: Third party impacts | I37: Network business | J37: HV | M37: HV
E38: Other | F38: Reconductor - Dual circuit | G38: Environment | H38: Transmission failure | I38: Third party | J38: Zone substation | M38: Zone substation
F39: Reconductor - Other | G39: Other | H39: Load shedding | I39: Unknown | J39: Subtransmission | M39: Subtransmission
F40: Line upgrade - raising/retensoring | H40: Inter-distributor connection failure | I40: Vegetation | J40: insert description of 'other' | L40: Other | M40: insert description of 'other'
F41: Line upgrade - voltage upgrade | H41: Other | I41: Weather | J41: Network error | L41: Overloads
F42: Line upgrade - capacity | I42: 2 - STPIS Exclusion (3.3)(a) | J42: Switching and protection error | L42: Planned
F43: String spare circuit | I43: 3 - STPIS Exclusion (3.3)(a) | J43: Fire | L43: Network business | M43: Network error
F44: Other | I44: 4 - STPIS Exclusion (3.3)(a) | J44: Other | M44: Switching and protection error
I45: 5 - STPIS Exclusion (3.3)(a) | J45: Dig-in | L45: Third party | M45: Fire
I46: 6 - STPIS Exclusion (3.3)(a) | J46: Unauthorised access | M46: Other
I47: 7 - STPIS Exclusion (3.3)(a) | J47: Vehicle impact | M47: Dig-in
J48: Unknown | M48: Unauthorised access
J49: Blow-in/Fall-in - NSP responsibility | M49: Vehicle impact
J50: Grow-in - NSP responsibility | L50: Unknown | M50: Unknown
J51: Blow-in/Fall-in - Other responsible party | L51: Vegetation | M51: Blow-in/Fall-in - NSP responsibility
J52: Grow-in - Other responsible party | M52: Grow-in - NSP responsibility
M53: Blow-in/Fall-in - Other responsible party
M54: Grow-in - Other responsible party
L55: Weather
L56: 2 - STPIS Exclusion (3.3)(a)
L57: 3 - STPIS Exclusion (3.3)(a)
L58: 4 - STPIS Exclusion (3.3)(a)
L59: 5 - STPIS Exclusion (3.3)(a)
L60: 6 - STPIS Exclusion (3.3)(a)
L61: 7 - STPIS Exclusion (3.3)(a)
B64: CA & RESET RINS TNSP | C64: dms_TNSP_0203_SubstationType | D64: dms_TNSP_020301_ProjectType | E64: dms_TNSP_020301_ProjectTrigger | F64: dms_TNSP_020302_ProjectType | G64: dms_TNSP_0203_ProjectTrigger
C65: Terminal station | D65: New substation establishment | E65: Demand growth | F65: New line on new route - single circuit | G65: Demand growth
C66: Switching station | D66: Capacity upgrade | E66: Voltage issues | F66: New line on new route - dual circuit | G66: Voltage issues
C67: Transmission substation | D67: Voltage upgrade | E67: Reactive power issue | F67: New line on new route - other | G67: Reactive power issue
C68: Other | D68: Other | E68: Fault level issues | F68: Line rebuild over existing route - single circuit | G68: Fault level issues
E69: Net market benefit | F69: Line rebuild over existing route - dual circuit | G69: Net market benefit
E70: Safety | F70: Reconductor - Single circuit | G70: Safety
E71: Environment | F71: Reconductor - Dual circuit | G71: Environment
E72: Other | F72: Reconductor - Other | G72: Other
F73: Line upgrade - raising/retensoring
F74: Line upgrade - voltage upgrade
F75: Line upgrade - capacity
F76: String spare circuit
F77: Other
B81: NAMED RANGES USED IN ETL PROCESS
B83: CA & RESET RINS DNSP ONLY | C83: dms_020303_01_UOM | D83: dms_020501_01_UOM | E83: dms_020501_02_UOM | F83: dms_020501_03_UOM | G83: dms_020501_04_UOM | H83: dms_020701_01_UOM | I83: dms_020701_02_UOM | J83: dms_020701_01_Rows | K83: dms_040102_01_UOM | L83: dms_040102_04_UOM
C84: Circuit line length in km | D84: 0's | E84: 0's | F84: 0's | G84: 0's | H84: km | I84: km | J84: Route line length within zone | K84: 0's | L84: days
C85: Circuit line length in km | D85: 0's | E85: 0's | F85: 0's | G85: 0's | H85: 0's | I85: 0's | J85: Number of maintenance spans | K85: 0's | L85: 0's
C86: Circuit line length in km | D86: MVA added | E86: MVA added | F86: MVA added | G86: MVA added | H86: km | I86: km | J86: Total length of maintenance spans | K86: 0's | L86: $0s
C87: Circuit line length in km | D87: 0's | E87: 0's | F87: 0's | G87: 0's | H87: km | I87: km | J87: Length of vegetation corridors | K87: $0s | L87: 0's
C88: Number | D88: total spend $0s | E88: total spend $0s | F88: total spend $0s | G88: total spend $0s | H88: 0's | I88: 0's | J88: Average number of trees per maintenance span
C89: Number | D89: net circuit km added | E89: net circuit km added | F89: net circuit km added | G89: net circuit km added | H89: years | I89: years | J89: Average frequency of cutting cycle
C90: Number | D90: total spend $0s | E90: total spend $0s | F90: total spend $0s | G90: total spend $0s
D91: net circuit km added | E91: net circuit km added | F91: net circuit km added | G91: net circuit km added
D92: total spend $0s | E92: total spend $0s | F92: total spend $0s | G92: total spend $0s
D93: 0's | F93: $0s
D94: 0's
D95: 0's
D96: $0s
B99: CA & RESET RINS TNSP ONLY | C99: dms_020701_01_UOM
C100: km
C101: 0's
C102: km
C103: 0's
C104: km
C105: metres
C106: years
B109: CA & RESET RINS DNSP & TNSP | C109: dms_020603_01_UOM
C110: 0's
C111: 0's
C112: 0's
C113: 0's
C114: (per cent)
B117: EB & RESET RINS DNSP ONLY | C117: dms_030601_01_UOM | D117: dms_030601_02_UOM | E117: dms_030701_01_UOM | F117: dms_030702_01_UOM | G117: dms_030703_01_UOM
C118: minutes/customer | D118: minutes/customer | E118: Customer / km | F118: % | G118: km
C119: minutes/customer | D119: minutes/customer | E119: MWh/customer | F119: Number of spans
C120: interruptions/customer | D120: interruptions/customer | E120: kVA / customer | F120: Number of spans
C121: interruptions/customer | D121: interruptions/customer | F121: Number of spans
F122: Number of spans
F123: Years
F124: Years
F125: Trees
F126: Trees
F127: Defects
F128: Defects
F129: Spans
F130: km
F131: Spans
C133: WHEN INSERTING COVER SHEET INTO A TNSP FILE - APPLY THESE NAMED RANGES
B134: EB & RESET RINS TNSP ONLY | C134: dms_030601_01_UOM | E134: dms_030701_01_UOM | F134: dms_030702_01_UOM
C135: % | E135: Number of spans | F135: km
C136: number | E136: Years | F136: %
C137: number | E137: Trees | F137: km
C138: % | E138: Defects | F138: number
C139: number | E139: Number of spans
C140: number | E140: km
C141: % | E141: km
C142: number | E142: Number of spans
C143: number
C144: %
C145: number
C146: %
C147: number
C148: %
C149: number
B151: EB & RESET RINS DNSP & TNSP | C151: dms_EB_RAB_PIT
C152: Beginning of year
C153: End of year
C154: End of year
C155: End of year
C156: End of year
C157: End of year
B159: ARR DNSP ONLY | C159: dms_030605_UOM | D159: dms_03060703_UOM | E159: Spare | F159: Spare
C160: number | D160: number
C161: number | D161: number
C162: number | D162: number
C163: number | D163: number
C164: number | D164: (per cent)
C165: number
C166: number
C167: number
C168: number
C169: number
C170: number
C171: number
C172: (per cent)
C173: (per cent)
B175: RFM | C175: dms_Beg | D175: dms_Mid | E175: dms_End
C176: Beginning of year | D176: Mid year | E176: End of Year
B178: PTRM | C178: dms_PTRM_RAB_PIT | D178: dms_PTRM_TAB_PIT | E178: DMS_Xfactor
C179: Beginning of year | D179: Beginning of year | E179: x factors
C180: End of year | D180: End of year
C181: End of year | D181: End of year
C182: End of year | D182: End of year
C183: End of year
B186: STPIS & MIC NAMED RANGES
B188: These "row descriptions" are the column headings in the various templates but become row descriptions in the ETL process
B190: Table 6.3 sustained interruptions - row descriptions | C190: dms_060301_CustNo_Affected_Row | D190: dms_060301_Avg_Duration_Sustained_Int_Row | E190: dms_060301_Effect_unplanned_SAIDI_Row | F190: dms_060301_Effect_unplanned_SAIFI_Row
C191: Number of customers affected by the interruption | D191: Average duration of sustained customer interruption | E191: Effect on unplanned SAIDI | F191: Effect on unplanned SAIFI
B194: Table 6.1 telephone answering - row descriptions and start date | C194: dms_060101_Rows | D194: dms_060102_Rows | E194: dms_060101_StartDateTxt
C195: Total number of calls (after removing excluded events) | D195: Number of calls answered within 30 seconds (after excluding excluded events) | E195: =dms_060701_StartDateTxt -> 1-Jul-2009
B198: Table 6.8.1 - row descriptions | C198: dms_060801_01_Rows | D198: dms_060801_02_Rows | E198: dms_060801_03_Rows | F198: dms_060801_04_Rows
C199: Number of interruptions | D199: Duration of interruptions | E199: Total unplanned minutes off supply | F199: Effect on unplanned MAIFI
B202: Table 7.9.4 - market impact component - row descriptions | C202: dms_070904_01_Rows | D202: without exclusions | E202: with exclusions
B205: These headings (Lists) are determined from the INDEX/MATCH function on the NSP selected on the Business & other details sheet
B207: Table 6.7.1 - daily performance data - unplanned - MAIFI -- row descriptions and header named range values | C207: dms_060701_Feeder_Header_Lvl4 | D207: =INDEX(dms_FeederName_1,MATCH(dms_TradingName,dms_TradingName_List)) -> CBD | E207: =INDEX(dms_FeederName_1,MATCH(dms_TradingName,dms_TradingName_List)) -> CBD | F207: =INDEX(dms_FeederName_2,MATCH(dms_TradingName,dms_TradingName_List)) -> Urban | G207: =INDEX(dms_FeederName_2,MATCH(dms_TradingName,dms_TradingName_List)) -> Urban | H207: =INDEX(dms_FeederName_3,MATCH(dms_TradingName,dms_TradingName_List)) -> Short rural | I207: =INDEX(dms_FeederName_3,MATCH(dms_TradingName,dms_TradingName_List)) -> Short rural | J207: =INDEX(dms_FeederName_4,MATCH(dms_TradingName,dms_TradingName_List)) -> Long rural | K207: =INDEX(dms_FeederName_4,MATCH(dms_TradingName,dms_TradingName_List)) -> Long rural | L207: =IF((INDEX(dms_FeederName_5,MATCH(dms_TradingName,dms_TradingName_List))=0),"Network",(INDEX(dms_FeederName_5,MATCH(dms_TradingName,dms_TradingName_List)))) -> Network | M207: =IF((INDEX(dms_FeederName_5,MATCH(dms_TradingName,dms_TradingName_List))=0),"Network",(INDEX(dms_FeederName_5,MATCH(dms_TradingName,dms_TradingName_List)))) -> Network | N207: Network | O207: Network
C209: dms_060701_Rows | D209: All events | E209: After removing excluded events | F209: All events | G209: After removing excluded events | H209: All events | I209: After removing excluded events | J209: All events | K209: After removing excluded events | L209: All events | M209: After removing excluded events | N209: All events | O209: After removing excluded events
D210: the number of column headings changes from 10 to 12 depending on the number of feeder categories for the NSP
C212: dms_0603_FeederList | D212: =INDEX(dms_FeederName_1,MATCH(dms_TradingName,dms_TradingName_List)) -> CBD | E212: =INDEX(dms_FeederName_2,MATCH(dms_TradingName,dms_TradingName_List)) -> Urban | F212: =INDEX(dms_FeederName_3,MATCH(dms_TradingName,dms_TradingName_List)) -> Short rural | G212: =INDEX(dms_FeederName_4,MATCH(dms_TradingName,dms_TradingName_List)) -> Long rural
B215: Use these to add to specific worksheets in existing files | C215: Use these to add to specific worksheets in existing files
B218: ARRs 6.7 STPIS daily performance | C218: dms_060101_Values | D218: dms_060102_Values | E218: dms_060701_Values
C219: dms_LeapYear
B222: ARR's 6.8 STPIS exclusions | C222: dms_060801_Event_Date | D222: dms_060801_OutageID | E222: dms_060801_FeederID | F222: dms_060801_FeederClass | G222: dms_060801_CauseID | H222: dms_060801_01_Values | I222: dms_060801_02_Values | J222: dms_060801_03_Values | K222: dms_060801_Excl_Cat | L222: dms_060801_04_Values
C223: dms_060801_StartCell
B226: CA 6.3 sustained interruptions | C226: dms_060301_Event_Date | D226: dms_060301_Event_Time | E226: dms_060301_AssetID | F226: dms_060301_FeederClass | G226: dms_060301_Reason | H226: dms_060301_DetailedReason | I226: dms_060301_CustNo_Affected_Values | J226: dms_060301_Avg_Duration_Sustained_Int_Values | K226: dms_060301_Effect_unplanned_SAIDI_Values | L226: dms_060301_Effect_unplanned_SAIFI_Values | M226: dms_060301_MED

Sheet AER lookups (hidden)
B1: AER LOOKUP TABLES
B3: Data in these columns used for data validation and database purposes.
B4: Date last modified: | C4: 2017-01-16 | D4: added (Albury and Victora) for AGN
C5: 2016-10-17 | D5: updated TransGrid's correct legal name, corrected TasNetworks (T) to June financial year
C6: 2017-02-01 | D6: inserted Power and Water, added NRs (dms_FeederCat_1 and dms_FeederCat_2)
C7: 2017-03-03 | D7: inserted AEMO as a business | Z7: FOR ELECTRICITY BUSINESSES ONLY
C8: 2018-03-28 | D8: major changes to accommodate STPIS
C9: Template Version | D9: 5 | Z9: Feeder Types | AD9: TasNetworks (D) | AE9: MAIFI flag | AF9: Feeder Names
Z11: CBD | AA11: Urban | AB11: Short rural | AC11: long rural | AD11: EXTRA
B12: dms_TradingName_List | C12: dms_TradingNameFull_List | D12: dms_ABN_List | E12: dms_JurisdictionList | F12: dms_Sector_List | G12: dms_Segment_List | H12: dms_FormControl_List | I12: dms_RPT_List | J12: dms_RPTMonth_List | K12: dms_CRCPlength_List | L12: dms_FRCPlength_List | M12: dms_PRCPlength_List | N12: dms_663_List | O12: dms_DeterminationRef_List | P12: dms_Addr1_List | Q12: dms_Addr2_List | R12: dms_Suburb_List | S12: dms_State_List | T12: dms_PostCode_List | U12: dms_PAddr1_List | V12: dms_PAddr2_List | W12: dms_PSuburb_List | X12: dms_PState_List | Y12: dms_PPostCode_List | Z12: dms_CBD_flag | AA12: dms_Urban_flag | AB12: dms_ShortRural_flag | AC12: dms_LongRural_flag | AD12: dms_FeederType_5_flag | AE12: dms_MAIFI_flag_List | AF12: dms_FeederName_1 | AG12: dms_FeederName_2 | AH12: dms_FeederName_3 | AI12: dms_FeederName_4 | AJ12: dms_FeederName_5 | AK12: dms_Public_Lighting_List | AL12: Column1
B13: AusNet (D) | C13: AusNet Electricity Services Pty Ltd | D13: 91064651118 | E13: Vic | F13: Electricity | G13: Distribution | H13: Revenue cap | I13: Financial | J13: June | K13: 5 | L13: 5 | M13: 5 | N13: 2 | O13: 2016-20 Distribution Determination | P13: Level 32 | Q13: 2 Southbank Boulevard | R13: SOUTHBANK | S13: Vic | T13: 3006 | U13: Locked Bag 14051 | W13: MELBOURNE CITY MAIL CENTRE | X13: Vic | Y13: 8001 | Z13: NO | AA13: YES | AB13: YES | AC13: YES | AD13: NO | AE13: YES | AF13: CBD | AG13: Urban | AH13: Short rural | AI13: Long rural | AK13: YES | AL13: AusNet (D)
B14: Australian Distribution Co. (Vic) | C14: Australian Distribution Co. (Vic) | D14: 11222333444 | E14: - | F14: Electricity | G14: Distribution | H14: Revenue cap | I14: Financial | J14: June | K14: 5 | L14: 5 | M14: 5 | N14: 2 | O14: distribution determination | P14: 123 Straight Street | R14: MELBOURNE | S14: Vic | T14: 3000 | U14: PO Box 123 | W14: MELBOURNE | X14: Vic | Y14: 8001 | Z14: YES | AA14: YES | AB14: YES | AC14: YES | AD14: NO | AE14: NO | AF14: CBD | AG14: Urban | AH14: Short rural | AI14: Long rural | AK14: YES | AL14: Australian Distribution Co.
B15: CitiPower | C15: CitiPower | D15: 76064651056 | E15: Vic | F15: Electricity | G15: Distribution | H15: Revenue cap | I15: Financial | J15: June | K15: 5 | L15: 5 | M15: 5 | N15: 2 | O15: 2016-20 Distribution Determination | P15: 40 Market Street | R15: MELBOURNE | S15: Vic | T15: 3000 | U15: Locked Bag 14090 | W15: MELBOURNE | X15: Vic | Y15: 8001 | Z15: YES | AA15: YES | AB15: NO | AC15: NO | AD15: NO | AE15: YES | AF15: CBD | AG15: Urban | AH15: Short rural | AI15: Long rural | AK15: YES | AL15: CitiPower
B16: Jemena Electricity | C16: Jemena Electricity | D16: 82064651083 | E16: Vic | F16: Electricity | G16: Distribution | H16: Revenue cap | I16: Financial | J16: June | K16: 5 | L16: 5 | M16: 5 | N16: 2 | O16: 2016-20 Distribution Determination | P16: Level 16 | Q16: 567 Collins Street | R16: MELBOURNE | S16: Vic | T16: 3000 | U16: PO Box 16182 | W16: MELBOURNE | X16: Vic | Y16: 8001 | Z16: NO | AA16: YES | AB16: YES | AC16: NO | AD16: NO | AE16: YES | AF16: CBD | AG16: Urban | AH16: Short rural | AI16: Long rural | AK16: YES | AL16: Jemena Electricity
B17: Powercor Australia | C17: Powercor Australia | D17: 89064651109 | E17: Vic | F17: Electricity | G17: Distribution | H17: Revenue cap | I17: Financial | J17: June | K17: 5 | L17: 5 | M17: 5 | N17: 2 | O17: 2016-20 Distribution Determination | P17: 40 Market Street | R17: MELBOURNE | S17: Vic | T17: 3000 | U17: Locked bag 14090 | W17: MELBOURNE | X17: Vic | Y17: 8001 | Z17: NO | AA17: NO | AB17: YES | AC17: YES | AD17: NO | AE17: YES | AF17: CBD | AG17: Urban | AH17: Short rural | AI17: Long rural | AK17: YES | AL17: Powercor Australia
B18: United Energy | C18: United Energy | D18: 70064651029 | E18: Vic | F18: Electricity | G18: Distribution | H18: Revenue cap | I18: Financial | J18: June | K18: 5 | L18: 5 | M18: 5 | N18: 2 | O18: 2016-20 Distribution Determination | P18: 43-45 Centreway | R18: MOUNT WAVERLEY | S18: Vic | T18: 3149 | U18: PO Box 449 | W18: MOUNT WAVERLEY | X18: Vic | Y18: 3170 | Z18: NO | AA18: NO | AB18: YES | AC18: NO | AD18: NO | AE18: YES | AF18: CBD | AG18: Urban | AH18: Short rural | AI18: Long rural | AK18: YES | AL18: United Energy
B23: The Reg Year Ending (dms_RYE) must be set to the last year of the regulatory period. For forecast data is is usually (FRCP_y5) for actual it is a single year (CRY). For historical actual data the RYE will need to be set manually in the business details sheet by setting the dms_Multiyear_flag to 1 and putting the correct value in 'dms_Specified_FinalYear. See cells C67:C68
B24: dms_Model_List | C24: dms_Model_Name_Format1 | D24: dms_Worksheet_List | E24: dms_Model_Span_List
B25: ARR | C25: Annual Reporting | D25: =IF(dms_MultiYear_ResponseFlag="yes","REALLOCATED HISTORICAL ANNUAL REPORTING","ANNUAL REPORTING") -> REALLOCATED HISTORICAL ANNUAL REPORTING | E25: 1
B26: CA | C26: Category Analysis | D26: HISTORICAL CATEGORY ANALYSIS - FINANCIAL YEARS | E26: 1
B27: CESS | C27: Capitlal Expenditure | D27: CAPITLAL EXPENDITURE SHARING SCHEMING | E27: 5
B28: CPI | C28: CPI | D28: CPI | E28: 5
B29: EB | C29: Economic Benchmarking | D29: =IF(dms_MultiYear_ResponseFlag="yes","REALLOCATED HISTORICAL ECONOMIC BENCHMARKING","ECONOMIC BENCHMARKING") -> REALLOCATED HISTORICAL ECONOMIC BENCHMARKING | E29: 1
B30: Pricing | C30: Pricing Proposal | D30: PRICING PROPOSAL | E30: 5
B31: PTRM | C31: Post Tax Revenue Model | D31: POST TAX REVENUE MODEL | E31: 5
B32: Reset | C32: Regulatory Reporting (Reset) | D32: REGULATORY REPORTING STATEMENT | E32: 5
B33: RFM | C33: Roll Forward Model | D33: ROLL FORWARD MODEL | E33: 5
B34: WACC | C34: Weighted Average Cost of Capital | D34: WEIGHTED AVERAGE COST OF CAPITAL | E34: 1
B38: Financial | C38: Calendar | E38: PREVIOUS | G38: CURRENT | I38: FORTHCOMING
B39: 1987-88 | C39: 1988 | D39: PRCP_y1 | E39: =INDEX(INDIRECT(dms_RPT),dms_PRCP_start_row) -> 2011-12 | F39: CRCP_y1 | G39: =INDEX(INDIRECT(dms_RPT),dms_CRCP_start_row) -> 2016-17 | H39: =FRCP_y1 -> 2021-22 | I39: =INDEX(INDIRECT(dms_RPT),dms_FRCP_start_row) -> 2021-22
B40: 1988-89 | C40: 1989 | D40: PRCP_y2 | E40: =INDEX(INDIRECT(dms_RPT),dms_PRCP_start_row+1) -> 2012-13 | F40: CRCP_y2 | G40: =INDEX(INDIRECT(dms_RPT),dms_CRCP_start_row+1) -> 2017-18 | H40: FRCP_y2 | I40: =INDEX(INDIRECT(dms_RPT),dms_FRCP_start_row+1) -> 2022-23
B41: 1989-90 | C41: 1990 | D41: PRCP_y3 | E41: =INDEX(INDIRECT(dms_RPT),dms_PRCP_start_row+2) -> 2013-14 | F41: CRCP_y3 | G41: =INDEX(INDIRECT(dms_RPT),dms_CRCP_start_row+2) -> 2018-19 | H41: FRCP_y3 | I41: =INDEX(INDIRECT(dms_RPT),dms_FRCP_start_row+2) -> 2023-24
B42: 1990-91 | C42: 1991 | D42: PRCP_y4 | E42: =INDEX(INDIRECT(dms_RPT),dms_PRCP_start_row+3) -> 2014-15 | F42: CRCP_y4 | G42: =INDEX(INDIRECT(dms_RPT),dms_CRCP_start_row+3) -> 2019-20 | H42: FRCP_y4 | I42: =INDEX(INDIRECT(dms_RPT),dms_FRCP_start_row+3) -> 2024-25
B43: 1991-92 | C43: 1992 | D43: PRCP_y5 | E43: =INDEX(INDIRECT(dms_RPT),dms_PRCP_start_row+4) -> 2015-16 | F43: CRCP_y5 | G43: =INDEX(INDIRECT(dms_RPT),dms_CRCP_start_row+4) -> 2020-21 | H43: FRCP_y5 | I43: =INDEX(INDIRECT(dms_RPT),dms_FRCP_start_row+4) -> 2025-26
B44: 1992-93 | C44: 1993 | D44: PRCP_y6 | E44: =INDEX(INDIRECT(dms_RPT),dms_PRCP_start_row+5) -> 2016-17 | F44: CRCP_y6 | G44: =INDEX(INDIRECT(dms_RPT),dms_CRCP_start_row+5) -> 2021-22 | H44: FRCP_y6 | I44: =INDEX(INDIRECT(dms_RPT),dms_FRCP_start_row+5) -> 2026-27
B45: 1993-94 | C45: 1994 | D45: PRCP_y7 | E45: =INDEX(INDIRECT(dms_RPT),dms_PRCP_start_row+6) -> 2017-18 | F45: CRCP_y7 | G45: =INDEX(INDIRECT(dms_RPT),dms_CRCP_start_row+6) -> 2022-23 | H45: FRCP_y7 | I45: =INDEX(INDIRECT(dms_RPT),dms_FRCP_start_row+6) -> 2027-28
B46: 1994-95 | C46: 1995 | D46: PRCP_y8 | E46: =INDEX(INDIRECT(dms_RPT),dms_PRCP_start_row+7) -> 2018-19 | F46: CRCP_y8 | G46: =INDEX(INDIRECT(dms_RPT),dms_CRCP_start_row+7) -> 2023-24 | H46: FRCP_y8 | I46: =INDEX(INDIRECT(dms_RPT),dms_FRCP_start_row+7) -> 2028-29
B47: 1995-96 | C47: 1996 | D47: PRCP_y9 | E47: =INDEX(INDIRECT(dms_RPT),dms_PRCP_start_row+8) -> 2019-20 | F47: CRCP_y9 | G47: =INDEX(INDIRECT(dms_RPT),dms_CRCP_start_row+8) -> 2024-25 | H47: FRCP_y9 | I47: =INDEX(INDIRECT(dms_RPT),dms_FRCP_start_row+8) -> 2029-30
B48: 1996-97 | C48: 1997 | D48: PRCP_y10 | E48: =INDEX(INDIRECT(dms_RPT),dms_PRCP_start_row+9) -> 2020-21 | F48: CRCP_y10 | G48: =INDEX(INDIRECT(dms_RPT),dms_CRCP_start_row+9) -> 2025-26 | H48: FRCP_y10 | I48: =INDEX(INDIRECT(dms_RPT),dms_FRCP_start_row+9) -> 2030-31
B49: 1997-98 | C49: 1998 | D49: PRCP_y11 | E49: =INDEX(INDIRECT(dms_RPT),dms_PRCP_start_row+10) -> 2021-22 | F49: CRCP_y11 | G49: =INDEX(INDIRECT(dms_RPT),dms_CRCP_start_row+10) -> 2026-27 | H49: FRCP_y11 | I49: =INDEX(INDIRECT(dms_RPT),dms_FRCP_start_row+10) -> 2031-32
B50: 1998-99 | C50: 1999 | D50: PRCP_y12 | E50: =INDEX(INDIRECT(dms_RPT),dms_PRCP_start_row+11) -> 2022-23 | F50: CRCP_y12 | G50: =INDEX(INDIRECT(dms_RPT),dms_CRCP_start_row+11) -> 2027-28 | H50: FRCP_y12 | I50: =INDEX(INDIRECT(dms_RPT),dms_FRCP_start_row+11) -> 2032-33
B51: 1999-00 | C51: 2000 | D51: PRCP_y13 | E51: =INDEX(INDIRECT(dms_RPT),dms_PRCP_start_row+12) -> 2023-24 | F51: CRCP_y13 | G51: =INDEX(INDIRECT(dms_RPT),dms_CRCP_start_row+12) -> 2028-29 | H51: FRCP_y13 | I51: =INDEX(INDIRECT(dms_RPT),dms_FRCP_start_row+12) -> 2033-34
B52: 2000-01 | C52: 2001 | D52: PRCP_y14 | E52: =INDEX(INDIRECT(dms_RPT),dms_PRCP_start_row+13) -> 2024-25 | F52: CRCP_y14 | G52: =INDEX(INDIRECT(dms_RPT),dms_CRCP_start_row+13) -> 2029-30 | H52: FRCP_y14 | I52: =INDEX(INDIRECT(dms_RPT),dms_FRCP_start_row+13) -> 2034-35
B53: 2001-02 | C53: 2002 | D53: PRCP_y15 | E53: =INDEX(INDIRECT(dms_RPT),dms_PRCP_start_row+14) -> 2025-26 | F53: CRCP_y15 | G53: =INDEX(INDIRECT(dms_RPT),dms_CRCP_start_row+14) -> 2030-31 | H53: FRCP_y15 | I53: =INDEX(INDIRECT(dms_RPT),dms_FRCP_start_row+14) -> 2035-36
B54: 2002-03 | C54: 2003 | D54: PRCP_y16 | E54: =INDEX(INDIRECT(dms_RPT),dms_PRCP_start_row+15) -> 2026-27 | F54: CRCP_y16 | G54: =INDEX(INDIRECT(dms_RPT),dms_CRCP_start_row+15) -> 2031-32 | H54: FRCP_y16 | I54: =INDEX(INDIRECT(dms_RPT),dms_FRCP_start_row+15) -> 2036-37
B55: 2003-04 | C55: 2004
B56: 2004-05 | C56: 2005
B57: 2005-06 | C57: 2006 | E57: CRY - FRY
B58: 2006-07 | C58: 2007 | D58: dms_y1 | E58: =IFERROR(INDEX(INDIRECT(dms_RPT),dms_CRY_start_row),0) -> 2009-10
B59: 2007-08 | C59: 2008 | D59: dms_y2 | E59: =IFERROR(INDEX(INDIRECT(dms_RPT),dms_CRY_start_row+1),0) -> 2010-11
B60: 2008-09 | C60: 2009 | D60: dms_y3 | E60: =IFERROR(INDEX(INDIRECT(dms_RPT),dms_CRY_start_row+2),0) -> 2011-12
B61: 2009-10 | C61: 2010 | D61: dms_y4 | E61: =IFERROR(INDEX(INDIRECT(dms_RPT),dms_CRY_start_row+3),0) -> 2012-13
B62: 2010-11 | C62: 2011 | D62: dms_y5 | E62: =IFERROR(INDEX(INDIRECT(dms_RPT),dms_CRY_start_row+4),0) -> 2013-14
B63: 2011-12 | C63: 2012 | D63: dms_y6 | E63: =IFERROR(INDEX(INDIRECT(dms_RPT),dms_CRY_start_row+5),0) -> 2014-15
B64: 2012-13 | C64: 2013 | D64: dms_y7 | E64: =IFERROR(INDEX(INDIRECT(dms_RPT),dms_CRY_start_row+6),0) -> 2015-16
B65: 2013-14 | C65: 2014 | D65: dms_y8 | E65: =IFERROR(INDEX(INDIRECT(dms_RPT),dms_CRY_start_row+7),0) -> 2016-17
B66: 2014-15 | C66: 2015 | D66: dms_y9 | E66: =IFERROR(INDEX(INDIRECT(dms_RPT),dms_CRY_start_row+8),0) -> 2017-18
B67: 2015-16 | C67: 2016 | D67: dms_y10 | E67: =IFERROR(INDEX(INDIRECT(dms_RPT),dms_CRY_start_row+9),0) -> 2018-19
B68: 2016-17 | C68: 2017 | D68: dms_y11 | E68: =IFERROR(INDEX(INDIRECT(dms_RPT),dms_CRY_start_row+10),0) -> 2019-20
B69: 2017-18 | C69: 2018 | D69: dms_y12 | E69: =IFERROR(INDEX(INDIRECT(dms_RPT),dms_CRY_start_row+11),0) -> 2020-21
B70: 2018-19 | C70: 2019 | D70: dms_y13 | E70: =IFERROR(INDEX(INDIRECT(dms_RPT),dms_CRY_start_row+12),0) -> 2021-22
B71: 2019-20 | C71: 2020 | D71: dms_y14 | E71: =IFERROR(INDEX(INDIRECT(dms_RPT),dms_CRY_start_row+13),0) -> 2022-23
B72: 2020-21 | C72: 2021 | D72: dms_y15 | E72: =IFERROR(INDEX(INDIRECT(dms_RPT),dms_CRY_start_row+14),0) -> 2023-24
B73: 2021-22 | C73: 2022 | D73: dms_y16 | E73: =IFERROR(INDEX(INDIRECT(dms_RPT),dms_CRY_start_row+15),0) -> 2024-25
B74: 2022-23 | C74: 2023
B75: 2023-24 | C75: 2024
B76: 2024-25 | C76: 2025
B77: 2025-26 | C77: 2026
B78: 2026-27 | C78: 2027
B79: 2027-28 | C79: 2028
B80: 2028-29 | C80: 2029
B81: 2029-30 | C81: 2030
B82: 2030-31 | C82: 2031
B83: 2031-32 | C83: 2032
B84: 2032-33 | C84: 2033
B85: 2033-34 | C85: 2034
B86: 2034-35 | C86: 2035
B87: 2035-36 | C87: 2036
B88: 2036-37 | C88: 2037

Sheet AER ETL (hidden)
B1: AER ETL INFORMATION
B3: USES NAMED RANGES FLAG | C3: yes | D3: dms_Defined_Names_Used
B5: IF THIS IS AN ABC RIN - make sure the the named range CRY is applied and the named range dms_dollar_nom_UOM is applied
B6: IF THIS IS A RESET RIN - make sure the named ranges CRY and dms_dollar_nom_UOM are NOT present in the workbook
B7: FOR ABC RINS THAT SPAN MULTIPLE YEARS - make sure MultiYear Flag is set and final year entered as required
B9: Full trading name | C9: =INDEX(dms_TradingNameFull_List,MATCH(dms_TradingName,dms_TradingName_List)) -> AusNet Electricity Services Pty Ltd | E9: dms_TradingNameFull
A10: Selected here | B10: Model / RIN | C10: CA | D10: dms_Model
A11: Read from Business & other details | B11: Source | C11: =dms_Selected_Source -> Reporting | D11: dms_Source
B12: Data quality | C12: =dms_Selected_Quality -> Consolidated | D12: dms_DQ_1
B13: Data status | C13: =dms_Selected_Status -> Public | D13: dms_DQ_2
B14: Amendment reason | C14: =dms_Amendment_Text -> . | F14: dms_AmendmentReason
B15: Submission date | C15: =dms_Typed_Submission_Date -> 2020-01-31 | D15: dms_SubmissionDate
A17: Redundant | B17: EBSS - First application of scheme in forthcoming period? | C17: No
A18: Pre-populated from lookup table | B18: Data ingestion data quality | C18: Consolidated | D18: dms_DataQuality | E18: =IF(dms_DQ_2="Confidential","Consolidated","Public")
B19: Sector | C19: =INDEX(dms_Sector_List,MATCH(dms_TradingName,dms_TradingName_List)) -> Electricity | D19: dms_Sector | E19: =INDEX(dms_Sector_List,MATCH(dms_TradingName,dms_TradingName_List))
B20: Segment | C20: =INDEX(dms_Segment_List,MATCH(dms_TradingName,dms_TradingName_List)) -> Distribution | D20: dms_Segment | E20: =INDEX(dms_Segment_List,MATCH(dms_TradingName,dms_TradingName_List))
B21: Regulatory Year Ending | C21: =dms_RYE_result -> 2018 | D21: dms_RYE | E21: =IF(dms_MultiYear_Flag=1,LEFT(dms_Specified_FinalYear,2)&RIGHT(dms_Specified_FinalYear,2),INDEX(dms_RYE_Formula_Result,MATCH(dms_Model,dms_Model_List)))
B22: Reporting Period Type | C22: =INDEX(dms_RPT_List,MATCH(dms_TradingName,dms_TradingName_List)) -> Financial | D22: dms_RPT | E22: =INDEX(dms_RPT_List,MATCH(dms_TradingName,dms_TradingName_List))
B23: EB/CA Unit of Measure for Monetary Values | C23: $0s | D23: dms_dollar_nom_UOM | E23: If the cover sheet is attached to an ABC RIN apply the NAMED RANGE to the cell
B24: Security Classification | C24: Public | D24: dms_Classification | E24: Always Public
B25: Jurisdiction | C25: =INDEX(dms_JurisdictionList,MATCH(dms_TradingName,dms_TradingName_List)) -> Vic | D25: dms_Jurisdiction | E25: =INDEX(dms_JurisdictionList,MATCH(dms_TradingName,dms_TradingName_List))
A26: Relevant for PTRM, RFMs and Reset RINS | B26: $ REAL REFERENCES
B27: Does the named range CRY exist in this file? | C27: =IFERROR(CONCATENATE("yes - ",CRY),"NO") -> yes - 2009-10
B28: CRY-1 (last full calendar year before CRY) | C28: =IFERROR(IF(dms_RPT="calendar",CRY-1,LEFT(CRY,4)),"CRY not present") -> 2009 | D28: dms_Cal_Year_B4_CRY | E28: '=IF(dms_RPT="financial",VALUE(LEFT(dms_SingleYear_FinalYear_Result,4)),VALUE(LEFT(dms_SingleYear_FinalYear_Result,4)-1))
B29: Dollar $ real month | C29: =INDEX(dms_RPTMonth_List,MATCH(dms_TradingName,dms_TradingName_List)) -> June | D29: dms_RPTMonth | E29: =INDEX(dms_RPTMonth_List,MATCH(dms_TradingName,dms_TradingName_List))
B30: Dollar $ real (the last month before the FRCP_y1) | C30: =IF(dms_SingleYearModel="yes",CONCATENATE(dms_RPTMonth)&" "&VALUE((LEFT(CRY,2))&RIGHT(CRY,2)),CONCATENATE(dms_RPTMonth)&" "&dms_DollarReal_year) -> June 2010 | D30: dms_DollarReal | E30: =IF(SUM(dms_SingleYear_Model)>0,CONCATENATE(dms_RPTMonth)&" "&VALUE((LEFT(CRY,2))&RIGHT(CRY,2)),CONCATENATE(dms_RPTMonth)&" "&VALUE((LEFT(dms_RYE,2)&RIGHT(dms_RYE,2))))
B31: Dollar $ real previous year (PRCP_y5) | C31: =IF(dms_SingleYearModel="yes",CONCATENATE(dms_RPTMonth)&" "&VALUE((LEFT(CRY,2))&RIGHT(CRY,2)),CONCATENATE(dms_RPTMonth)&" "&dms_Previous_DollarReal_year) -> June 2010 | D31: dms_DollarReal_Prev | E31: =IF(SUM(dms_SingleYear_Model)>0,CONCATENATE(dms_RPTMonth)&" "&VALUE(((LEFT(CRY,2))&RIGHT(CRY,2))-1),CONCATENATE(dms_RPTMonth)&" "&VALUE(((LEFT(dms_CRCP_FirstYear_Result,2)&RIGHT(dms_CRCP_FirstYear_Result,2))))-1)
B32: PTRM/ RFMs
B33: Form of control | C33: =INDEX(dms_FormControl_List,MATCH(dms_TradingName,dms_TradingName_List)) -> Revenue cap | D33: dms_FormControl | E33: =INDEX(dms_FormControl_List,MATCH(dms_TradingName,dms_TradingName_List))
A34: All potential values for Regulatory Years or RYEs as calculated | B34: This block works out the various RYE's for ALL RIN types and MODELS
B35: dms_start_year | C35: =FRCP_y1 -> 2021-22 | D35: FRCP_y1 from cover sheet
B36: dms_CRY_start_year | C36: =IFERROR(CRY,CRCP_y4) -> 2009-10
B37: dms_CRY_start_row | C37: =MATCH(dms_CRY_start_year,INDIRECT(dms_RPT),0) -> 23
B38: dms_FRCP_start_row | C38: =MATCH(dms_start_year,INDIRECT(dms_RPT),0) -> 35 | D38: Uses FRCP_y1 as a start reference
B39: dms_CRCP_start_row | C39: =dms_FRCP_start_row-dms_CRCPlength_Num -> 30 | D39: Uses the value in dms_CRCPlength_Num
B40: dms_PRCP_start_row | C40: =dms_FRCP_start_row-dms_CRCPlength_Num-dms_PRCPlength_Num -> 25 | D40: Uses the value in dms_CRCPlength_Num and dms_PRCPlength_Num
B41: dms_RYE_start_row | C41: =dms_FRCP_start_row+(dms_FRCPlength_Num-1) -> 39 | D41: Uses the value in dms_FRCPlength_Num-1
B42: FRCP_start_year | C42: =INDEX(INDIRECT(dms_RPT),dms_FRCP_start_row) -> 2021-22 | D42: Converts the FRCP start row to display the year
B43: CRCP_start_year | C43: =INDEX(INDIRECT(dms_RPT),dms_CRCP_start_row) -> 2016-17 | D43: Converts the CRCP start row to display the year
B44: PRCP_start_year | C44: =INDEX(INDIRECT(dms_RPT),dms_PRCP_start_row) -> 2011-12 | D44: Converts the PRCP start row to display the year
B45: FRCP_final_year | C45: =INDEX(INDIRECT(dms_RPT),dms_FRCP_start_row+dms_FRCPlength_Num-1) -> 2025-26 | D45: Finds the FRCP final year
B46: CRCP_final_year | C46: =INDEX(INDIRECT(dms_RPT),dms_CRCP_start_row+dms_CRCPlength_Num-1) -> 2020-21 | D46: Finds the CRCP final year
B47: PRCP_final_year | C47: =INDEX(INDIRECT(dms_RPT),dms_PRCP_start_row+dms_FRCPlength_Num-1) -> 2015-16 | D47: Finds the PRCP final year
B48: dms_Reset_final_year | C48: =INDEX(INDIRECT(dms_RPT),dms_RYE_start_row) -> 2025-26 | D48: For Resets and PTRM/RFMs (same as FRCP_final_year)
B49: dms_SpecifiedYear_final_year | C49: =FRY -> 2017-18 | D49: FRY from cover sheet
B50: dms_DollarReal_year | C50: =LEFT(CRCP_final_year,2)&RIGHT(CRCP_final_year,2) -> 2021 | D50: Uses the value in CRCP_final_year
B51: dms_Previous_DollarReal_year | C51: =LEFT(PRCP_final_year,2)&RIGHT(PRCP_final_year,2) -> 2016 | D51: Uses the value in PRCP_final_year
B52: dms_CRY_RYE | C52: =IFERROR(LEFT(CRY,2)&RIGHT(CRY,2),0) -> 2010 | D52: For ABC single year RINS
B53: dms_Reset_RYE | C53: =IF(dms_Model_Span>1,(LEFT(dms_Reset_final_year,2)&RIGHT(dms_Reset_final_year,2)),0) -> 0 | D53: If model span > 1 then uses dms_Reset_RYE otherwise it's a multi year ABC and uses dms_Specified_RYE
B54: dms_Specified_RYE | C54: =IF(dms_MultiYear_ResponseFlag="Yes",(LEFT(dms_Specified_FinalYear,2)&RIGHT(dms_Specified_FinalYear,2)),0) -> 2018 | D54: If multi year ABC - uses dms_Specified_FinalYear
B55: dms_Model_Span | C55: =INDEX(dms_Model_Span_List,MATCH(dms_Model,dms_Model_List)) -> 1 | D55: A result of 5 is used to signify that it is more than 1 year span
B56: dms_RYE_result | C56: =IF(dms_MultiYear_ResponseFlag="yes",dms_Specified_RYE,(IF(dms_Model_Span>1,dms_Reset_RYE,dms_CRY_RYE))) -> 2018 | D56: Nested IF - feeds into dms_RYE
B57: dms_Reset_Span | C57: =IF(dms_Reset_RYE>0,CONCATENATE(FRCP_y1," to ",FRCP_final_year),0) -> 0 | D57: Reset span of years as text
B58: dms_SpecifiedYear_Span | C58: =IF(dms_Specified_RYE>0,CONCATENATE(CRY," to ",dms_Specified_FinalYear),0) -> 2009-10 to 2017-18 | D58: Multi year ABC span of years as text
B59: dms_Header_Span | C59: =IF(dms_MultiYear_Flag=1,dms_SpecifiedYear_Span,IF(dms_Model_Span>1,dms_Reset_Span,CRY)) -> 2009-10 to 2017-18 | D59: NESTED IF - for Sheet Headers
B60: ABC RINS THAT SPAN MULTIPLE YEARS
B61: This is a multi year ABC RIN? | C61: Yes
C62: =IF(dms_MultiYear_ResponseFlag="No",0,1) -> 1 | D62: dms_MultiYear_Flag | E62: This is set from the answer provided above
C63: =IF(dms_MultiYear_Flag=1,FRY,"not a Multiple year submission") -> 2017-18 | D63: dms_Specified_FinalYear | E63: The result here is returned to dms_CRCP_FinalYear_Result if response to Q in C73 is "yes" and dms_MultiYear_Flag is set to 1
B64: Start year for 5.2 in Multi year ABC RINS | C64: =IFERROR(IF(dms_MultiYear_Flag=1,FRY,CRY),"not an ABC") -> 2017-18 | D64: dms_0502_Inst_Year | E64: =IF(dms_MultiYear_Flag=1,FRY,CRY) | G64: For single year RINS this is CRY - multi year RINS need to start a the end of the span of years (ie. FRY)
B65: WHAT IS THE RYE?
B66: Reg Period Lengths
B67: PRCP length in years | C67: =INDEX(dms_PRCPlength_List,MATCH(dms_TradingName,dms_TradingName_List)) -> 5 | D67: dms_PRCPlength_Num | E67: =INDEX(dms_PRCPlength_List,MATCH(dms_TradingName,dms_TradingName_List))
B68: CRCP length in years | C68: =INDEX(dms_CRCPlength_List,MATCH(dms_TradingName,dms_TradingName_List)) -> 5 | D68: dms_CRCPlength_Num | E68: =INDEX(dms_CRCPlength_List,MATCH(dms_TradingName,dms_TradingName_List))
B69: FRCP length in years | C69: =INDEX(dms_FRCPlength_List,MATCH(dms_TradingName,dms_TradingName_List)) -> 5 | D69: dms_FRCPlength_Num | E69: =INDEX(dms_FRCPlength_List,MATCH(dms_TradingName,dms_TradingName_List))
B70: Single year RIN?
B71: Single Year ABC RIN ? | C71: =IF(dms_Model="EB",1,0) -> 0 | D71: dms_EB
C72: =IF(dms_Model="CA",1,0) -> 1 | D72: dms_CA | E72: =dms_SingleYear_Model
C73: =IF(dms_Model="ARR",1,0) -> 0 | D73: dms_ARR
B74: Is this a single Year ABC RIN? | C74: =IF(SUM(dms_SingleYear_Model)=1,"yes","no") -> yes | D74: dms_SingleYearModel | E74: =IF(SUM(dms_SingleYear_Model)=1,"yes","no")
B75: Single Year Final Year Result | C75: =IF(AND(dms_SingleYearModel="yes",dms_MultiYear_Flag=0),CRY,0) -> 0 | D75: dms_SingleYear_FinalYear_Result | E75: =IFERROR(IF(SUM(dms_SingleYear_Model)<>0,(INDIRECT(dms_SingleYear_FinalYear_Ref)),"not a single year RIN"),"CRY not present")
B76: Multi year RIN?
B78: Multi Year Reset/Model? | C78: =IF(dms_Model_Span>1,"yes","no") -> no
B79: Final year result for Reset/Model | C79: =IF(dms_Model_Span>1,dms_Reset_final_year,0) -> 0
B81: Multi Year ABC RIN? | C81: =IF(dms_MultiYear_Flag=1,"yes","no") -> yes
B82: Final year result for ABC multi year | C82: =IF(dms_MultiYear_Flag=1,C49,0) -> 2017-18
B84: EB RINS
B85: Calendar Year for table 3.6 data | C85: =IFERROR(IF(dms_Segment="Transmission",dms_Cal_Year_B4_CRY,CRY),"CRY not present") -> 2009-10 | D85: dms_0306_Year | E85: =IF(dms_Segment="Transmission",dms_Cal_Year_B4_CRY,CRY)
B86: CA RINS
B87: Find how many rows in tables 6.3 sustained interruptions? | E87: dms_060301_MaxRows only returns a valid value when cover sheet is attached to a CA file
C88: =IF(dms_Model<>"CA","not a CA","Is a CA") -> Is a CA | E88: =IF(dms_Model<>"CA","not a CA","Is a CA")
B89: dms_060301_Avg_Duration_Sustained_Int_Values present? | C89: =IFERROR(IF(INDEX(dms_060301_Avg_Duration_Sustained_Int_Values,1,1)<>"","yes","no"),"no") -> no | D89: dms_060301_checkvalue | E89: =IFERROR(IF(INDEX(dms_060301_Avg_Duration_Sustained_Int_Values,1,1)<>"","yes","no"),"no")
C90: =IF(AND(dms_Model="CA",(dms_060301_checkvalue="no")),"error - NR not present","no errors") -> error - NR not present | E90: =IF(AND(dms_Model="CA",(dms_060301_checkvalue="no")),"error - NR not present","no errors")
B91: Table 6.3.1 - last row reference | C91: =IFERROR(IF(dms_Model="CA",LOOKUP(2,1/(dms_060301_Avg_Duration_Sustained_Int_Values<>""),(ROW(dms_060301_Avg_Duration_Sustained_Int_Values))),"not a CA"),"6.3 not present") -> 6.3 not present | D91: dms_060301_LastRow | E91: =IFERROR(IF(dms_Model="CA",LOOKUP(2,1/(dms_060301_Avg_Duration_Sustained_Int_Values<>""),(ROW(dms_060301_Avg_Duration_Sustained_Int_Values))),"not a CA"),"6.3 not present")
B92: Table 6.3.1 - max number rows | C92: =IFERROR(IF(dms_Model="CA",(dms_060301_LastRow-15),"not a CA"),"error") -> error | D92: dms_060301_MaxRows | E92: =IFERROR(IF(dms_Model="CA",(dms_060301_LastRow-15),"not a CA"),"error")
B93: Table 6.6.3 - Public lighting repair - no. business days | C93: =INDEX(dms_663_List,MATCH(dms_TradingName,dms_TradingName_List)) -> 2 | D93: dms_663 | E93: =INDEX(dms_663_List,MATCH(dms_TradingName,dms_TradingName_List))
B94: ARR or RESET RINS
B95: How many rows in tables 6.1 or 6.7? (leap year?) | C95: insert dms_LeapYear NR if required | E95: 'dms_LeapYear is used to determine dms_060701_Max_Rows BUT it is only found on worksheet 6.1 or 6.7 and the date value in the cell is used to determine whether it is a leap year
B96: Is dms_LeapYear named range present? | C96: =IFERROR(IF(dms_LeapYear,"yes"),"no") -> no
B97: Table 6.7.1 - includes a leap year? | C97: =IFERROR(IF(MONTH(DATE(YEAR(dms_LeapYear),2,29))=2,"is a leap year","not a leap year"), "dms_LeapYear not present") -> dms_LeapYear not present | D97: dms_LeapYear_Result | E97: =IFERROR(IF(MONTH(DATE(YEAR(dms_LeapYear),2,29))=2,"is a leap year","not a leap year"),"dms_LeapYear not present")
B98: MaxRows if Reset and leap year | C98: =IF(dms_LeapYear_Result="is a leap year",1827,1826) -> 1826 | D98: dms_060701_Reset_MaxRows | E98: =IF(dms_LeapYear_Result="is a leap year",1827,1826) | H98: number of days present in Reset RIN table
B99: MaxRows if ARR and leap year | C99: =IF(dms_LeapYear_Result="is a leap year",366,365) -> 365 | D99: dms_060701_ARR_MaxRows | E99: =IF(dms_LeapYear_Result="is a leap year",366,365) | H99: number of days present in ARR RIN table
B100: Table 6.7.1 - Max Rows (leap year/ non leap year) | C100: =IF(dms_Model="ARR",dms_060701_ARR_MaxRows,IF(dms_Model="Reset",dms_060701_Reset_MaxRows,"not a relevant RIN type")) -> not a relevant RIN type | D100: dms_060701_MaxRows | E100: =IF(dms_Model="ARR",dms_060701_ARR_MaxRows,IF(dms_Model="Reset",dms_060701_Reset_MaxRows,"not a relevant RIN type"))
B101: How many columns in 6.7? (4 or 5 feeder categories) | C101: =IF(dms_FifthFeeder_flag_NSP="NO","This NSP has only 4 feeder categories","This NSP has 5 feeder categories") -> This NSP has only 4 feeder categories
B102: Table 6.7.1 - Last column (# of feeder categories > 4) | C102: =IF(dms_FifthFeeder_flag_NSP="NO",10,12) -> 10 | D102: dms_060701_MaxCols | E102: =IF(dms_FifthFeeder_flag_NSP="NO",8,10)
B103: Table 6.7.1 - Number of offset rows | C103: =IF(dms_Model="ARR",15,9) -> 9 | D103: dms_060701_OffsetRows | E103: =IF(dms_Model="ARR",15,9)
B104: Start date for telephone answering in 6.1 or 6.7? | E104: Using 060101 as naming standard not 060701 for start dates
B105: Table 6.1.1 and 6.7.1 - Start Date as Text | C105: =IF(dms_SingleYearModel="yes",(CONCATENATE(IF(LEN(CRY)=4,"1-Jan-","1-Jul-"),LEFT(CRY,4))),(CONCATENATE(IF(LEN(PRCP_y4)=4,"1-Jan-","1-Jul-"),LEFT(PRCP_y4,4)))) -> 1-Jul-2009 | D105: dms_060101_StartDateTxt | E105: =IF(SUM(dms_SingleYear_Model)>1,(CONCATENATE(IF(LEN(CRY)=4,"1-Jan-","1-Jul-"),LEFT(CRY,4))),(CONCATENATE(IF(LEN(CRCP_y4)=4,"1-Jan-","1-Jul-"),LEFT(CRCP_y4,4))))
B106: Table 6.1.1 and 6.7.1 - Start Date as Date Value | C106: =DATEVALUE(dms_060701_StartDateTxt) -> 39995 | D106: dms_060101_StartDateVal | E106: =DATEVALUE(dms_060701_StartDateTxt)
B107: ARRs
B108: How many rows in table 6.8? | C108: insert dms_060801_StartCell NR if required | E108: dms_060801_StartCell is only found on worksheet 6.8 and is used to determine the starting date for the date range
B109: Is dms_060801_StartCell named range present? | C109: yes | E109: =IFERROR(IF((ROW(dms_060801_StartCell)-1)=1,"yes","yes"),"no")
B110: Table 6.8 - Number of offset rows | C110: 12 | D110: dms_0608_OffsetRows | E110: =IFERROR(IF(dms_Model="ARR",(ROW(dms_060801_StartCell)-1),"not an ARR"),"6.8 error")
B111: Table 6.8 - Last row | C111: 0 | D111: dms_0608_LastRow | E111: =IFERROR(IF(dms_060801_StartCell<>"",IF(dms_Model="ARR",(LOOKUP(2,1/(dms_060801_01_Values<>""),(ROW(dms_060801_01_Values)))),"not an ARR"),0),"0")
B112: Table 6.8 - MaxRows | C112: =IFERROR(IF(dms_Model="ARR",(MAX(0,dms_0608_LastRow-dms_0608_OffsetRows)),"not an ARR"),"0") -> not an ARR | D112: dms_060801_MaxRows | E112: =IFERROR(IF(dms_Model="ARR",(MAX(0,dms_0608_LastRow-dms_0608_OffsetRows)),"not an ARR"),"0")
B113: TNSP RESET RINS
B114: Table 7.9.4 only appears in TNSPs Reset RIN
B115: Table 7.9.4 - first year | C115: =LEFT(PRCP_y3,4) -> 2013 | D115: dms_070904_Start_Year | E115: =LEFT(PRCP_y3,4)
B117: MISC
B118: Distribution Determination Reference | C118: =INDEX(dms_DeterminationRef_List,MATCH(dms_TradingName,dms_TradingName_List)) -> 2016-20 Distribution Determination | D118: dms_DeterminationRef
B119: Public lighting NSP? | C119: =INDEX(dms_Public_Lighting_List,MATCH(dms_TradingName,dms_TradingName_List)) -> YES | D119: dms_Public_Lighting | E119: =INDEX(dms_Public_Lighting_List,MATCH(dms_TradingName,dms_TradingName_List))
B120: CBD Feeder for this business | C120: =INDEX(dms_CBD_flag,MATCH(dms_TradingName,dms_TradingName_List)) -> NO | D120: dms_CBD_flag_NSP
B121: Urban Feeder for this business | C121: =INDEX(dms_Urban_flag,MATCH(dms_TradingName,dms_TradingName_List)) -> YES | D121: dms_Urban_flag_NSP
B122: Short rural Feeder for this business | C122: =INDEX(dms_ShortRural_flag,MATCH(dms_TradingName,dms_TradingName_List)) -> YES | D122: dms_ShortRural_flag_NSP
B123: Long rural Feeder for this business | C123: =INDEX(dms_LongRural_flag,MATCH(dms_TradingName,dms_TradingName_List)) -> YES | D123: dms_LongRural_flag_NSP
B124: Fifth Feeder Category (eg. TasNetworks (D)) | C124: =INDEX(dms_FeederType_5_flag,MATCH(dms_TradingName,dms_TradingName_List)) -> NO | D124: dms_FifthFeeder_flag_NSP | E124: =INDEX(dms_FeederType_5_flag,MATCH(dms_TradingName,dms_TradingName_List))
B126: DISCARD FILES
B127: discard this record? | C127: NO | D127: dms_DISCARD | E127: If record is to be discarded from DB set this flag to YES
B129: SUBSET FILES
B130: Is this Submission File a Subset File | C130: YES | D130: dms_Partial
B133: REGULATORY YEARS FOR MULTI RYE SUBMISSIONS
B134: Multiple RYE flag | C134: YES | D134: dms_Multi_RYE_flag
C135: Manually specify RYE | D135: Named ranges to apply
C136: 2013 | D136: dms_RYE_01
C137: 2014 | D137: dms_RYE_02
C138: 2015 | D138: dms_RYE_03
C139: 2016 | D139: dms_RYE_04
C140: 2017 | D140: dms_RYE_05
C141: 2018 | D141: dms_RYE_06
C142: 2019 | D142: dms_RYE_07
C143: 2020 | D143: dms_RYE_08
C144: 2021 | D144: dms_RYE_09

Sheet Instructions
B2: =CONCATENATE(dms_Sector," ",dms_Segment," ", "Network Service Provider") -> Electricity Distribution Network Service Provider
B3: =INDEX(dms_Worksheet_List,MATCH(dms_Model,dms_Model_List)) -> HISTORICAL CATEGORY ANALYSIS - FINANCIAL YEARS
B4: =CONCATENATE("This template is to be used by ",dms_TradingNameFull," to fulfil its reporting obligations to the AER.") -> This template is to be used by AusNet Electricity Services Pty Ltd to fulfil its reporting obligations to the AER.
B5: INSTRUCTIONS
B6: GENERAL | C6: Complete the Business & other details worksheet before entering data or values in any other worksheets. The Business & other details worksheet is linked to other worksheets within the workbook and automatically generates certain column headings and conditional formatting.
B8: CONFIDENTIAL INFORMATION | C8: Please use the macro at the top of each worksheet to identify confidential information in the confidential workbook.
C9: -Do this by selecting the cell or cells that contain confidential information and then run the Mark selection as CONFIDENTIAL macro. This will format the cells a specific colour that is identified by the AER's database which in turn marks that information as confidential. -To reverse this, select the cell or cells and run the Return selection to NON-CONFIDENTIAL macro.
B11: RESPONSES | C11: Please return two (2) files to the AER: 1. A confidential version which must contain a complete set of all responses with confidential information marked using the Mark selection CONFIDENTIAL macro and which has been completed using the locked template file provided by the AER. 2. A public version with confidential information either removed completely or aggregated in some form together with writtten consent to disclose the public version of the response. Use the drop down box on the Business and other details worksheet to identify the file as either confidential ('consolidated') or public.
B13: AMENDMENTS | C13: If an NSP wishes to correct data previously submitted to the AER it should resubmit that data using the original completed submission as the starting point. Please make any necessary changes to the data. Data that is not being amended should be left unchanged. NSPs must identify the reason for the amendments in the Amendment Reason box on the Business and other details worksheet. NSPs may provide further details regarding any amendments in the Amendments worksheet. .
C14: NSP may use Amended Data macro to highlight cells that contain amended data. NB: if data is also CONFIDENTIAL, re-apply the Confidentiality macro after applying the Amended macro
C15: Please resubmit two (2) files - a confidential version and a public version of the amended submission to the AER
B17: UNITS OF MEASURE | C17: All amounts are to be unrounded and reported on a one for one basis: that is 1000 is to be entered as '1000'. Applicable units of measure may be identified in the table column headings or row descriptors.
B19: INPUT / NON-INPUT CELLS
D20: Yellow = Input cell (mandatory)
D21: Darker yellow = input cell (mandatory)
D22: Orange = input cell (if data available)
D23: Grey = Not applicable/No inputs required
D24: PLEASE DO NOT ENTER TEXT into cells that are to contain numeric data.
B27: NAVIGATION | C27: Many tables in the worksheets have been "grouped" to allow for easy navigation. To ungroup or group data use the outline symbols in the left margin (for Row groupings) or above the columns (for column groupings).

Sheet Contents
D1: =INDEX(dms_Worksheet_List,MATCH(dms_Model,dms_Model_List)) -> HISTORICAL CATEGORY ANALYSIS - FINANCIAL YEARS
D2: =INDEX(dms_TradingNameFull_List,MATCH(dms_TradingName,dms_TradingName_List)) -> AusNet Electricity Services Pty Ltd
D3: =dms_Header_Span -> 2009-10 to 2017-18
E6: CONTENTS
E8: SUBMISSION | F8: Business & other details
E10: EXPENDITURE | F10: 2.1 Expenditure summary
F11: 2.2 Repex
F12: 2.3(b) Augex
F13: 2.5 Connections
F14: 2.6 Non-network
F15: 2.7 Vegetation management
F16: 2.8 Maintenance
F17: 2.9 Emergency Response
F18: 2.10 Network overheads
F19: 2.11 Labour
F20: 2.12 Input tables
E22: ALTERNATIVE CONTROL | F22: 4.1 Public lighting
F23: 4.2 Metering
F24: 4.3 Fee-based services
F25: 4.4 Quoted services
E27: NETWORK | F27: 5.4 MD & utilisation-Spatial

Sheet Business & other details
V1: =INDEX(dms_Worksheet_List,MATCH(dms_Model,dms_Model_List)) -> HISTORICAL CATEGORY ANALYSIS - FINANCIAL YEARS
V2: =INDEX(dms_TradingNameFull_List,MATCH(dms_TradingName,dms_TradingName_List)) -> AusNet Electricity Services Pty Ltd
V3: =dms_Header_Span -> 2009-10 to 2017-18
V4: BUSINESS & OTHER DETAILS
V6: INSTRUCTIONS
V7: Complete the following business details regulatory template before entering data or values in any other regulatory template. This regulatory template is linked to other cells within the spreadsheet and automatically generates column headings and conditional formatting to distinguish business specific input and non-input cells.
Q9: SUBMISSION PARTICULARS INPUT SHEET
V12: ENTITY DETAILS
V14: Business Name
V16: Short name | AL16: AusNet (D)
V17: ACN/ABN | AL17: =INDEX(dms_ABN_List,MATCH(dms_TradingName,dms_TradingName_List)) -> 91064651118
V21: Business Address | BQ21: Postal Address
V23: Address 1 | AL23: =INDEX(dms_Addr1_List,MATCH(dms_TradingName,dms_TradingName_List)) -> Level 32 | BI23: Address 1 | BQ23: =INDEX(dms_Addr1_List,MATCH(dms_TradingName,dms_TradingName_List)) -> Level 32
V24: Address 2 | AL24: =IF(ISBLANK(INDEX(dms_Addr2_List,MATCH(dms_TradingName,dms_TradingName_List))),"",(INDEX(dms_Addr2_List,MATCH(dms_TradingName,dms_TradingName_List)))) -> 2 Southbank Boulevard | BI24: Address 2 | BQ24: =IF(ISBLANK(INDEX(dms_Addr2_List,MATCH(dms_TradingName,dms_TradingName_List))),"",(INDEX(dms_Addr2_List,MATCH(dms_TradingName,dms_TradingName_List)))) -> 2 Southbank Boulevard
V25: Suburb | AL25: Southbank | BI25: Suburb | BQ25: Southbank
V26: State | AL26: =INDEX(dms_State_List,MATCH(dms_TradingName,dms_TradingName_List)) -> Vic | AV26: Post code | AX26: 3006 | BI26: State | BQ26: =INDEX(dms_PState_List,MATCH(dms_TradingName,dms_TradingName_List)) -> Vic | CA26: Post code | CC26: 3006
BA28: `
V30: Contact Names
V32: Name | AL32: Charlotte Eddy | BI32: Name | BQ32: Namrata Powale
V33: Phone | AL33: 03 9695 6309 | BI33: Phone | BQ33: 03 9695 6968
V34: Email | AL34: charlotte.eddy@ausnetservices.com.au | BI34: Email | BQ34: Namrata.Powale@ausnetservices.com.au
V39: REGULATORY CONTROL PERIODS
V42: RESETS | AF42: Forthcoming period | AR42: 2021-22 | BA42: =FRCP_y2 -> 2022-23 | BJ42: =FRCP_y3 -> 2023-24 | BS42: =FRCP_y4 -> 2024-25 | CB42: =FRCP_y5 -> 2025-26
AR43: =FRCP_y6 -> 2026-27 | BA43: =FRCP_y7 -> 2027-28 | BJ43: =FRCP_y8 -> 2028-29 | BS43: =FRCP_y9 -> 2029-30 | CB43: =FRCP_y10 -> 2030-31
AR44: =FRCP_y11 -> 2031-32 | BA44: =FRCP_y12 -> 2032-33 | BJ44: =FRCP_y13 -> 2033-34 | BS44: =FRCP_y14 -> 2034-35 | CB44: =FRCP_y15 -> 2035-36
AF46: Current period | AR46: =CRCP_y1 -> 2016-17 | BA46: =CRCP_y2 -> 2017-18 | BJ46: =CRCP_y3 -> 2018-19 | BS46: =CRCP_y4 -> 2019-20 | CB46: =CRCP_y5 -> 2020-21
AR47: =CRCP_y6 -> 2021-22 | BA47: =CRCP_y7 -> 2022-23 | BJ47: =CRCP_y8 -> 2023-24 | BS47: =CRCP_y9 -> 2024-25 | CB47: =CRCP_y10 -> 2025-26
AR48: =CRCP_y11 -> 2026-27 | BA48: =CRCP_y12 -> 2027-28 | BJ48: =CRCP_y13 -> 2028-29 | BS48: =CRCP_y14 -> 2029-30 | CB48: =CRCP_y15 -> 2030-31
AF50: Previous period | AR50: =PRCP_y1 -> 2011-12 | BA50: =PRCP_y2 -> 2012-13 | BJ50: =PRCP_y3 -> 2013-14 | BS50: =PRCP_y4 -> 2014-15 | CB50: =PRCP_y5 -> 2015-16
AR51: =PRCP_y6 -> 2016-17 | BA51: =PRCP_y7 -> 2017-18 | BJ51: =PRCP_y8 -> 2018-19 | BS51: =PRCP_y9 -> 2019-20 | CB51: =PRCP_y10 -> 2020-21
AR52: =PRCP_y11 -> 2021-22 | BA52: =PRCP_y12 -> 2022-23 | BJ52: =PRCP_y13 -> 2023-24 | BS52: =PRCP_y14 -> 2024-25 | CB52: =PRCP_y15 -> 2025-26
V54: ANNUAL RINS | AF54: Commencing year | AR54: 2009-10
AF56: Final year | AR56: 2017-18
V60: SUBMISSION DETAILS
AF62: RIN type | AR62: =INDIRECT(dms_Model) -> Category Analysis
V64: THIS FILE | AF64: Source | AR64: Reporting
AF66: Data Quality | AR66: Consolidated
AF68: Confidentiality Status | AR68: Public
AF70: Amended RIN Amendment Reason | AR70: .
AF74: Submission Date | AR74: 2020-01-31

Sheet 2.1 Expenditure summary
B1: =INDEX(dms_Worksheet_List,MATCH(dms_Model,dms_Model_List)) -> HISTORICAL CATEGORY ANALYSIS - FINANCIAL YEARS
B2: =INDEX(dms_TradingNameFull_List,MATCH(dms_TradingName,dms_TradingName_List)) -> AusNet Electricity Services Pty Ltd
B3: =dms_Header_Span -> 2009-10 to 2017-18
B4: 2.1 EXPENDITURE SUMMARY & RECONCILIATION
B6: There are EIGHT tables on this worksheet - see the Instructions sheet on how to group or ungroup tables.
B8: 2.1.1 - STANDARD CONTROL SERVICES CAPEX
C9: EXPENDITURE ($0's)
C10: =dms_y1 -> 2009-10 | D10: =dms_y2 -> 2010-11 | E10: =dms_y3 -> 2011-12 | F10: =dms_y4 -> 2012-13 | G10: =dms_y5 -> 2013-14 | H10: =dms_y6 -> 2014-15 | I10: =dms_y7 -> 2015-16 | J10: =dms_y8 -> 2016-17 | K10: =dms_y9 -> 2017-18
B11: Replacement expenditure | C11: 69073347.57 | D11: 67865860.39 | E11: 91657362.1 | F11: 107222704.6 | G11: 145715674.9 | H11: 154889677.9 | I11: 122160408.8 | J11: 122182880.6 | K11: 132216118.3
B12: Connections | C12: 70050159.78 | D12: 66664831.42 | E12: 63884588.56 | F12: 56244230.16 | G12: 59723158.06 | H12: 60730769.02 | I12: 62650900.84 | J12: 66507766.01 | K12: 64724087.19
B13: Augmentation Expenditure | C13: 60831751.17 | D13: 64090461.28 | E13: 67747338.53 | F13: 105826702 | G13: 110916226.7 | H13: 79254090.13 | I13: 67328709.04 | J13: 71321799.64 | K13: 88050583.24
B14: Non-network | C14: 32467487.17 | D14: 43420327.26 | E14: 49447705.73 | F14: 51978525.18 | G14: 44881710.34 | H14: 35001228.57 | I14: 26476412.5 | J14: 29768375.04 | K14: 42873152.69
B15: capitalised network overheads | C15: 21606602.09 | D15: 20473516.33 | E15: 18686831.69 | F15: 20409848.66 | G15: 24392797.2 | H15: 28155108.1 | I15: 27586978.99 | J15: 26865660.04 | K15: 29979528.09
B16: capitalised corporate overheads | C16: 8406516.151 | D16: 10113542.75 | E16: 12937334.12 | F16: 11298051.66 | G16: 8376766.738 | H16: 10400408.34 | I16: 9480184.689 | J16: 6443695.021 | K16: 4506624.384
B17: Metering | C17: 0 | D17: 0 | E17: 0 | F17: 0 | G17: 0 | H17: 0 | I17: 0 | J17: 0 | K17: 0
B18: Public Lighting | C18: 0 | D18: 0 | E18: 0 | F18: 0 | G18: 0 | H18: 0 | I18: 0 | J18: 0 | K18: 0
B25: balancing item | C25: 5951161.255 | D25: 7791874.747 | E25: 5870750.971 | F25: 5725927.4 | G25: 13261679.64 | H25: 11670279.81 | I25: 1528391.849 | J25: 0 | K25: 0
B26: capcons (included in the above items) | C26: 29271601.86 | D26: 31163883.23 | E26: 27156314.32 | F26: 23747187.95 | G26: 33692124.16 | H26: 34688199.16 | I26: 20264443.94 | J26: 20262165.73 | K26: 23998620.39
B27: TOTAL GROSS CAPEX (includes capcons) | C27: =+SUM(C11:C25) -> 268387025.2 | D27: 280420414.2 | E27: 310231911.7 | F27: 358705989.7 | G27: 407268013.5 | H27: 380101561.9 | I27: 317211986.7 | J27: 323090176.4 | K27: 362350093.9
B29: 2.1.2 - STANDARD CONTROL SERVICES OPEX
C30: EXPENDITURE ($0's)
C31: =dms_y1 -> 2009-10 | D31: =dms_y2 -> 2010-11 | E31: =dms_y3 -> 2011-12 | F31: =dms_y4 -> 2012-13 | G31: =dms_y5 -> 2013-14 | H31: =dms_y6 -> 2014-15 | I31: =dms_y7 -> 2015-16 | J31: =dms_y8 -> 2016-17 | K31: =dms_y9 -> 2017-18
B32: Vegetation management | C32: 22528333.47 | D32: 22988293.24 | E32: 28586378.35 | F32: 35784553.1 | G32: 36952766.19 | H32: 36421276.9 | I32: 36957149.4 | J32: 36847854.27 | K32: 34489488.44
B33: Maintenance | C33: 20488109.83 | D33: 24060722.77 | E33: 24009382.88 | F33: 25227582.75 | G33: 28797988.32 | H33: 26239669.69 | I33: 24690753.02 | J33: 24218550.4 | K33: 21670787.1
B34: Emergency response | C34: 19520542.39 | D34: 17294665.89 | E34: 15609332.86 | F34: 15971097.42 | G34: 15864241.61 | H34: 16170203.44 | I34: 17391893.09 | J34: 17947651.77 | K34: 17422067.61
B35: Non-network | C35: 22283598.45 | D35: 23869653.3 | E35: 25900284.74 | F35: 31007225.05 | G35: 33004482.37 | H35: 35950431.69 | I35: 43867365.61 | J35: 41231441.3 | K35: 33766688.23
B36: network overheads | C36: 31490932.14 | D36: 33774992.85 | E36: 37968334.74 | F36: 43301900.97 | G36: 48745861.39 | H36: 49953793.9 | I36: 62035662.52 | J36: 72485131.5 | K36: 72263572.03
B37: corporate overheads | C37: 22928686.3 | D37: 20350623.43 | E37: 20315342.88 | F37: 21484572.15 | G37: 25377462.32 | H37: 34129882.03 | I37: 38544155.19 | J37: 32352356.33 | K37: 24316497.98
B38: Metering | C38: 0 | D38: 0 | E38: 0 | F38: 0 | G38: 0 | H38: 0 | I38: 0 | J38: 3537178.525 | K38: 7224651.843
B39: Public Lighting | C39: 0 | D39: 0 | E39: 0 | F39: 0 | G39: 0 | H39: 0 | I39: 0 | J39: 0 | K39: 0
B46: balancing tem | C46: 500 | D46: -102291.2269 | E46: -454734.8992 | F46: -330596.8816 | G46: 21346.79067 | H46: 10570.13385 | I46: 10570.13385 | J46: 0 | K46: 0
B47: TOTAL OPEX | C47: =+SUM(C32:C46) -> 139240702.6 | D47: 142236660.2 | E47: 151934321.5 | F47: 172446334.5 | G47: 188764149 | H47: 198875827.8 | I47: 223497549 | J47: 228620164.1 | K47: 211153753.2
B49: 2.1.3 - ALTERNATIVE CONTROL SERVICES CAPEX
C50: EXPENDITURE ($0's)
C51: =dms_y1 -> 2009-10 | D51: =dms_y2 -> 2010-11 | E51: =dms_y3 -> 2011-12 | F51: =dms_y4 -> 2012-13 | G51: =dms_y5 -> 2013-14 | H51: =dms_y6 -> 2014-15 | I51: =dms_y7 -> 2015-16 | J51: =dms_y8 -> 2016-17 | K51: =dms_y9 -> 2017-18
B52: Connections | C52: 0 | D52: 0 | E52: 0 | F52: 0 | G52: 1035913.835 | H52: 2440971.607 | I52: 3177897.471 | J52: 3601430.332 | K52: 6640933.882
B53: capitalised network overheads | C53: 0 | D53: 0 | E53: 0 | F53: 0 | G53: 142700.2986 | H53: 289752.4478 | I53: 147052.1492 | J53: 488891.314 | K53: 2047132.709
B54: capitalised corporate overheads | C54: 0 | D54: 0 | E54: 0 | F54: 0 | G54: 423751.3523 | H54: 1994469.454 | I54: 1570718.101 | J54: 569164.61 | K54: 569164.61
B55: Metering | C55: 63720902.23 | D55: 100771435.1 | E55: 126766594.1 | F55: 138975951.9 | G55: 98313180.66 | H55: 58422936.86 | I55: 72413234.62 | J55: 48960178.38 | K55: 11789045.77
B56: Public lighting | C56: 3521071.91 | D56: 3704996.085 | E56: 2918000.05 | F56: 2576731.53 | G56: 3454226.855 | H56: 3262143.521 | I56: 4114975.296 | J56: 6496883.794 | K56: 7364885.68
B57: Fee and quoted | C57: 1097123.363 | D57: 2604400.687 | E57: 4939112.378 | F57: 4990930.492 | G57: 4497072.044 | H57: 3834319.177 | I57: 3177897.47 | J57: 3601430.332 | K57: 6640933.882
B64: balancing item | C64: -733500 | D64: -3089000 | E64: -3350500 | F64: -1068500 | G64: -3131344.455 | H64: -4222281.467 | I64: -3624276.711 | J64: -4254720.507 | K64: -7975352.107
B65: TOTAL CAPEX | C65: =+SUM(C52:C64) -> 67605597.5 | D65: 103991831.9 | E65: 131273206.5 | F65: 145475113.9 | G65: 104735500.6 | H65: 66022311.6 | I65: 80977498.39 | J65: 59463258.25 | K65: 27076744.43
B67: 2.1.4 - ALTERNATIVE CONTROL SERVICES OPEX
C68: EXPENDITURE ($0's)
C69: =dms_y1 -> 2009-10 | D69: =dms_y2 -> 2010-11 | E69: =dms_y3 -> 2011-12 | F69: =dms_y4 -> 2012-13 | G69: =dms_y5 -> 2013-14 | H69: =dms_y6 -> 2014-15 | I69: =dms_y7 -> 2015-16 | J69: =dms_y8 -> 2016-17 | K69: =dms_y9 -> 2017-18
B70: Connections | C70: 0 | D70: 0 | E70: 0 | F70: 0 | G70: 0 | H70: 0 | I70: 0 | J70: 0 | K70: 0
B71: network overheads | C71: 0 | D71: 0 | E71: 0 | F71: 0 | G71: 0 | H71: 0 | I71: 0 | J71: 0 | K71: 0
B72: corporate overheads | C72: 0 | D72: 0 | E72: 0 | F72: 0 | G72: 1254382.27 | H72: 1658066.145 | I72: 403683.875 | J72: 0 | K72: 0
B73: Metering | C73: 33050409.26 | D73: 40564881.92 | E73: 41261451.38 | F73: 40248562.03 | G73: 42424930.78 | H73: 43243405.63 | I73: 38405564.69 | J73: 30013646.71 | K73: 21822086.71
B74: Public lighting | C74: 1600036.195 | D74: 1783734.59 | E74: 2246493.15 | F74: 2300760.45 | G74: 1986208.32 | H74: 1821735.435 | I74: 2004665.586 | J74: 2142434.651 | K74: 2652600.93
B75: Fee and quoted | C75: 6509096.93 | D75: 8436887.747 | E75: 9359758.916 | F75: 8645447.822 | G75: 8286549.483 | H75: 8719139.154 | I75: 8446133.03 | J75: 6629433.34 | K75: 6737243.59
B82: balancing tem | C82: -305225 | D82: 118410 | E82: 244669.3381 | F82: 6281.856105 | G82: 4272.518012 | H82: 750 | I82: 0 | J82: -1034129.73 | K82: -1819289.3
B83: TOTAL OPEX | C83: =+SUM(C70:C82) -> 40854317.39 | D83: 50903914.26 | E83: 53112372.78 | F83: 51201052.16 | G83: 53956343.37 | H83: 55443096.37 | I83: 49260047.19 | J83: 37751384.97 | K83: 29392641.93
B85: 2.1.5 - DUAL FUNCTION ASSETS CAPEX
C86: EXPENDITURE ($0's)
C87: =dms_y1 -> 2009-10 | D87: =dms_y2 -> 2010-11 | E87: =dms_y3 -> 2011-12 | F87: =dms_y4 -> 2012-13 | G87: =dms_y5 -> 2013-14 | H87: =dms_y6 -> 2014-15 | I87: =dms_y7 -> 2015-16 | J87: =dms_y8 -> 2016-17 | K87: =dms_y9 -> 2017-18
B88: Replacement expenditure | C88: 0 | D88: 0 | E88: 0 | F88: 0 | G88: 0 | H88: 0 | I88: 0 | J88: 0 | K88: 0
B89: Connections | C89: 0 | D89: 0 | E89: 0 | F89: 0 | G89: 0 | H89: 0 | I89: 0 | J89: 0 | K89: 0
B90: Augmentation Expenditure | C90: 0 | D90: 0 | E90: 0 | F90: 0 | G90: 0 | H90: 0 | I90: 0 | J90: 0 | K90: 0
B91: Non-network | C91: 0 | D91: 0 | E91: 0 | F91: 0 | G91: 0 | H91: 0 | I91: 0 | J91: 0 | K91: 0
B92: Capitalised network overheads | C92: 0 | D92: 0 | E92: 0 | F92: 0 | G92: 0 | H92: 0 | I92: 0 | J92: 0 | K92: 0
B93: Capitalised corporate overheads | C93: 0 | D93: 0 | E93: 0 | F93: 0 | G93: 0 | H93: 0 | I93: 0 | J93: 0 | K93: 0
B101: capcons (included in the above items) | C101: 0 | D101: 0 | E101: 0 | F101: 0 | G101: 0 | H101: 0 | I101: 0 | J101: 0 | K101: 0
B102: TOTAL GROSS CAPEX (includes capcons) | C102: =SUM(C88:C100)-C101 -> 0 | D102: =SUM(D88:D100)-D101 -> 0 | E102: 0 | F102: 0 | G102: 0 | H102: 0 | I102: 0 | J102: 0 | K102: =SUM(K88:K100)-K101 -> 0
B104: 2.1.6 - DUAL FUNCTION ASSETS OPEX
C105: EXPENDITURE ($0's)
C106: =dms_y1 -> 2009-10 | D106: =dms_y2 -> 2010-11 | E106: =dms_y3 -> 2011-12 | F106: =dms_y4 -> 2012-13 | G106: =dms_y5 -> 2013-14 | H106: =dms_y6 -> 2014-15 | I106: =dms_y7 -> 2015-16 | J106: =dms_y8 -> 2016-17 | K106: =dms_y9 -> 2017-18
B107: Vegetation management | C107: 0 | D107: 0 | E107: 0 | F107: 0 | G107: 0 | H107: 0 | I107: 0 | J107: 0 | K107: 0
B108: Maintenance | C108: 0 | D108: 0 | E108: 0 | F108: 0 | G108: 0 | H108: 0 | I108: 0 | J108: 0 | K108: 0
B109: Emergency response | C109: 0 | D109: 0 | E109: 0 | F109: 0 | G109: 0 | H109: 0 | I109: 0 | J109: 0 | K109: 0
B110: Non-network | C110: 0 | D110: 0 | E110: 0 | F110: 0 | G110: 0 | H110: 0 | I110: 0 | J110: 0 | K110: 0
B111: network overheads | C111: 0 | D111: 0 | E111: 0 | F111: 0 | G111: 0 | H111: 0 | I111: 0 | J111: 0 | K111: 0
B112: corporate overheads | C112: 0 | D112: 0 | E112: 0 | F112: 0 | G112: 0 | H112: 0 | I112: 0 | J112: 0 | K112: 0
B113: Metering | C113: 0 | D113: 0 | E113: 0 | F113: 0 | G113: 0 | H113: 0 | I113: 0 | J113: 0 | K113: 0
B120: TOTAL OPEX | C120: =SUM(C107:C119) -> 0 | D120: 0 | E120: 0 | F120: 0 | G120: 0 | H120: 0 | I120: 0 | J120: 0 | K120: 0
B122: 2.1.7 - STANDARD CONTROL SERVICES CAPCONS
C123: EXPENDITURE ($0's)
C124: =dms_y1 -> 2009-10 | D124: =dms_y2 -> 2010-11 | E124: =dms_y3 -> 2011-12 | F124: =dms_y4 -> 2012-13 | G124: =dms_y5 -> 2013-14 | H124: =dms_y6 -> 2014-15 | I124: =dms_y7 -> 2015-16 | J124: =dms_y8 -> 2016-17 | K124: =dms_y9 -> 2017-18
B125: Replacement expenditure | C125: 0 | D125: 0 | E125: 0 | F125: 0 | G125: 0 | H125: 0 | I125: 0 | J125: 0 | K125: 0
B126: Connections | C126: 22622251.86 | D126: 23177570.17 | E126: 20872500 | F126: 16970460.21 | G126: 18801834.46 | H126: 29746011.02 | I126: 25389213.95 | J126: 19939184.89 | K126: 37202219.49
B127: Augmentation Expenditure | C127: 6649350.005 | D127: 7986313.055 | E127: 6283814.31 | F127: 6776727.75 | G127: 14890289.71 | H127: 4942188.147 | I127: -5124770.008 | J127: 322980.835 | K127: -13203599.1
B128: Non-network | C128: 0 | D128: 0 | E128: 0 | F128: 0 | G128: 0 | H128: 0 | I128: 0 | J128: 0 | K128: 0
B129: capitalised network overheads | C129: 0 | D129: 0 | E129: 0 | F129: 0 | G129: 0 | H129: 0 | I129: 0 | J129: 0 | K129: 0
B130: capitalised corporate overheads | C130: 0 | D130: 0 | E130: 0 | F130: 0 | G130: 0 | H130: 0 | I130: 0 | J130: 0 | K130: 0
B131: Metering | C131: 0 | D131: 0 | E131: 0 | F131: 0 | G131: 0 | H131: 0 | I131: 0 | J131: 0 | K131: 0
B132: Public Lighting | C132: 0 | D132: 0 | E132: 0 | F132: 0 | G132: 0 | H132: 0 | I132: 0 | J132: 0 | K132: 0
B140: TOTAL CAPCONS | C140: =+SUM(C125:C139) -> 29271601.86 | D140: 31163883.23 | E140: 27156314.32 | F140: 23747187.95 | G140: =+SUM(G125:G139) -> 33692124.16 | H140: 34688199.16 | I140: 20264443.94 | J140: 20262165.73 | K140: 23998620.39
B142: 2.1.8 - STANDARD CONTROL SERVICES CAPITALISED OVERHEADS
C143: EXPENDITURE ($0's)
C144: =dms_y1 -> 2009-10 | D144: =dms_y2 -> 2010-11 | E144: =dms_y3 -> 2011-12 | F144: =dms_y4 -> 2012-13 | G144: =dms_y5 -> 2013-14 | H144: =dms_y6 -> 2014-15 | I144: =dms_y7 -> 2015-16 | J144: =dms_y8 -> 2016-17 | K144: =dms_y9 -> 2017-18
B145: Vegetation management | C145: 7992632.713 | D145: 7976198.984 | E145: 9574802.229 | F145: 10495835.77 | G145: 10538549.82 | H145: 12261102.41 | I145: 11319021.1 | J145: 9981454.795 | K145: 10374105.25
B146: Maintenance | C146: 7232109.997 | D146: 8347045.035 | E146: 8105192.393 | F146: 7390965.04 | G146: 8259805.612 | H146: 8688650.659 | I146: 7397345.05 | J146: 6476966.383 | K146: 6525264.832
B147: Emergency response | C147: 6904394.88 | D147: 5985059.907 | E147: 5237635.426 | F147: 4755394.715 | G147: 4558791.292 | H147: 5400439.868 | I147: 5178836.281 | J147: 4812659.312 | K147: 5249066.798
B148: Non-network | C148: 7883980.65 | D148: 8278755.153 | E148: 8706535.762 | F148: 9065704.784 | G148: 9412417.221 | H148: 12205323.5 | I148: 13171961.25 | J148: 10985595.8 | K148: 10161800.68
B149: Metering | C149: 0 | D149: 0 | E149: 0 | F149: 0 | G149: 0 | H149: 0 | I149: 0 | J149: 1052678.777 | K149: 2175914.913
B150: Public Lighting | C150: 0 | D150: 0 | E150: 0 | F150: 0 | G150: 0 | H150: 0 | I150: 0 | J150: 0 | K150: 0
B157: capcons (included in the above items) | C157: 0 | D157: 0 | E157: 0 | F157: 0 | G157: 0 | H157: 0 | I157: 0 | J157: 0 | K157: 0
B158: TOTAL CAPITALISED OVERHEADS | C158: =+SUM(C145:C156)-C157 -> 30013118.24 | D158: =+SUM(D145:D156)-D157 -> 30587059.08 | E158: 31624165.81 | F158: 31707900.31 | G158: 32769563.94 | H158: 38555516.44 | I158: 37067163.68 | J158: 33309355.06 | K158: 34486152.47

Sheet 2.2 Repex
B1: =INDEX(dms_Worksheet_List,MATCH(dms_Model,dms_Model_List)) -> HISTORICAL CATEGORY ANALYSIS - FINANCIAL YEARS
B2: =INDEX(dms_TradingNameFull_List,MATCH(dms_TradingName,dms_TradingName_List)) -> AusNet Electricity Services Pty Ltd
B3: =dms_Header_Span -> 2009-10 to 2017-18
B4: 2.2 REPEX
B6: There are TWO tables on this worksheet. These tables have been 'grouped' (and sub-grouped) for ease of navigation. See the Instructions sheet on how to group or ungroup tables.
B8: 2.2.1 - REPLACEMENT EXPENDITURE, VOLUMES AND ASSET FAILURES BY ASSET CATEGORY
B9: EXPENDITURE
E10: EXPENDITURE ($0's)
B11: ASSET GROUP | C11: ASSET CATEGORY | E11: =dms_y1 -> 2009-10 | F11: =dms_y2 -> 2010-11 | G11: =dms_y3 -> 2011-12 | H11: =dms_y4 -> 2012-13 | I11: =dms_y5 -> 2013-14 | J11: =dms_y6 -> 2014-15 | K11: =dms_y7 -> 2015-16 | L11: =dms_y8 -> 2016-17 | M11: =dms_y9 -> 2017-18
B12: POLES BY: HIGHEST OPERATING VOLTAGE ; MATERIAL TYPE | C12: Staking of a wooden pole | E12: 401078.26 | F12: 361180.735 | G12: 401914.695 | H12: 654527.58 | I12: 883121.915 | J12: 1362531.231 | K12: 1429789.409 | L12: 1148350.528 | M12: 1067297.09
C13: ˂ = 1 kV; Wood | E13: 374730.8955 | F13: 178224.187 | G13: 299287.2405 | H13: 551402.6085 | I13: 997277.307 | J13: 3458601.839 | K13: 5294907.268 | L13: 6168536.175 | M13: 7356678.694
C14: > 1 kV & < = 11 kV; Wood | E14: 5713.834 | F14: 9862.9065 | G14: 18433.65 | H14: 20526.6825 | I14: 15955.939 | J14: 4000 | K14: 0 | L14: 322.7534613 | M14: 670.0588836
C15: ˃ 11 kV & < = 22 kV; Wood | E15: 3004315.992 | F15: 1028927.65 | G15: 1092512.88 | H15: 1978335.356 | I15: 5577087.686 | J15: 10565072.45 | K15: 10539933.28 | L15: 9812053.972 | M15: 12288524.52
C16: > 22 kV & < = 66 kV; Wood | E16: 340881.1105 | F16: 230141.0545 | G16: 437827.939 | H16: 595303.4855 | I16: 458680.111 | J16: 1031414.406 | K16: 1260030.44 | L16: 652927.2107 | M16: 538329.9951
C17: > 66 kV & < = 132 kV; Wood | E17: 0 | F17: 0 | G17: 0 | H17: 0 | I17: 0 | J17: 0 | K17: 0 | L17: 0 | M17: 0
C18: > 132 kV; Wood | E18: 0 | F18: 0 | G18: 0 | H18: 0 | I18: 0 | J18: 0 | K18: 0 | L18: 0 | M18: 0
C19: ˂ = 1 kV; Concrete | E19: 466133.797 | F19: 232805.2995 | G19: 557184.989 | H19: 1190583.295 | I19: 1228704.412 | J19: 1194796.102 | K19: 1604548.301 | L19: 2144474.339 | M19: 2392892.742
C20: > 1 kV & < = 11 kV; Concrete | E20: 5066.6485 | F20: 7257.238 | G20: 26764.6995 | H20: 39697.8695 | I20: 39832.67 | J20: 22500 | K20: 0 | L20: 97.62296051 | M20: 212.6170636
C21: ˃ 11 kV & < = 22 kV; Concrete | E21: 5801611.132 | F21: 3551989.215 | G21: 4369982.493 | H21: 8155592.699 | I21: 17235891.79 | J21: 15248908.54 | K21: 10337657.26 | L21: 14587469.19 | M21: 14272583.53
C22: > 22 kV & < = 66 kV; Concrete | E22: 1581770.4 | F22: 1608274.703 | G22: 1552956.939 | H22: 2573535.782 | I22: 3642374.789 | J22: 2430269.512 | K22: 1965615.133 | L22: 2488851.013 | M22: 2868420.446
C23: > 66 kV & < = 132 kV; Concrete | E23: 0 | F23: 0 | G23: 0 | H23: 0 | I23: 0 | J23: 0 | K23: 0 | L23: 0 | M23: 0
C24: > 132 kV; Concrete | E24: 0 | F24: 0 | G24: 0 | H24: 0 | I24: 0 | J24: 0 | K24: 0 | L24: 0 | M24: 0
C25: ˂ = 1 kV; Steel | E25: 5300262.498 | F25: 3764902.495 | G25: 5190657.506 | H25: 5931353.463 | I25: 5791989.079 | J25: 3889093.256 | K25: 1098393.559 | L25: 64940.91744 | M25: 29833.43299
C26: > 1 kV & < = 11 kV; Steel | E26: 0 | F26: 0 | G26: 0 | H26: 0 | I26: 2500 | J26: 2500 | K26: 0 | L26: 0.7969221266 | M26: 1.958478723
C27: ˃ 11 kV & < = 22 kV; Steel | E27: 4940758.719 | F27: 2565098.74 | G27: 4301739.961 | H27: 5025565.971 | I27: 5383046.7 | J27: 3080393.774 | K27: 1393.773642 | L27: 0 | M27: 0
C28: > 22 kV & < = 66 kV; Steel | E28: 124101.685 | F28: 201466.1485 | G28: 328965.997 | H28: 304193.753 | I28: 216694.3795 | J28: 75500 | K28: 0 | L28: 21.91535848 | M28: 50.37349509
C29: > 66 kV & < = 132 kV; Steel | E29: 0 | F29: 0 | G29: 0 | H29: 0 | I29: 0 | J29: 0 | K29: 0 | L29: 0 | M29: 0
C30: > 132 kV; Steel | E30: 0 | F30: 0 | G30: 0 | H30: 0 | I30: 0 | J30: 0 | K30: 0 | L30: 0 | M30: 0
C31: Other | E31: 0 | F31: 0 | G31: 0 | H31: 0 | I31: 389000 | J31: 389000 | K31: 0 | L31: 1.19538319 | M31: 40276.86538
B32: POLE TOP STRUCTURES BY: HIGHEST OPERATING VOLTAGE | C32: ˂ = 1 kV | E32: 2618881.101 | F32: 3962348.794 | G32: 6158068.553 | H32: 7565904.172 | I32: 6417456.958 | J32: 5021984.2 | K32: 7081670.855 | L32: 10116257.42 | M32: 8398744.695
C33: > 1 kV & < = 11 kV | E33: 57067.8755 | F33: 110269.1835 | G33: 200834.143 | H33: 266452.849 | I33: 239289.2475 | J33: 91064.93134 | K33: 2064.931339 | L33: 0 | M33: 0
C34: ˃ 11 kV & < = 22 kV | E34: 18336185.95 | F34: 23493233.29 | G34: 30220717.54 | H34: 33271731.2 | I34: 32425859.46 | J34: 20984231.67 | K34: 7207140.7 | L34: 4481576.006 | M34: 4110514.761
C35: > 22 kV & < = 66 kV | E35: 2994810.948 | F35: 3153152.567 | G35: 3529056.725 | H35: 3631734.188 | I35: 3681550.362 | J35: 2161208.285 | K35: 497692.0314 | L35: 294205.5498 | M35: 89730.48493
C36: > 66 kV & < = 132 kV | E36: 0 | F36: 0 | G36: 0 | H36: 0 | I36: 0 | J36: 0 | K36: 0 | L36: 339.9204756 | M36: 441.908658
C37: > 132 kV | E37: 0 | F37: 0 | G37: 0 | H37: 0 | I37: 0 | J37: 0 | K37: 0 | L37: 0 | M37: 0
C38: Other | E38: 0 | F38: 0 | G38: 0 | H38: 0 | I38: 0 | J38: 0 | K38: 309653.518 | L38: 1083603.546 | M38: 1395517.255
B39: STAKING WOODEN POLES BY: HIGHEST OPERATING VOLTAGE | C39: ˂ = 1 Kv | D39: for year wooden pole staked | E39: 139269.0079 | F39: 123755.2444 | G39: 155302.0617 | H39: 224569.2225 | I39: 302118.8818 | J39: 536656.0934 | K39: 635720.8609 | L39: 600873.5333 | M39: 585147.556
C40: > 1 kV & < = 11 kV | D40: for year wooden pole staked | E40: 0 | F40: 0 | G40: 0 | H40: 0 | I40: 0 | J40: 0 | K40: 0 | L40: 0 | M40: 0
C41: ˃ 11 kV & < = 22 kV | D41: for year wooden pole staked | E41: 248438.0145 | F41: 230784.0219 | G41: 243087.5516 | H41: 411280.9883 | I41: 555541.2426 | J41: 783275.8592 | K41: 754066.5979 | L41: 528708.5947 | M41: 460802.772
C42: > 22 kV & < = 66 kV | D42: for year wooden pole staked | E42: 7246.432858 | F42: 3320.734321 | G42: 3133.405962 | H42: 11719.70221 | I42: 16421.51857 | J42: 32833.75809 | K42: 30681.19129 | L42: 14348.34502 | M42: 16383.41219
C43: > 66 kV & < = 132 kV | D43: for year wooden pole staked | E43: 0 | F43: 0 | G43: 0 | H43: 0 | I43: 0 | J43: 0 | K43: 0 | L43: 0 | M43: 0
C44: > 132 kV | D44: for year wooden pole staked | E44: 0 | F44: 0 | G44: 0 | H44: 0 | I44: 0 | J44: 0 | K44: 0 | L44: 0 | M44: 0
B45: OVERHEAD CONDUCTORS BY: HIGHEST OPERATING VOLTAGE; NUMBER OF PHASES (AT HV) | C45: ˂ = 1 kV | D45: per km | E45: 230273.8975 | F45: 59687.632 | G45: 131806.79 | H45: 137125.338 | I45: 340211.9495 | J45: 2989862.265 | K45: 3061304.351 | L45: 546654.6744 | M45: 221695.5044
C46: > 1 kV & < = 11 kV | D46: per km | E46: 0 | F46: 0 | G46: 0 | H46: 2701.0865 | I46: 49201.0865 | J46: 76135.0606 | K46: 29771.3675 | L46: 169.0224083 | M46: 203.6599329
C47: ˃ 11 kV & < = 22 kV ; SWER | D47: per km | E47: 355788.2965 | F47: 393283.574 | G47: 1127084.488 | H47: 1366398.701 | I47: 5610663.955 | J47: 11075358.66 | K47: 7680025.467 | L47: 1808056.999 | M47: 431484.284
C48: ˃ 11 kV & < = 22 kV ; Single-Phase | D48: per km | E48: 0 | F48: 0 | G48: 0 | H48: 0 | I48: 0 | J48: 4078673.832 | K48: 4165978.823 | L48: 3690925.944 | M48: 5130754.767
C49: ˃ 11 kV & < = 22 kV ; Multiple-Phase | D49: per km | E49: 4190387.721 | F49: 3963066.012 | G49: 5022423.73 | H49: 4669500.07 | I49: 9440954.635 | J49: 16676712.24 | K49: 18999238.38 | L49: 11917356.33 | M49: 5199778.94
C50: > 22 kV & < = 66 kV | D50: per km | E50: 45851.4085 | F50: 118678.312 | G50: 671084.954 | H50: 643555.7025 | I50: 3406125.039 | J50: 4314837.758 | K50: 986337.7581 | L50: 1506.230933 | M50: 9015.789384
C51: > 66 kV & < = 132 kV | D51: per km | E51: 0 | F51: 0 | G51: 0 | H51: 0 | I51: 0 | J51: 0 | K51: 0 | L51: 0 | M51: 0
C52: > 132 kV | D52: per km | E52: 0 | F52: 0 | G52: 0 | H52: 0 | I52: 0 | J52: 0 | K52: 0 | L52: 0 | M52: 0
C53: Other | D53: per km | E53: 0 | F53: 0 | G53: 0 | H53: 0 | I53: 0 | J53: 0 | K53: 0 | L53: 0 | M53: 0
B54: UNDERGROUND CABLES BY: HIGHEST OPERATING VOLTAGE | C54: ˂ = 1 kV | D54: per km | E54: 1661784.689 | F54: 1484021.694 | G54: 1669112.044 | H54: 2069781.043 | I54: 1936157.112 | J54: 2959835.173 | K54: 3239589.292 | L54: 992254.1191 | M54: 661631.2559
C55: > 1 kV & < = 11 kV | D55: per km | E55: 0 | F55: 0 | G55: 0 | H55: 0 | I55: 0 | J55: 2498.400708 | K55: 146249.4711 | L55: 518220.4025 | M55: 378039.8371
C56: > 11 kV & < = 22 kV | D56: per km | E56: 813776.846 | F56: 584618.401 | G56: 726590.686 | H56: 1119301.567 | I56: 1184920.323 | J56: 1686126.204 | K56: 1391092.387 | L56: 439579.5258 | M56: 1887508.836
C57: > 22 kV & < = 33 kV | D57: per km | E57: 0 | F57: 0 | G57: 0 | H57: 0 | I57: 0 | J57: 0 | K57: 0 | L57: 0 | M57: 0
C58: > 33 kV & < = 66 kV | D58: per km | E58: 0 | F58: 0 | G58: 0 | H58: 0 | I58: 6000 | J58: 12040.38805 | K58: 7176.193848 | L58: 1135.805801 | M58: 0
C59: > 66 kV & < = 132 kV | D59: per km | E59: 0 | F59: 0 | G59: 0 | H59: 0 | I59: 0 | J59: 0 | K59: 0 | L59: 0 | M59: 0
C60: > 132 kV | D60: per km | E60: 0 | F60: 0 | G60: 0 | H60: 0 | I60: 0 | J60: 0 | K60: 0 | L60: 0 | M60: 0
C61: Other | D61: per km | E61: 0 | F61: 0 | G61: 0 | H61: 0 | I61: 0 | J61: 0 | K61: 0 | L61: 0 | M61: 0
B62: SERVICE LINES BY: CONNECTION VOLTAGE; CUSTOMER TYPE; CONNECTION COMPLEXITY | C62: ˂ = 11 kV ; Residential ; Simple Type | D62: per number of spans | E62: 83231.08 | F62: 77344.612 | G62: 73150.927 | H62: 87455.097 | I62: 3892686.484 | J62: 4812657.957 | K62: 3207910.935 | L62: 5641226.468 | M62: 6602088.926
C63: ˂ = 11 kV ; Commercial & Industrial ; Simple Type | D63: per number of spans | E63: 44889.725 | F63: 45805.0185 | G63: 36533.1475 | H63: 49339.6005 | I63: 453854.8275 | J63: 526925.304 | K63: 326847.2193 | L63: 655108.3487 | M63: 788596.5177
C64: ˂ = 11 kV ; Residential ; Complex Type | D64: per number of spans | E64: 0 | F64: 0 | G64: 0 | H64: 0 | I64: 0 | J64: 0 | K64: 0 | L64: 0 | M64: 0
C65: ˂ = 11 kV ; Commercial & Industrial ; Complex Type | D65: per number of spans | E65: 0 | F65: 0 | G65: 0 | H65: 0 | I65: 0 | J65: 0 | K65: 0 | L65: 0 | M65: 0
C66: ˂ = 11 kV ; Subdivision ; Complex Type | D66: per number of spans | E66: 0 | F66: 0 | G66: 0 | H66: 0 | I66: 0 | J66: 0 | K66: 0 | L66: 0 | M66: 0
C67: > 11 kV & < = 22 kV ; Commercial & Industrial | D67: per number of spans | E67: 0 | F67: 0 | G67: 0 | H67: 0 | I67: 0 | J67: 0 | K67: 0 | L67: 0 | M67: 0
C68: > 11 kV & < = 22 kV ; Subdivision | D68: per number of spans | E68: 0 | F68: 0 | G68: 0 | H68: 0 | I68: 0 | J68: 0 | K68: 0 | L68: 0 | M68: 0
C69: > 22 kV & < = 33 kV ; Commercial & Industrial | D69: per number of spans | E69: 0 | F69: 0 | G69: 0 | H69: 0 | I69: 0 | J69: 0 | K69: 0 | L69: 0 | M69: 0
C70: > 22 kV & < = 33 kV ; Subdivision | D70: per number of spans | E70: 0 | F70: 0 | G70: 0 | H70: 0 | I70: 0 | J70: 0 | K70: 0 | L70: 0 | M70: 0
C71: > 33 kV & < = 66 kV ; Commercial & Industrial | D71: per number of spans | E71: 0 | F71: 0 | G71: 0 | H71: 0 | I71: 0 | J71: 0 | K71: 0 | L71: 0 | M71: 0
C72: > 33 kV & < = 66 kV ; Subdivision | D72: per number of spans | E72: 0 | F72: 0 | G72: 0 | H72: 0 | I72: 0 | J72: 0 | K72: 0 | L72: 0 | M72: 0
C73: > 66 kV & < = 132 kV ; Commercial & Industrial | D73: per number of spans | E73: 0 | F73: 0 | G73: 0 | H73: 0 | I73: 0 | J73: 0 | K73: 0 | L73: 0 | M73: 0
C74: > 66 kV & < = 132 kV ; Subdivision | D74: per number of spans | E74: 0 | F74: 0 | G74: 0 | H74: 0 | I74: 0 | J74: 0 | K74: 0 | L74: 0 | M74: 0
C75: > 132 kV ; Commercial & Industrial | D75: per number of spans | E75: 0 | F75: 0 | G75: 0 | H75: 0 | I75: 0 | J75: 0 | K75: 0 | L75: 0 | M75: 0
C76: > 132 kV ; Subdivision | D76: per number of spans | E76: 0 | F76: 0 | G76: 0 | H76: 0 | I76: 0 | J76: 0 | K76: 0 | L76: 0 | M76: 0
C77: Other | D77: per number of spans | E77: 0 | F77: 0 | G77: 0 | H77: 0 | I77: 0 | J77: 0 | K77: 0 | L77: 0 | M77: 0
B78: TRANSFORMERS BY: MOUNTING TYPE; HIGHEST OPERATING VOLTAGE ; AMPERE RATING; NUMBER OF PHASES (AT LV) | C78: Pole Mounted ; < = 22kV ; < = 60 kVA ; Single Phase | E78: 690719.024 | F78: 810489.347 | G78: 1006030.266 | H78: 722072.316 | I78: 2423486.189 | J78: 2537931.673 | K78: 1654613.717 | L78: 2146682.591 | M78: 2027114.359
C79: Pole Mounted ; < = 22kV ; > 60 kVA and < = 600 kVA ; Single Phase | E79: 20619.2935 | F79: 13246.2805 | G79: 36911.3495 | H79: 52237.114 | I79: 59400.32 | J79: 35377.51101 | K79: 21641.53756 | L79: 32350.15412 | M79: 32843.00779
C80: Pole Mounted ; < = 22kV ; > 600 kVA ; Single Phase | E80: 758.59 | F80: 1119.395 | G80: 1119.395 | H80: 0 | I80: 0 | J80: 0 | K80: 0 | L80: 0 | M80: 0
C81: Pole Mounted ; < = 22kV ; < = 60 kVA ; Multiple Phase | E81: 110015.9665 | F81: 123211.2305 | G81: 128863.1345 | H81: 70595.129 | I81: 71845.628 | J81: 447276.8288 | K81: 590149.6619 | L81: 828367.6617 | M81: 1027057.031
C82: Pole Mounted ; < = 22kV ; > 60 kVA and < = 600 kVA ; Multiple Phase | E82: 1579199.34 | F82: 1918715.081 | G82: 2240822.032 | H82: 1638671.476 | I82: 1527651.088 | J82: 1154224.326 | K82: 515860.1306 | L82: 1032984.125 | M82: 1198186.328
C83: Pole Mounted ; < = 22kV ; > 600 kVA ; Multiple Phase | E83: 51389.952 | F83: 163655.2135 | G83: 209283.185 | H83: 84208.9225 | I83: 34030.944 | J83: 17080.50546 | K83: 80.50545875 | L83: 0 | M83: 0
C84: Kiosk Mounted ; < = 22kV ; < = 60 kVA ; Single Phase | E84: 2785.87 | F84: 1268.69 | G84: 0 | H84: 0 | I84: 0 | J84: 1783.919869 | K84: 3830.791237 | L84: 8224.669586 | M84: 91423.16777
C85: Kiosk Mounted ; < = 22kV ; > 60 kVA and < = 600 kVA ; Single Phase | E85: 0 | F85: 0 | G85: 0 | H85: 0 | I85: 0 | J85: 0 | K85: 0 | L85: 0 | M85: 0
C86: Kiosk Mounted ; < = 22kV ; > 600 kVA ; Single Phase | E86: 0 | F86: 0 | G86: 0 | H86: 0 | I86: 0 | J86: 0 | K86: 0 | L86: 0 | M86: 0
C87: Kiosk Mounted ; < = 22kV ; < = 60 kVA ; Multiple Phase | E87: 15821.8295 | F87: 19920.0805 | G87: 12714.7915 | H87: 6010.683 | I87: 6010.683 | J87: 10457.24171 | K87: 12879.37283 | L87: 78942.35438 | M87: 182650.3055
C88: Kiosk Mounted ; < = 22kV ; > 60 kVA and < = 600 kVA ; Multiple Phase | E88: 1627939.129 | F88: 1819932.602 | G88: 1787026.236 | H88: 828332.765 | I88: 497352.533 | J88: 322355.5281 | K88: 118705.6193 | L88: 151617.1769 | M88: 338039.3052
C89: Kiosk Mounted ; < = 22kV ; > 600 kVA ; Multiple Phase | E89: 92990.1765 | F89: 103004.015 | G89: 255465.4525 | H89: 293259.0265 | I89: 186101.7265 | J89: 72548.41667 | K89: 10781.73451 | L89: 40514.03511 | M89: 87614.26449
C90: Ground Outdoor / Indoor Chamber Mounted; ˂ 22 kV ; < = 60 kVA ; Single Phase | E90: 0 | F90: 0 | G90: 0 | H90: 0 | I90: 0 | J90: 0 | K90: 0 | L90: 0 | M90: 0
C91: Ground Outdoor / Indoor Chamber Mounted; ˂ 22 kV ; > 60 kVA and < = 600 kVA ; Single Phase | E91: 0 | F91: 0 | G91: 0 | H91: 0 | I91: 0 | J91: 0 | K91: 0 | L91: 4017.108281 | M91: 4017.108281
C92: Ground Outdoor / Indoor Chamber Mounted; ˂ 22 kV ; > 600 kVA ; Single Phase | E92: 0 | F92: 0 | G92: 0 | H92: 0 | I92: 0 | J92: 0 | K92: 0 | L92: 0 | M92: 0
C93: Ground Outdoor / Indoor Chamber Mounted; ˂ 22 kV ; < = 60 kVA ; Multiple Phase | E93: 0 | F93: 0 | G93: 0 | H93: 0 | I93: 0 | J93: 8.945050972 | K93: 8.945050972 | L93: 7626.176694 | M93: -10094.23362
C94: Ground Outdoor / Indoor Chamber Mounted; ˂ 22 kV ; > 60 kVA and < = 600 kVA ; Multiple Phase | E94: 0 | F94: 0 | G94: 0 | H94: 0 | I94: 0 | J94: 62.6153568 | K94: 16096.44107 | L94: 16033.82571 | M94: 41548.59927
C95: Ground Outdoor / Indoor Chamber Mounted; ˂ 22 kV ; > 600 kVA ; Multiple Phase | E95: 0 | F95: 0 | G95: 0 | H95: 0 | I95: 0 | J95: 100122.1709 | K95: 122398.9543 | L95: 31121.4748 | M95: 8844.691416
C96: Ground Outdoor / Indoor Chamber Mounted; > = 22 kV & < = 33 kV ; < = 15 MVA | E96: 0 | F96: 0 | G96: 0 | H96: 0 | I96: 0 | J96: 74956.75551 | K96: 74956.75551 | L96: 0 | M96: 0
C97: Ground Outdoor / Indoor Chamber Mounted; > = 22 kV & < = 33 kV ; > 15 MVA and < = 40 MVA | E97: 0 | F97: 0 | G97: 0 | H97: 0 | I97: 0 | J97: 0 | K97: 0 | L97: 0 | M97: 0
C98: Ground Outdoor / Indoor Chamber Mounted; > = 22 kV & < = 33 kV ; > 40 MVA | E98: 0 | F98: 0 | G98: 0 | H98: 0 | I98: 0 | J98: 0 | K98: 0 | L98: 0 | M98: 0
C99: Ground Outdoor / Indoor Chamber Mounted; > 33 kV & < = 66 kV ; < = 15 MVA | E99: 0 | F99: 0 | G99: 0 | H99: 0 | I99: 660000 | J99: 847530.4403 | K99: 187530.4403 | L99: 0 | M99: 0
C100: Ground Outdoor / Indoor Chamber Mounted; > 33 kV & < = 66 kV ; > 15 MVA and < = 40 MVA | E100: 7725.552 | F100: 16814.133 | G100: 9088.581 | H100: 0 | I100: 1917500 | J100: 3895340.698 | K100: 4995685.005 | L100: 5261729.424 | M100: 3604915.584
C101: Ground Outdoor / Indoor Chamber Mounted; > 33 kV & < = 66 kV ; > 40 MVA | E101: 16964.256 | F101: 7725.552 | G101: 14526.202 | H101: 27415.579 | I101: 978389.377 | J101: 982742.8421 | K101: 17242.84213 | L101: 0 | M101: 0
C102: Ground Outdoor / Indoor Chamber Mounted; > 66 kV & < = 132 kV ; < = 100 MVA | E102: 0 | F102: 0 | G102: 0 | H102: 0 | I102: 0 | J102: 0 | K102: 0 | L102: 0 | M102: 0
C103: Ground Outdoor / Indoor Chamber Mounted; > 66 kV & < = 132 kV ; > 100 MVA | E103: 0 | F103: 0 | G103: 0 | H103: 0 | I103: 0 | J103: 0 | K103: 0 | L103: 0 | M103: 0
C104: Ground Outdoor / Indoor Chamber Mounted; > 132 kV ; < = 100 MVA | E104: 0 | F104: 0 | G104: 0 | H104: 0 | I104: 0 | J104: 0 | K104: 0 | L104: 0 | M104: 0
C105: Ground Outdoor / Indoor Chamber Mounted; > 132 kV ; > 100 MVA | E105: 0 | F105: 0 | G105: 0 | H105: 0 | I105: 0 | J105: 0 | K105: 0 | L105: 0 | M105: 0
C106: Other | E106: 0 | F106: 0 | G106: 0 | H106: 0 | I106: 1452500 | J106: 1452500 | K106: 502108.8792 | L106: 774691.9468 | M106: 1189063.262
B107: SWITCHGEAR BY: HIGHEST OPERATING VOLTAGE ; SWITCH FUNCTION | C107: ˂ = 11 kV ; FUSE | E107: 1594.6675 | F107: 8629.731 | G107: 19778.357 | H107: 15847.277 | I107: 60603.9835 | J107: 57500 | K107: 23684.25901 | L107: 37802.38391 | M107: 25053.01094
C108: ˂ = 11 kV ; Switch | E108: 1912.5015 | F108: 2532.676 | G108: 3936.4305 | H108: 5215.553 | I108: 2217.131 | J108: 12023.54571 | K108: 53114.65073 | L108: 44152.11068 | M108: 16457.60014
C109: ˂ = 11 kV ; Circuit Breaker | E109: 0 | F109: 0 | G109: 0 | H109: 0 | I109: 0 | J109: 0 | K109: 464.7691422 | L109: 9091.786744 | M109: 138679.374
C110: > 11 kV & < = 22 kV ; Switch | E110: 986072.5675 | F110: 1233974.552 | G110: 3412328.977 | H110: 4147242.765 | I110: 6800864.391 | J110: 7929347.658 | K110: 4038277.264 | L110: 6578485.692 | M110: 9339226.222
C111: > 11 kV & < = 22 kV ; Circuit Breaker | E111: 367558.2775 | F111: 318961.116 | G111: 498174.333 | H111: 548981.7335 | I111: 244350.473 | J111: 1662735.036 | K111: 3016554.005 | L111: 3440874.748 | M111: 4875381.378
C112: > 22 kV & < = 33 kV ; Switch | E112: 0 | F112: 0 | G112: 0 | H112: 0 | I112: 0 | J112: 55862.10054 | K112: 279780.8258 | L112: 223918.7253 | M112: 0
C113: > 22 kV & < = 33 kV ; Circuit Breaker | E113: 0 | F113: 0 | G113: 0 | H113: 0 | I113: 0 | J113: 0 | K113: 0 | L113: 1026752.003 | M113: 1026752.003
C114: > 33 kV & < = 66 kV ; Switch | E114: 673957.5925 | F114: 913978.9485 | G114: 1270899.933 | H114: 1144392.002 | I114: 538280.1625 | J114: 137500 | K114: 7644.978134 | L114: 7644.978134 | M114: 0
C115: > 33 kV & < = 66 kV ; Circuit Breaker | E115: 115058.9225 | F115: 128226.3645 | G115: 62889.2445 | H115: 19819.8195 | I115: 168319.8195 | J115: 1047668.652 | K115: 1732290.269 | L115: 833121.6173 | M115: 3342493.403
C116: > 66 kV & < = 132 kV ; Switch | E116: 0 | F116: 0 | G116: 0 | H116: 0 | I116: 0 | J116: 0 | K116: 0 | L116: 0 | M116: 0
C117: > 66 kV & < = 132 kV ; Circuit Breaker | E117: 0 | F117: 0 | G117: 0 | H117: 0 | I117: 0 | J117: 0 | K117: 1090.784721 | L117: 1090.784721 | M117: 0
C118: > 132 kV ; Switch | E118: 0 | F118: 0 | G118: 0 | H118: 0 | I118: 0 | J118: 0 | K118: 0 | L118: 0 | M118: 0
C119: > 132 kV ; Circuit Breaker | E119: 0 | F119: 0 | G119: 0 | H119: 0 | I119: 0 | J119: 0 | K119: 0 | L119: 0 | M119: 0
C120: > 11 kv & < = 22 kv ; fuse | E120: 3677495.116 | F120: 5509571.139 | G120: 7899399.4 | H120: 11076745.61 | I120: 7105645.6 | J120: 0 | K120: 1039339.854 | L120: 1039339.854 | M120: 0
C121: > 22 kv & < = 33 kv ; fuse | E121: 0 | F121: 0 | G121: 0 | H121: 0 | I121: 0 | J121: 0 | M121: 0
C122: > 33 kv & < = 66 kv ; fuse | E122: 632944.926 | F122: 852288.3175 | G122: 969301.9405 | H122: 1156725.752 | I122: 694033.94 | J122: 0 | K122: 0 | L122: 0 | M122: 0
C123: Other | E123: 0 | F123: 0 | G123: 0 | H123: 0 | I123: 3744500 | J123: 3744500 | K123: 468753 | L123: 3575873 | M123: 5798940.986
B124: PUBLIC LIGHTING BY: ASSET TYPE ; LIGHTING OBLIGATION | C124: Luminaires ; Major Road | E124: 0 | F124: 0 | G124: 0 | H124: 0 | I124: 0 | J124: 0 | K124: 0 | L124: 0 | M124: 0
C125: Luminaires ; Minor Road | E125: 0 | F125: 0 | G125: 0 | H125: 0 | I125: 0 | J125: 0 | K125: 0 | L125: 0 | M125: 0
C126: Brackets ; Major Road | E126: 0 | F126: 0 | G126: 0 | H126: 0 | I126: 0 | J126: 0 | K126: 0 | L126: 0 | M126: 0
C127: Brackets ; Minor Road | E127: 0 | F127: 0 | G127: 0 | H127: 0 | I127: 0 | J127: 0 | K127: 0 | L127: 0 | M127: 0
C128: Lamps ; Major Road | E128: 0 | F128: 0 | G128: 0 | H128: 0 | I128: 0 | J128: 0 | K128: 0 | L128: 0 | M128: 0
C129: Lamps ; Minor Road | E129: 0 | F129: 0 | G129: 0 | H129: 0 | I129: 0 | J129: 0 | K129: 0 | L129: 0 | M129: 0
C130: Poles / Columns ; Major Road | E130: 0 | F130: 0 | G130: 0 | H130: 0 | I130: 0 | J130: 0 | K130: 0 | L130: 0 | M130: 0
C131: Poles / Columns ; Minor Road | E131: 0 | F131: 0 | G131: 0 | H131: 0 | I131: 0 | J131: 0 | K131: 0 | L131: 0 | M131: 0
C132: Other | E132: 0 | F132: 0 | G132: 0 | H132: 0 | I132: 0 | J132: 0 | K132: 0 | L132: 0 | M132: 0
B133: SCADA, NETWORK CONTROL AND PROTECTION SYSTEMS BY: FUNCTION | C133: Field Devices | E133: 1081170.664 | F133: 469721.771 | G133: 890028.785 | H133: 816000.5345 | I133: 4089591 | J133: 5073624 | K133: 4352217.167 | L133: 5236860.607 | M133: 6898174.079
C134: Local Network Wiring Assets | E134: 63095.307 | F134: 7794.6695 | G134: 27519.541 | H134: 27951.4065 | I134: 6963 | J134: 3500 | K134: 0 | L134: 0 | M134: 0
C135: Communications Network Assets | E135: 1513583.253 | F135: 1113894.305 | G135: 1231912.039 | H135: 1305765.335 | I135: 452832 | J135: 477692 | K135: 428674.7637 | L135: 1167889.804 | M135: 2210468.99
C136: Master Station Assets | E136: 0 | F136: 0 | G136: 0 | H136: 0 | I136: 0 | J136: 0 | K136: 0 | L136: 0 | M136: 0
C137: Communications Site Infrastructure | E137: 0 | F137: 0 | G137: 0 | H137: 0 | I137: 0 | J137: 0 | K137: 0 | L137: 0 | M137: 0
C138: Communications Linear Assets | E138: 0 | F138: 0 | G138: 0 | H138: 0 | I138: 0 | J138: 0 | K138: 6998.262186 | L138: 6998.262186 | M138: 0
C139: Other
C140: batteries | E140: 69369.632 | F140: 129063.5605 | G140: 337470.4345 | H140: 350059.7045 | I140: 99733.4285 | J140: 0 | K140: 0 | L140: 0 | M140: 0
C141: relays | E141: 615203.1045 | F141: 156586.665 | G141: 265587.5805 | H141: 236985.0745 | I141: 27472.8655 | J141: 0 | K141: 0 | L141: 0 | M141: 0
B142: OTHER BY: DNSP DEFINED | C142: capacitor bank | E142: 10491.893 | F142: 3600.33 | G142: 3166.071 | H142: 8728.39 | I142: 30062.319 | J142: 24500 | K142: 0 | L142: 0 | M142: 0
C143: Surge diverters | E143: 643697.248 | F143: 378406.012 | G143: 637594.6925 | H143: 515894.617 | I143: 227399.9985 | J143: 35500 | K143: 334513.7545 | L143: 3526415.018 | M143: 7571603.997
C144: current transformers | E144: 218893.101 | F144: 243449.841 | G144: 160086.8365 | H144: 108577.1965 | I144: 280028.985 | J144: 210500 | K144: 0 | L144: 0 | M144: 0
C145: earthing | E145: 17383.4565 | F145: 9102.0855 | G145: 5501.7555 | H145: 2781.1595 | I145: 2781.1595 | J145: 128026.255 | K145: 518764.1647 | L145: 774066.6722 | M145: 742343.1901
C146: magnetic voltage transformers | E146: 139376.747 | F146: 85519.1 | G146: 49515.801 | H146: 8343.478 | I146: 10343.478 | J146: 2000 | K146: 0 | L146: 0 | M146: 0
C147: neutral earth resistors | E147: 12292.058 | F147: 5400.495 | G147: 5276.7855 | H147: 21963.742 | I147: 26186.9565 | J147: 9500 | K147: 0 | L147: 0 | M147: 0
C148: measuring transformers | E148: 0 | F148: 0 | G148: 0 | H148: 0 | I148: 0 | J148: 109678.925 | K148: 718085.3695 | L148: 756346.5595 | M148: 211492.53
C149: regulators | E149: 21601.9795 | F149: 21601.9795 | G149: 6332.1425 | H149: 6332.1425 | I149: 0 | J149: 289441.135 | K149: 787844.797 | L149: 501977.422 | M149: 28732.95
C150: site repairs refurbishments | E150: 0 | F150: 0 | G150: 0 | H150: 0 | I150: 242500 | J150: 1654779.588 | K150: 3635912.104 | L150: 3723051.982 | M150: 4005576.11
C151: station supplies transformers | E151: 31475.679 | F151: 27306.2565 | G151: 18615.981 | H151: 4891.8735 | I151: 2781.1595 | J151: 0 | K151: 0 | L151: 0 | M151: 0
C152: voltage transformers | E152: 156760.203 | F152: 56108.8955 | G152: 26003.4805 | H152: 42872.1265 | I152: 57873.913 | J152: 24500 | K152: 0 | L152: 0 | M152: 0
C153: cable refurbishments | E153: 0 | F153: 0 | G153: 0 | H153: 0 | I153: 22000 | J153: 22000 | K153: 0 | L153: 0 | M153: 0
C154: other : > 11 kv & < = 22 kv ; reactor | E154: 26075.1845 | F154: 5400.495 | G154: 9498.2135 | H154: 26185.17 | I154: 16686.9565 | J154: 0 | K154: 0 | L154: 0 | M154: 0
B158: ASSET REPLACEMENTS
E159: VOLUMES (0's)
B160: ASSET GROUP | C160: ASSET CATEGORY | E160: =dms_y1 -> 2009-10 | F160: =dms_y2 -> 2010-11 | G160: =dms_y3 -> 2011-12 | H160: =dms_y4 -> 2012-13 | I160: =dms_y5 -> 2013-14 | J160: =dms_y6 -> 2014-15 | K160: =dms_y7 -> 2015-16 | L160: =dms_y8 -> 2016-17 | M160: =dms_y9 -> 2017-18
B161: POLES BY: HIGHEST OPERATING VOLTAGE ; MATERIAL TYPE | C161: Staking of a wooden pole | E161: 242 | F161: 207.5 | G161: 298 | H161: 439 | I161: 1342.5 | J161: 3091 | K161: 2940.1703 | L161: 1659.377233 | M161: 1065.314887
C162: ˂ = 1 kV; Wood | E162: 56.5 | F162: 45.5 | G162: 75.5 | H162: 90 | I162: 209 | J162: 857 | K162: 1316.00127 | L162: 1260.984947 | M162: 1223.663077
C163: > 1 kV & < = 11 kV; Wood | E163: 1 | F163: 3.5 | G163: 5.5 | H163: 3.5 | I163: 2 | J163: 0.5 | K163: 0 | L163: 0.1608062288 | M163: 0.2407876383
C164: ˃ 11 kV & < = 22 kV; Wood | E164: 249.5 | F164: 151.5 | G164: 168.5 | H164: 172.5 | I164: 348.5 | J164: 627 | K164: 619.6962118 | L164: 945.518253 | M164: 1341.192566
C165: > 22 kV & < = 66 kV; Wood | E165: 26.5 | F165: 17.5 | G165: 26 | H165: 26 | I165: 31.5 | J165: 123 | K165: 130.4673432 | L165: 48.3390487 | M165: 36.23578133
C166: > 66 kV & < = 132 kV; Wood | E166: 0 | F166: 0 | G166: 0 | H166: 0 | I166: 0 | J166: 0 | K166: 0 | L166: 0 | M166: 0
C167: > 132 kV; Wood | E167: 0 | F167: 0 | G167: 0 | H167: 0 | I167: 0 | J167: 0 | K167: 0 | L167: 0 | M167: 0
C168: ˂ = 1 kV; Concrete | E168: 60 | F168: 54 | G168: 119 | H168: 163.5 | I168: 199.5 | J168: 297.5 | K168: 390.7531588 | L168: 414.4818351 | M168: 372.1847545
C169: > 1 kV & < = 11 kV; Concrete | E169: 1 | F169: 2 | G169: 6 | H169: 6.5 | I169: 5 | J169: 3 | K169: 0 | L169: 0.04863892105 | M169: 0.07512105998
C170: ˃ 11 kV & < = 22 kV; Concrete | E170: 448 | F170: 457 | G170: 576.5 | H170: 637 | I170: 1043.5 | J170: 913 | K170: 608.2913038 | L170: 1231.611559 | M170: 1491.67855
C171: > 22 kV & < = 66 kV; Concrete | E171: 103 | F171: 104 | G171: 87 | H171: 88.5 | I171: 281 | J171: 297.5 | K171: 203.0486124 | L171: 218.6346739 | M171: 172.8841823
C172: > 66 kV & < = 132 kV; Concrete | E172: 0 | F172: 0 | G172: 0 | H172: 0 | I172: 0 | J172: 0 | K172: 0 | L172: 0 | M172: 0
C173: > 132 kV; Concrete | E173: 0 | F173: 0 | G173: 0 | H173: 0 | I173: 0 | J173: 0 | K173: 0 | L173: 0 | M173: 0
C174: ˂ = 1 kV; Steel | E174: 718.5 | F174: 926.5 | G174: 1249 | H174: 911.5 | I174: 1037.5 | J174: 975 | K174: 266.7786642 | L174: 29.05292548 | M174: 24.31866569
C175: > 1 kV & < = 11 kV; Steel | E175: 0 | F175: 0 | G175: 0 | H175: 0 | I175: 0.5 | J175: 0.5 | K175: 0 | L175: 0.0003970524167 | M175: 0.0006645487696
C176: ˃ 11 kV & < = 22 kV; Steel | E176: 373 | F176: 369 | G176: 582.5 | H176: 456.5 | I176: 330.5 | J176: 185 | K176: 0 | L176: 0 | M176: 0
C177: > 22 kV & < = 66 kV; Steel | E177: 8.5 | F177: 14 | G177: 19 | H177: 11.5 | I177: 14 | J177: 9.5 | K177: 0 | L177: 0.01091894146 | M177: 0.0174726021
C178: > 66 kV & < = 132 kV; Steel | E178: 0 | F178: 0 | G178: 0 | H178: 0 | I178: 0 | J178: 0 | K178: 0 | L178: 0 | M178: 0
C179: > 132 kV; Steel | E179: 0 | F179: 0 | G179: 0 | H179: 0 | I179: 0 | J179: 0 | K179: 0 | L179: 0 | M179: 0
C180: Other | E180: 0 | F180: 0 | G180: 0 | H180: 0 | I180: 1 | J180: 1 | K180: 0 | L180: 0.0005955786251 | M180: 1.000595579
B181: POLE TOP STRUCTURES BY: HIGHEST OPERATING VOLTAGE | C181: ˂ = 1 kV | E181: 802.5 | F181: 1298.5 | G181: 2250 | H181: 2123 | I181: 2055 | J181: 2317 | K181: 3228.517173 | L181: 7860.440742 | M181: 8154.848272
C182: > 1 kV & < = 11 kV | E182: 19.5 | F182: 39.5 | G182: 74 | H182: 73 | I182: 62 | J182: 29.5 | K182: 0.5 | L182: 0 | M182: 0
C183: ˃ 11 kV & < = 22 kV | E183: 4516.5 | F183: 5825 | G183: 8528 | H183: 7126 | I183: 7918 | J183: 6811 | K183: 2299.689456 | L183: 3151.595961 | M183: 3729.083813
C184: > 22 kV & < = 66 kV | E184: 643.5 | F184: 642.5 | G184: 843 | H184: 657.5 | I184: 829 | J184: 659.5 | K184: 149.0210558 | L184: 126.6512308 | M184: 82.93680168
C185: > 66 kV & < = 132 kV | E185: 0 | F185: 0 | G185: 0 | H185: 0 | I185: 0 | J185: 0 | K185: 0 | L185: 0.5861337262 | M185: 1.236340811
C186: > 132 kV | E186: 0 | F186: 0 | G186: 0 | H186: 0 | I186: 0 | J186: 0 | K186: 0 | L186: 0 | M186: 0
C187: Other | E187: 0 | F187: 0 | G187: 0 | H187: 0 | I187: 0 | J187: 0 | K187: 1188 | L187: 3772.849733 | M187: 4101.132653
B188: STAKING WOODEN POLES BY: HIGHEST OPERATING VOLTAGE | C188: ˂ = 1 Kv | E188: 84.15180336 | F188: 70.97339948 | G188: 115.4797401 | H188: 153.1543514 | I188: 488.8661721 | J188: 1217.085455 | K188: 1287.616772 | L188: 865.9339604 | M188: 579.2114802
C189: > 1 kV & < = 11 kV | E189: 0 | F189: 0 | G189: 0 | H189: 0 | I189: 0 | J189: 0 | K189: 0 | L189: 0 | M189: 0
C190: ˃ 11 kV & < = 22 kV | E190: 149.7390069 | F190: 133.4287744 | G190: 179.8447792 | H190: 273.8044043 | I190: 820.5322318 | J190: 1777.506582 | K190: 1566.489033 | L190: 766.9380559 | M190: 465.1739163
C191: > 22 kV & < = 66 kV | E191: 4.472208498 | F191: 1.548913043 | G191: 2.378205128 | H191: 7.685471138 | I191: 23.34649879 | J191: 74.30152786 | K191: 66.13035233 | L191: 20.14569905 | M191: 16.05915441
C192: > 66 kV & < = 132 kV | E192: 0 | F192: 0 | G192: 0 | H192: 0 | I192: 0 | J192: 0 | K192: 0 | L192: 0 | M192: 0
C193: > 132 kV | E193: 0 | F193: 0 | G193: 0 | H193: 0 | I193: 0 | J193: 0 | K193: 0 | L193: 0 | M193: 0
B194: OVERHEAD CONDUCTORS BY: HIGHEST OPERATING VOLTAGE; NUMBER OF PHASES (AT HV) | C194: ˂ = 1 kV | E194: 29.5 | F194: 5.5 | G194: 14.5 | H194: 13.5 | I194: 7.5 | J194: 52 | K194: 53.12855756 | L194: 9.487124116 | M194: 3.847498
C195: > 1 kV & < = 11 kV | E195: 0 | F195: 0 | G195: 0 | H195: 0 | I195: 1 | J195: 1.5 | K195: 0.5022997574 | L195: 0.002851730431 | M195: 0.003436131541
C196: ˃ 11 kV & < = 22 kV ; SWER | E196: 6 | F196: 6.5 | G196: 21.5 | H196: 22 | I196: 100 | J196: 201 | K196: 137.8549122 | L196: 32.45425944 | M196: 7.745056101
C197: ˃ 11 kV & < = 22 kV ; Single-Phase | E197: 0 | F197: 0 | G197: 0 | H197: 0 | I197: 0 | J197: 40.5 | K197: 41.36691221 | L197: 36.64978052 | M197: 50.94684611
C198: ˃ 11 kV & < = 22 kV ; Multiple-Phase | E198: 70 | F198: 61 | G198: 97 | H198: 78 | I198: 166 | J198: 235.5 | K198: 188.3410224 | L198: 118.1377396 | M198: 51.54583896
C199: > 22 kV & < = 66 kV | E199: 1 | F199: 2.5 | G199: 13 | H199: 11.5 | I199: 30 | J199: 37.5 | K199: 8.5 | L199: 0 | M199: 0
C200: > 66 kV & < = 132 kV | E200: 0 | F200: 0 | G200: 0 | H200: 0 | I200: 0 | J200: 0 | K200: 0 | L200: 0 | M200: 0
C201: > 132 kV | E201: 0 | F201: 0 | G201: 0 | H201: 0 | I201: 0 | J201: 0 | K201: 0 | L201: 0 | M201: 0
C202: Other | E202: 0 | F202: 0 | G202: 0 | H202: 0 | I202: 0 | J202: 0 | K202: 0 | L202: 0 | M202: 0
B203: UNDERGROUND CABLES BY: HIGHEST OPERATING VOLTAGE | C203: ˂ = 1 kV | E203: 39 | F203: 67 | G203: 91.5 | H203: 62.5 | I203: 80 | J203: 69 | K203: 14.41524758 | L203: 4.415247584 | M203: 519.4731218
C204: > 1 kV & < = 11 kV | E204: 0 | F204: 0 | G204: 0 | H204: 0 | I204: 0 | J204: 0 | K204: 8.527994637 | L204: 549.9984065 | M204: 543.2616985
C205: > 11 kV & < = 22 kV | E205: 19 | F205: 25.5 | G205: 39 | H205: 33 | I205: 53 | J205: 43.5 | K205: 2.923381274 | L205: 30.96115595 | M205: 86.84674816
... 287 more rows

Sheet 2.3(b) Augex
B1: =INDEX(dms_Worksheet_List,MATCH(dms_Model,dms_Model_List)) -> HISTORICAL CATEGORY ANALYSIS - FINANCIAL YEARS
B2: =INDEX(dms_TradingNameFull_List,MATCH(dms_TradingName,dms_TradingName_List)) -> AusNet Electricity Services Pty Ltd
B3: =dms_Header_Span -> 2009-10 to 2017-18
B4: 2.3 AUGEX PROJECT DATA
B6: There are FOUR tables on this worksheet. These tables have been 'grouped' (and sub-grouped) for easy navigation. See the Instructions sheet on how to group or ungroup tables.
B8: NOTE: DNSP MUST PROVIDE EXPENDITURE INFORMATION ON AN AS INCURRED BASIS.
B9: 2.3.3 - AUGEX DATA - HV/LV FEEDERS AND DISTRIBUTION SUBSTATIONS
B10: PROJECT TYPE | C10: Units | D10: VOLUME (0's)
D11: =dms_y1 -> 2009-10 | E11: =dms_y2 -> 2010-11 | F11: =dms_y3 -> 2011-12 | G11: =dms_y4 -> 2012-13 | H11: =dms_y5 -> 2013-14 | I11: =dms_y6 -> 2014-15 | J11: =dms_y7 -> 2015-16 | K11: =dms_y8 -> 2016-17 | L11: =dms_y9 -> 2017-18
B12: DESCRIPTOR METRICS - UNITS ADDED
B13: HV Feeder Augmentations - Overhead Lines | C13: Circuit Line Length in KM | D13: 9.2125 | E13: 185.881 | F13: 318.279 | G13: 220.303 | H13: 106.247 | I13: 36.437 | J13: 28.26485 | K13: 22.94085 | L13: 17.21564
B14: HV Feeder Augmentations - Underground Cables | C14: Circuit Line Length in KM | D14: 1.0865 | E14: 2.157 | F14: 8.1065 | G14: 12.458 | H14: 10.4435 | I14: 11.2395 | J14: 18.515 | K14: 26.858634 | L14: 20.796663
B15: LV Feeder Augmentations - Overhead Lines | C15: Circuit Line Length in KM | D15: 2.376 | E15: 1.9985 | F15: 24.777 | G15: 34.0565 | H15: 17.074 | I15: 6.716 | J15: 6.2275 | K15: 3.248 | L15: 0.493
B16: LV Feeder Augmentations - Underground Cables | C16: Circuit Line Length in KM | D16: 1.194 | E16: 1.194 | F16: 7.408 | G16: 7.4235 | H16: 0.095 | I16: 1.273 | J16: 1.308 | K16: 0.9403025 | L16: 2.676021
B17: Distribution Substation Augmentations - Pole Mounted | C17: Number | D17: 296.6061249 | E17: 120.9417223 | F17: 186.2410552 | G17: 428.1244997 | H17: 280.3141298 | I17: 7.38372093 | J17: 19.14946279 | K17: 43.50357922 | L17: 76.23783736
B18: Distribution Substation Augmentations - Ground Mounted | C18: Number | D18: 22.70603396 | E18: 9.258429351 | F18: 14.25727714 | G18: 32.77413584 | H18: 44.76986052 | I18: 13.04392765 | J18: 10.59778346 | K18: 24.49683603 | L18: 49.08932168
B19: Distribution Substation Augmentations - Indoor | C19: Number | D19: 3.187841116 | E19: 1.299848393 | F19: 2.001667677 | G19: 4.601364463 | H19: 2.916009703 | I19: 0.07235142119 | J19: 0.2537537468 | K19: 1.032584743 | L19: 1.704840954
B20: DESCRIPTOR METRICS - UNITS UPGRADED
B21: HV Feeder Augmentations - Overhead Lines | C21: Circuit Line Length in KM | D21: 0.382 | E21: 0.382 | F21: 43.3205 | G21: 281.369 | H21: 262.0055 | I21: 162.2845 | J21: 917.98155 | K21: 780.9176 | L21: 1.88905
B22: HV Feeder Augmentations - Underground Cables | C22: Circuit Line Length in KM | D22: 0 | E22: 0 | F22: 0 | G22: 0.1875 | H22: 0.9675 | I22: 10.8025 | J22: 10.0225 | K22: 0.2005 | L22: 0.3145
B23: LV Feeder Augmentations - Overhead Lines | C23: Circuit Line Length in KM | D23: 0 | E23: 0.0475 | F23: 0.4425 | G23: 18.3055 | H23: 18.0285 | I23: 3.879 | J23: 12.3885 | K23: 15.4622 | L23: 7.7792
B24: LV Feeder Augmentations - Underground Cables | C24: Circuit Line Length in KM | D24: 0 | E24: 0 | F24: 0 | G24: 0 | H24: 0.48 | I24: 0.597 | J24: 0.117 | K24: 0.0005 | L24: 0.0535
B25: Distribution Substation Augmentations - Pole Mounted | C25: Number | D25: 0 | E25: 0.01976955731 | F25: 0.2174651304 | G25: 0.7463007884 | H25: 8.548605215 | I25: 22.41860465 | J25: 54.14302326 | K25: 48.59988234 | L25: 10.62546374
B26: Distribution Substation Augmentations - Ground Mounted | C26: Number | D26: 0 | E26: 1.839417829 | F26: 20.23359612 | G26: 69.43802304 | H26: 73.54384475 | I26: 27.71963824 | J26: 28.55219638 | K26: 28.20173616 | L26: 6.088690217
B27: Distribution Substation Augmentations - Indoor | C27: Number | D27: 0 | E27: 0.1408126137 | F27: 1.548938751 | G27: 5.315676167 | H27: 3.90755003 | I27: 0.3617571059 | J27: 0.8047803618 | K27: 0.7203814976 | L27: 0.3078460466
B29: COST METRICS
B30: TOTAL DIRECT EXPENDITURE - Project Type | D30: EXPENDITURE ($0's)
D31: =dms_y1 -> 2009-10 | E31: =dms_y2 -> 2010-11 | F31: =dms_y3 -> 2011-12 | G31: =dms_y4 -> 2012-13 | H31: =dms_y5 -> 2013-14 | I31: =dms_y6 -> 2014-15 | J31: =dms_y7 -> 2015-16 | K31: =dms_y8 -> 2016-17 | L31: =dms_y9 -> 2017-18
B32: HV Feeder Augmentations - Overhead Lines | D32: 19287851.11 | E32: 28144219.61 | F32: 27419286.73 | G32: 40495706.74 | H32: 55297229.31 | I32: 48777318.64 | J32: 40357721.28 | K32: 34374190.15 | L32: 17140934.9
B33: HV Feeder Augmentations - Underground Cables | D33: 2194197.226 | E33: 4647278.153 | F33: 4954394.234 | G33: 4959457.467 | H33: 4454710.175 | I33: 4376047.784 | J33: 5710806.868 | K33: 10391226.27 | L33: 8301661.671
B34: HV Feeder Non-Material Projects | D34: 20089702.42 | E34: 7324830.891 | F34: 8090446.059 | G34: 9849183.529 | H34: 6863895.947 | I34: 2819452.481 | J34: 1363799.135 | K34: 1367313.436 | L34: 1757291.245
B35: LV Feeder Augmentations - Overhead Lines | D35: 1027232.45 | E35: 1053928.596 | F35: 2115202.823 | G35: 5714439.574 | H35: 6251805.23 | I35: 4328394.966 | J35: 4020060.763 | K35: 5611958.786 | L35: 3955882.783
B36: LV Feeder Augmentations - Underground Cables | D36: 101829.4219 | E36: 57742.13747 | F36: 39698.76052 | G36: 50578.57178 | H36: 65691.8282 | I36: 480095.9013 | J36: 522449.4663 | K36: 511205.4987 | L36: 570664.0718
B37: LV Feeder Non-Material Projects | D37: 239516.2519 | E37: 131526.7982 | F37: 48697.35573 | G37: 150192.9819 | H37: 214732.7101 | I37: 174672.4425 | J37: 107892.329 | K37: 12976.63137 | L37: 11756.26487
B38: Distribution Substation Augmentations - Pole Mounted | D38: 6072211.462 | E38: 3120210.569 | F38: 5130035.583 | G38: 11394843.26 | H38: 7146882.891 | I38: 1204382.938 | J38: 1535194.948 | K38: 2837493.139 | L38: 2533187.012
B39: Distribution Substation Augmentations - Ground Mounted | D39: 1118871.978 | E39: 574933.2334 | F39: 945265.6737 | G39: 2099625.629 | H39: 2316013.239 | I39: 1365281.957 | J39: 718840.0665 | K39: 1584723.302 | L39: 1451911.084
B40: Distribution Substation Augmentations - Indoor | D40: 58274.58217 | E40: 29944.43924 | F40: 49232.58717 | G40: 109355.5015 | H40: 64817.60021 | I40: 20360.06425 | J40: 28431.07866 | K40: 74127.02006 | L40: 73362.53582
B44: 2.3.4 - AUGEX - TOTAL EXPENDITURE
B45: AUGMENTATION CAPEX (as incurred) | D45: EXPENDITURE ($0's)
D46: =dms_y1 -> 2009-10 | E46: =dms_y2 -> 2010-11 | F46: =dms_y3 -> 2011-12 | G46: =dms_y4 -> 2012-13 | H46: =dms_y5 -> 2013-14 | I46: =dms_y6 -> 2014-15 | J46: =dms_y7 -> 2015-16 | K46: =dms_y8 -> 2016-17 | L46: =dms_y9 -> 2017-18
B47: Subtransmission Substations, Switching Stations, Zone Substations | D47: 9678117.964 | E47: 17282948.84 | F47: 17306543.88 | G47: 25518218.23 | H47: 25511552.78 | I47: 16408006.93 | J47: 12361551.3 | K47: 10140572.21 | L47: 29639134.84
B48: Subtransmission Lines | D48: 963946.293 | E48: 1722898.014 | F48: 1648534.848 | G48: 5485100.548 | H48: 7589567.823 | I48: 5568557.062 | J48: 3117512.188 | K48: 2281842.478 | L48: 8473130.573
B49: HV Feeders | D49: 41571750.76 | E49: 40116328.65 | F49: 40464127.03 | G49: 55304347.74 | H49: 62296653.34 | I49: 50428966.37 | J49: 45238490.28 | K49: 47602955.38 | L49: 38255277.31
B50: HV Feeders - Land Purchases and Easements | D50: 0 | E50: 0 | F50: 0 | G50: 0 | H50: 0 | I50: 0 | J50: 0 | K50: 0 | L50: 0
B51: Distribution Substations | D51: 7249358.022 | E51: 3725088.241 | F51: 6124533.844 | G51: 13603824.39 | H51: 9335889.432 | I51: 2338264.697 | J51: 2176641.497 | K51: 4825859.152 | L51: 5560214.03
B52: Distribution Substations - Land Purchases And Easements | D52: 0 | E52: 0 | F52: 0 | G52: 0 | H52: 0 | I52: 0 | J52: 0 | K52: 0 | L52: 0
B53: LV Feeders | D53: 1368578.124 | E53: 1243197.531 | F53: 2203598.939 | G53: 5915211.128 | H53: 6182563.32 | I53: 4510295.067 | J53: 4434513.768 | K53: 6470570.421 | L53: 6122826.485
B54: LV Feeders - Land Purchases And Easements | D54: 0 | E54: 0 | F54: 0 | G54: 0 | H54: 0 | I54: 0 | J54: 0 | K54: 0 | L54: 0
B55: Other Assets | D55: 0 | E55: 0 | F55: 0 | G55: 0 | H55: 0 | I55: 0 | J55: 0 | K55: 0 | L55: 0

Sheet 2.5 Connections
B1: =INDEX(dms_Worksheet_List,MATCH(dms_Model,dms_Model_List)) -> HISTORICAL CATEGORY ANALYSIS - FINANCIAL YEARS
B2: =INDEX(dms_TradingNameFull_List,MATCH(dms_TradingName,dms_TradingName_List)) -> AusNet Electricity Services Pty Ltd
B3: =dms_Header_Span -> 2009-10 to 2017-18
B4: 2.5 CONNECTIONS
B6: There are THREE tables on this worksheet - each has been 'grouped' (and sub-grouped) for easy navigation. See the Instructions sheet on how to group or ungroup tables.
B8: 2.5.1 - DESCRIPTOR METRICS
E9: VOLUMES AND EXPENDITURE
D10: Units | E10: =dms_y1 -> 2009-10 | F10: =dms_y2 -> 2010-11 | G10: =dms_y3 -> 2011-12 | H10: =dms_y4 -> 2012-13 | I10: =dms_y5 -> 2013-14 | J10: =dms_y6 -> 2014-15 | K10: =dms_y7 -> 2015-16 | L10: =dms_y8 -> 2016-17 | M10: =dms_y9 -> 2017-18
B11: RESIDENTIAL | C11: Underground connections | D11: 0's | E11: 16694.22009 | F11: 17339.63426 | G11: 15638.33874 | H11: 13782.24787 | I11: 13748.05665 | J11: 14429.27377 | K11: 15073.50824 | L11: 16066.85007 | M11: 16906.15866
C12: Overhead connections | D12: 0's | E12: 1199.60092 | F12: 1149.658787 | G12: 982.1760292 | H12: 901.7945798 | I12: 875.298277 | J12: 832.3338015 | K12: 824.7300844 | L12: 921.8749118 | M12: 945.3215625
C13: Distribution substation installed (MVA added) | D13: MVA | E13: 78.5298778 | F13: 75.69317246 | G13: 84.74795651 | H13: 73.0069231 | I13: 55.86141253 | J13: 46.75573609 | K13: 40.20219252 | L13: 107.3830982 | M13: 133.9471232
C14: Distribution substations installed | D14: 0's | E14: 392.649389 | F14: 378.4658623 | G14: 423.7397825 | H14: 365.0346155 | I14: 279.3070626 | J14: 233.7786804 | K14: 201.0109626 | L14: 536.9154909 | M14: 669.7356158
C15: Distribution substation installed (total spend $0's) | D15: total spend $0s | E15: 4198339.567 | F15: 4496220.762 | G15: 5449848.982 | H15: 4982902.902 | I15: 4080707.951 | J15: 3091963.168 | K15: 2254549.799 | L15: 4475170.787 | M15: 5339374.938
C16: Augmentation HV (net circuit KM added) | D16: KM | E16: 74.3464181 | F16: 60.80737715 | G16: 79.72151953 | H16: 72.2455338 | I16: 47.16686763 | J16: 44.23401621 | K16: 40.32566814 | L16: 104.1114089 | M16: 130.6611446
C17: Augmentation HV (total spend $0's) | D17: total spend $0s | E17: 567356.338 | F17: 627907.8932 | G17: 788364.8522 | H17: 719779.2573 | I17: 611855.3021 | J17: 1053485.717 | K17: 1129929.461 | L17: 1891251.886 | M17: 2391606.563
C18: Augmentation LV (net circuit KM added) | D18: KM | E18: 31.31544469 | F18: 26.31649438 | G18: 20.38381636 | H18: 13.32189792 | I18: 11.81143009 | J18: 10.13428951 | K18: 18.48060647 | L18: 33.0551537 | M18: 24.27050574
C19: Augmentation LV (total spend $0's) | D19: total spend $0s | E19: 2165607.423 | F19: 1837604.432 | G19: 1440489.356 | H19: 896091.9666 | I19: 724089.2632 | J19: 731657.2139 | K19: 1500135.397 | L19: 2343994.915 | M19: 1873043.855
C20: Mean days to connect residential customer with LV single phase connection | D20: 0's | E20: 8.1575 | F20: 7.24575 | G20: 6.6972 | H20: 6.6307 | I20: 6.59475 | J20: 6.85 | K20: 7.745 | L20: 9.075 | M20: 8.66
C21: Volume of GSL breaches for residential customers | D21: 0's | E21: 325 | F21: 431.5 | G21: 476 | H21: 292 | I21: 194.5 | J21: 107.5 | K21: 226 | L21: 491.5 | M21: 855
C22: Volume of customer complaints relating to connection services | D22: 0's | E22: 343.5 | F22: 372 | G22: 1020 | H22: 1752 | I22: 1408.5 | J22: 763.5 | K22: 264 | L22: 235 | M22: 253.5
C23: GSL payments | D23: $0s | E23: 36125 | F23: 51125 | G23: 57125 | H23: 42350 | I23: 30325 | J23: 14875 | K23: 41775 | L23: 101505 | M23: 199620
B24: COMMERCIAL/INDUSTRIAL | C24: Underground connections | D24: 0's | E24: 1459.440861 | F24: 1706.354655 | G24: 2021.398438 | H24: 1944.208163 | I24: 1764.118787 | J24: 1666.061503 | K24: 1591.123573 | L24: 1848.651397 | M24: 2014.63831
C25: Overhead connections | D25: 0's | E25: 203.2381272 | F25: 218.3523024 | G25: 225.0867953 | H25: 228.2493888 | I25: 208.0262852 | J25: 165.3309263 | K25: 185.1381052 | L25: 274.6236234 | M25: 313.3814695
C26: Distribution substation installed (MVA added) | D26: MVA | E26: 350 | F26: 301 | G26: 283.5 | H26: 258.5 | I26: 203 | J26: 177.5 | K26: 149 | L26: 433.5 | M26: 644.5
C27: Distribution substations installed (0's) | D27: 0's | E27: 350 | F27: 301 | G27: 283.5 | H27: 258.5 | I27: 203 | J27: 177.5 | K27: 149 | L27: 433.5 | M27: 644.5
C28: Distribution substation installed (total spend ($0's) | D28: total spend $0s | E28: 9244933.86 | F28: 8658179.83 | G28: 9011578.3 | H28: 8443424.54 | I28: 7321929.37 | J28: 5049450.615 | K28: 3567404.496 | L28: 10515443.96 | M28: 13864247.44
C29: Augmentation HV (net circuit KM added) | D29: KM | E29: 370.1845 | F29: 171.8585 | G29: 151.137 | H29: 100.2895 | I29: 55.943 | J29: 61.7785 | K29: 60.95909143 | L29: 122.0663998 | M29: 163.7166264
C30: Augmentation HV (total spend $0's) | D30: total spend $0s | E30: 3620631.26 | F30: 6638602.93 | G30: 7205717.195 | H30: 3600730.445 | I30: 2011115.887 | J30: 2109230.037 | K30: 2030649.014 | L30: 5227060.661 | M30: 7062317.29
C31: Augmentation LV (net circuit KM added) | D31: KM | E31: 22.1585 | F31: 14.562 | G31: 10.223 | H31: 9.83 | I31: 10.6515 | J31: 14.8815 | K31: 16.88624996 | L31: 24.29138996 | M31: 29.2346555
C32: Augmentation LV (total spend $0's) | D32: total spend $0s | E32: 1936200.235 | F32: 1643766.325 | G32: 1168710.51 | H32: 992557.965 | I32: 1111262.724 | J32: 915517.3539 | K32: 1061214.905 | L32: 2535139.413 | M32: 2770807.304
B33: SUBDIVISION | C33: Underground connections | D33: 0's | E33: 314.8783964 | F33: 406.366262 | G33: 406.5195888 | H33: 378.6325315 | I33: 321.6174644 | J33: 272.5259439 | K33: 348.8429147 | L33: 385.1535623 | M33: 267.8699485
C34: Overhead connections | D34: 0's | E34: 20.62160358 | F34: 26.63373799 | G34: 25.9804112 | H34: 24.86746852 | I34: 25.88253559 | J34: 25.4740561 | K34: 31.65708533 | L34: 37.84643774 | M34: 51.13005153
C35: Distribution substation installed (MVA added) | D35: MVA | E35: 74.9201222 | F35: 68.00682754 | G35: 71.40204349 | H35: 69.7430769 | I35: 56.58858747 | J35: 48.19426391 | K35: 44.04780748 | L35: 119.5169018 | M35: 200.3028768
C36: Distribution substations installed | D36: 0's | E36: 156.350611 | F36: 142.0341377 | G36: 152.2602175 | H36: 151.4653845 | I36: 130.6929374 | J36: 118.7213196 | K36: 121.9890374 | L36: 342.5845091 | M36: 556.7643842
C37: Distribution substation installed (total spend $0's) | D37: total spend $0s | E37: 5126215.688 | F37: 5175752.628 | G37: 5812148.803 | H37: 5642019.618 | I37: 4663711.745 | J37: 2865294.948 | K37: 2199909.607 | L37: 7030534.04 | M37: 11189226.34
C38: Augmentation HV (net circuit KM added) | D38: KM | E38: 60.0200819 | F38: 55.69462285 | G38: 62.46598047 | H38: 56.7234662 | I38: 42.61463237 | J38: 41.83548379 | K38: 43.38045008 | L38: 100.7722628 | M38: 150.4249721
C39: Augmentation HV (total spend $0's) | D39: total spend $0s | E39: 3258313.507 | F39: 3197191.532 | G39: 3422998.873 | H39: 3018713.033 | I39: 2295888.503 | J39: 1677982.318 | K39: 1528832.188 | L39: 4409934.049 | M39: 6597577.419
C40: Augmentation LV (net circuit KM added) | D40: KM | E40: 174.9295553 | F40: 169.2080056 | G40: 168.7331836 | H40: 134.6201021 | I40: 103.8005699 | J40: 86.06421049 | K40: 86.8519881 | L40: 149.2205904 | M40: 194.9464468
C41: Augmentation LV (total spend $0's) | D41: total spend $0s | E41: 8207841.167 | F41: 7806675.593 | G41: 7493822.929 | H41: 5773752.823 | I41: 4590628.754 | J41: 3251447.993 | K41: 3370700.755 | L41: 6964394.529 | M41: 8765942.426
C42: Cost per lot ($) | D42: $0s | E42: 2233.405645 | F42: 1721.460112 | G42: 1684.46651 | H42: 1584.847623 | I42: 2002.973892 | J42: 2038.844758 | K42: 2067.654569 | L42: 2170.853374 | M42: 2072.778625
B43: EMBEDDED GENERATION | C43: Underground connections | D43: 0's | E43: 3.5 | F43: 1.5 | G43: 0.5 | H43: 1.5 | I43: 2 | J43: 1 | K43: 0 | L43: 0 | M43: 0
C44: Overhead connections | D44: 0's | E44: 0.5 | F44: 0.5 | G44: 0 | H44: 0 | I44: 1 | J44: 2 | K44: 1.5 | L44: 0.5 | M44: 0
C45: Distribution substation installed (MVA added) | D45: MVA | E45: 0.25 | F45: 0.25 | G45: 0 | H45: 0 | I45: 0.5 | J45: 0.5 | K45: 0 | L45: 1.25 | M45: 1.75
C46: Distribution substations installed | D46: 0's | E46: 0.5 | F46: 0.5 | G46: 0 | H46: 0 | I46: 1 | J46: 1 | K46: 0 | L46: 2.5 | M46: 3.5
C47: Distribution substation installed (total spend $0's) | D47: total spend $0s | E47: 20538.705 | F47: 20538.705 | G47: 0 | H47: 0 | I47: 20366.52904 | J47: 20366.52904 | K47: 0 | L47: 115391.4378 | M47: 118781.3516
C48: Augmentation HV (net circuit KM added) | D48: KM | E48: 0.781 | F48: 0.005 | G48: 0 | H48: 0.075 | I48: 0.075 | J48: 4.2305 | K48: 4.2315 | L48: 1.813766865 | M48: 1.835516865
C49: Augmentation HV (total spend $0's) | D49: total spend $0s | E49: 90880.19 | F49: 33249.44 | G49: 0 | H49: 0 | I49: 0 | J49: 799857.5 | K49: 801077.5 | L49: 71763.97737 | M49: 76337.77061
C50: Augmentation LV (net circuit KM added) | D50: KM | E50: 0.285 | F50: 0.285 | G50: 0 | H50: 0 | I50: 0 | J50: 0 | K50: 0 | L50: 0.0025 | M50: 0.0045
C51: Augmentation LV (total spend $0's) | D51: total spend $0s | E51: 9755.755 | F51: 9755.755 | G51: 0 | H51: 0 | I51: 0 | J51: 0 | K51: 0 | L51: 4542.007584 | M51: 3317.059835
B55: 2.5.2 - COST METRICS BY CONNECTION CLASSIFICATION
B56: EXPENDITURE - STANDARD CONTROL SERVICES
E57: EXPENDITURE
E58: ($0's, nominal)
E59: =dms_y1 -> 2009-10 | F59: =dms_y2 -> 2010-11 | G59: =dms_y3 -> 2011-12 | H59: =dms_y4 -> 2012-13 | I59: =dms_y5 -> 2013-14 | J59: =dms_y6 -> 2014-15 | K59: =dms_y7 -> 2015-16 | L59: =dms_y8 -> 2016-17 | M59: =dms_y9 -> 2017-18
B60: RESIDENTIAL | C60: Simple connection LV | E60: 2067224.44 | F60: 2174497.191 | G60: 2135767.512 | H60: 2952878.528 | I60: 3942042.18 | J60: 3773166.11 | K60: 3383975.766 | L60: 2970568.851 | M60: 2618616.334
C61: Complex connection LV | E61: 4960627.072 | F61: 5004965.679 | G61: 4292731.314 | H61: 5019430.548 | I61: 6420290.49 | J61: 7394710.591 | K61: 7486485.754 | L61: 6940560.563 | M61: 6472360.308
C62: Complex connection HV | E62: 4500988.534 | F62: 5271871.785 | G62: 6188964.31 | H62: 6269924.481 | I62: 6313954.712 | J62: 5908280.533 | K62: 3823152.432 | L62: 2377284.877 | M62: 2768947.16
B63: COMMERCIAL/INDUSTRIAL | C63: Simple connection LV | E63: 12340.63609 | F63: 19018.98286 | G63: 27906.3729 | H63: 37090.99956 | I63: 52400.58614 | J63: 46056.77134 | K63: 30762.11495 | L63: -6595.415865 | M63: -4450.555039
C64: Complex connection HV (customer connected at LV, minor HV works) | E64: 2426312.4 | F64: 1295420.561 | G64: 842074.0989 | H64: 728810.0315 | I64: 877441.4848 | J64: 1529601.534 | K64: 2011904.533 | L64: 2173602.429 | M64: 2492817.497
C65: Complex connection HV (customer connected at LV, upstream asset works) | E65: 8227002.357 | F65: 4448496.637 | G65: 3185334.974 | H65: 4499474.279 | I65: 5461577.207 | J65: 5644207.962 | K65: 4797413.559 | L65: 4632606.308 | M65: 7085761.923
C66: Complex connection HV (customer connected at HV) | E66: 8235889.985 | F66: 8730770.279 | G66: 8206140.551 | H66: 4611931.49 | I66: 5194419.038 | J66: 4730943.122 | K66: 3409569.851 | L66: 2502894.537 | M66: 4420688.613
C67: Complex connection sub-transmission | E67: 0 | F67: 0 | G67: 0 | H67: 0 | I67: 13218.46899 | J67: 24072.70565 | K67: 14448.68686 | L67: 11581.66463 | M67: 140449.2877
B68: SUBDIVISION | C68: Complex connection LV | E68: 4392115.011 | F68: 3882001.92 | G68: 3104732.141 | H68: 2014656.724 | I68: 2623042.194 | J68: 2730796.531 | K68: 8502324.418 | L68: 14033634.51 | M68: 7805402.537
C69: Complex connection HV (no upstream asset works) | E69: 12120782.72 | F69: 13488344.76 | G69: 15568666 | H69: 12419888.46 | I69: 10441022.79 | J69: 9181080.014 | K69: 10280188.31 | L69: 8578882.977 | M69: 8782152.36
C70: Complex connection HV (with upstream asset works) | E70: 0 | F70: 0 | G70: 0 | H70: 0 | I70: 0 | J70: 37327.51525 | K70: 82796.23181 | L70: 57712.00298 | M70: 30640.31559
B71: EMBEDDED GENERATION | C71: Simple connection LV | E71: 0 | F71: 0 | G71: 0 | H71: 0 | I71: 0 | J71: 0 | K71: 0 | L71: 0 | M71: 0
C72: Complex connection HV (small capacity) | E72: 1396084.291 | F72: 534052.2059 | G72: 378007.5206 | H72: 643125.2119 | I72: 382940.4477 | J72: -60589.14473 | K72: -133504.9556 | L72: -26681.96801 | M72: -157862.3928
C73: Complex connection HV (large capacity) | E73: 104667.2291 | F73: 148320.7841 | G73: 132919.9944 | H73: 176943.3281 | I73: -661092.1777 | J73: -1509075.607 | K73: -708922.6552 | L73: 53312.495 | M73: 0
B75: EXPENDITURE - STANDARD CONTROL SERVICES - CAPITAL CONTRIBUTIONS
E76: EXPENDITURE
E77: ($0's, nominal)
E78: =dms_y1 -> 2009-10 | F78: =dms_y2 -> 2010-11 | G78: =dms_y3 -> 2011-12 | H78: =dms_y4 -> 2012-13 | I78: =dms_y5 -> 2013-14 | J78: =dms_y6 -> 2014-15 | K78: =dms_y7 -> 2015-16 | L78: =dms_y8 -> 2016-17 | M78: =dms_y9 -> 2017-18
B79: RESIDENTIAL | C79: Simple connection LV | E79: 1486681.531 | F79: 1557644.662 | G79: 1591521.751 | H79: 1588234.226 | I79: 1728537.002 | J79: 1519612.525 | K79: 1354147.103 | L79: 1874124.081 | M79: 2345835.365
C80: Complex connection LV | E80: 3575077.089 | F80: 3572046.597 | G80: 3224759.923 | H80: 2734331.903 | I80: 2815128.795 | J80: 2926759.619 | K80: 2974507.028 | L80: 4611158.333 | M80: 5804298.095
C81: Complex connection HV | E81: 3284070.957 | F81: 3869388.504 | G81: 4620214.246 | H81: 3573139.344 | I81: 2769579.585 | J81: 2375649.86 | K81: 1471337.418 | L81: 1590710.12 | M81: 2478229.139
B82: COMMERCIAL/INDUSTRIAL | C82: Simple connection LV | E82: 7435.871703 | F82: 12649.07057 | G82: 17927.27441 | H82: 21115.45235 | I82: 22050.45711 | J82: 15497.61078 | K82: 12102.75911 | L82: -13327.17742 | M82: -12579.93619
C83: Complex connection HV (customer connected at LV, minor HV works) | E83: 1384942.712 | F83: 1037896.829 | G83: 532312.7547 | H83: 434371.2953 | I83: 367411.3047 | J83: 472780.6329 | K83: 813882.423 | L83: 1737448.342 | M83: 1875380.095
C84: Complex connection HV (customer connected at LV, upstream asset works) | E84: 4963448.546 | F84: 3729315.735 | G84: 2102458.065 | H84: 2629452.267 | I84: 2310354.456 | J84: 1841291.594 | K84: 1869934.554 | L84: 3716184.72 | M84: 4915072.135
C85: Complex connection HV (customer connected at HV) | E85: 4652615.744 | F85: 5969358.799 | G85: 4998549.323 | H85: 2723385.25 | I85: 2204880.166 | J85: 1567231.758 | K85: 1307270.682 | L85: 1878485.717 | M85: 2821599.078
C86: Complex connection sub-transmission | E86: 0 | F86: 0 | G86: 0 | H86: 0 | I86: 4892.193933 | J86: 7923.808439 | K86: 4955.859627 | L86: 10053.12548 | M86: 75691.2302
B87: SUBDIVISION | C87: Complex connection LV | E87: 798754.985 | F87: 728405.4234 | G87: 528445.3733 | H87: 403130.2195 | I87: 649154.9004 | J87: 831710.4527 | K87: 1328782.594 | L87: 2790822.94 | M87: 4120684.734
C88: Complex connection HV (no upstream asset works) | E88: 2181566.418 | F88: 2414913.485 | G88: 2727224.294 | H88: 2487340.318 | I88: 2444062.92 | J88: 2846814.302 | K88: 2271905.113 | L88: 1499528.775 | M88: 12453442.48
C89: Complex connection HV (with upstream asset works) | E89: 0 | F89: 0 | G89: 0 | H89: 0 | I89: 0 | J89: 12936.01691 | K89: 18783.75606 | L89: 9248.315124 | M89: 38585.97746
B90: EMBEDDED GENERATION | C90: Simple connection LV | E90: 0 | F90: 0 | G90: 0 | H90: 0 | I90: 0 | J90: 0 | K90: 0 | L90: 0 | M90: 0
C91: Complex connection HV (small capacity) | E91: 287658 | F91: 285951.07 | G91: 529087 | H91: 375959.93 | I91: 153458.32 | J91: 489076.185 | K91: 455202.365 | L91: 234747.6 | M91: 285981.1
C92: Complex connection HV (large capacity) | E92: 0 | F92: 0 | G92: 0 | H92: 0 | I92: 3332324.355 | J92: 14838726.65 | K92: 11506402.29 | L92: 0 | M92: 0
B95: 2.5.3 - VOLUMES BY CONNECTION CLASSIFICATION
E96: VOLUMES (0's)
E97: =dms_y1 -> 2009-10 | F97: =dms_y2 -> 2010-11 | G97: =dms_y3 -> 2011-12 | H97: =dms_y4 -> 2012-13 | I97: =dms_y5 -> 2013-14 | J97: =dms_y6 -> 2014-15 | K97: =dms_y7 -> 2015-16 | L97: =dms_y8 -> 2016-17 | M97: =dms_y9 -> 2017-18
B98: RESIDENTIAL | C98: Simple connection LV | E98: 16085.94655 | F98: 16572.73865 | G98: 14824.35017 | H98: 12891.88193 | I98: 12948.55517 | J98: 14010.41538 | K98: 14634.25019 | L98: 15263.80496 | M98: 16167.33708
C99: Complex connection LV | E99: 1554.685807 | F99: 1640.35674 | G99: 1417.716233 | H99: 1380.488628 | I99: 1339.851483 | J99: 1002.479818 | K99: 1032.323084 | L99: 1404.514091 | M99: 1303.328161
C100: Complex connection HV | E100: 253.1886563 | F100: 276.1976563 | G100: 378.4483607 | H100: 411.6718901 | I100: 334.9482738 | J100: 247.6092805 | K100: 230.5619554 | L100: 320.405925 | M100: 380.8149773
B101: COMMERCIAL/INDUSTRIAL | C101: Simple connection LV | E101: 1265.053452 | F101: 1485.261354 | G101: 1823.899826 | H101: 1750.368069 | I101: 1590.44483 | J101: 1549.83462 | K101: 1476.24981 | L101: 1722.195037 | M101: 1908.412918
C102: Complex connection HV (customer connected at LV, minor HV works) | E102: 154.958428 | F102: 199.5213301 | G102: 169.7528577 | H102: 125.5554079 | I102: 124.9110352 | J102: 110.1760085 | K102: 126.5502571 | L102: 185.8427105 | M102: 144.2952155
C103: Complex connection HV (customer connected at LV, upstream asset works) | E103: 111.9805482 | F103: 104.4927654 | G103: 103.7077941 | H103: 122.4947222 | I103: 111.2014507 | J103: 98.64397944 | K103: 98.48638017 | L103: 109.0050202 | M103: 115.6215857
C104: Complex connection HV (customer connected at HV) | E104: 130.6865606 | F104: 135.4315078 | G104: 149.1247549 | H104: 174.0393519 | I104: 145.1634246 | J104: 71.82115124 | K104: 71.71042124 | L104: 98.70545631 | M104: 151.4032327
C105: Complex connection sub-transmission | E105: 0 | F105: 0 | G105: 0 | H105: 0 | I105: 0.4243323442 | J105: 0.916669509 | K105: 3.264809075 | L105: 7.52679717 | M105: 8.286827786
B106: SUBDIVISION | C106: Complex connection LV | E106: 187.5350314 | F106: 237.0230386 | G106: 209.8933608 | H106: 182.4130546 | I106: 151.1517753 | J106: 128.2886808 | K106: 223.4095467 | L106: 279.7249358 | M106: 161.4396559
C107: Complex connection HV (no upstream asset works) | E107: 147.9649686 | F107: 195.9769614 | G107: 222.6066392 | H107: 221.0869454 | I107: 196.3482247 | J107: 169.613381 | K107: 155.6685541 | L107: 140.2838702 | M107: 155.1711184
C108: Complex connection HV (with upstream asset works) | E108: 0 | F108: 0 | G108: 0 | H108: 0 | I108: 0 | J108: 1.201030928 | K108: 2.52499202 | L108: 2.991193955 | M108: 3.599538784
B109: EMBEDDED GENERATION | C109: Simple connection LV | E109: 0 | F109: 0 | G109: 0 | H109: 0 | I109: 0 | J109: 0 | K109: 0 | L109: 0 | M109: 0
C110: Complex connection HV (small capacity) | E110: 4 | F110: 2 | G110: 0.5 | H110: 1.5 | I110: 3 | J110: 3 | K110: 1.5 | L110: 0.5 | M110: 0
C111: Complex connection HV (large capacity) | E111: 0 | F111: 0 | G111: 0 | H111: 0 | I111: 0 | J111: 0 | K111: 0 | L111: 0 | M111: 0
B115: 2.5.3 - NEW CONNECTIONS - STANDARD CONTROL SERVICES
E116: VOLUMES (0's)
E117: =dms_y1 -> 2009-10 | F117: =dms_y2 -> 2010-11 | G117: =dms_y3 -> 2011-12 | H117: =dms_y4 -> 2012-13 | I117: =dms_y5 -> 2013-14 | J117: =dms_y6 -> 2014-15 | K117: =dms_y7 -> 2015-16 | L117: =dms_y8 -> 2016-17 | M117: =dms_y9 -> 2017-18
B118: RESIDENTIAL | C118: Simple connection LV | E118: 1087.874463 | F118: 1151.054397 | G118: 1044.664593 | H118: 1108.660518 | I118: 1123.299757 | J118: 806.6921913 | K118: 793.4881324 | L118: 1019.920016 | M118: 958.6431384
C119: Complex connection LV | E119: 1554.685807 | F119: 1640.35674 | G119: 1417.716233 | H119: 1380.488628 | I119: 1339.851483 | J119: 1002.479818 | K119: 1032.323084 | L119: 1404.514091 | M119: 1303.328161
C120: Complex connection HV | E120: 253.1886563 | F120: 276.1976563 | G120: 378.4483607 | H120: 411.6718901 | I120: 334.9482738 | J120: 247.6092805 | K120: 230.5619554 | L120: 320.405925 | M120: 380.8149773
B121: COMMERCIAL/INDUSTRIAL | C121: Simple connection LV | E121: 6.625536703 | F121: 11.44560327 | G121: 14.08540676 | H121: 14.08948198 | I121: 15.20024285 | J121: 10.0578087 | K121: 7.011867564 | L121: 7.579984199 | M121: 6.606861618
C122: Complex connection HV (customer connected at LV, minor HV works) | E122: 154.958428 | F122: 199.5213301 | G122: 169.7528577 | H122: 125.5554079 | I122: 124.9110352 | J122: 110.1760085 | K122: 126.5502571 | L122: 185.8427105 | M122: 144.2952155
C123: Complex connection HV (customer connected at LV, upstream asset works) | E123: 111.9805482 | F123: 104.4927654 | G123: 103.7077941 | H123: 122.4947222 | I123: 111.2014507 | J123: 98.64397944 | K123: 98.48638017 | L123: 109.0050202 | M123: 115.6215857
C124: Complex connection HV (customer connected at HV) | E124: 130.6865606 | F124: 135.4315078 | G124: 149.1247549 | H124: 174.0393519 | I124: 145.1634246 | J124: 71.82115124 | K124: 71.71042124 | L124: 98.70545631 | M124: 151.4032327
C125: Complex connection sub-transmission | E125: 0 | F125: 0 | G125: 0 | H125: 0 | I125: 0.4243323442 | J125: 0.916669509 | K125: 3.264809075 | L125: 7.52679717 | M125: 8.286827786
B126: SUBDIVISION | C126: Complex connection LV | E126: 187.5350314 | F126: 237.0230386 | G126: 209.8933608 | H126: 182.4130546 | I126: 151.1517753 | J126: 128.2886808 | K126: 223.4095467 | L126: 279.7249358 | M126: 161.4396559
C127: Complex connection HV (no upstream asset works) | E127: 147.9649686 | F127: 195.9769614 | G127: 222.6066392 | H127: 221.0869454 | I127: 196.3482247 | J127: 169.613381 | K127: 155.6685541 | L127: 140.2838702 | M127: 155.1711184
C128: Complex connection HV (with upstream asset works) | E128: 0 | F128: 0 | G128: 0 | H128: 0 | I128: 0 | J128: 1.201030928 | K128: 2.52499202 | L128: 2.991193955 | M128: 3.599538784
B129: EMBEDDED GENERATION | C129: Simple connection LV | E129: 0 | F129: 0 | G129: 0 | H129: 0 | I129: 0 | J129: 0 | K129: 0 | L129: 0 | M129: 0
C130: Complex connection HV (small capacity) | E130: 4 | F130: 2 | G130: 0.5 | H130: 1.5 | I130: 2.5 | J130: 2.5 | K130: 1.5 | L130: 0.5 | M130: 0
C131: Complex connection HV (large capacity) | E131: 0 | F131: 0 | G131: 0 | H131: 0 | I131: 0.5 | J131: 1 | K131: 0.5 | L131: 0 | M131: 0

Sheet 2.6 Non-network
B1: =INDEX(dms_Worksheet_List,MATCH(dms_Model,dms_Model_List)) -> HISTORICAL CATEGORY ANALYSIS - FINANCIAL YEARS
B2: =INDEX(dms_TradingNameFull_List,MATCH(dms_TradingName,dms_TradingName_List)) -> AusNet Electricity Services Pty Ltd
B3: =dms_Header_Span -> 2009-10 to 2017-18
B4: 2.6 NON-NETWORK EXPENDITURE
B6: There are THREE tables on this worksheet - each has been 'grouped' (and sub-grouped) for easy navigation. See the Instructions sheet on how to group or ungroup tables.
B8: 2.6.1 - NON-NETWORK EXPENDITURE
E9: EXPENDITURE ($0's)
B10: SERVICE SUBCATEGORY | C10: ASSET CATEGORY | E10: =dms_y1 -> 2009-10 | F10: =dms_y2 -> 2010-11 | G10: =dms_y3 -> 2011-12 | H10: =dms_y4 -> 2012-13 | I10: =dms_y5 -> 2013-14 | J10: =dms_y6 -> 2014-15 | K10: =dms_y7 -> 2015-16 | L10: =dms_y8 -> 2016-17 | M10: =dms_y9 -> 2017-18
B11: OPEX
B12: IT & COMMUNICATIONS | C12: Total | E12: 10228648.43 | F12: 11222584.11 | G12: 12417348.05 | H12: 14666989.01 | I12: 14934253 | J12: 17271202.16 | K12: 24089389.72 | L12: 25904547.91 | M12: 23263567.67
B13: MOTOR VEHICLES | C13: Car | E13: 236095.3396 | F13: 232883.564 | G13: 309166.6847 | H13: 433831.8061 | I13: 573216.8332 | J13: 498513.1971 | K13: 416795.9849 | L13: 328806.7315 | M13: 154424.1807
C14: Light commercial vehicle | E14: 1716864.807 | F14: 2024145.888 | G14: 2583395 | H14: 3507878.935 | I14: 4761468.381 | J14: 5492898.471 | K14: 5615700.849 | L14: 3524121.639 | M14: 1404352.429
C15: Elevated work platform (LCV) | E15: 0 | F15: 0 | G15: 0 | H15: 0 | I15: 0 | J15: 0 | K15: 0 | L15: 0 | M15: 0
C16: Elevated work platform (HCV) | E16: 447525.5889 | F16: 728396.8299 | G16: 1162580.025 | H16: 1409163.311 | I16: 1485391.163 | J16: 1896005.892 | K16: 2211072.477 | L16: 1309305.526 | M16: 462550.9342
C17: Heavy commercial vehicle | E17: 434948.8198 | F17: 449056.1101 | G17: 485515.5474 | H17: 529151.5994 | I17: 604649.9914 | J17: 657220.4168 | K17: 654666.9876 | L17: 387663.818 | M17: 176136.5813
B18: BUILDINGS AND PROPERTY | C18: Total buildings and property expenditure | E18: 9219515.47 | F18: 9212586.795 | G18: 8942279.43 | H18: 10460210.38 | I18: 10645503 | J18: 10134591.55 | K18: 10879739.59 | L18: 9776995.67 | M18: 8305656.44
B19: OTHER | C19: Other expenditure | E19: 0 | F19: 0 | G19: 0 | H19: 0 | I19: 0 | J19: 0 | K19: 0 | L19: 0 | M19: 0
B20: OTHER - DNSP nominated
B31: CAPEX
B32: IT & COMMUNICATIONS | C32: Total | E32: 28830450.8 | F32: 39081462.26 | G32: 43751023.48 | H32: 45588956.05 | I32: 39290444.88 | J32: 29709759.81 | K32: 20550299.13 | L32: 23996510.47 | M32: 31671541.98
B33: MOTOR VEHICLES | C33: Car | E33: 20827.38811 | F33: 8141.353488 | G33: 69234.7897 | H33: 163433.9943 | I33: 195756.8922 | J33: 99119.32077 | K33: 91854.95693 | L33: 139710.1179 | M33: 162048.2083
C34: Light commercial vehicle | E34: 135823.5139 | F34: 193431.1058 | G34: 415625.7146 | H34: 697374.6425 | I34: 841734.3304 | J34: 1155113.182 | K34: 1650007.008 | L34: 1789279.035 | M34: 3550838.447
C35: Elevated work platform (LCV) | E35: 0 | F35: 0 | G35: 0 | H35: 0 | I35: 0 | J35: 0 | K35: 0 | L35: 0 | M35: 0
C36: Elevated work platform (HCV) | E36: 891760.6177 | F36: 85281.24401 | G36: 85281.24401 | H36: 677217.3374 | I36: 864915.4438 | J36: 445165.0037 | K36: 268917.2012 | L36: 21784.51784 | M36: 2577283.854
C37: Heavy commercial vehicle | E37: 169855.9892 | F37: 128026.4972 | G37: 194529.8096 | H37: 358273.2819 | I37: 512461.8908 | J37: 414979.7804 | K37: 108359.8523 | L37: 42098.49043 | M37: 182476.4392
B38: BUILDINGS AND PROPERTY | C38: Total buildings and property expenditure | E38: 1013479.635 | F38: 644011.59 | G38: 168953.16 | H38: 7825.75 | I38: 0 | J38: 1056070.337 | K38: 2214818.927 | L38: 1290453.22 | M38: 797406.07
B39: OTHER | C39: Other expenditure | E39: -353233.2739 | F39: 1208489.209 | G39: 2159670.035 | H39: 2345378.117 | I39: 982098.9261 | J39: 694867.2715 | K39: 740283.8806 | L39: 78919.5
B40: OTHER - DNSP nominated | C40: General equipment | E40: 1758522.5 | F40: 2071484 | G40: 2603387.5 | H40: 2140066 | I40: 2194298 | J40: 1427722 | K40: 852439.65 | L40: 2409620 | M40: 3931558
C41: MV other | E41: 0 | F41: 0 | G41: 0 | H41: 0 | I41: 0 | J41: 0 | K41: 0 | L41: 0 | M41: 0
B54: 2.6.2 - ANNUAL DESCRIPTOR METRICS
B55: IT & COMMUNICATIONS
E56: VOLUMES (0's)
E57: =dms_y1 -> 2009-10 | F57: =dms_y2 -> 2010-11 | G57: =dms_y3 -> 2011-12 | H57: =dms_y4 -> 2012-13 | I57: =dms_y5 -> 2013-14 | J57: =dms_y6 -> 2014-15 | K57: =dms_y7 -> 2015-16 | L57: =dms_y8 -> 2016-17 | M57: =dms_y9 -> 2017-18
B58: Employee numbers | E58: 557.1600017 | F58: 540.4848637 | G58: 585.1713304 | H58: 684.6797324 | I58: 655.8470994 | J58: 687.8089494 | K58: 864 | L58: 832.5 | M58: 790.5
B59: User numbers | E59: 557.1600017 | F59: 540.4848637 | G59: 585.1713304 | H59: 684.6797324 | I59: 702.5809751 | J59: 952.5428251 | K59: 1375 | L59: 1439 | M59: 1571
B60: Number of devices | E60: 923.3874051 | F60: 1028.570478 | G60: 1069.460689 | H60: 1125.874304 | I60: 1085.178249 | J60: 1077.648561 | K60: 1665.5 | L60: 1874.5 | M60: 1817.5
B63: MOTOR VEHICLES
E64: VOLUMES / %
B65: ASSET CATEGORY | C65: DESCRIPTOR METRIC | D65: Units | E65: =dms_y1 -> 2009-10 | F65: =dms_y2 -> 2010-11 | G65: =dms_y3 -> 2011-12 | H65: =dms_y4 -> 2012-13 | I65: =dms_y5 -> 2013-14 | J65: =dms_y6 -> 2014-15 | K65: =dms_y7 -> 2015-16 | L65: =dms_y8 -> 2016-17 | M65: =dms_y9 -> 2017-18
B66: CAR | C66: Average kilometres travelled | D66: 0's | E66: 12612.68127 | F66: 10765.38127 | G66: 12345.55 | H66: 16824.835 | I66: 20106.85879 | J66: 22164.16412 | K66: 25888.85235 | L66: 25854.37052 | M66: 20248.77141
C67: Number purchased | D67: 0's | E67: 1.687328758 | F67: 0.9228731571 | G67: 2.866701199 | H67: 5.983684741 | I67: 7.129507386 | J67: 3.715537893 | K67: 5.869531465 | L67: 7.775220085 | M67: 14.57930028
C68: Number leased | D68: 0's | E68: 29.44592032 | F68: 24.85374464 | G68: 21.41271193 | H68: 25.8620254 | I68: 37.57465316 | J68: 58.84724054 | K68: 75.14980597 | L68: 63.75659507 | M68: 29.06235732
C69: Number in fleet | D69: 0's | E69: 60.38883653 | F69: 60.66405418 | G69: 62.43823612 | H69: 66.92374689 | I69: 82.55086337 | J69: 101.3938953 | K69: 109.2009688 | L69: 89.32168027 | M69: 58.12317353
C70: Proportion of total fleet expenditure allocated as regulatory expenditure | D70: (per cent) | E70: 0.6667574535 | F70: 0.6099295544 | G70: 0.6182003576 | H70: 0.6626113553 | I70: 0.805839186 | J70: 0.930155108 | K70: 0.9172152917 | L70: 0.8326401443 | M70: 0.8035914458
B71: LIGHT COMMERCIAL VEHICLE | C71: Average kilometres travelled | D71: 0's | E71: 20777 | F71: 14268 | G71: 12624.9145 | H71: 16379.6945 | I71: 22924.37509 | J71: 28385.12118 | K71: 31285.71262 | L71: 28836.9003 | M71: 25237.50742
C72: Number purchased | D72: 0's | E72: 6.164298073 | F72: 5.722521336 | G72: 13.15180669 | H72: 21.28429354 | I72: 20.65025044 | J72: 20.46849491 | K72: 48.68023071 | L72: 61.72678583 | M72: 104.5763895
C73: Number leased | D73: 0's | E73: 64.81091722 | F73: 96.50981784 | G73: 137.9008922 | H73: 161.1356546 | I73: 222.9471847 | J73: 305.3631215 | K73: 336.0394084 | L73: 287.594124 | M73: 145.5578728
C74: Number in fleet | D74: 0's | E74: 132.8061591 | F74: 181.4371836 | G74: 240.7706806 | H74: 269.121123 | I74: 348.3842682 | J74: 444.4194042 | K74: 474.3457853 | L74: 415.7700272 | M74: 337.8130757
C75: Proportion of total fleet expenditure allocated as regulatory expenditure | D75: (per cent) | E75: 0.6667574535 | F75: 0.6099295544 | G75: 0.6182003576 | H75: 0.6626113553 | I75: 0.805839186 | J75: 0.930155108 | K75: 0.9172152917 | L75: 0.8326401443 | M75: 0.8035914458
B76: ELEVATED WORK PLATFORM (LCV) | C76: Average kilometres travelled | D76: 0's | E76: 0 | F76: 0 | G76: 0 | H76: 0 | I76: 0 | J76: 0 | K76: 0 | L76: 0 | M76: 0
C77: Number purchased | D77: 0's | E77: 0 | F77: 0 | G77: 0 | H77: 0 | I77: 0 | J77: 0 | K77: 0 | L77: 0 | M77: 0
C78: Number leased | D78: 0's | E78: 0 | F78: 0 | G78: 0 | H78: 0 | I78: 0 | J78: 0 | K78: 0 | L78: 0 | M78: 0
C79: Number in fleet | D79: 0's | E79: 0 | F79: 0 | G79: 0 | H79: 0 | I79: 0 | J79: 0 | K79: 0 | L79: 0 | M79: 0
C80: Proportion of total fleet expenditure allocated as regulatory expenditure | D80: (per cent) | E80: 0 | F80: 0 | G80: 0 | H80: 0 | I80: 0 | J80: 0 | K80: 0 | L80: 0 | M80: 0
B81: ELEVATED WORK PLATFORM (HCV) | C81: Average kilometres travelled | D81: 0's | E81: 23344.42887 | F81: 18129.65163 | G81: 18829.4375 | H81: 19206.344 | I81: 20078.82267 | J81: 22930.98719 | K81: 19353.51724 | L81: 16177.62468 | M81: 16550.39065
C82: Number purchased | D82: 0's | E82: 2.476696955 | F82: 0.2969859516 | G82: 0.2969859516 | H82: 1.706984747 | I82: 2.171426983 | J82: 1.861580851 | K82: 2.751645875 | L82: 1.735644985 | M82: 12.20984194
C83: Number leased | D83: 0's | E83: 3.292917019 | F83: 7.520394697 | G83: 11.42459239 | H83: 11.9270044 | I83: 14.50510535 | J83: 16.74279194 | K83: 17.5633809 | L83: 18.77251527 | M83: 11.38739437
C84: Number in fleet | D84: 0's | E84: 11.52520957 | F84: 16.37235206 | G84: 21.04304061 | H84: 23.53279439 | I84: 29.01021069 | J84: 33.95129676 | K84: 35.17859745 | L84: 33.38329903 | M84: 32.86229385
C85: Proportion of total fleet expenditure allocated as regulatory expenditure | D85: (per cent) | E85: 0.6667574535 | F85: 0.6099295544 | G85: 0.6182003576 | H85: 0.6626113553 | I85: 0.805839186 | J85: 0.930155108 | K85: 0.9172152917 | L85: 0.8326401443 | M85: 0.8035914458
B86: HEAVY COMMERCIAL VEHICLE | C86: Average kilometres travelled | D86: 0's | E86: 9358.4275 | F86: 12315.086 | G86: 14556.7435 | H86: 16347.9 | I86: 18644.34784 | J86: 18087.50029 | K86: 16923.14198 | L86: 14982.16172 | M86: 12966.60912
C87: Number purchased | D87: 0's | E87: 1.959402112 | F87: 1.251774411 | G87: 0.642428812 | H87: 2.008016609 | I87: 2.758914507 | J87: 2.790465324 | K87: 1.848641034 | L87: 0.4515024204 | M87: 3.379629775
C88: Number leased | D88: 0's | E88: 16.90013944 | F88: 12.02926634 | G88: 7.763847152 | H88: 8.935162025 | I88: 9.779246063 | J88: 9.765357999 | K88: 9.328090233 | L88: 8.715195194 | M88: 5.113942882
C89: Number in fleet | D89: 0's | E89: 31.52793317 | F89: 25.76066014 | G89: 21.36425502 | H89: 23.17121489 | I89: 28.3274168 | J89: 35.11557894 | K89: 35.49004172 | L89: 31.19647909 | M89: 29.76808797
C90: Proportion of total fleet expenditure allocated as regulatory expenditure | D90: (per cent) | E90: 0.6667574535 | F90: 0.6099295544 | G90: 0.6182003576 | H90: 0.6626113553 | I90: 0.805839186 | J90: 0.930155108 | K90: 0.9172152917 | L90: 0.8326401443 | M90: 0.8035914458
B94: 2.6.5 - INFORMATION & COMMUNICATIONS TECHNOLOGY - CAPEX
E95: EXPENDITURE ($0's)
E96: =dms_y1 -> 2009-10 | F96: =dms_y2 -> 2010-11 | G96: =dms_y3 -> 2011-12 | H96: =dms_y4 -> 2012-13 | I96: =dms_y5 -> 2013-14 | J96: =dms_y6 -> 2014-15 | K96: =dms_y7 -> 2015-16 | L96: =dms_y8 -> 2016-17 | M96: =dms_y9 -> 2017-18
B97: RECURRENT
B99: ICT CAPABILITY GROWTH | E99: 16305723.95 | F99: 19241427.5 | G99: 18735336.09 | H99: 14276915.89 | I99: 7681712.659 | J99: 4796232.677 | K99: 4756951.767 | L99: 4599900.861 | M99: 4365553.438
B100: ICT ASSET EXTENSIONS | E100: 1374521.6 | F100: 2759302.617 | G100: 4152214.146 | H100: 6655473.82 | I100: 5510003.877 | J100: 1817914.18 | K100: 3391619.185 | L100: 11354649.87 | M100: 12261719.5
B101: ICT ASSET REMEDITATION | E101: 145089.63 | F101: 0 | G101: 0 | H101: -31008.663 | I101: 147439.3448 | J101: 5151953.243 | K101: 5612160.08 | L101: 638654.825 | M101: -0.02
B102: ICT ASSET REPLACEMENT | E102: 5191975.342 | F102: 3361412.453 | G102: 3836476.795 | H102: 6989056.739 | I102: 12007398.78 | J102: 11246547.19 | K102: 5763668.835 | L102: 5458541.444 | M102: 9581945.112
B108: NON RECURRENT
B110: ICT CAPABILITY GROWTH | E110: 5280548.301 | F110: 12695845.47 | G110: 16642267.19 | H110: 16547010.53 | I110: 9528330.159 | J110: 2117756.761 | K110: -920782.8539 | L110: -814597.7561 | M110: 2802759.451
B111: ICT ASSET EXTENSIONS | E111: 38073.6055 | F111: 218773.7523 | G111: 109819.5181 | H111: -118643.0639 | I111: 652286.3627 | J111: 689318.1 | K111: 376122.177 | L111: 2611843.98 | M111: 2656433.18
B112: ICT ASSET REMEDITATION | E112: 447354.012 | F112: 447725.299 | G112: 371.287 | H112: 115.38 | I112: -32481.12 | J112: -41766.04982 | K112: -21211.64982 | L112: -12042.1 | M112: 0
B113: ICT ASSET REPLACEMENT | E113: 47164.358 | F113: 356975.1578 | G113: 272738.4523 | H113: 1268235.415 | I113: 3795755.138 | J113: 3931804.031 | K113: 1591771.589 | L113: 159559.3408 | M113: 3131.31315

Sheet 2.7 Vegetation management
B1: =INDEX(dms_Worksheet_List,MATCH(dms_Model,dms_Model_List)) -> HISTORICAL CATEGORY ANALYSIS - FINANCIAL YEARS
B2: =INDEX(dms_TradingNameFull_List,MATCH(dms_TradingName,dms_TradingName_List)) -> AusNet Electricity Services Pty Ltd
B3: =dms_Header_Span -> 2009-10 to 2017-18
B4: 2.7 VEGETATION MANAGEMENT
B6: There are THREE tables on this worksheet. Each has been 'grouped' (and sub-grouped) for easy navigation. See the Instructions sheet on how to group and ungroup data.
B8: 2.7.1 - DESCRIPTOR METRICS BY ZONE
B9: URBAN AND CBD
B10: ZONES | C10: ASSET | D10: Units | E10: VOLUMES (0's)
E11: =dms_y1 -> 2009-10 | F11: =dms_y2 -> 2010-11 | G11: =dms_y3 -> 2011-12 | H11: =dms_y4 -> 2012-13 | I11: =dms_y5 -> 2013-14 | J11: =dms_y6 -> 2014-15 | K11: =dms_y7 -> 2015-16 | L11: =dms_y8 -> 2016-17 | M11: =dms_y9 -> 2017-18
B12: HBRA | C12: Route line length within zone | D12: KM | E12: 543.130677 | F12: 546.315354 | G12: 550.964511 | H12: 554.8186287 | I12: 558.4709399 | J12: 561.1051458 | K12: 561.334638 | L12: 561.1396095 | M12: 559.9403831
C13: Number of maintenance spans | D13: 0's | E13: 2059.5 | F13: 1942.5 | G13: 2773 | H13: 3711 | I13: 3078.5 | J13: 2070 | K13: 2037.5 | L13: 1900 | M13: 1477
C14: Total length of maintenance spans | D14: KM | E14: 327.2536232 | F14: 308.6623759 | G14: 440.6284521 | H14: 589.67623 | I14: 489.1722637 | J14: 328.9225 | K14: 306.0363522 | L14: 269.8498913 | M14: 166.636229
C15: Length of vegetation corridors | D15: KM | E15: 255.69614 | F15: 258.49748 | G15: 252.89164 | H15: 251.536 | I15: 410.2149868 | J15: 462.0791268 | K15: 390.9661007 | L15: 346.5106665 | M15: 219.7686658
C16: Average number of trees per maintenance span | D16: 0's | E16: 4.986212202 | F16: 4.986212202 | G16: 4.986212202 | H16: 4.986212202 | I16: 4.988106101 | J16: 3.947830189 | K16: 3.520576619 | L16: 6.060156874 | M16: 6.647410443
C17: Average frequency of cutting cycle | D17: years | E17: 1 | F17: 1 | G17: 1 | H17: 1 | I17: 1 | J17: 1 | K17: 1 | L17: 1 | M17: 1
B18: LBRA | C18: Route line length within zone | D18: KM | E18: 127.401023 | F18: 128.148046 | G18: 129.238589 | H18: 130.1426413 | I18: 130.9993563 | J18: 131.6172564 | K18: 131.6710879 | L18: 131.6253405 | M18: 131.3440405
C19: Number of maintenance spans | D19: 0's | E19: 4610.5 | F19: 5242.5 | G19: 5490.5 | H19: 8876.5 | I19: 11170 | J19: 7991.5 | K19: 7233 | L19: 8670 | M19: 6296
C20: Total length of maintenance spans | D20: KM | E20: 277.3092557 | F20: 315.322367 | G20: 330.2389044 | H20: 533.897757 | I20: 671.8456363 | J20: 480.232 | K20: 433.98 | L20: 498.1575717 | M20: 327.3115308
C21: Length of vegetation corridors | D21: KM | E21: 22.2372 | F21: 23.8542 | G21: 26.6028 | H21: 34.4808 | I21: 728.4098601 | J21: 1361.13026 | K21: 1080.45 | L21: 919.4303067 | M21: 667.9653067
C22: Average number of trees per maintenance span | D22: 0's | E22: 4.986212202 | F22: 4.986212202 | G22: 4.986212202 | H22: 4.986212202 | I22: 4.988106101 | J22: 3.385432189 | K22: 2.267320982 | L22: 4.336929776 | M22: 4.060040984
C23: Average frequency of cutting cycle | D23: years | E23: 2 | F23: 2 | G23: 2 | H23: 1.5 | I23: 1 | J23: 1 | K23: 1 | L23: 1 | M23: 1
B24: ZONE 3 | C24: Route line length within zone | D24: KM | E24: 0 | F24: 0 | G24: 0 | H24: 0 | I24: 0 | J24: 0 | K24: 0 | L24: 0 | M24: 0
C25: Number of maintenance spans | D25: 0's | E25: 0 | F25: 0 | G25: 0 | H25: 0 | I25: 0 | J25: 0 | K25: 0 | L25: 0 | M25: 0
C26: Total length of maintenance spans | D26: KM | E26: 0 | F26: 0 | G26: 0 | H26: 0 | I26: 0 | J26: 0 | K26: 0 | L26: 0 | M26: 0
C27: Length of vegetation corridors | D27: KM | E27: 0 | F27: 0 | G27: 0 | H27: 0 | I27: 0 | J27: 0 | K27: 0 | L27: 0 | M27: 0
C28: Average number of trees per maintenance span | D28: 0's | E28: 0 | F28: 0 | G28: 0 | H28: 0 | I28: 0 | J28: 0 | K28: 0 | L28: 0 | M28: 0
C29: Average frequency of cutting cycle | D29: years | E29: 0 | F29: 0 | G29: 0 | H29: 0 | I29: 0 | J29: 0 | K29: 0 | L29: 0 | M29: 0
B30: ZONE 4 | C30: Route line length within zone | D30: KM | E30: 0 | F30: 0 | G30: 0 | H30: 0 | I30: 0 | J30: 0 | K30: 0 | L30: 0 | M30: 0
C31: Number of maintenance spans | D31: 0's | E31: 0 | F31: 0 | G31: 0 | H31: 0 | I31: 0 | J31: 0 | K31: 0 | L31: 0 | M31: 0
C32: Total length of maintenance spans | D32: KM | E32: 0 | F32: 0 | G32: 0 | H32: 0 | I32: 0 | J32: 0 | K32: 0 | L32: 0 | M32: 0
C33: Length of vegetation corridors | D33: KM | E33: 0 | F33: 0 | G33: 0 | H33: 0 | I33: 0 | J33: 0 | K33: 0 | L33: 0 | M33: 0
C34: Average number of trees per maintenance span | D34: 0's | E34: 0 | F34: 0 | G34: 0 | H34: 0 | I34: 0 | J34: 0 | K34: 0 | L34: 0 | M34: 0
C35: Average frequency of cutting cycle | D35: years | E35: 0 | F35: 0 | G35: 0 | H35: 0 | I35: 0 | J35: 0 | K35: 0 | L35: 0 | M35: 0
B36: ZONE 5 | C36: Route line length within zone | D36: KM | E36: 0 | F36: 0 | G36: 0 | H36: 0 | I36: 0 | J36: 0 | K36: 0 | L36: 0 | M36: 0
C37: Number of maintenance spans | D37: 0's | E37: 0 | F37: 0 | G37: 0 | H37: 0 | I37: 0 | J37: 0 | K37: 0 | L37: 0 | M37: 0
C38: Total length of maintenance spans | D38: KM | E38: 0 | F38: 0 | G38: 0 | H38: 0 | I38: 0 | J38: 0 | K38: 0 | L38: 0 | M38: 0
C39: Length of vegetation corridors | D39: KM | E39: 0 | F39: 0 | G39: 0 | H39: 0 | I39: 0 | J39: 0 | K39: 0 | L39: 0 | M39: 0
C40: Average number of trees per maintenance span | D40: 0's | E40: 0 | F40: 0 | G40: 0 | H40: 0 | I40: 0 | J40: 0 | K40: 0 | L40: 0 | M40: 0
C41: Average frequency of cutting cycle | D41: years | E41: 0 | F41: 0 | G41: 0 | H41: 0 | I41: 0 | J41: 0 | K41: 0 | L41: 0 | M41: 0
B42: ZONE 6 | C42: Route line length within zone | D42: KM | E42: 0 | F42: 0 | G42: 0 | H42: 0 | I42: 0 | J42: 0 | K42: 0 | L42: 0 | M42: 0
C43: Number of maintenance spans | D43: 0's | E43: 0 | F43: 0 | G43: 0 | H43: 0 | I43: 0 | J43: 0 | K43: 0 | L43: 0 | M43: 0
C44: Total length of maintenance spans | D44: KM | E44: 0 | F44: 0 | G44: 0 | H44: 0 | I44: 0 | J44: 0 | K44: 0 | L44: 0 | M44: 0
C45: Length of vegetation corridors | D45: KM | E45: 0 | F45: 0 | G45: 0 | H45: 0 | I45: 0 | J45: 0 | K45: 0 | L45: 0 | M45: 0
C46: Average number of trees per maintenance span | D46: 0's | E46: 0 | F46: 0 | G46: 0 | H46: 0 | I46: 0 | J46: 0 | K46: 0 | L46: 0 | M46: 0
C47: Average frequency of cutting cycle | D47: years | E47: 0 | F47: 0 | G47: 0 | H47: 0 | I47: 0 | J47: 0 | K47: 0 | L47: 0 | M47: 0
B48: ZONE 7 | C48: Route line length within zone | D48: KM | E48: 0 | F48: 0 | G48: 0 | H48: 0 | I48: 0 | J48: 0 | K48: 0 | L48: 0 | M48: 0
C49: Number of maintenance spans | D49: 0's | E49: 0 | F49: 0 | G49: 0 | H49: 0 | I49: 0 | J49: 0 | K49: 0 | L49: 0 | M49: 0
C50: Total length of maintenance spans | D50: KM | E50: 0 | F50: 0 | G50: 0 | H50: 0 | I50: 0 | J50: 0 | K50: 0 | L50: 0 | M50: 0
C51: Length of vegetation corridors | D51: KM | E51: 0 | F51: 0 | G51: 0 | H51: 0 | I51: 0 | J51: 0 | K51: 0 | L51: 0 | M51: 0
C52: Average number of trees per maintenance span | D52: 0's | E52: 0 | F52: 0 | G52: 0 | H52: 0 | I52: 0 | J52: 0 | K52: 0 | L52: 0 | M52: 0
C53: Average frequency of cutting cycle | D53: years | E53: 0 | F53: 0 | G53: 0 | H53: 0 | I53: 0 | J53: 0 | K53: 0 | L53: 0 | M53: 0
B54: ZONE 8 | C54: Route line length within zone | D54: KM | E54: 0 | F54: 0 | G54: 0 | H54: 0 | I54: 0 | J54: 0 | K54: 0 | L54: 0 | M54: 0
C55: Number of maintenance spans | D55: 0's | E55: 0 | F55: 0 | G55: 0 | H55: 0 | I55: 0 | J55: 0 | K55: 0 | L55: 0 | M55: 0
C56: Total length of maintenance spans | D56: KM | E56: 0 | F56: 0 | G56: 0 | H56: 0 | I56: 0 | J56: 0 | K56: 0 | L56: 0 | M56: 0
C57: Length of vegetation corridors | D57: KM | E57: 0 | F57: 0 | G57: 0 | H57: 0 | I57: 0 | J57: 0 | K57: 0 | L57: 0 | M57: 0
C58: Average number of trees per maintenance span | D58: 0's | E58: 0 | F58: 0 | G58: 0 | H58: 0 | I58: 0 | J58: 0 | K58: 0 | L58: 0 | M58: 0
C59: Average frequency of cutting cycle | D59: years | E59: 0 | F59: 0 | G59: 0 | H59: 0 | I59: 0 | J59: 0 | K59: 0 | L59: 0 | M59: 0
B60: ZONE 9 | C60: Route line length within zone | D60: KM | E60: 0 | F60: 0 | G60: 0 | H60: 0 | I60: 0 | J60: 0 | K60: 0 | L60: 0 | M60: 0
C61: Number of maintenance spans | D61: 0's | E61: 0 | F61: 0 | G61: 0 | H61: 0 | I61: 0 | J61: 0 | K61: 0 | L61: 0 | M61: 0
C62: Total length of maintenance spans | D62: KM | E62: 0 | F62: 0 | G62: 0 | H62: 0 | I62: 0 | J62: 0 | K62: 0 | L62: 0 | M62: 0
C63: Length of vegetation corridors | D63: KM | E63: 0 | F63: 0 | G63: 0 | H63: 0 | I63: 0 | J63: 0 | K63: 0 | L63: 0 | M63: 0
C64: Average number of trees per maintenance span | D64: 0's | E64: 0 | F64: 0 | G64: 0 | H64: 0 | I64: 0 | J64: 0 | K64: 0 | L64: 0 | M64: 0
C65: Average frequency of cutting cycle | D65: years | E65: 0 | F65: 0 | G65: 0 | H65: 0 | I65: 0 | J65: 0 | K65: 0 | L65: 0 | M65: 0
B66: ZONE 10 | C66: Route line length within zone | D66: KM | E66: 0 | F66: 0 | G66: 0 | H66: 0 | I66: 0 | J66: 0 | K66: 0 | L66: 0 | M66: 0
C67: Number of maintenance spans | D67: 0's | E67: 0 | F67: 0 | G67: 0 | H67: 0 | I67: 0 | J67: 0 | K67: 0 | L67: 0 | M67: 0
C68: Total length of maintenance spans | D68: KM | E68: 0 | F68: 0 | G68: 0 | H68: 0 | I68: 0 | J68: 0 | K68: 0 | L68: 0 | M68: 0
C69: Length of vegetation corridors | D69: KM | E69: 0 | F69: 0 | G69: 0 | H69: 0 | I69: 0 | J69: 0 | K69: 0 | L69: 0 | M69: 0
C70: Average number of trees per maintenance span | D70: 0's | E70: 0 | F70: 0 | G70: 0 | H70: 0 | I70: 0 | J70: 0 | K70: 0 | L70: 0 | M70: 0
C71: Average frequency of cutting cycle | D71: years | E71: 0 | F71: 0 | G71: 0 | H71: 0 | I71: 0 | J71: 0 | K71: 0 | L71: 0 | M71: 0
B72: ZONE 11 | C72: Route line length within zone | D72: KM | E72: 0 | F72: 0 | G72: 0 | H72: 0 | I72: 0 | J72: 0 | K72: 0 | L72: 0 | M72: 0
C73: Number of maintenance spans | D73: 0's | E73: 0 | F73: 0 | G73: 0 | H73: 0 | I73: 0 | J73: 0 | K73: 0 | L73: 0 | M73: 0
C74: Total length of maintenance spans | D74: KM | E74: 0 | F74: 0 | G74: 0 | H74: 0 | I74: 0 | J74: 0 | K74: 0 | L74: 0 | M74: 0
C75: Length of vegetation corridors | D75: KM | E75: 0 | F75: 0 | G75: 0 | H75: 0 | I75: 0 | J75: 0 | K75: 0 | L75: 0 | M75: 0
C76: Average number of trees per maintenance span | D76: 0's | E76: 0 | F76: 0 | G76: 0 | H76: 0 | I76: 0 | J76: 0 | K76: 0 | L76: 0 | M76: 0
C77: Average frequency of cutting cycle | D77: years | E77: 0 | F77: 0 | G77: 0 | H77: 0 | I77: 0 | J77: 0 | K77: 0 | L77: 0 | M77: 0
B78: ZONE 12 | C78: Route line length within zone | D78: KM | E78: 0 | F78: 0 | G78: 0 | H78: 0 | I78: 0 | J78: 0 | K78: 0 | L78: 0 | M78: 0
C79: Number of maintenance spans | D79: 0's | E79: 0 | F79: 0 | G79: 0 | H79: 0 | I79: 0 | J79: 0 | K79: 0 | L79: 0 | M79: 0
C80: Total length of maintenance spans | D80: KM | E80: 0 | F80: 0 | G80: 0 | H80: 0 | I80: 0 | J80: 0 | K80: 0 | L80: 0 | M80: 0
C81: Length of vegetation corridors | D81: KM | E81: 0 | F81: 0 | G81: 0 | H81: 0 | I81: 0 | J81: 0 | K81: 0 | L81: 0 | M81: 0
C82: Average number of trees per maintenance span | D82: 0's | E82: 0 | F82: 0 | G82: 0 | H82: 0 | I82: 0 | J82: 0 | K82: 0 | L82: 0 | M82: 0
C83: Average frequency of cutting cycle | D83: years | E83: 0 | F83: 0 | G83: 0 | H83: 0 | I83: 0 | J83: 0 | K83: 0 | L83: 0 | M83: 0
B84: ZONE 13 | C84: Route line length within zone | D84: KM | E84: 0 | F84: 0 | G84: 0 | H84: 0 | I84: 0 | J84: 0 | K84: 0 | L84: 0 | M84: 0
C85: Number of maintenance spans | D85: 0's | E85: 0 | F85: 0 | G85: 0 | H85: 0 | I85: 0 | J85: 0 | K85: 0 | L85: 0 | M85: 0
C86: Total length of maintenance spans | D86: KM | E86: 0 | F86: 0 | G86: 0 | H86: 0 | I86: 0 | J86: 0 | K86: 0 | L86: 0 | M86: 0
C87: Length of vegetation corridors | D87: KM | E87: 0 | F87: 0 | G87: 0 | H87: 0 | I87: 0 | J87: 0 | K87: 0 | L87: 0 | M87: 0
C88: Average number of trees per maintenance span | D88: 0's | E88: 0 | F88: 0 | G88: 0 | H88: 0 | I88: 0 | J88: 0 | K88: 0 | L88: 0 | M88: 0
C89: Average frequency of cutting cycle | D89: years | E89: 0 | F89: 0 | G89: 0 | H89: 0 | I89: 0 | J89: 0 | K89: 0 | L89: 0 | M89: 0
B90: ZONE 14 | C90: Route line length within zone | D90: KM | E90: 0 | F90: 0 | G90: 0 | H90: 0 | I90: 0 | J90: 0 | K90: 0 | L90: 0 | M90: 0
C91: Number of maintenance spans | D91: 0's | E91: 0 | F91: 0 | G91: 0 | H91: 0 | I91: 0 | J91: 0 | K91: 0 | L91: 0 | M91: 0
C92: Total length of maintenance spans | D92: KM | E92: 0 | F92: 0 | G92: 0 | H92: 0 | I92: 0 | J92: 0 | K92: 0 | L92: 0 | M92: 0
C93: Length of vegetation corridors | D93: KM | E93: 0 | F93: 0 | G93: 0 | H93: 0 | I93: 0 | J93: 0 | K93: 0 | L93: 0 | M93: 0
C94: Average number of trees per maintenance span | D94: 0's | E94: 0 | F94: 0 | G94: 0 | H94: 0 | I94: 0 | J94: 0 | K94: 0 | L94: 0 | M94: 0
C95: Average frequency of cutting cycle | D95: years | E95: 0 | F95: 0 | G95: 0 | H95: 0 | I95: 0 | J95: 0 | K95: 0 | L95: 0 | M95: 0
B96: ZONE 15 | C96: Route line length within zone | D96: KM | E96: 0 | F96: 0 | G96: 0 | H96: 0 | I96: 0 | J96: 0 | K96: 0 | L96: 0 | M96: 0
C97: Number of maintenance spans | D97: 0's | E97: 0 | F97: 0 | G97: 0 | H97: 0 | I97: 0 | J97: 0 | K97: 0 | L97: 0 | M97: 0
C98: Total length of maintenance spans | D98: KM | E98: 0 | F98: 0 | G98: 0 | H98: 0 | I98: 0 | J98: 0 | K98: 0 | L98: 0 | M98: 0
C99: Length of vegetation corridors | D99: KM | E99: 0 | F99: 0 | G99: 0 | H99: 0 | I99: 0 | J99: 0 | K99: 0 | L99: 0 | M99: 0
C100: Average number of trees per maintenance span | D100: 0's | E100: 0 | F100: 0 | G100: 0 | H100: 0 | I100: 0 | J100: 0 | K100: 0 | L100: 0 | M100: 0
C101: Average frequency of cutting cycle | D101: years | E101: 0 | F101: 0 | G101: 0 | H101: 0 | I101: 0 | J101: 0 | K101: 0 | L101: 0 | M101: 0
B102: ZONE 16 | C102: Route line length within zone | D102: KM | E102: 0 | F102: 0 | G102: 0 | H102: 0 | I102: 0 | J102: 0 | K102: 0 | L102: 0 | M102: 0
C103: Number of maintenance spans | D103: 0's | E103: 0 | F103: 0 | G103: 0 | H103: 0 | I103: 0 | J103: 0 | K103: 0 | L103: 0 | M103: 0
C104: Total length of maintenance spans | D104: KM | E104: 0 | F104: 0 | G104: 0 | H104: 0 | I104: 0 | J104: 0 | K104: 0 | L104: 0 | M104: 0
C105: Length of vegetation corridors | D105: KM | E105: 0 | F105: 0 | G105: 0 | H105: 0 | I105: 0 | J105: 0 | K105: 0 | L105: 0 | M105: 0
C106: Average number of trees per maintenance span | D106: 0's | E106: 0 | F106: 0 | G106: 0 | H106: 0 | I106: 0 | J106: 0 | K106: 0 | L106: 0 | M106: 0
C107: Average frequency of cutting cycle | D107: years | E107: 0 | F107: 0 | G107: 0 | H107: 0 | I107: 0 | J107: 0 | K107: 0 | L107: 0 | M107: 0
B108: ZONE 17 | C108: Route line length within zone | D108: KM | E108: 0 | F108: 0 | G108: 0 | H108: 0 | I108: 0 | J108: 0 | K108: 0 | L108: 0 | M108: 0
C109: Number of maintenance spans | D109: 0's | E109: 0 | F109: 0 | G109: 0 | H109: 0 | I109: 0 | J109: 0 | K109: 0 | L109: 0 | M109: 0
C110: Total length of maintenance spans | D110: KM | E110: 0 | F110: 0 | G110: 0 | H110: 0 | I110: 0 | J110: 0 | K110: 0 | L110: 0 | M110: 0
C111: Length of vegetation corridors | D111: KM | E111: 0 | F111: 0 | G111: 0 | H111: 0 | I111: 0 | J111: 0 | K111: 0 | L111: 0 | M111: 0
C112: Average number of trees per maintenance span | D112: 0's | E112: 0 | F112: 0 | G112: 0 | H112: 0 | I112: 0 | J112: 0 | K112: 0 | L112: 0 | M112: 0
C113: Average frequency of cutting cycle | D113: years | E113: 0 | F113: 0 | G113: 0 | H113: 0 | I113: 0 | J113: 0 | K113: 0 | L113: 0 | M113: 0
B114: ZONE 18 | C114: Route line length within zone | D114: KM | E114: 0 | F114: 0 | G114: 0 | H114: 0 | I114: 0 | J114: 0 | K114: 0 | L114: 0 | M114: 0
C115: Number of maintenance spans | D115: 0's | E115: 0 | F115: 0 | G115: 0 | H115: 0 | I115: 0 | J115: 0 | K115: 0 | L115: 0 | M115: 0
C116: Total length of maintenance spans | D116: KM | E116: 0 | F116: 0 | G116: 0 | H116: 0 | I116: 0 | J116: 0 | K116: 0 | L116: 0 | M116: 0
C117: Length of vegetation corridors | D117: KM | E117: 0 | F117: 0 | G117: 0 | H117: 0 | I117: 0 | J117: 0 | K117: 0 | L117: 0 | M117: 0
C118: Average number of trees per maintenance span | D118: 0's | E118: 0 | F118: 0 | G118: 0 | H118: 0 | I118: 0 | J118: 0 | K118: 0 | L118: 0 | M118: 0
C119: Average frequency of cutting cycle | D119: years | E119: 0 | F119: 0 | G119: 0 | H119: 0 | I119: 0 | J119: 0 | K119: 0 | L119: 0 | M119: 0
B121: RURAL
B122: ZONES | C122: ASSET | D122: Units | E122: VOLUMES (0's)
E123: =dms_y1 -> 2009-10 | F123: =dms_y2 -> 2010-11 | G123: =dms_y3 -> 2011-12 | H123: =dms_y4 -> 2012-13 | I123: =dms_y5 -> 2013-14 | J123: =dms_y6 -> 2014-15 | K123: =dms_y7 -> 2015-16 | L123: =dms_y8 -> 2016-17 | M123: =dms_y9 -> 2017-18
B124: =IF(ISBLANK(B12),"",B12) -> HBRA | C124: Route line length within zone | D124: KM | E124: 26613.40317 | F124: 26769.45235 | G124: 26997.26104 | H124: 27186.11281 | I124: 27365.07606 | J124: 27494.15214 | K124: 27505.39726 | L124: 27495.84087 | M124: 27437.07877
C125: Number of maintenance spans | D125: 0's | E125: 41749 | F125: 45263 | G125: 49349.5 | H125: 53052.5 | I125: 52643 | J125: 52308 | K125: 51284 | L125: 49994.5 | M125: 48810.5
C126: Total length of maintenance spans | D126: KM | E126: 6633.897313 | F126: 7192.270332 | G126: 7841.613343 | H126: 8430.018376 | I126: 8364.948833 | J126: 8311.7296 | K126: 7747.989412 | L126: 7096.773288 | M126: 7058.350895
C127: Length of vegetation corridors | D127: KM | E127: 12529.11086 | F127: 12666.37652 | G127: 12391.69036 | H127: 12325.264 | I127: 12701.33037 | J127: 13299.80293 | K127: 12538.47492 | L127: 11434.49687 | M127: 11047.50755
C128: Average number of trees per maintenance span | D128: 0's | E128: 4.986212202 | F128: 4.986212202 | G128: 4.986212202 | H128: 4.986212202 | I128: 4.988106101 | J128: 4.102980077 | K128: 3.527529948 | L128: 5.672792572 | M128: 6.2382427
C129: Average frequency of cutting cycle | D129: years | E129: 1 | F129: 1 | G129: 1 | H129: 1 | I129: 1 | J129: 1 | K129: 1 | L129: 1 | M129: 1
B130: =IF(ISBLANK(B18),"",B18) -> LBRA | C130: Route line length within zone | D130: KM | E130: 6242.650127 | F130: 6279.254254 | G130: 6332.690861 | H130: 6376.989424 | I130: 6418.968458 | J130: 6449.245564 | K130: 6451.883309 | L130: 6449.641685 | M130: 6435.857984
C131: Number of maintenance spans | D131: 0's | E131: 5912 | F131: 6715.5 | G131: 6252.5 | H131: 8868.5 | I131: 8355 | J131: 7138 | K131: 9756 | L131: 11071.5 | M131: 10278.5
C132: Total length of maintenance spans | D132: KM | E132: 355.5910031 | F132: 403.9193812 | G132: 376.0711683 | H132: 533.4165784 | I132: 502.5296863 | J132: 428.635 | K132: 585.36 | L132: 633.9992267 | M132: 564.9689538
C133: Length of vegetation corridors | D133: KM | E133: 1089.6228 | F133: 1168.8558 | G133: 1303.5372 | H133: 1689.5592 | I133: 1555.869423 | J133: 1346.389023 | K133: 1352.49 | L133: 885.7231004 | M133: 593.6981004
C134: Average number of trees per maintenance span | D134: 0's | E134: 4.986212202 | F134: 4.986212202 | G134: 4.986212202 | H134: 4.986212202 | I134: 4.988106101 | J134: 3.524335354 | K134: 2.335850617 | L134: 4.734690228 | M134: 4.723174965
C135: Average frequency of cutting cycle | D135: years | E135: 2 | F135: 2 | G135: 2 | H135: 1.5 | I135: 1 | J135: 1 | K135: 1 | L135: 1 | M135: 1
B136: =IF(ISBLANK(B24),"",B24) -> ZONE 3 | C136: Route line length within zone | D136: KM | E136: 0 | F136: 0 | G136: 0 | H136: 0 | I136: 0 | J136: 0 | K136: 0 | L136: 0 | M136: 0
C137: Number of maintenance spans | D137: 0's | E137: 0 | F137: 0 | G137: 0 | H137: 0 | I137: 0 | J137: 0 | K137: 0 | L137: 0 | M137: 0
C138: Total length of maintenance spans | D138: KM | E138: 0 | F138: 0 | G138: 0 | H138: 0 | I138: 0 | J138: 0 | K138: 0 | L138: 0 | M138: 0
C139: Length of vegetation corridors | D139: KM | E139: 0 | F139: 0 | G139: 0 | H139: 0 | I139: 0 | J139: 0 | K139: 0 | L139: 0 | M139: 0
C140: Average number of trees per maintenance span | D140: 0's | E140: 0 | F140: 0 | G140: 0 | H140: 0 | I140: 0 | J140: 0 | K140: 0 | L140: 0 | M140: 0
C141: Average frequency of cutting cycle | D141: years | E141: 0 | F141: 0 | G141: 0 | H141: 0 | I141: 0 | J141: 0 | K141: 0 | L141: 0 | M141: 0
B142: =IF(ISBLANK(B30),"",B30) -> ZONE 4 | C142: Route line length within zone | D142: KM | E142: 0 | F142: 0 | G142: 0 | H142: 0 | I142: 0 | J142: 0 | K142: 0 | L142: 0 | M142: 0
C143: Number of maintenance spans | D143: 0's | E143: 0 | F143: 0 | G143: 0 | H143: 0 | I143: 0 | J143: 0 | K143: 0 | L143: 0 | M143: 0
C144: Total length of maintenance spans | D144: KM | E144: 0 | F144: 0 | G144: 0 | H144: 0 | I144: 0 | J144: 0 | K144: 0 | L144: 0 | M144: 0
C145: Length of vegetation corridors | D145: KM | E145: 0 | F145: 0 | G145: 0 | H145: 0 | I145: 0 | J145: 0 | K145: 0 | L145: 0 | M145: 0
C146: Average number of trees per maintenance span | D146: 0's | E146: 0 | F146: 0 | G146: 0 | H146: 0 | I146: 0 | J146: 0 | K146: 0 | L146: 0 | M146: 0
C147: Average frequency of cutting cycle | D147: years | E147: 0 | F147: 0 | G147: 0 | H147: 0 | I147: 0 | J147: 0 | K147: 0 | L147: 0 | M147: 0
B148: =IF(ISBLANK(B36),"",B36) -> ZONE 5 | C148: Route line length within zone | D148: KM | E148: 0 | F148: 0 | G148: 0 | H148: 0 | I148: 0 | J148: 0 | K148: 0 | L148: 0 | M148: 0
C149: Number of maintenance spans | D149: 0's | E149: 0 | F149: 0 | G149: 0 | H149: 0 | I149: 0 | J149: 0 | K149: 0 | L149: 0 | M149: 0
C150: Total length of maintenance spans | D150: KM | E150: 0 | F150: 0 | G150: 0 | H150: 0 | I150: 0 | J150: 0 | K150: 0 | L150: 0 | M150: 0
C151: Length of vegetation corridors | D151: KM | E151: 0 | F151: 0 | G151: 0 | H151: 0 | I151: 0 | J151: 0 | K151: 0 | L151: 0 | M151: 0
C152: Average number of trees per maintenance span | D152: 0's | E152: 0 | F152: 0 | G152: 0 | H152: 0 | I152: 0 | J152: 0 | K152: 0 | L152: 0 | M152: 0
C153: Average frequency of cutting cycle | D153: years | E153: 0 | F153: 0 | G153: 0 | H153: 0 | I153: 0 | J153: 0 | K153: 0 | L153: 0 | M153: 0
B154: =IF(ISBLANK(B42),"",B42) -> ZONE 6 | C154: Route line length within zone | D154: KM | E154: 0 | F154: 0 | G154: 0 | H154: 0 | I154: 0 | J154: 0 | K154: 0 | L154: 0 | M154: 0
C155: Number of maintenance spans | D155: 0's | E155: 0 | F155: 0 | G155: 0 | H155: 0 | I155: 0 | J155: 0 | K155: 0 | L155: 0 | M155: 0
C156: Total length of maintenance spans | D156: KM | E156: 0 | F156: 0 | G156: 0 | H156: 0 | I156: 0 | J156: 0 | K156: 0 | L156: 0 | M156: 0
C157: Length of vegetation corridors | D157: KM | E157: 0 | F157: 0 | G157: 0 | H157: 0 | I157: 0 | J157: 0 | K157: 0 | L157: 0 | M157: 0
C158: Average number of trees per maintenance span | D158: 0's | E158: 0 | F158: 0 | G158: 0 | H158: 0 | I158: 0 | J158: 0 | K158: 0 | L158: 0 | M158: 0
C159: Average frequency of cutting cycle | D159: years | E159: 0 | F159: 0 | G159: 0 | H159: 0 | I159: 0 | J159: 0 | K159: 0 | L159: 0 | M159: 0
B160: =IF(ISBLANK(B48),"",B48) -> ZONE 7 | C160: Route line length within zone | D160: KM | E160: 0 | F160: 0 | G160: 0 | H160: 0 | I160: 0 | J160: 0 | K160: 0 | L160: 0 | M160: 0
C161: Number of maintenance spans | D161: 0's | E161: 0 | F161: 0 | G161: 0 | H161: 0 | I161: 0 | J161: 0 | K161: 0 | L161: 0 | M161: 0
C162: Total length of maintenance spans | D162: KM | E162: 0 | F162: 0 | G162: 0 | H162: 0 | I162: 0 | J162: 0 | K162: 0 | L162: 0 | M162: 0
C163: Length of vegetation corridors | D163: KM | E163: 0 | F163: 0 | G163: 0 | H163: 0 | I163: 0 | J163: 0 | K163: 0 | L163: 0 | M163: 0
C164: Average number of trees per maintenance span | D164: 0's | E164: 0 | F164: 0 | G164: 0 | H164: 0 | I164: 0 | J164: 0 | K164: 0 | L164: 0 | M164: 0
C165: Average frequency of cutting cycle | D165: years | E165: 0 | F165: 0 | G165: 0 | H165: 0 | I165: 0 | J165: 0 | K165: 0 | L165: 0 | M165: 0
B166: =IF(ISBLANK(B54),"",B54) -> ZONE 8 | C166: Route line length within zone | D166: KM | E166: 0 | F166: 0 | G166: 0 | H166: 0 | I166: 0 | J166: 0 | K166: 0 | L166: 0 | M166: 0
C167: Number of maintenance spans | D167: 0's | E167: 0 | F167: 0 | G167: 0 | H167: 0 | I167: 0 | J167: 0 | K167: 0 | L167: 0 | M167: 0
C168: Total length of maintenance spans | D168: KM | E168: 0 | F168: 0 | G168: 0 | H168: 0 | I168: 0 | J168: 0 | K168: 0 | L168: 0 | M168: 0
C169: Length of vegetation corridors | D169: KM | E169: 0 | F169: 0 | G169: 0 | H169: 0 | I169: 0 | J169: 0 | K169: 0 | L169: 0 | M169: 0
C170: Average number of trees per maintenance span | D170: 0's | E170: 0 | F170: 0 | G170: 0 | H170: 0 | I170: 0 | J170: 0 | K170: 0 | L170: 0 | M170: 0
C171: Average frequency of cutting cycle | D171: years | E171: 0 | F171: 0 | G171: 0 | H171: 0 | I171: 0 | J171: 0 | K171: 0 | L171: 0 | M171: 0
B172: =IF(ISBLANK(B60),"",B60) -> ZONE 9 | C172: Route line length within zone | D172: KM | E172: 0 | F172: 0 | G172: 0 | H172: 0 | I172: 0 | J172: 0 | K172: 0 | L172: 0 | M172: 0
C173: Number of maintenance spans | D173: 0's | E173: 0 | F173: 0 | G173: 0 | H173: 0 | I173: 0 | J173: 0 | K173: 0 | L173: 0 | M173: 0
C174: Total length of maintenance spans | D174: KM | E174: 0 | F174: 0 | G174: 0 | H174: 0 | I174: 0 | J174: 0 | K174: 0 | L174: 0 | M174: 0
C175: Length of vegetation corridors | D175: KM | E175: 0 | F175: 0 | G175: 0 | H175: 0 | I175: 0 | J175: 0 | K175: 0 | L175: 0 | M175: 0
C176: Average number of trees per maintenance span | D176: 0's | E176: 0 | F176: 0 | G176: 0 | H176: 0 | I176: 0 | J176: 0 | K176: 0 | L176: 0 | M176: 0
C177: Average frequency of cutting cycle | D177: years | E177: 0 | F177: 0 | G177: 0 | H177: 0 | I177: 0 | J177: 0 | K177: 0 | L177: 0 | M177: 0
B178: =IF(ISBLANK(B66),"",B66) -> ZONE 10 | C178: Route line length within zone | D178: KM | E178: 0 | F178: 0 | G178: 0 | H178: 0 | I178: 0 | J178: 0 | K178: 0 | L178: 0 | M178: 0
C179: Number of maintenance spans | D179: 0's | E179: 0 | F179: 0 | G179: 0 | H179: 0 | I179: 0 | J179: 0 | K179: 0 | L179: 0 | M179: 0
C180: Total length of maintenance spans | D180: KM | E180: 0 | F180: 0 | G180: 0 | H180: 0 | I180: 0 | J180: 0 | K180: 0 | L180: 0 | M180: 0
C181: Length of vegetation corridors | D181: KM | E181: 0 | F181: 0 | G181: 0 | H181: 0 | I181: 0 | J181: 0 | K181: 0 | L181: 0 | M181: 0
C182: Average number of trees per maintenance span | D182: 0's | E182: 0 | F182: 0 | G182: 0 | H182: 0 | I182: 0 | J182: 0 | K182: 0 | L182: 0 | M182: 0
C183: Average frequency of cutting cycle | D183: years | E183: 0 | F183: 0 | G183: 0 | H183: 0 | I183: 0 | J183: 0 | K183: 0 | L183: 0 | M183: 0
B184: =IF(ISBLANK(B72),"",B72) -> ZONE 11 | C184: Route line length within zone | D184: KM | E184: 0 | F184: 0 | G184: 0 | H184: 0 | I184: 0 | J184: 0 | K184: 0 | L184: 0 | M184: 0
C185: Number of maintenance spans | D185: 0's | E185: 0 | F185: 0 | G185: 0 | H185: 0 | I185: 0 | J185: 0 | K185: 0 | L185: 0 | M185: 0
C186: Total length of maintenance spans | D186: KM | E186: 0 | F186: 0 | G186: 0 | H186: 0 | I186: 0 | J186: 0 | K186: 0 | L186: 0 | M186: 0
C187: Length of vegetation corridors | D187: KM | E187: 0 | F187: 0 | G187: 0 | H187: 0 | I187: 0 | J187: 0 | K187: 0 | L187: 0 | M187: 0
C188: Average number of trees per maintenance span | D188: 0's | E188: 0 | F188: 0 | G188: 0 | H188: 0 | I188: 0 | J188: 0 | K188: 0 | L188: 0 | M188: 0
C189: Average frequency of cutting cycle | D189: years | E189: 0 | F189: 0 | G189: 0 | H189: 0 | I189: 0 | J189: 0 | K189: 0 | L189: 0 | M189: 0
B190: =IF(ISBLANK(B78),"",B78) -> ZONE 12 | C190: Route line length within zone | D190: KM | E190: 0 | F190: 0 | G190: 0 | H190: 0 | I190: 0 | J190: 0 | K190: 0 | L190: 0 | M190: 0
C191: Number of maintenance spans | D191: 0's | E191: 0 | F191: 0 | G191: 0 | H191: 0 | I191: 0 | J191: 0 | K191: 0 | L191: 0 | M191: 0
C192: Total length of maintenance spans | D192: KM | E192: 0 | F192: 0 | G192: 0 | H192: 0 | I192: 0 | J192: 0 | K192: 0 | L192: 0 | M192: 0
C193: Length of vegetation corridors | D193: KM | E193: 0 | F193: 0 | G193: 0 | H193: 0 | I193: 0 | J193: 0 | K193: 0 | L193: 0 | M193: 0
C194: Average number of trees per maintenance span | D194: 0's | E194: 0 | F194: 0 | G194: 0 | H194: 0 | I194: 0 | J194: 0 | K194: 0 | L194: 0 | M194: 0
C195: Average frequency of cutting cycle | D195: years | E195: 0 | F195: 0 | G195: 0 | H195: 0 | I195: 0 | J195: 0 | K195: 0 | L195: 0 | M195: 0
B196: =IF(ISBLANK(B84),"",B84) -> ZONE 13 | C196: Route line length within zone | D196: KM | E196: 0 | F196: 0 | G196: 0 | H196: 0 | I196: 0 | J196: 0 | K196: 0 | L196: 0 | M196: 0
C197: Number of maintenance spans | D197: 0's | E197: 0 | F197: 0 | G197: 0 | H197: 0 | I197: 0 | J197: 0 | K197: 0 | L197: 0 | M197: 0
C198: Total length of maintenance spans | D198: KM | E198: 0 | F198: 0 | G198: 0 | H198: 0 | I198: 0 | J198: 0 | K198: 0 | L198: 0 | M198: 0
C199: Length of vegetation corridors | D199: KM | E199: 0 | F199: 0 | G199: 0 | H199: 0 | I199: 0 | J199: 0 | K199: 0 | L199: 0 | M199: 0
C200: Average number of trees per maintenance span | D200: 0's | E200: 0 | F200: 0 | G200: 0 | H200: 0 | I200: 0 | J200: 0 | K200: 0 | L200: 0 | M200: 0
C201: Average frequency of cutting cycle | D201: years | E201: 0 | F201: 0 | G201: 0 | H201: 0 | I201: 0 | J201: 0 | K201: 0 | L201: 0 | M201: 0
B202: =IF(ISBLANK(B90),"",B90) -> ZONE 14 | C202: Route line length within zone | D202: KM | E202: 0 | F202: 0 | G202: 0 | H202: 0 | I202: 0 | J202: 0 | K202: 0 | L202: 0 | M202: 0
C203: Number of maintenance spans | D203: 0's | E203: 0 | F203: 0 | G203: 0 | H203: 0 | I203: 0 | J203: 0 | K203: 0 | L203: 0 | M203: 0
... 200 more rows

Sheet 2.8 Maintenance
B1: =INDEX(dms_Worksheet_List,MATCH(dms_Model,dms_Model_List)) -> HISTORICAL CATEGORY ANALYSIS - FINANCIAL YEARS
B2: =INDEX(dms_TradingNameFull_List,MATCH(dms_TradingName,dms_TradingName_List)) -> AusNet Electricity Services Pty Ltd
B3: =dms_Header_Span -> 2009-10 to 2017-18
B4: 2.8 MAINTENANCE
B6: There are TWO tables on this worksheet. It has been 'grouped' (and sub-grouped) for easy navigation. See the Instructions sheet on how to group or ungroup data.
B8: 2.8.1 - DESCRIPTOR METRICS FOR ROUTINE AND NON-ROUTINE MAINTENANCE
B9: ASSET QUANTITY AT YEAR END
F10: VOLUME | P10: AVERAGE AGE OF ASSET GROUP | Q10: INSPECTION CYCLE (YEARS) | R10: MAINTENANCE CYCLE (YEARS)
F11: (0's)
B12: MAINTENANCE ACTIVITY | C12: MAINTENANCE ASSET CATEGORY | D12: ASSET QUANTITY | E12: Units | F12: =dms_y1 -> 2009-10 | G12: =dms_y2 -> 2010-11 | H12: =dms_y3 -> 2011-12 | I12: =dms_y4 -> 2012-13 | J12: =dms_y5 -> 2013-14 | K12: =dms_y6 -> 2014-15 | L12: =dms_y7 -> 2015-16 | M12: =dms_y8 -> 2016-17 | N12: =dms_y9 -> 2017-18 | P12: =dms_SpecifiedYear_final_year -> 2017-18
B13: Pole top, overhead line & service line maintenance | C13: Pole tops and overhead lines | D13: Number of poles | E13: Number | F13: 399975.5 | G13: 410126.5 | H13: 422254 | I13: 435656.5 | J13: 448445.5 | K13: 454491.35 | L13: 428191.85 | M13: 403465 | N13: 405055.4837 | P13: 22.98054567
C14: Service lines | D14: Number of customers | E14: Number | F14: 254178.5 | G14: 255243 | H14: 256247.5 | I14: 257101.5 | J14: 257904.5 | K14: 258807 | L14: 258807 | M14: 258682 | N14: 259428 | P14: 19.95131261
B15: Pole inspection and treatment | C15: All poles | D15: Number of poles | E15: Number | F15: 359135.5 | G15: 362362.5 | H15: 365689 | I15: 369828 | J15: 377692.5 | K15: 392638 | L15: 357161.4999 | M15: 312139.9999 | N15: 311996.9995 | P15: 33.3935539
B16: Overhead asset inspection | C16: All overhead assets | D16: Line patrolled (route KM) | E16: KM | F16: 33526.585 | G16: 33723.17 | H16: 34010.155 | I16: 34248.0635 | J16: 34473.51481 | K16: 34636.12011 | L16: 34650.2738 | M16: 34638.23671 | N16: 34564.22289 | P16: 35.67092064
B17: Network underground cable maintenance: by voltage | C17: LV - 11 to 22 KV | D17: Length (KM) | E17: KM | F17: 5716.326994 | G17: 5835.932014 | H17: 5971.51265 | I17: 6096.820969 | J17: 5934.359092 | K17: 5835.517813 | L17: 6105.560352 | M17: 6409.89745 | N17: 6729.443007 | P17: 18.57355298
C18: 33 KV and above | D18: Length (KM) | E18: KM | F18: 15.7819876 | G18: 15.7819876 | H18: 15.7819876 | I18: 15.7819876 | J18: 13.8909938 | K18: 11.4495995 | L18: 10.8990995 | M18: 11.0390445 | N18: 11.3045445 | P18: 28.75593871
B19: Network underground cable maintenance: by location | C19: Cbd | D19: Length (KM) | E19: KM | F19: 0 | G19: 0 | H19: 0 | I19: 0 | J19: 0 | K19: 0 | L19: 0 | M19: 0 | N19: 0 | P19: 0
C20: Non-CBD | D20: Length (KM) | E20: KM | F20: 5732.108982 | G20: 5851.714002 | H20: 5987.294638 | I20: 6112.602957 | J20: 5948.250086 | K20: 5846.967413 | L20: 6111.009952 | M20: 6415.486994 | N20: 6740.747551 | P20: 18.57355298
B21: Distribution substation equipment & property maintenance | C21: Distribution substation transformers | D21: Number of installed transformers | E21: Number | F21: 56476 | G21: 57310.5 | H21: 57839.5 | I21: 58219.5 | J21: 59618 | K21: 60002.4985 | L21: 59971.9985 | M21: 60799.5 | N21: 61095.5 | P21: 25.55277539
C22: Distribution substation switchgear (within-substations and stand-alone switchgear) | D22: Number of switches | E22: Number | F22: 108273.5 | G22: 109200 | H22: 110027.5 | I22: 111453 | J22: 112995 | K22: 140755.5005 | L22: 162008.5005 | M22: 158533.5 | N22: 147156.9099 | P22: 26.76029569
C23: Distribution substation - other equipment | D23: Earth mat | E23: Number | F23: 0 | G23: 0 | H23: 0 | I23: 0 | J23: 0 | K23: 0 | L23: 104735.5 | M23: 211585.5 | N23: 199686.4099 | P23: 26.50780242
C24: Distribution substation - property | D24: Number of distribution substation properties maintained | E24: Number | F24: 3468 | G24: 3632.5 | H24: 3795.5 | I24: 3921.5 | J24: 4002 | K24: 4097.5 | L24: 4203.5 | M24: 4319.5 | N24: 4395 | P24: 40
B25: Zone substation equipment maintenance | C25: Transformers - zone substation | D25: Number | E25: Number | F25: 149 | G25: 152.5 | H25: 155.5 | I25: 158 | J25: 157 | K25: 150 | L25: 143 | M25: 141 | N25: 148 | P25: 37.98336765
C26: Transformers - distribution | D26: Number of distribution transformers within zone substation | E26: Number | F26: 0 | G26: 0 | H26: 0 | I26: 0 | J26: 0 | K26: 0 | L26: 0 | M26: 0 | N26: 0 | P26: 0
C27: Transformers - HV | D27: Number of HV transformers | E27: Number | F27: 0 | G27: 0 | H27: 0 | I27: 0 | J27: 0 | K27: 0 | L27: 0 | M27: 0 | N27: 0 | P27: 0
C28: Zone substation - other equipment | D28: <DNSP to nominate> | E28: Number | F28: 2407.765 | G28: 2505.075 | H28: 2581.345 | I28: 2649.725 | J28: 2611.59 | K28: 2566.88 | L28: 2701.38 | M28: 2716.94 | N28: 2598 | P28: 23.63737321
B29: Zone substation property maintenance | C29: All zone substation properties | D29: Number of zone substation properties maintained | E29: Number | F29: 66.5 | G29: 67.5 | H29: 68.5 | I29: 69.5 | J29: 70.5 | K29: 71 | L29: 71 | M29: 71 | N29: 71 | P29: 40
B30: Public lighting maintenance | C30: Minor roads | D30: Number of public lights maintained | E30: Number | F30: 0 | G30: 0 | H30: 0 | I30: 0 | J30: 0 | K30: 0 | L30: 0 | M30: 0 | N30: 0 | P30: 0
C31: Major roads | D31: Number of public lights maintained | E31: Number | F31: 0 | G31: 0 | H31: 0 | I31: 0 | J31: 0 | K31: 0 | L31: 0 | M31: 0 | N31: 0 | P31: 0
B32: SCADA & network control maintenance | C32: SCADA & network control | D32: Number of systems | E32: Number | F32: 4119 | G32: 5112 | H32: 5405.5 | I32: 6094 | J32: 6722.5 | K32: 7632 | L32: 8544.384743 | M32: 8844.492446 | N32: 9080.911697 | P32: 8.704279738
B33: Protection systems maintenance | C33: Protection systems | D33: Number of systems | E33: Number | F33: 3212 | G33: 3360.5 | H33: 3451 | I33: 3669 | J33: 3870.5 | K33: 2102 | L33: 310.115257 | M33: 321.0075541 | N33: 329.5883026 | P33: 10.20999065
B34: Subtransmission asset maintenance | C34: Subtransmission asset maintenance - for DNSPs with dual function assets | D34: <DNSP to nominate> | E34: Number | F34: 0 | G34: 0 | H34: 0 | I34: 0 | J34: 0 | K34: 0 | L34: 0 | M34: 0 | N34: 0 | P34: 0
B35: Various assets | C35: includes rates, electricity, communications equip, metering | D35: Various | E35: Number | F35: 0 | G35: 0 | H35: 0 | I35: 0 | J35: 0 | K35: 0 | L35: 0 | M35: 0 | N35: 0 | P35: 0
B36: Ground clearance - access tracks | C36: Access tracks | D36: Number | E36: Number | F36: 0 | G36: 0 | H36: 0 | I36: 0 | J36: 0 | K36: 0 | L36: 0 | M36: 0 | N36: 0 | P36: 0
B37: Other | C37: Duplicates | D37: Duplicates | F37: 0 | G37: 0 | H37: 0 | I37: 0 | J37: 0 | K37: 0 | L37: 0 | M37: 0 | N37: 0
B48: ASSET QUANTITY INSPECTED / MAINTAINED
F49: VOLUME
F50: (0's)
B51: MAINTENANCE ACTIVITY | C51: MAINTENANCE ASSET CATEGORY | D51: ASSET QUANTITY | E51: Units | F51: =dms_y1 -> 2009-10 | G51: =dms_y2 -> 2010-11 | H51: =dms_y3 -> 2011-12 | I51: =dms_y4 -> 2012-13 | J51: =dms_y5 -> 2013-14 | K51: =dms_y6 -> 2014-15 | L51: =dms_y7 -> 2015-16 | M51: =dms_y8 -> 2016-17 | N51: =dms_y9 -> 2017-18
B52: Pole top, overhead line & service line maintenance | C52: Pole tops and overhead lines | D52: Number of poles | E52: Number | F52: 18659.5 | G52: 56396.125 | H52: 85533.625 | I52: 77609.875 | J52: 116114.375 | K52: 144992.625 | L52: 67839.83333 | M52: 64364.10534 | N52: 127774.544
C53: Service lines | D53: Number of customers | E53: Number | F53: 3545.5 | G53: 3322 | H53: 4429 | I53: 6222 | J53: 4298.5 | K53: 25816.00029 | L53: 40566.53912 | M53: 36790.85385 | N53: 69183.81502
B54: Pole inspection and treatment | C54: All poles | D54: Number of poles | E54: Number | F54: 69012.5 | G54: 62294.875 | H54: 71501.375 | I54: 81348.625 | J54: 105409.125 | K54: 127205.125 | L54: 385571.7477 | M54: 370700.429 | N54: 95318.86257
B55: Overhead asset inspection | C55: All overhead assets | D55: Line patrolled (route KM) | E55: KM | F55: 215.5 | G55: 492.5 | H55: 2662.5 | I55: 5471.5 | J55: 13574.5 | K55: 15392.73537 | L55: 8275.601831 | M55: 7064.36646 | N55: 8224.5
B56: Network underground cable maintenance: by voltage | C56: LV - 11 to 22 KV | D56: Length (KM) | E56: KM | F56: 0 | G56: 0 | H56: 0 | I56: 0 | J56: 0 | K56: 356.25 | L56: 676.25 | M56: 1082 | N56: 1072
C57: 33 KV and above | D57: Length (KM) | E57: KM | F57: 0 | G57: 0 | H57: 0 | I57: 0 | J57: 0 | K57: 0 | L57: 0 | M57: 0 | N57: 0
B58: Network underground cable maintenance: by location | C58: Cbd | D58: Length (KM) | E58: KM | F58: 0 | G58: 0 | H58: 0 | I58: 0 | J58: 0 | K58: 0 | L58: 0 | M58: 0 | N58: 0
C59: Non-CBD | D59: Length (KM) | E59: KM | F59: 0 | G59: 0 | H59: 0 | I59: 0 | J59: 0 | K59: 356.25 | L59: 676.25 | M59: 1082 | N59: 1072
B60: Distribution substation equipment & property maintenance | C60: Distribution substation transformers | D60: Number of installed transformers | E60: Number | F60: 734 | G60: 677.5 | H60: 647 | I60: 757 | J60: 447 | K60: 8506.428143 | L60: 17134.85671 | M60: 18819.42857 | N60: 20274
C61: Distribution substation switchgear (within-substations and stand-alone switchgear) | D61: Number of switches | E61: Number | F61: 139 | G61: 78.5 | H61: 88.5 | I61: 158 | J61: 180 | K61: 8473.50005 | L61: 16200.85005 | M61: 15853.35 | N61: 16104
C62: Distribution substation - other equipment | D62: Earth mat | E62: Number | F62: 0 | G62: 0 | H62: 0 | I62: 0 | J62: 0 | K62: 0 | L62: 1534.995413 | M62: 1963.995413 | N62: 1635
C63: Distribution substation - property | D63: Number of distribution substation properties maintained | E63: Number | F63: 2672.5 | G63: 2566 | H63: 3693 | I63: 5306 | J63: 4529.5 | K63: 1990 | L63: 10.5 | M63: 153 | N63: 357.5
B64: Zone substation equipment maintenance | C64: Transformers - zone substation | D64: Number | E64: Number | F64: 198.5 | G64: 203.5 | H64: 208.5 | I64: 212.5 | J64: 119.5 | K64: 151.25 | L64: 403.75 | M64: 1012.5 | N64: 1049
C65: Transformers - distribution | D65: Number of distribution transformers within zone substation | E65: Number | F65: 0 | G65: 0 | H65: 0 | I65: 0 | J65: 0 | K65: 0 | L65: 0 | M65: 0 | N65: 0
C66: Transformers - HV | D66: Number of HV transformers | E66: Number | F66: 0 | G66: 0 | H66: 0 | I66: 0 | J66: 0 | K66: 0 | L66: 0 | M66: 0 | N66: 0
C67: Zone substation - other equipment | D67: =IF(ISBLANK(D28),"",D28) -> <DNSP to nominate> | F67: 1983.5 | G67: 2064 | H67: 2126.5 | I67: 2182.5 | J67: 2591.346667 | K67: 2994.693333 | L67: 2196.136953 | M67: 1833.790286 | N67: 2210
B68: Zone substation property maintenance | C68: All zone substation properties | D68: Number of zone substation properties maintained | E68: Number | F68: 399 | G68: 405 | H68: 411 | I68: 417 | J68: 423 | K68: 378.75 | L68: 378.75 | M68: 1025 | N68: 902
B69: Public lighting maintenance | C69: Minor roads | D69: Number of public lights maintained | E69: Number | F69: 0 | G69: 0 | H69: 0 | I69: 0 | J69: 0 | K69: 0 | L69: 0 | M69: 0 | N69: 0
C70: Major roads | D70: Number of public lights maintained | E70: Number | F70: 0 | G70: 0 | H70: 0 | I70: 0 | J70: 0 | K70: 0 | L70: 0 | M70: 0 | N70: 0
B71: SCADA & network control maintenance | C71: SCADA & network control | D71: Number of systems | E71: Number | F71: 849.8333333 | G71: 1357.5 | H71: 1549.166667 | I71: 1930.833333 | J71: 2240.833333 | K71: 2544 | L71: 2848.128248 | M71: 2948.164149 | N71: 3010.405135
B72: Protection systems maintenance | C72: Protection systems | D72: Number of systems | E72: Number | F72: 928.1666667 | G72: 1009.5 | H72: 1069.166667 | I72: 1189.166667 | J72: 1290.166667 | K72: 804.1666667 | L72: 538.25 | M72: 721.25 | N72: 703
B73: Subtransmission asset maintenance | C73: Subtransmission asset maintenance - for DNSPs with dual function assets | D73: =IF(ISBLANK(D34),"",D34) -> <DNSP to nominate> | F73: 0 | G73: 0 | H73: 0 | I73: 0 | J73: 0 | K73: 0 | L73: 0 | M73: 0 | N73: 0
B74: Various assets | C74: includes rates, electricity, communications equip, metering | D74: Various | E74: Number | F74: 0 | G74: 0 | H74: 0 | I74: 0 | J74: 0 | K74: 0 | L74: 0 | M74: 0 | N74: 0
B75: Ground clearance - access tracks | C75: Access tracks | D75: Number | E75: Number | F75: 0 | G75: 0 | H75: 0 | I75: 0 | J75: 0 | K75: 0 | L75: 0 | M75: 0 | N75: 0
B76: Other | C76: =IF(ISBLANK(C37),"",C37) -> Duplicates | D76: Duplicates | F76: 0 | G76: 0 | H76: 0 | I76: 0 | J76: 0 | K76: 0 | L76: 0 | M76: 0 | N76: 0
B89: 2.8.2 - COST METRICS FOR ROUTINE AND NON-ROUTINE MAINTENANCE
B90: ROUTINE MAINTENANCE
F91: EXPENDITURE
F92: ($0'S)
B93: MAINTENANCE ACTIVITY | C93: MAINTENANCE ASSET CATEGORY | D93: ASSET QUANTITY | E93: Units | F93: =dms_y1 -> 2009-10 | G93: =dms_y2 -> 2010-11 | H93: =dms_y3 -> 2011-12 | I93: =dms_y4 -> 2012-13 | J93: =dms_y5 -> 2013-14 | K93: =dms_y6 -> 2014-15 | L93: =dms_y7 -> 2015-16 | M93: =dms_y8 -> 2016-17 | N93: =dms_y9 -> 2017-18
B94: Pole top, overhead line & service line maintenance | C94: Pole tops and overhead lines | D94: Number of poles | E94: Number | F94: 252981.4922 | G94: 256883.7947 | H94: 276786.4966 | I94: 331587.0054 | J94: 243009.7136 | K94: 2213873.007 | L94: 3154958.023 | M94: 1340171.193 | N94: 744543.8232
C95: Service lines | D95: Number of customers | E95: Number | F95: 719820.335 | G95: 843634.86 | H95: 719282.755 | I95: 804251.845 | J95: 502003.005 | K95: 732.685 | L95: 5117.312417 | M95: 4423.717417 | N95: 1084.468347
B96: Pole inspection and treatment | C96: All poles | D96: Number of poles | E96: Number | F96: 2835719.893 | G96: 4126324.592 | H96: 4039203.951 | I96: 3618404.948 | J96: 4007944.332 | K96: 5319621.531 | L96: 8916404.443 | M96: 9275065.073 | N96: 5820005.388
B97: Overhead asset inspection | C97: All overhead assets | D97: Line patrolled (route KM) | E97: KM | F97: 3351733.242 | G97: 5010124.823 | H97: 5059994.004 | I97: 4693889.532 | J97: 5278284.474 | K97: 2886543.745 | L97: 178387.4606 | M97: 482446.2391 | N97: 1265792.515
B98: Network underground cable maintenance: by voltage | C98: LV - 11 to 22 KV | D98: Length (KM) | E98: KM | F98: 551772.47 | G98: 563704.7475 | H98: 307186.524 | I98: 83872.843 | J98: 54318.2352 | K98: 13098.5487 | L98: 0 | M98: 0 | N98: 27495.4195
C99: 33 KV and above | D99: Length (KM) | E99: KM | F99: 0 | G99: 0 | H99: 0 | I99: 0 | J99: 0 | K99: 0 | L99: 0 | M99: 0 | N99: 0
B100: Network underground cable maintenance: by location | C100: Cbd | D100: Length (KM) | E100: KM | F100: 0 | G100: 0 | H100: 0 | I100: 0 | J100: 0 | K100: 0 | L100: 0 | M100: 0 | N100: 0
C101: Non-CBD | D101: Length (KM) | E101: KM | F101: 551772.47 | G101: 563704.7475 | H101: 307186.524 | I101: 83872.843 | J101: 54318.2352 | K101: 13098.5487 | L101: 0 | M101: 0 | N101: 27495.4195
B102: Distribution substation equipment & property maintenance | C102: Distribution substation transformers | D102: Number of installed transformers | E102: Number | F102: 2958.158783 | G102: 4190.747453 | H102: 3087.93406 | I102: 3469.66936 | J102: 2977.73422 | K102: 11004.78594 | L102: 192767.3445 | M102: 329922.7127 | N102: 276555.4589
C103: Distribution substation switchgear (within-substations and stand-alone switchgear) | D103: Number of switches | E103: Number | F103: 1564.369117 | G103: 2474.373697 | H103: 1736.07314 | I103: 1888.08254 | J103: 2892.89393 | K103: 2598.135116 | L103: 86231.52987 | M103: 145744.7433 | N103: 139462.606
C104: Distribution substation - other equipment | D104: Earth mat | E104: Number | F104: 0 | G104: 0 | H104: 0 | I104: 0 | J104: 0 | K104: 0 | L104: 145853.9036 | M104: 228297.622 | N104: 483627.1465
C105: Distribution substation - property | D105: Number of distribution substation properties maintained | E105: Number | F105: 5416.68465 | G105: 11478.0507 | H105: 14700.96675 | I105: 13941.94455 | J105: 15255.58935 | K105: 11070.28974 | L105: 4227.939847 | M105: 9338.70511 | N105: 142703.861
B106: Zone substation equipment maintenance | C106: Transformers - zone substation | D106: Number | E106: Number | F106: 90653.376 | G106: 55699.552 | H106: 51587.852 | I106: 49155.56 | J106: 46718.112 | K106: 192291.773 | L106: 350199.6074 | M106: 348217.2967 | N106: 246557.9131
C107: Transformers - distribution | D107: Number of distribution transformers within zone substation | E107: Number | F107: 0 | G107: 0 | H107: 0 | I107: 0 | J107: 0 | K107: 0 | L107: 0 | M107: 0 | N107: 0
C108: Transformers - HV | D108: Number of HV transformers | E108: Number | F108: 0 | G108: 0 | H108: 0 | I108: 0 | J108: 0 | K108: 0 | L108: 0 | M108: 0 | N108: 0
C109: Zone substation - other equipment | D109: =IF(ISBLANK(D28),"",D28) -> <DNSP to nominate> | F109: 0 | G109: 0 | H109: 0 | I109: 0 | J109: 0 | K109: 310476.13 | L109: 824925.8253 | M109: 984215.8218 | N109: 995523.2951
B110: Zone substation property maintenance | C110: All zone substation properties | D110: Number of zone substation properties maintained | E110: Number | F110: 1631942.052 | G110: 1731239.068 | H110: 1524380.652 | I110: 1684313.772 | J110: 2017878.844 | K110: 1678505.27 | L110: 1128374.049 | M110: 677910.2389 | N110: 268116.6902
B111: Public lighting maintenance | C111: Minor roads | D111: Number of public lights maintained | E111: Number | F111: 0 | G111: 0 | H111: 0 | I111: 0 | J111: 0 | K111: 0 | L111: 0 | M111: 0 | N111: 0
C112: Major roads | D112: Number of public lights maintained | E112: Number | F112: 0 | G112: 0 | H112: 0 | I112: 0 | J112: 0 | K112: 0 | L112: 0 | M112: 0 | N112: 0
B113: SCADA & network control maintenance | C113: SCADA & network control | D113: Number of systems | E113: Number | F113: 104593.496 | G113: 76716.429 | H113: 43340.565 | I113: 59020.532 | J113: 32682.02412 | K113: 56801.84719 | L113: 74228.24197 | M113: 20219.15589 | N113: 679.005
B114: Protection systems maintenance | C114: Protection systems | D114: Number of systems | E114: Number | F114: 0 | G114: 0 | H114: 0 | I114: 0 | J114: 8455.02448 | K114: 280634.8785 | L114: 528514.3373 | M114: 422647.7533 | N114: 355344.3112
B115: Subtransmission asset maintenance | C115: Subtransmission asset maintenance - for DNSPs with dual function assets | D115: =IF(ISBLANK(D34),"",D34) -> <DNSP to nominate> | F115: 0 | G115: 0 | H115: 0 | I115: 0 | J115: 0 | K115: 0 | L115: 0 | M115: 0 | N115: 0
B116: Various assets | C116: includes rates, electricity, communications equip, metering | D116: Various | E116: Number | F116: 0 | G116: 0 | H116: 0 | I116: 0 | J116: 0 | K116: 0 | L116: 0 | M116: 0 | N116: 0
B117: Ground clearance - access tracks | C117: Access tracks | D117: Number | E117: Number | F117: 0 | G117: 0 | H117: 0 | I117: 0 | J117: 0 | K117: 0 | L117: 0 | M117: 0 | N117: 0
B118: Other | C118: =IF(ISBLANK(C37),"",C37) -> Duplicates | D118: =IF(ISBLANK(D37),"",D37) -> Duplicates | F118: -551772.47 | G118: -563704.7475 | H118: -307186.524 | I118: -83872.843 | J118: -54318.2352 | K118: -13098.5487 | L118: 0 | M118: 0 | N118: -27495.4195
C119: =IF(ISBLANK(C38),"",C38) -> 
B129: NON-ROUTINE MAINTENANCE
F130: EXPENDITURE
F131: ($0'S)
B132: MAINTENANCE ACTIVITY | C132: MAINTENANCE ASSET CATEGORY | D132: ASSET QUANTITY | E132: Units | F132: =dms_y1 -> 2009-10 | G132: =dms_y2 -> 2010-11 | H132: =dms_y3 -> 2011-12 | I132: =dms_y4 -> 2012-13 | J132: =dms_y5 -> 2013-14 | K132: =dms_y6 -> 2014-15 | L132: =dms_y7 -> 2015-16 | M132: =dms_y8 -> 2016-17 | N132: =dms_y9 -> 2017-18
B133: Pole top, overhead line & service line maintenance | C133: Pole tops and overhead lines | D133: Number of poles | E133: Number | F133: 9427692.623 | G133: 9561976.58 | H133: 10136402.66 | I133: 11875524 | J133: 14252299.25 | K133: 8648313.118 | L133: 1386328.466 | M133: 731232.4872 | N133: 537462.7459
C134: Service lines | D134: Number of customers | E134: Number | F134: 0 | G134: 0 | H134: 0 | I134: 0 | J134: 445514.9143 | K134: 516965.4043 | L134: 225606.2506 | M134: 318476.7113 | N134: 379829.5407
B135: Pole inspection and treatment | C135: All poles | D135: Number of poles | E135: Number | F135: 0 | G135: 0 | H135: 0 | I135: 0 | J135: 0 | K135: 140075.4534 | L135: 611408.1855 | M135: 546586.9583 | N135: 171535.2612
B136: Overhead asset inspection | C136: All overhead assets | D136: Line patrolled (route KM) | E136: KM | F136: 0 | G136: 0 | H136: 0 | I136: 0 | J136: 0 | K136: 2042389.514 | L136: 4463421.54 | M136: 5145917.812 | N136: 5831625.836
B137: Network underground cable maintenance: by voltage | C137: LV - 11 to 22 KV | D137: Length (KM) | E137: KM | F137: 551772.47 | G137: 563704.7475 | H137: 648411.776 | I137: 754855.587 | J137: 488864.1168 | K137: 474504.1719 | L137: 640024.181 | M137: 626758.1232 | N137: 567524.5008
C138: 33 KV and above | D138: Length (KM) | E138: KM | F138: 0 | G138: 0 | H138: 0 | I138: 0 | J138: 0 | K138: 652.6983951 | L138: 652.6983951 | M138: 0 | N138: 0
B139: Network underground cable maintenance: by location | C139: Cbd | D139: Length (KM) | E139: KM | F139: 0 | G139: 0 | H139: 0 | I139: 0 | J139: 0 | K139: 0 | L139: 0 | M139: 0 | N139: 0
C140: Non-CBD | D140: Length (KM) | E140: KM | F140: 551772.47 | G140: 563704.7475 | H140: 648411.776 | I140: 754855.587 | J140: 488864.1168 | K140: 475156.8703 | L140: 640676.8794 | M140: 626758.1232 | N140: 567524.5008
B141: Distribution substation equipment & property maintenance | C141: Distribution substation transformers | D141: Number of installed transformers | E141: Number | F141: 95647.13399 | G141: 135500.8343 | H141: 99843.20128 | I141: 112185.976 | J141: 96280.07312 | K141: 58894.08106 | L141: 168261.7811 | M141: 265074.6804 | N141: 263785.9099
C142: Distribution substation switchgear (within-substations and stand-alone switchgear) | D142: Number of switches | E142: Number | F142: 50581.26811 | G142: 80004.74953 | H142: 56133.03152 | I142: 61048.00214 | J142: 93536.90373 | K142: 91657.10789 | L142: 379927.5862 | M142: 733208.42 | N142: 984760.1722
C143: Distribution substation - other equipment | D143: Earth mat | E143: Number | F143: 0 | G143: 0 | H143: 0 | I143: 0 | J143: 0 | K143: 0 | L143: 44908.10723 | M143: 85126.34478 | N143: 53322.48255
C144: Distribution substation - property | D144: Number of distribution substation properties maintained | E144: Number | F144: 175139.4704 | G144: 371123.6393 | H144: 475331.2582 | I144: 450789.5404 | J144: 493264.0557 | K144: 358003.5953 | L144: 198090.1632 | M144: 298431.3492 | N144: 566604.1112
B145: Zone substation equipment maintenance | C145: Transformers - zone substation | D145: Number | E145: Number | F145: 22663.344 | G145: 13924.888 | H145: 12896.963 | I145: 12288.89 | J145: 11679.528 | K145: 56944.372 | L145: 112365.2473 | M145: 101768.3953 | N145: 134071.94
C146: Transformers - distribution | D146: Number of distribution transformers within zone substation | E146: Number | F146: 0 | G146: 0 | H146: 0 | I146: 0 | J146: 0 | K146: 0 | L146: 0 | M146: 0 | N146: 0
C147: Transformers - HV | D147: Number of HV transformers | E147: Number | F147: 0 | G147: 0 | H147: 0 | I147: 0 | J147: 0 | K147: 0 | L147: 0 | M147: 0 | N147: 0
C148: Zone substation - other equipment | D148: =IF(ISBLANK(D28),"",D28) -> <DNSP to nominate> | F148: 77257.005 | G148: 101030.31 | H148: 104696.4 | I148: 114365.71 | J148: 107300.215 | K148: 188513.1698 | L148: 325516.6824 | M148: 466413.0539 | N148: 566515.2764
B149: Zone substation property maintenance | C149: All zone substation properties | D149: Number of zone substation properties maintained | E149: Number | F149: 407985.513 | G149: 432809.767 | H149: 381095.163 | I149: 421078.443 | J149: 504469.711 | K149: 461322.1499 | L149: 210752.7863 | M149: 274068.9463 | N149: 506304.4
B150: Public lighting maintenance | C150: Minor roads | D150: Number of public lights maintained | E150: Number | F150: 0 | G150: 0 | H150: 0 | I150: 0 | J150: 0 | K150: 0 | L150: 0 | M150: 0 | N150: 0
C151: Major roads | D151: Number of public lights maintained | E151: Number | F151: 0 | G151: 0 | H151: 0 | I151: 0 | J151: 0 | K151: 0 | L151: 0 | M151: 0 | N151: 0
B152: SCADA & network control maintenance | C152: SCADA & network control | D152: Number of systems | E152: Number | F152: 19210.57 | G152: 12579.3 | H152: 8005.174 | I152: 10295.418 | J152: 13267.59948 | K152: 134659.4362 | L152: 173925.6969 | M152: 120562.6298 | N152: 95217.10967
B153: Protection systems maintenance | C153: Protection systems | D153: Number of systems | E153: Number | F153: 111004.864 | G153: 105596.916 | H153: 45279.476 | I153: 71355.44 | J153: 79091.96992 | K153: 89522.79392 | L153: 159373.6349 | M153: 236304.2144 | N153: 241777.0055
B154: Subtransmission asset maintenance | C154: Subtransmission asset maintenance - for DNSPs with dual function assets | D154: =IF(ISBLANK(D34),"",D34) -> <DNSP to nominate> | F154: 0 | G154: 0 | H154: 0 | I154: 0 | J154: 0 | K154: 0 | L154: 0 | M154: 0 | N154: 2958.83
B155: Various assets | C155: includes rates, electricity, communications equip, metering | D155: Various | E155: Number | F155: 0 | G155: 0 | H155: 0 | I155: 0 | J155: 0 | K155: 0 | L155: 0 | M155: 0 | N155: 0
B156: Ground clearance - access tracks | C156: Access tracks | D156: Number | E156: Number | F156: 0 | G156: 0 | H156: 0 | I156: 0 | J156: 0 | K156: 0 | L156: 0 | M156: 0 | N156: 0
B157: Other | C157: =IF(ISBLANK(C37),"",C37) -> Duplicates | D157: Duplicates | F157: -551772.47 | G157: -563704.7475 | H157: -648411.776 | I157: -754855.587 | J157: -488864.1168 | K157: -475156.8703 | L157: -640676.8794 | M157: -626758.1232 | N157: -567524.5008

Sheet 2.9 Emergency Response
B1: =INDEX(dms_Worksheet_List,MATCH(dms_Model,dms_Model_List)) -> HISTORICAL CATEGORY ANALYSIS - FINANCIAL YEARS
B2: =INDEX(dms_TradingNameFull_List,MATCH(dms_TradingName,dms_TradingName_List)) -> AusNet Electricity Services Pty Ltd
B3: =dms_Header_Span -> 2009-10 to 2017-18
B4: 2.9 EMERGENCY RESPONSE
B6: There is ONE table on this worksheet. It has been 'sub-grouped' for easy navigation. See the Instructions sheet on how to group or ungroup data.
B8: 2.9.1 - EMERGENCY RESPONSE EXPENDITURE (OPEX)
D9: EXPENDITURE ($0's)
D10: =dms_y1 -> 2009-10 | E10: =dms_y2 -> 2010-11 | F10: =dms_y3 -> 2011-12 | G10: =dms_y4 -> 2012-13 | H10: =dms_y5 -> 2013-14 | I10: =dms_y6 -> 2014-15 | J10: =dms_y7 -> 2015-16 | K10: =dms_y8 -> 2016-17 | L10: =dms_y9 -> 2017-18
B11: (A) TOTAL EMERGENCY RESPONSE EXPENDITURE | C11: Total Expenditure | D11: 19520542.39 | E11: 17294665.89 | F11: 15609332.86 | G11: 15971097.42 | H11: 15864241.61 | I11: 16170203.44 | J11: 17391893.09 | K11: 17947651.77 | L11: 17422067.64
B12: (B) MAJOR EVENTS O&M EXPENDITURE | C12: 2009-08-16 | D12: 68575.51529 | E12: 0 | F12: 0 | G12: 0 | H12: 0 | I12: 0 | J12: 0 | K12: 0 | L12: 0
C13: 2009-08-21 | D13: 65995.41831 | E13: 0 | F13: 0 | G13: 0 | H13: 0 | I13: 0 | J13: 0 | K13: 0 | L13: 0
C14: 2009-08-25 | D14: 191120.1975 | E14: 0 | F14: 0 | G14: 0 | H14: 0 | I14: 0 | J14: 0 | K14: 0 | L14: 0
C15: 2009-09-11 | D15: 68621.578 | E15: 0 | F15: 0 | G15: 0 | H15: 0 | I15: 0 | J15: 0 | K15: 0 | L15: 0
C16: 2010-03-06 | D16: 76785.96629 | E16: 0 | F16: 0 | G16: 0 | H16: 0 | I16: 0 | J16: 0 | K16: 0 | L16: 0
C17: 2010-06-17 | D17: 78833.01 | E17: 0 | F17: 0 | G17: 0 | H17: 0 | I17: 0 | J17: 0 | K17: 0 | L17: 0
C18: 2010-09-05 | D18: 0 | E18: 160885.3246 | F18: 0 | G18: 0 | H18: 0 | I18: 0 | J18: 0 | K18: 0 | L18: 0
C19: 2011-02-01 | D19: 0 | E19: 101125.808 | F19: 0 | G19: 0 | H19: 0 | I19: - | J19: 0 | K19: 0 | L19: 0
C20: 2011-12-25 | D20: 0 | E20: 0 | F20: 68261.94028 | G20: 0 | H20: 0 | I20: 0 | J20: 0 | K20: 0 | L20: 0
C21: 2012-02-05 | D21: 0 | E21: 0 | F21: 69964.65304 | G21: 0 | H21: 0 | I21: 0 | J21: 0 | K21: 0 | L21: 0
C22: 2012-06-04 | D22: 0 | E22: 0 | F22: 156235.8743 | G22: 0 | H22: 0 | I22: 0 | J22: 0 | K22: 0 | L22: 0
C23: 2012-09-05 | D23: 0 | E23: 0 | F23: 0 | G23: 459531.1788 | H23: 0 | I23: 0 | J23: 0 | K23: 0 | L23: 0
C24: 2012-09-06 | D24: 0 | E24: 0 | F24: 0 | G24: 58322.20003 | H24: 0 | I24: 0 | J24: 0 | K24: 0 | L24: 0
C25: 2013-03-21 | D25: 0 | E25: 0 | F25: 0 | G25: 89207.3972 | H25: - | I25: 0 | J25: 0 | K25: 0 | L25: 0
C26: 2013-08-12 | D26: 0 | E26: 0 | F26: 0 | G26: 0 | H26: 60216.88562 | I26: 0 | J26: 0 | K26: 0 | L26: 0
C27: 2013-08-16 | D27: 0 | E27: 0 | F27: 0 | G27: 0 | H27: 78720.80375 | I27: - | J27: 0 | K27: 0 | L27: 0
C28: 2013-09-26 | D28: 0 | E28: 0 | F28: 0 | G28: 0 | H28: 710215 | I28: - | J28: 0 | K28: 0 | L28: 0
C29: 2013-10-01 | D29: 0 | E29: 0 | F29: 0 | G29: 0 | H29: 78636.14073 | I29: - | J29: 0 | K29: 0 | L29: 0
C30: 2014-02-09 | D30: 0 | E30: 0 | F30: 0 | G30: 0 | H30: 672230.64 | I30: - | J30: 0 | K30: 0 | L30: 0
C31: 2014-06-24 | D31: 0 | E31: 0 | F31: 0 | G31: 0 | H31: 350351 | I31: 0 | J31: 0 | K31: 0 | L31: 0
C32: 2014-07-31 | D32: 0 | E32: 0 | F32: 0 | G32: 0 | H32: 0 | I32: 521545 | J32: 0 | K32: 0 | L32: 0
C33: 2014-09-30 | D33: 0 | E33: 0 | F33: 0 | G33: 0 | H33: 0 | I33: 124627 | J33: 0 | K33: 0 | L33: 0
C34: 2015-01-07 | D34: 0 | E34: 0 | F34: 0 | G34: 0 | H34: 0 | I34: 135035.6334 | J34: 0 | K34: 0 | L34: 0
C35: 2015-02-28 | D35: 0 | E35: 0 | F35: 0 | G35: 0 | H35: 0 | I35: 149285.8329 | J35: 0 | K35: 0 | L35: 0
C36: 2015-11-25 | D36: 0 | E36: 0 | F36: 0 | G36: 0 | H36: 0 | I36: 0 | J36: 228944.39 | K36: 0 | L36: 0
C37: 2015-12-20 | D37: 0 | E37: 0 | F37: 0 | G37: 0 | H37: 0 | I37: 0 | J37: 90028.116 | K37: 0 | L37: 0
C38: 2016-01-13 | D38: 0 | E38: 0 | F38: 0 | G38: 0 | H38: 0 | I38: 0 | J38: 76692.434 | K38: 0 | L38: 0
C39: 2016-03-18 | D39: 0 | E39: 0 | F39: 0 | G39: 0 | H39: 0 | I39: 0 | J39: 158264.532 | K39: 0 | L39: 0
C40: 2016-05-01 | D40: 0 | E40: 0 | F40: 0 | G40: 0 | H40: 0 | I40: 0 | J40: 215536.312 | K40: 0 | L40: 0
C41: 2016-05-03 | D41: 0 | E41: 0 | F41: 0 | G41: 0 | H41: 0 | I41: 0 | J41: 215536.312 | K41: 0 | L41: 0
C42: 2016-10-09 | D42: 0 | E42: 0 | F42: 0 | G42: 0 | H42: 0 | I42: 0 | J42: 0 | K42: 497644.386 | L42: 0
C43: 2017-12-19 | D43: 0 | E43: 0 | F43: 0 | G43: 0 | H43: 0 | I43: 0 | J43: 0 | K43: 0 | L43: 135284.835
C44: 2018-02-14 | D44: 0 | E44: 0 | F44: 0 | G44: 0 | H44: 0 | I44: 0 | J44: 0 | K44: 0 | L44: 199993
B55: (C) MAJOR EVENT DAYS O&M EXPENDITURE | C55: 2009-08-16 | D55: 68575.51529 | E55: 0 | F55: 0 | G55: 0 | H55: 0 | I55: 0 | J55: 0 | K55: 0 | L55: 0
C56: 2009-08-21 | D56: 65995.41831 | E56: 0 | F56: 0 | G56: 0 | H56: 0 | I56: 0 | J56: 0 | K56: 0 | L56: 0
C57: 2009-08-25 | D57: 191120.1975 | E57: 0 | F57: 0 | G57: 0 | H57: 0 | I57: 0 | J57: 0 | K57: 0 | L57: 0
C58: 2009-09-11 | D58: 68621.578 | E58: 0 | F58: 0 | G58: 0 | H58: 0 | I58: 0 | J58: 0 | K58: 0 | L58: 0
C59: 2010-03-06 | D59: 76785.96629 | E59: 0 | F59: 0 | G59: 0 | H59: 0 | I59: 0 | J59: 0 | K59: 0 | L59: 0
C60: 2010-06-17 | D60: 78833.01 | E60: 0 | F60: 0 | G60: 0 | H60: 0 | I60: 0 | J60: 0 | K60: 0 | L60: 0
C61: 2010-09-05 | D61: 0 | E61: 160885.3246 | F61: 0 | G61: 0 | H61: 0 | I61: 0 | J61: 0 | K61: 0 | L61: 0
C62: 2011-02-01 | D62: 0 | E62: 101125.808 | F62: 0 | G62: 0 | H62: 0 | I62: - | J62: 0 | K62: 0 | L62: 0
C63: 2011-12-25 | D63: 0 | E63: 0 | F63: 68261.94028 | G63: 0 | H63: 0 | I63: 0 | J63: 0 | K63: 0 | L63: 0
C64: 2012-02-05 | D64: 0 | E64: 0 | F64: 69964.65304 | G64: 0 | H64: 0 | I64: 0 | J64: 0 | K64: 0 | L64: 0
C65: 2012-06-04 | D65: 0 | E65: 0 | F65: 156235.8743 | G65: 0 | H65: 0 | I65: 0 | J65: 0 | K65: 0 | L65: 0
C66: 2012-09-05 | D66: 0 | E66: 0 | F66: 0 | G66: 459531.1788 | H66: 0 | I66: 0 | J66: 0 | K66: 0 | L66: 0
C67: 2012-09-06 | D67: 0 | E67: 0 | F67: 0 | G67: 58322.20003 | H67: 0 | I67: 0 | J67: 0 | K67: 0 | L67: 0
C68: 2013-03-21 | D68: 0 | E68: 0 | F68: 0 | G68: 89207.3972 | H68: - | I68: 0 | J68: 0 | K68: 0 | L68: 0
C69: 2013-08-12 | D69: 0 | E69: 0 | F69: 0 | G69: 0 | H69: 60216.88562 | I69: 0 | J69: 0 | K69: 0 | L69: 0
C70: 2013-08-16 | D70: 0 | E70: 0 | F70: 0 | G70: 0 | H70: 78720.80375 | I70: - | J70: 0 | K70: 0 | L70: 0
C71: 2013-09-26 | D71: 0 | E71: 0 | F71: 0 | G71: 0 | H71: 710215 | I71: - | J71: 0 | K71: 0 | L71: 0
C72: 2013-10-01 | D72: 0 | E72: 0 | F72: 0 | G72: 0 | H72: 78636.14073 | I72: - | J72: 0 | K72: 0 | L72: 0
C73: 2014-02-09 | D73: 0 | E73: 0 | F73: 0 | G73: 0 | H73: 672230.64 | I73: - | J73: 0 | K73: 0 | L73: 0
C74: 2014-06-24 | D74: 0 | E74: 0 | F74: 0 | G74: 0 | H74: 350351 | I74: 0 | J74: 0 | K74: 0 | L74: 0
C75: 2014-07-31 | D75: 0 | E75: 0 | F75: 0 | G75: 0 | H75: 0 | I75: 521545 | J75: 0 | K75: 0 | L75: 0
C76: 2014-09-30 | D76: 0 | E76: 0 | F76: 0 | G76: 0 | H76: 0 | I76: 124627 | J76: 0 | K76: 0 | L76: 0
C77: 2015-01-07 | D77: 0 | E77: 0 | F77: 0 | G77: 0 | H77: 0 | I77: 135035.6334 | J77: 0 | K77: 0 | L77: 0
C78: 2015-02-28 | D78: 0 | E78: 0 | F78: 0 | G78: 0 | H78: 0 | I78: 149285.8329 | J78: 0 | K78: 0 | L78: 0
C79: 2015-11-25 | D79: 0 | E79: 0 | F79: 0 | G79: 0 | H79: 0 | I79: 0 | J79: 228944.39 | K79: 0 | L79: 0
C80: 2015-12-20 | D80: 0 | E80: 0 | F80: 0 | G80: 0 | H80: 0 | I80: 0 | J80: 90028.116 | K80: 0 | L80: 0
C81: 2016-01-13 | D81: 0 | E81: 0 | F81: 0 | G81: 0 | H81: 0 | I81: 0 | J81: 76692.434 | K81: 0 | L81: 0
C82: 2016-03-18 | D82: 0 | E82: 0 | F82: 0 | G82: 0 | H82: 0 | I82: 0 | J82: 158264.532 | K82: 0 | L82: 0
C83: 2016-05-01 | D83: 0 | E83: 0 | F83: 0 | G83: 0 | H83: 0 | I83: 0 | J83: 215536.312 | K83: 0 | L83: 0
C84: 2016-05-03 | D84: 0 | E84: 0 | F84: 0 | G84: 0 | H84: 0 | I84: 0 | J84: 215536.312 | K84: 0 | L84: 0
C85: 2016-10-09 | D85: 0 | E85: 0 | F85: 0 | G85: 0 | H85: 0 | I85: 0 | J85: 0 | K85: 497644.386 | L85: 0
C86: 2017-12-19 | D86: 0 | E86: 0 | F86: 0 | G86: 0 | H86: 0 | I86: 0 | J86: 0 | K86: 0 | L86: 135284.835
C87: 2018-02-14 | D87: 0 | E87: 0 | F87: 0 | G87: 0 | H87: 0 | I87: 0 | J87: 0 | K87: 0 | L87: 199993

Sheet 2.10 Network overheads
B1: =INDEX(dms_Worksheet_List,MATCH(dms_Model,dms_Model_List)) -> HISTORICAL CATEGORY ANALYSIS - FINANCIAL YEARS
B2: =INDEX(dms_TradingNameFull_List,MATCH(dms_TradingName,dms_TradingName_List)) -> AusNet Electricity Services Pty Ltd
B3: =dms_Header_Span -> 2009-10 to 2017-18
B4: 2.10 OVERHEADS
B7: 2.10.1 - NETWORK OVERHEADS EXPENDITURE
D8: EXPENDITURE
D9: ($0's, nominal)
D10: =dms_y1 -> 2009-10 | E10: =dms_y2 -> 2010-11 | F10: =dms_y3 -> 2011-12 | G10: =dms_y4 -> 2012-13 | H10: =dms_y5 -> 2013-14 | I10: =dms_y6 -> 2014-15 | J10: =dms_y7 -> 2015-16 | K10: =dms_y8 -> 2016-17 | L10: =dms_y9 -> 2017-18
B11: OPEX
B12: Standard Control Services | C12: Total | D12: 31490932.14 | E12: 33774992.85 | F12: 37968334.74 | G12: 43301900.97 | H12: 48745861.39 | I12: 49953793.9 | J12: 62035662.52 | K12: 72485131.5 | L12: 72263572.03
B13: Alternative Control Services | C13: Total | D13: 0 | E13: 0 | F13: 0 | G13: 0 | H13: 0 | I13: 0 | J13: 0 | K13: 0 | L13: 0
B14: CAPEX
B15: Standard Control Services | C15: Total | D15: 21606602.09 | E15: 20473516.33 | F15: 18686831.69 | G15: 20409848.66 | H15: 24392797.2 | I15: 28155108.1 | J15: 27586978.99 | K15: 26865660.04 | L15: 29979528.09
B16: Alternative Control Services | C16: Total | D16: 0 | E16: 0 | F16: 0 | G16: 0 | H16: 0 | I16: 0 | J16: 0 | K16: 488891.314 | L16: 2047132.709
B17: OTHER DISTRIBUTION SERVICES
B18: Negotiated Services | C18: Total | D18: 0 | E18: 22149.5 | F18: 22149.5 | G18: 20947.585 | H18: 20947.585 | I18: 0 | J18: 0 | K18: 57007.9642 | L18: 104113.8834
B19: Unregulated Services | C19: Total | D19: 0 | E19: 0 | F19: 0 | G19: 0 | H19: 0 | I19: 0 | J19: 0 | K19: 2036196.795 | L19: 2203805.009
B23: 2.10.2 - CORPORATE OVERHEADS EXPENDITURE
D24: EXPENDITURE
D25: ($0's, nominal)
D26: =dms_y1 -> 2009-10 | E26: =dms_y2 -> 2010-11 | F26: =dms_y3 -> 2011-12 | G26: =dms_y4 -> 2012-13 | H26: =dms_y5 -> 2013-14 | I26: =dms_y6 -> 2014-15 | J26: =dms_y7 -> 2015-16 | K26: =dms_y8 -> 2016-17 | L26: =dms_y9 -> 2017-18
B27: OPEX
B28: Standard Control Services | C28: Total | D28: 22928686.3 | E28: 20350623.43 | F28: 20315342.88 | G28: 21484572.15 | H28: 25377462.32 | I28: 34129882.03 | J28: 38544155.19 | K28: 32352356.33 | L28: 24316497.98
B29: Alternative Control Services | C29: Total | D29: 0 | E29: 0 | F29: 0 | G29: 0 | H29: 0 | I29: 0 | J29: 0 | K29: 0 | L29: 0
B30: CAPEX
B31: Standard Control Services | C31: Total | D31: 8406516.151 | E31: 10113542.75 | F31: 12937334.12 | G31: 11298051.66 | H31: 8376766.738 | I31: 10400408.34 | J31: 9480184.689 | K31: 6443695.021 | L31: 4506624.384
B32: Alternative Control Services | C32: Total | D32: 0 | E32: 0 | F32: 0 | G32: 0 | H32: 0 | I32: 0 | J32: 0 | K32: 569164.61 | L32: 569164.61
B33: OTHER DISTRIBUTION SERVICES
B34: Negotiated Services | C34: Total | D34: 0 | E34: 0 | F34: 0 | G34: 0 | H34: 109003.86 | I34: 257510.98 | J34: 148507 | K34: 0 | L34: 0
B35: Unregulated Services | C35: Total | D35: 0 | E35: 30446.86905 | F35: 57094.46655 | G35: 93773.43328 | H35: 97087.3668 | I35: 69731.60534 | J35: 39770 | K35: 0 | L35: 0

Sheet 2.11 Labour
B1: =INDEX(dms_Worksheet_List,MATCH(dms_Model,dms_Model_List)) -> HISTORICAL CATEGORY ANALYSIS - FINANCIAL YEARS
B2: =INDEX(dms_TradingNameFull_List,MATCH(dms_TradingName,dms_TradingName_List)) -> AusNet Electricity Services Pty Ltd
B3: =dms_Header_Span -> 2009-10 to 2017-18
B4: 2.11 LABOUR
B6: There are TWO tables on this worksheet. Each table has been 'grouped' (and sub-grouped) for easy navigation. See the Instructions sheet on how to group or ungroup data.
B8: 2.11.1 - COST METRICS PER ANNUM
B9: AVERAGE STAFFING LEVEL (ASL)
D10: VOLUME (0's)
B11: INTERNAL LABOUR | D11: =dms_y1 -> 2009-10 | E11: =dms_y2 -> 2010-11 | F11: =dms_y3 -> 2011-12 | G11: =dms_y4 -> 2012-13 | H11: =dms_y5 -> 2013-14 | I11: =dms_y6 -> 2014-15 | J11: =dms_y7 -> 2015-16 | K11: =dms_y8 -> 2016-17 | L11: =dms_y9 -> 2017-18
B12: CORPORATE OVERHEADS | C12: Executive manager | D12: 0 | E12: 0 | F12: 0 | G12: 0 | H12: 0.8252492818 | I12: 1.45778503 | J12: 1.564810215 | K12: 1.777200103 | L12: 1.671986629
C13: Senior manager | D13: 5.259374172 | E13: 2.361141975 | F13: 1.941334793 | G13: 1.985866274 | H13: 7.441826895 | I13: 9.850171178 | J13: 10.62503047 | K13: 17.15881143 | L13: 16.45344925
C14: Manager | D14: 57.32748549 | E14: 48.38064365 | F14: 48.4125051 | G14: 52.76234351 | H14: 47.74589407 | I14: 40.86089799 | J14: 49.52787854 | K14: 50.83024242 | L14: 53.71449107
C15: Professional | D15: 85.93266142 | E15: 115.6397415 | F15: 169.623926 | G15: 211.2074932 | H15: 243.1704892 | I15: 228.2322284 | J15: 198.0427214 | K15: 212.3700963 | L15: 210.3705982
C16: Semi professional | D16: 17.43408288 | E16: 13.73378658 | F16: 12.30880382 | G16: 11.58584707 | H16: 12.64540727 | I16: 12.5892284 | J16: 12.65652011 | K16: 13.48791881 | L16: 9.399648751
C17: Support staff | D17: 102.5173719 | E17: 92.37071507 | F17: 109.7485509 | G17: 124.5470381 | H17: 96.09045757 | I17: 55.98880587 | J17: 43.87832473 | K17: 47.43563074 | L17: 39.85917395
C18: Intern, junior staff, apprentice | D18: 3.143527191 | E18: 0.5797046391 | F18: 0.0723432641 | G18: 0.3572699754 | H18: 0.2696490162 | I18: 0 | J18: 0 | K18: 0 | L18: 0
B19: NETWORK OVERHEADS | C19: Executive manager | D19: 0 | E19: 0 | F19: 0 | G19: 0 | H19: 0.1188716403 | I19: 0.4221381263 | J19: 0.3032664859 | K19: 0 | L19: 0
C20: Senior manager | D20: 2.385505244 | E20: 2.680931284 | F20: 3.237265416 | G20: 4.662323112 | H20: 6.839352394 | I20: 9.055281521 | J20: 17.07510229 | K20: 23.16276159 | L20: 19.55547633
C21: Manager | D21: 51.46640224 | E21: 52.30170378 | F21: 55.38099838 | G21: 64.84333718 | H21: 64.14317027 | I21: 69.98125319 | J21: 95.1589293 | K21: 104.0794794 | L21: 103.1870188
C22: Professional | D22: 92.6930962 | E22: 101.7518829 | F22: 109.0752785 | G22: 110.9669592 | H22: 107.5724064 | I22: 111.1294313 | J22: 143.5266192 | K22: 154.7789833 | L22: 135.5188164
C23: Semi professional | D23: 9.162188545 | E23: 7.263371449 | F23: 6.968700457 | G23: 6.725035102 | H23: 5.82666358 | I23: 4.930774136 | J23: 23.3153126 | K23: 36.92256902 | L23: 31.26582461
C24: Support staff | D24: 110.4428672 | E24: 107.7197251 | F24: 115.4020362 | G24: 125.0889132 | H24: 108.2367823 | I24: 142.2630641 | J24: 210.0871747 | K24: 200.2341456 | L24: 154.0669267
C25: Intern, junior staff, apprentice | D25: 29.29146973 | E25: 35.45888877 | F25: 34.50290227 | G25: 33.52536903 | H25: 26.98114664 | I25: 17.64074816 | J25: 25.31598981 | K25: 21.43406386 | L25: 8.218586215
B26: TOTAL DIRECT NETWORK LABOUR | C26: Skilled electrical worker | D26: 288.3380021 | E26: 275.9450211 | F26: 271.6757635 | G26: 283.3890305 | H26: 262.6099467 | I26: 239.0371627 | J26: 294.4813093 | K26: 307.5038961 | L26: 264.6101995
C27: Skilled non electical worker | D27: 2.645328125 | E27: 1.665784453 | F27: 3.444304949 | G27: 6.422267724 | H27: 40.47708368 | I27: 90.46868521 | J27: 106.8288778 | K27: 122.433586 | L27: 120.4415733
C28: Apprentice | D28: 33.3679069 | E28: 41.02749276 | F28: 40.8910497 | G28: 38.01883183 | H28: 33.39815527 | I28: 22.06804167 | J28: 13.37060158 | K28: 6.82732614 | L28: 8.42714076
C29: Unskilled worker | D29: 85.98381431 | E29: 69.70602059 | F29: 64.50603443 | G29: 98.22254183 | H29: 101.0115205 | I29: 84.51177052 | J29: 74.92537395 | K29: 64.49005857 | L29: 50.41939842
B31: TOTAL LABOUR EXPENDITURE
D32: EXPENDITURE ($0's)
B33: INTERNAL LABOUR | D33: =dms_y1 -> 2009-10 | E33: =dms_y2 -> 2010-11 | F33: =dms_y3 -> 2011-12 | G33: =dms_y4 -> 2012-13 | H33: =dms_y5 -> 2013-14 | I33: =dms_y6 -> 2014-15 | J33: =dms_y7 -> 2015-16 | K33: =dms_y8 -> 2016-17 | L33: =dms_y9 -> 2017-18
B34: CORPORATE OVERHEADS | C34: Executive manager | D34: 0 | E34: 0 | F34: 0 | G34: 0 | H34: 618235.5363 | I34: 1025796.89 | J34: 1002068.12 | K34: 1141311.376 | L34: 1085015.407
C35: Senior manager | D35: 233303.0404 | E35: 259508.8109 | F35: 280268.8588 | G35: 337427.5556 | H35: 1210796.206 | I35: 1778205.223 | J35: 3143592.964 | K35: 5709894.984 | L35: 5656077.816
C36: Manager | D36: 6243322.273 | E36: 5765104.032 | F36: 6442297.027 | G36: 7805471.402 | H36: 8449159.687 | I36: 9189043.28 | J36: 11066892.2 | K36: 10653013.68 | L36: 11397146.07
C37: Professional | D37: 7422688.32 | E37: 10928471.2 | F37: 16868348.54 | G37: 21130952.59 | H37: 33082877.7 | I37: 37253431.27 | J37: 29036154.41 | K37: 30234151.45 | L37: 32440196.47
C38: Semi professional | D38: 1239987.856 | E38: 912401.6881 | F38: 800569.5127 | G38: 842539.5204 | H38: 1250039.678 | I38: 1440681.98 | J38: 1305495.209 | K38: 1264330.522 | L38: 931372.7428
C39: Support staff | D39: 6185240.116 | E39: 5795671.294 | F39: 7222470.225 | G39: 8621346.569 | H39: 8056212.638 | I39: 5759586.772 | J39: 4172792.391 | K39: 4246498.557 | L39: 3932991.585
C40: Intern, junior staff, apprentice | D40: 34883.52467 | E40: -586.0489276 | F40: 4478.229667 | G40: 23950.57454 | H40: 18713.96909 | I40: 605.6653501 | J40: 0 | K40: 1560.9 | L40: 1560.9
B41: NETWORK OVERHEADS | C41: Executive manager | D41: 0 | E41: 0 | F41: 0 | G41: 0 | H41: 65657.41302 | I41: 266346.4731 | J41: 200689.0601 | K41: 0 | L41: 0
C42: Senior manager | D42: 462683.9593 | E42: 500380.33 | F42: 644061.5292 | G42: 1048412.976 | H42: 2168061.982 | I42: 3260366.94 | J42: 4847971.505 | K42: 5981570.33 | L42: 5211646.987
C43: Manager | D43: 7188917.2 | E43: 7401311.65 | F43: 7268901.598 | G43: 9125463.263 | H43: 11543752.8 | I43: 14870232.72 | J43: 18588787.85 | K43: 19010513.5 | L43: 19903610.82
C44: Professional | D44: 9689201.566 | E44: 10946700.93 | F44: 12261102.71 | G44: 12979270.76 | H44: 16014640.67 | I44: 19288147.16 | J44: 22104657.14 | K44: 22766842.43 | L44: 20605017.15
C45: Semi professional | D45: 605810.3672 | E45: 582333.1265 | F45: 562467.5549 | G45: 561706.7559 | H45: 629278.8789 | I45: 669891.6473 | J45: 2643208.748 | K45: 4079252.175 | L45: 3542446.018
C46: Support staff | D46: 11238360.11 | E46: 11670157.49 | F46: 11237588.77 | G46: 12641464.37 | H46: 13585435.98 | I46: 18306429.27 | J46: 21457385.75 | K46: 17624830.43 | L46: 15029799.68
C47: Intern, junior staff, apprentice | D47: 1620089.975 | E47: 1963271.375 | F47: 1718267.909 | G47: 1874196.101 | H47: 2004409.37 | I47: 1847916.113 | J47: 2272915.718 | K47: 1644438.646 | L47: 680719.689
B48: TOTAL DIRECT NETWORK LABOUR | C48: Skilled electrical worker | D48: 27721515.45 | E48: 27652234.89 | F48: 27116614.78 | G48: 29620371.9 | H48: 34708535.16 | I48: 36565245.33 | J48: 36765569.09 | K48: 35273143.14 | L48: 33104880.56
C49: Skilled non electical worker | D49: 210633.7304 | E49: 119018.4581 | F49: 215305.8675 | G49: 439868.7701 | H49: 4040350.038 | I49: 9997393.913 | J49: 11967932.55 | K49: 13764254.23 | L49: 14553031.47
C50: Apprentice | D50: 1557000.21 | E50: 2125230.152 | F50: 2182911.162 | G50: 2471338.602 | H50: 2866460.561 | I50: 2225005.925 | J50: 1385094.161 | K50: 774857.933 | L50: 816197.0308
C51: Unskilled worker | D51: 6218478.257 | E51: 4599209.13 | F51: 4184842.467 | G51: 6476088.7 | H51: 7943448.743 | I51: 8295081.846 | J51: 7154436.35 | K51: 5383224.223 | L51: 4707412.621
B53: AVERAGE PRODUCTIVE WORK HOURS PER ASL
D54: VOLUME (0's)
B55: INTERNAL LABOUR | D55: =dms_y1 -> 2009-10 | E55: =dms_y2 -> 2010-11 | F55: =dms_y3 -> 2011-12 | G55: =dms_y4 -> 2012-13 | H55: =dms_y5 -> 2013-14 | I55: =dms_y6 -> 2014-15 | J55: =dms_y7 -> 2015-16 | K55: =dms_y8 -> 2016-17 | L55: =dms_y9 -> 2017-18
B56: CORPORATE OVERHEADS | C56: Executive manager
C57: Senior manager
C58: Manager
C59: Professional
C60: Semi professional
C61: Support staff
C62: Intern, junior staff, apprentice
B63: NETWORK OVERHEADS | C63: Executive manager
C64: Senior manager
C65: Manager
C66: Professional
C67: Semi professional
C68: Support staff
C69: Intern, junior staff, apprentice
B70: TOTAL DIRECT NETWORK LABOUR | C70: Skilled electrical worker
C71: Skilled non electical worker
C72: Apprentice
C73: Unskilled worker
B75: STAND DOWN OCCURENCES PER ASL
D76: VOLUME (0's)
B77: INTERNAL LABOUR | D77: =dms_y1 -> 2009-10 | E77: =dms_y2 -> 2010-11 | F77: =dms_y3 -> 2011-12 | G77: =dms_y4 -> 2012-13 | H77: =dms_y5 -> 2013-14 | I77: =dms_y6 -> 2014-15 | J77: =dms_y7 -> 2015-16 | K77: =dms_y8 -> 2016-17 | L77: =dms_y9 -> 2017-18
B78: CORPORATE OVERHEADS | C78: Executive manager
C79: Senior manager
C80: Manager
C81: Professional
C82: Semi professional
C83: Support staff
C84: Intern, junior staff, apprentice
B85: NETWORK OVERHEADS | C85: Executive manager
C86: Senior manager
C87: Manager
C88: Professional
C89: Semi professional
C90: Support staff
C91: Intern, junior staff, apprentice
B92: TOTAL DIRECT NETWORK LABOUR | C92: Skilled electrical worker
C93: Skilled non electical worker
C94: Apprentice
C95: Unskilled worker
B99: 2.11.3 - LABOUR / NON-LABOUR EXPENDITURE SPLIT - STANDARD CONTROL SERVICES
D100: EXPENDITURE
D101: ($0's, nominal)
D102: =dms_y1 -> 2009-10 | E102: =dms_y2 -> 2010-11 | F102: =dms_y3 -> 2011-12 | G102: =dms_y4 -> 2012-13 | H102: =dms_y5 -> 2013-14 | I102: =dms_y6 -> 2014-15 | J102: =dms_y7 -> 2015-16 | K102: =dms_y8 -> 2016-17 | L102: =dms_y9 -> 2017-18
B103: OPEX
B104: In-house labour expenditure | D104: 34645540.08 | E104: 36683638.89 | F104: 37685519.11 | G104: 43145824.79 | H104: 53870689.12 | I104: 66666059.03 | J104: 86214638.05 | K104: 95354351.62 | L104: 88909008.97
B105: Labour expenditure outsourced to related parties | D105: 0 | E105: 0 | F105: 0 | G105: 0 | H105: 0 | I105: 0 | J105: 0 | K105: 0 | L105: 0
B106: Labour expenditure outsourced to unrelated parties | D106: 0 | E106: 0 | F106: 0 | G106: 0 | H106: 0 | I106: 0 | J106: 0 | K106: 0 | L106: 0
B107: Controllable non-labour expenditure | D107: 135194316.3 | E107: 122028059.8 | F107: 110846931.9 | G107: 125104378.4 | H107: 130208364.6 | I107: 126868040.8 | J107: 131533842.9 | K107: 127802822.4 | L107: 116436925.5
B108: Uncontrollable non-labour expenditure | D108: 2368790.02 | E108: 2721962.135 | F108: 3401870.59 | G108: 4196131.385 | H108: 4685095.105 | I108: 5285223.445 | J108: 5692563.965 | K108: 5463117.35 | L108: 5807946.315
B109: Total | D109: =SUM(D104:D108) -> 172208646.4 | E109: 161433660.9 | F109: 151934321.5 | G109: 172446334.5 | H109: 188764148.8 | I109: 198819323.3 | J109: 223441044.9 | K109: 228620291.4 | L109: 211153880.7
B110: CAPEX
B111: In-house labour expenditure | D111: 35744744.06 | E111: 37898429.69 | F111: 40244659.41 | G111: 48742732.22 | H111: 65952539.49 | I111: 70369891.19 | J111: 51753150.61 | K111: 45735382.39 | L111: 52501778.29
B112: Labour expenditure outsourced to related parties | D112: 0 | E112: 0 | F112: 0 | G112: 0 | H112: 0 | I112: 0 | J112: -2.163648605e-05 | K112: -2.163648605e-05 | L112: 0
B113: Labour expenditure outsourced to unrelated parties | D113: 0 | E113: 0 | F113: 0 | G113: 0 | H113: 0 | I113: 0 | J113: 0 | K113: 0 | L113: 0
B114: Controllable non-labour expenditure | D114: 270976458.1 | E114: 258228595.3 | F114: 242830938 | G114: 286216069.5 | H114: 307623350.1 | I114: 275043471.6 | J114: 245194392.1 | K114: 257092628.7 | L114: 285849695.5
B115: Uncontrollable non-labour expenditure | D115: 0 | E115: 0 | F115: 0 | G115: 0 | H115: 0 | I115: 0 | J115: 0 | K115: 0 | L115: 0
B116: Total | D116: =SUM(D111:D115) -> 306721202.1 | E116: 296127025 | F116: 283075597.4 | G116: 334958801.8 | H116: 373575889.6 | I116: 345413362.8 | J116: 296947542.7 | K116: 302828011.1 | L116: 338351473.8

Sheet 2.12 Input tables
B1: =INDEX(dms_Worksheet_List,MATCH(dms_Model,dms_Model_List)) -> HISTORICAL CATEGORY ANALYSIS - FINANCIAL YEARS
B2: =INDEX(dms_TradingNameFull_List,MATCH(dms_TradingName,dms_TradingName_List)) -> AusNet Electricity Services Pty Ltd
B3: =dms_Header_Span -> 2009-10 to 2017-18
B4: 2.12 INPUT TABLES
B6: There are SIX tables on this worksheet. Each table has been 'grouped' for easy navigation. See the Instructions sheet on how to group or ungroup data.
B8: 2.12 INPUT TABLES
B9: 2.12.1 - DIRECT MATERIALS EXPENDITURE
D10: EXPENDITURE
D11: ($0's)
D12: =dms_y1 -> 2009-10 | E12: =dms_y2 -> 2010-11 | F12: =dms_y3 -> 2011-12 | G12: =dms_y4 -> 2012-13 | H12: =dms_y5 -> 2013-14 | I12: =dms_y6 -> 2014-15 | J12: =dms_y7 -> 2015-16 | K12: =dms_y8 -> 2016-17 | L12: =dms_y9 -> 2017-18
B13: VEGETATION MANAGEMENT | C13: HBRA | D13: 111354.0213 | E13: 142915.7944 | F13: 165241.4575 | G13: 152577.5995 | H13: 159229.4058 | I13: 182717.7765 | J13: 210592.4375 | K13: 123269.9993 | L13: 7290.145319
C14: LBRA | D14: 21950.61319 | E14: 28152.96759 | F14: 29323.68783 | G14: 32380.2346 | H14: 39693.97779 | I14: 35940.34378 | J14: 36846.49416 | K14: 23120.61865 | L14: 1370.829641
B31: ROUTINE MAINTENANCE | C31: Pole top, overhead line & service line maintenance | D31: 36131.59545 | E31: 35818.05485 | F31: 28592.73175 | G31: 34832.07875 | H31: 28114.23376 | I31: 115095.1851 | J31: 139956.5365 | K31: 194396.1699 | L31: 367445.0566
C32: Pole inspection and treatment | D32: 38391.51289 | E32: 87797.57086 | F32: 155279.4466 | G32: 386773.5274 | H32: 523378.8202 | I32: 398983.1958 | J32: 339096.8602 | K32: 1874035.665 | L32: 2837673.093
C33: Overhead asset inspection | D33: 32885.75693 | E33: 75206.45468 | F33: 133010.7034 | G33: 331306.0426 | H33: 558203.0511 | I33: 318225.0054 | J33: 7705.311215 | K33: 199377.0145 | L33: 629548.1511
C34: Network underground cable maintenance | D34: 14243.255 | E34: 17999.82 | F34: 11195.643 | G34: 2300.503 | H34: 2602.027896 | I34: 1475.625396 | J34: 0 | K34: 0 | L34: 13983.85402
C35: Distribution substation equipment & property maintenance | D35: 141.21435 | E35: 228.70755 | F35: 165.9111 | G35: 117.873 | H35: 1336.897074 | I35: 1959.652461 | J35: 13567.36205 | K35: 153989.6993 | L35: 519959.3291
C36: Zone substation equipment maintenance | D36: 11637.072 | E36: 8990.388 | F36: 14822.728 | G36: 19433.468 | H36: 14067.32875 | I36: 26913.60178 | J36: 45728.71987 | K36: 322898.5844 | L36: 609997.7201
C37: Zone substation property maintenance | D37: 141790.908 | E37: 125217.008 | F37: 83713.912 | G37: 78813.524 | H37: 153527.6128 | I37: 147719.1106 | J37: 47911.55 | K37: 116119.1379 | L37: 129029.0806
C38: Public lighting maintenance | D38: 0 | E38: 0 | F38: 0 | G38: 0 | H38: 0 | I38: 0 | J38: 0 | K38: 0 | L38: 0
C39: Scada & network control maintenance | D39: 3265.517 | E39: 1635.84 | F39: 642.882 | G39: 1152.67 | H39: 1036.49055 | I39: 2996.171246 | J39: 3364.24974 | K39: 928.3255806 | L39: 322.1205368
C40: Protection systems maintenance | D40: 0 | E40: 0 | F40: 0 | G40: 0 | H40: 952.5062 | I40: 14679.15469 | J40: 21679.05671 | K40: 86851.56185 | L40: 175038.1664
C41: Subtransmission asset maintenance - for dnsps with dual function assets | D41: 0 | E41: 0 | F41: 0 | G41: 0 | H41: 0 | I41: 0 | J41: 0 | K41: 0 | L41: 0
C42: Other | H42: 0 | I42: 0 | J42: 0 | K42: 0 | L42: 0
B43: NON-ROUTINE MAINTENANCE | C43: Pole top, overhead line & service line maintenance | D43: 761678.4696 | E43: 726041.7401 | F43: 472941.9583 | G43: 378931.4163 | H43: 1113804.552 | I43: 966268.934 | J43: 92626.77192 | K43: 277320.6275 | L43: 449344.683
C44: Pole inspection and treatment | D44: 0 | E44: 0 | F44: 0 | G44: 0 | H44: 0 | I44: 7064.323397 | J44: 41596.99192 | K44: 70233.33604 | L44: 84668.0942
C45: Overhead asset inspection | D45: 0 | E45: 0 | F45: 0 | G45: 0 | H45: 0 | I45: 103002.3439 | J45: 280381.6998 | K45: 1470067.439 | L45: 2872740.33
C46: Network underground cable maintenance | D46: 14243.255 | E46: 17999.82 | F46: 20588.447 | G46: 20704.527 | H46: 23418.25107 | I46: 31298.56303 | J46: 59546.12679 | K46: 204414.2757 | L46: 276898.0574
C47: Distribution substation equipment & property maintenance | D47: 4565.93065 | E47: 7394.87745 | F47: 5364.4589 | G47: 3811.227 | H47: 43226.33874 | I47: 48776.45952 | J47: 54842.42378 | K47: 393067.763 | L47: 925412.1624
C48: Zone substation equipment maintenance | D48: 7806.768 | E48: 7334.892 | F48: 4787.792 | G48: 10935.972 | H48: 14188.67523 | I48: 15496.6262 | J48: 27621.21205 | K48: 172259.1383 | L48: 345177.2835
C49: Zone substation property maintenance | D49: 35447.727 | E49: 31304.252 | F49: 20928.478 | G49: 19703.381 | H49: 38381.90321 | I49: 39032.59323 | J49: 10693.25385 | K49: 128885.2134 | L49: 248227.4061
C50: Public lighting maintenance | D50: 0 | E50: 0 | F50: 0 | G50: 0 | H50: 0 | I50: 0 | J50: 0 | K50: 0 | L50: 0
C51: SCADA & network control maintenance | D51: 731.988 | E51: 384.96 | F51: 186.329 | G51: 110.292 | H51: 997.2882 | I51: 7317.281446 | J51: 9861.123386 | K51: 38052.34264 | L51: 45936.05114
C52: Protection systems maintenance | D52: 1350.26 | E52: 384 | F52: -409.736 | G52: 2846.008 | H52: 6286.9688 | I52: 6619.238328 | J52: 10404.76954 | K52: 70516.89225 | L52: 118430.5816
C53: Subtransmission asset maintenance - for DNSP with dual function assets | D53: 0 | E53: 0 | F53: 0 | G53: 0 | H53: 0 | I53: 0 | J53: 0 | K53: 0 | L53: 1504.826897
C54: Other | H54: 0 | I54: 0 | J54: -20764.09616 | K54: -20764.09616 | L54: 0
B55: OVERHEADS | C55: Network overheads | D55: -32206.37295 | E55: 371435.6707 | F55: 299770.3952 | G55: -920624.8479 | H55: -242050.036 | I55: 1023245.629 | J55: 1034321.372 | K55: 503722.6226 | L55: 255442.2345
C56: Corporate overheads | D56: 839771.1353 | E56: 882297.3229 | F56: 834040.0023 | G56: 692283.852 | H56: 553869.8015 | I56: 602669.6634 | J56: 460979.2541 | K56: 116666.3716 | L56: -37562.75164
B57: AUGMENTATION | C57: Subtransmission substations, switching stations, zone substations | D57: 5056372.071 | E57: 9740806.563 | F57: 10141096.97 | G57: 14363856.05 | H57: 14441319.47 | I57: 8553689.512 | J57: 4964735.736 | K57: 3774033.35 | L57: 9673063.736
C58: Subtransmission lines | D58: 507701.0536 | E58: 966833.4758 | F58: 965358.5696 | G58: 3077108.865 | H58: 4301272.627 | I58: 2888818.638 | J58: 1339158.923 | K58: 897116.3543 | L58: 2796064.629
C59: HV feeders | D59: 20378407.46 | E59: 22600476.72 | F59: 23701453.61 | G59: 31147602.09 | H59: 35381170.94 | I59: 26358249.33 | J59: 17607349.49 | K59: 17754690.71 | L59: 14304500.48
C60: Distribution substations | D60: 3510515.519 | E60: 2007676.159 | F60: 3506191.023 | G60: 7663764.237 | H60: 5246357.428 | I60: 1214995.482 | J60: 849280.1846 | K60: 1900271.601 | L60: 2100375.929
C61: LV feeders | D61: 700102.4742 | E61: 666616.2326 | F61: 1259408.575 | G61: 3328921.222 | H61: 3501666.354 | I61: 2326339.718 | J61: 1732531.402 | K61: 2488193.683 | L61: 2326917.856
C62: Other assets | H62: 0 | I62: 0 | J62: 0 | K62: 0 | L62: 0
B63: CONNECTIONS | C63: Simple and complex customer connections | D63: 16296243.79 | E63: 12713431.19 | F63: 12084517.18 | G63: 10155244.63 | H63: 10533127.46 | I63: 10828607.16 | J63: 9557563.545 | K63: 8357405.343 | L63: 8158994.936
B64: EMERGENCY RESPONSE | C64: Major storms | D64: 0 | E64: 0 | F64: 0 | G64: 0 | H64: 0 | I64: 0 | J64: 0 | K64: 15279.0642 | L64: 15279.0642
C65: Major event days | D65: 803899.1546 | E65: 750038.7817 | F65: 697618.2412 | G65: 654676.28 | H65: 729439.3487 | I65: 740498.4474 | J65: 965025.6214 | K65: 649951.2381 | L65: 15279.0642
B66: PUBLIC LIGHTING | C66: All public lighting services | D66: 240853.785 | E66: 208121.165 | F66: 96276.435 | G66: 61232.91 | H66: 79680.715 | I66: 150315.4169 | J66: 782144.7157 | K66: 2039390.434 | L66: 2472477.625
B67: METERING | C67: All metering services | D67: 13857191.02 | E67: 42109314.26 | F67: 60647225.55 | G67: 59366014.56 | H67: 41333250.37 | I67: 16185480.3 | J67: -240807.814 | K67: -191078.9666 | L67: 5216022.648
B68: FEE-BASED SERVICES | C68: All fee-based services | D68: 164025.9429 | E68: 226752.1594 | F68: 199844.7524 | G68: 178590.0004 | H68: 363793.4602 | I68: 326248.4224 | J68: 147028.5793 | K68: 312944.7747 | L68: 3252631.247
B69: QUOTED SERVICES | C69: All quoted services | D69: 76942.76969 | E69: 129927.8777 | F69: 168485.4852 | G69: 162647.3577 | H69: 89333.83325 | I69: 26578.09331 | J69: 15099.64128 | K69: 13529.94789 | L69: 25281.40976
B70: REPLACEMENT | C70: Poles | D70: 4065676.488 | E70: 2391497.258 | F70: 3358554.263 | G70: 5315651.381 | H70: 11943681.82 | I70: 11665018.94 | J70: 6700746.799 | K70: 8337677.557 | L70: 9092435.135
C71: Pole top structures | D71: 3956732.532 | E71: 4741926.324 | F71: 6381250.035 | G71: 7555258.9 | H71: 8081416.49 | I71: 5650897.551 | J71: 2995852.74 | K71: 3594836.103 | L71: 3124842.072
C72: Overhead conductors | D72: 794384.3076 | E72: 710640.4018 | F72: 1129420.997 | G72: 1147267.267 | H72: 8590842.176 | I72: 12162201.58 | J72: 6748191.428 | K72: 4039822.271 | L72: 2444844.435
C73: Underground cables | D73: 439908.2545 | E73: 336092.9526 | F73: 407192.6372 | G73: 594980.3942 | H73: 769939.7904 | I73: 1010677.389 | J73: 903662.2509 | K73: 438803.6094 | L73: 646959.7745
C74: Service lines | D74: 396062.464 | E74: 522539.6143 | F74: 764738.4893 | G74: 1121092.292 | H74: 2084208.663 | I74: 1620603.158 | J74: 741181.3506 | K74: 1416945.788 | L74: 1645685.101
C75: Transformers | D75: 765674.873 | E75: 865789.8563 | F75: 1015051.299 | G75: 715749.1385 | H75: 3145953.578 | I75: 3491118.575 | J75: 1826321.406 | K75: 2343010.019 | L75: 2185845.854
C76: Switchgear | D76: 1171416.751 | E76: 1550751.532 | F76: 2553170.973 | G76: 3538126.006 | H76: 5188582.268 | I76: 4109020.545 | J76: 2145712.402 | K76: 3785299.29 | L76: 5461171.262
C77: Public lighting | D77: 0 | E77: 0 | F77: 0 | G77: 0 | H77: 0 | I77: 0 | J77: 0 | K77: 0 | L77: 0
C78: SCADA network control and protection systems | H78: 2800144.217 | I78: 1642190.996 | J78: 1007107.58 | K78: 1442455.822 | L78: 2019064.647
C79: Other | D79: 878851.5249 | E79: 497308.0655 | F79: 694311.5786 | G79: 688863.226 | H79: 369786.5276 | I79: 530997.4004 | J79: 1250756.566 | K79: 2088598.741 | L79: 2789822.017
B80: NON-NETWORK EXPENDITURE | C80: IT and communications | D80: 79740.76559 | E80: 142474.8811 | F80: 184335.3406 | G80: 155331.1598 | H80: 106376.9315 | I80: -165112.4748 | J80: -169996.3964 | K80: 24684.14 | L80: 13233.99
C81: Motor vehicles | D81: 1056815.402 | E81: 1180755.629 | F81: 1478239.33 | G81: 1936989.8 | H81: 3545959.082 | I81: 4695890.891 | J81: 3480902.712 | K81: 1310918.511 | L81: 2089541.484
C82: Buildings and property | D82: 96940.48 | E82: 146062.505 | F82: 132619.145 | G82: 26626.065 | H82: 29171.775 | I82: 1222189.21 | J82: 1284879.465 | K82: 116168.905 | L82: 131761.6103
C83: Other | D83: 898538.6423 | E83: 1003682.957 | F83: 1012977.464 | G83: 1227476.423 | H83: 1327714.185 | I83: 1054263.657 | J83: 504392.0996 | K83: 640656.1711 | L83: 1434331.931
B86: 2.12.2 - DIRECT LABOUR EXPENDITURE
D87: EXPENDITURE
D88: ($0's)
D89: =dms_y1 -> 2009-10 | E89: =dms_y2 -> 2010-11 | F89: =dms_y3 -> 2011-12 | G89: =dms_y4 -> 2012-13 | H89: =dms_y5 -> 2013-14 | I89: =dms_y6 -> 2014-15 | J89: =dms_y7 -> 2015-16 | K89: =dms_y8 -> 2016-17 | L89: =dms_y9 -> 2017-18
B90: VEGETATION MANAGEMENT | C90: =IF(ISBLANK(C13)," ",C13) -> HBRA | D90: 1469837.694 | E90: 1521515.184 | F90: 1969959.5 | G90: 2251847.492 | H90: 2591536.331 | I90: 3704542.216 | J90: 3215707.715 | K90: 2690139.924 | L90: 3579119.174
C91: =IF(ISBLANK(C14)," ",C14) -> LBRA | D91: 286646.8538 | E91: 299794.5812 | F91: 346971.6266 | G91: 492130.8573 | H91: 647275.8565 | I91: 699314.8502 | J91: 539820.8123 | K91: 564957.7082 | L91: 670063.5349
L92: 0
L93: 0
L94: 0
L95: 0
L96: 0
L97: 0
L98: 0
L99: 0
L100: 0
L101: 0
L102: 0
L103: 0
L104: 0
L105: 0
L106: 0
L107: 0
B108: ROUTINE MAINTENANCE | C108: Pole top, overhead line & service line maintenance | D108: 178098.6772 | E108: 167296.8466 | F108: 180925.6374 | G108: 223505.3276 | H108: 133304.5589 | I108: 899542.3129 | J108: 1517529.538 | K108: 780262.1358 | L108: 308701.243
C109: Pole inspection and treatment | D109: 104878.1148 | E109: 489761.0637 | F109: 1177474.78 | G109: 1700521.201 | H109: 1616305.599 | I109: 1983130.466 | J109: 4934037.524 | K109: 5124215.777 | L109: 2420507.017
C110: Overhead asset inspection | D110: 123926.0094 | E110: 600931.3064 | F110: 1487113.945 | G110: 2207631.364 | H110: 2127107.207 | I110: 928604.3893 | J110: 87947.64758 | K110: 217210.0874 | L110: 521983.6326
C111: Network underground cable maintenance | D111: 105839.89 | E111: 154518.475 | F111: 103508.7025 | G111: 18794.984 | H111: 6911.052272 | I111: 4168.025772 | J111: 0 | K111: 0 | L111: 11227.42211
C112: Distribution substation equipment & property maintenance | D112: 1687.40565 | E112: 2630.21805 | F112: 1961.9988 | G112: 1627.73895 | H112: 4456.166869 | I112: 9039.874197 | J112: 269590.7835 | K112: 389304.483 | L112: 429286.3306
C113: Zone substation equipment maintenance | D113: 37891.152 | E113: 31335.436 | F113: 25163.776 | G113: 18087.232 | H113: 14474.78692 | I113: 203080.3523 | J113: 638143.7578 | K113: 710146.6522 | L113: 514994.8403
C114: Zone substation property maintenance | D114: 1000770.728 | E114: 1165924 | F114: 1096800.312 | G114: 949910.556 | H114: 787882.4419 | I114: 594093.3067 | J114: 565979.2962 | K114: 384621.4541 | L114: 112118.4196
C115: Public lighting maintenance | D115: 0 | E115: 0 | F115: 0 | G115: 0 | H115: 0 | I115: 0 | J115: 0 | K115: 0 | L115: 0
C116: Scada & network control maintenance | D116: 72706.135 | E116: 62586.611 | F116: 54932.801 | G116: 56514.295 | H116: 29881.1371 | I116: 23008.15528 | J116: 34748.72213 | K116: 12698.78487 | L116: 285.6099182
C117: Protection systems maintenance | D117: 0 | E117: 0 | F117: 0 | G117: 0 | H117: 2690.432409 | I117: 113853.3173 | J117: 274003.2235 | K117: 232796.7004 | L117: 147144.902
C118: Subtransmission asset maintenance - for dnsps with dual function assets | D118: 0 | E118: 0 | F118: 0 | G118: 0 | H118: 0 | I118: 0 | J118: 0 | K118: 0 | L118: 0
C119: Other | H119: 0 | I119: 0 | J119: 0 | K119: 0 | L119: 0
B120: NON-ROUTINE MAINTENANCE | C120: Pole top, overhead line & service line maintenance | D120: 2333453.498 | E120: 2049067.313 | F120: 2172467.423 | G120: 3035647.862 | H120: 4182073.96 | I120: 3012490.623 | J120: 553795.0072 | K120: 330309.7066 | L120: 380742.1384
C121: Pole inspection and treatment | D121: 0 | E121: 0 | F121: 0 | G121: 0 | H121: 0 | I121: 57209.19925 | J121: 162714.2258 | K121: 137159.2167 | L121: 70969.38671
C122: Overhead asset inspection | D122: 0 | E122: 0 | F122: 0 | G122: 0 | H122: 0 | I122: 834146.6387 | J122: 1376080.247 | K122: 1688102.497 | L122: 2414768.626
C123: Network underground cable maintenance | D123: 105839.89 | E123: 154518.475 | F123: 231924.3625 | G123: 169154.856 | H123: 62199.47044 | I123: 183427.3529 | J123: 272793.0374 | K123: 271301.7444 | L123: 235962.2947
C124: Distribution substation equipment & property maintenance | D124: 54559.44935 | E124: 85043.71695 | F124: 63437.9612 | G124: 52630.22605 | H124: 144082.7288 | I124: 174170.0136 | J124: 202360.9727 | K124: 452478.7727 | L124: 771910.777
C125: Zone substation equipment maintenance | D125: 78114.308 | E125: 95785.279 | F125: 103673.044 | G125: 99465.968 | H125: 62986.08874 | I125: 95729.05546 | J125: 134074.2326 | K125: 191267.9891 | L125: 290079.2968
C126: Zone substation property maintenance | D126: 250192.682 | E126: 291481 | F126: 274200.078 | G126: 237477.639 | H126: 196970.6105 | I126: 165552.6143 | J126: 85553.55249 | K126: 114725.6613 | L126: 210077.4498
C127: Public lighting maintenance | D127: 0 | E127: 0 | F127: 0 | G127: 0 | H127: 0 | I127: 0 | J127: 0 | K127: 0 | L127: 0
C128: SCADA & network control maintenance | D128: 13567.867 | E128: 11197.707 | F128: 10827.24 | G128: 9964.741 | H128: 7368.388409 | I128: 54234.46214 | J128: 62226.15536 | K128: 41321.38527 | L128: 39776.13274
C129: Protection systems maintenance | D129: 73738.668 | E129: 71183.132 | F129: 46495.364 | G129: 66621.324 | H129: 52748.54963 | I129: 33511.65874 | J129: 45956.05169 | K129: 78995.66609 | L129: 100357.066
C130: Subtransmission asset maintenance - for DNSP with dual function assets | D130: 0 | E130: 0 | F130: 0 | G130: 0 | H130: 0 | I130: 0 | J130: 0 | K130: 0 | L130: 1208.202456
C131: Other | H131: 0 | I131: 0 | J131: -63438.95826 | K131: -63438.95826 | L131: 0
B132: OVERHEADS | C132: Network overheads | D132: 22365348.31 | E132: 23873508.48 | F132: 23983905.63 | G132: 28281669.26 | H132: 35398377.61 | I132: 42222318.44 | J132: 44043528.95 | K132: 50600465.8 | L132: 59983799.1
C133: Corporate overheads | D133: 8056641.443 | E133: 9555596.764 | F133: 11176827.16 | G133: 11856386.31 | H133: 13589371.98 | I133: 17674732.59 | J133: 19508629.7 | K133: 20574279.71 | L133: 20032285.75
B134: AUGMENTATION | C134: Subtransmission substations, switching stations, zone substations | D134: 1043555.14 | E134: 1895977.806 | F134: 1930274.551 | G134: 2683200.631 | H134: 3131334.953 | I134: 2438142.245 | J134: 1753302.093 | K134: 1492773.534 | L134: 4535823.739
C135: Subtransmission lines | D135: 102372.2363 | E135: 188606.9135 | F135: 183798.8096 | G135: 569141.2879 | H135: 946862.6682 | I135: 824924.4915 | J135: 431314.2433 | K135: 332004.3076 | L135: 1293426.166
C136: HV feeders | D136: 4996931.68 | E136: 4399958.462 | F136: 4512121.463 | G136: 5828023.854 | H136: 8000923.183 | I136: 7505845.582 | J136: 6486442.171 | K136: 7004422.469 | L136: 5661645.538
C137: Distribution substations | D137: 887911.4087 | E137: 399943.4937 | F137: 674008.6037 | G137: 1435081.162 | H137: 1029444.349 | I137: 346742.2423 | J137: 311831.3643 | K137: 701913.024 | L137: 820636.7822
C138: LV feeders | D138: 153291.0105 | E138: 133151.5245 | F138: 242274.7682 | G138: 621483.8698 | H138: 764632.5261 | I138: 665737.9863 | J138: 635016.2 | K138: 945998.9368 | L138: 902188.5726
C139: Other assets | H139: 0 | I139: 0 | J139: 0 | K139: 0 | L139: 0
B140: CONNECTIONS | C140: Simple and complex customer connections | D140: 5384638.42 | E140: 5911165.263 | F140: 6696701.244 | G140: 6556192.399 | H140: 8261366.251 | I140: 9694096.154 | J140: 8035419.499 | K140: 6551117.036 | L140: 7237929.136
B141: EMERGENCY RESPONSE | C141: Major storms | D141: 0 | E141: 0 | F141: 0 | G141: 0 | H141: 0 | I141: 0 | J141: 0 | K141: 712.2545685 | L141: 712.2545685
C142: Major event days | D142: 8731894.51 | E142: 6730436.078 | F142: 4112190.943 | G142: 4304944.722 | H142: 4671137.079 | I142: 5877916.644 | J142: 5610078.247 | K142: 2343632.858 | L142: 712.2545685
B143: PUBLIC LIGHTING | C143: All public lighting services | D143: 403752.28 | E143: 396110.745 | F143: 325441.27 | G143: 262558.38 | H143: 270770.08 | I143: 433352.8642 | J143: 381494.783 | K143: 279594.1612 | L143: 453196.7109
B144: METERING | C144: All metering services | D144: 15360540.37 | E144: 13889838.98 | F144: 17891932.42 | G144: 21016786 | H144: 25187182.21 | I144: 29945498.74 | J144: 39288268.6 | K144: 32269219.92 | L144: 14182440.69
B145: FEE-BASED SERVICES | C145: All fee-based services | D145: 1448325.23 | E145: 1897797.449 | F145: 2177859.629 | G145: 2225422.093 | H145: 2692566.064 | I145: 4461357.491 | J145: 6465431.378 | K145: 4740069.688 | L145: 2423031.063
B146: QUOTED SERVICES | C146: All quoted services | D146: 269213.9386 | E146: 454602.7628 | F146: 685084.9231 | G146: 606546.9338 | H146: 282320.0926 | I146: 163249.1529 | J146: 97989.31094 | K146: 78488.51337 | L146: 662942.6721
B147: REPLACEMENT | C147: Poles | D147: 2961765.772 | E147: 2163414.417 | F147: 2833604.487 | G147: 3896127.145 | H147: 5969469.974 | I147: 6351345.318 | J147: 4411981.338 | K147: 3510209.986 | L147: 3801273.35
C148: Pole top structures | D148: 3033992.464 | E148: 4312129.926 | F148: 5438255.074 | G148: 5585700.945 | H148: 4508163.447 | I148: 3066925.901 | J148: 2011297.124 | K148: 1511009.166 | L148: 1275692.678
C149: Overhead conductors | D149: 611188.9085 | E149: 631446.3859 | F149: 925932.1877 | G149: 867063.8074 | H149: 3726002.479 | I149: 7015062.822 | J149: 4845811.139 | K149: 1790697.525 | L149: 1026983.666
C150: Underground cables | D150: 326354.2582 | E150: 303935.875 | F150: 347981.447 | G150: 435858.4254 | H150: 428801.9866 | I150: 718223.8027 | J150: 686028.6388 | K150: 193468.8888 | L150: 283876.7528
C151: Service lines | D151: 306685.1709 | E151: 475411.2386 | F151: 647201.6946 | G151: 823365.2922 | H151: 1067575.488 | I151: 776961.4657 | J151: 428378.0004 | K151: 589060.2025 | L151: 685347.2131
C152: Transformers | D152: 577823.3809 | E152: 791877.3496 | F152: 884012.135 | G152: 538463.4536 | H152: 1396575.544 | I152: 1752722.122 | J152: 1102034.13 | K152: 1003359.429 | L152: 914758.0149
C153: Switchgear | D153: 891767.2722 | E153: 1423332.434 | F153: 2159146.88 | G153: 2604755.213 | H153: 2753588.106 | I153: 2164695.506 | J153: 1387762.549 | K153: 1555339.267 | L153: 2299028.171
C154: Public lighting | D154: 0 | E154: 0 | F154: 0 | G154: 0 | H154: 0 | I154: 0 | J154: 0 | K154: 0 | L154: 0
C155: SCADA network control and protection systems | H155: 1187217.396 | I155: 812620.5326 | J155: 576865.6368 | K155: 616835.346 | L155: 868207.0321
C156: Other | D156: 650521.041 | E156: 440534.2236 | F156: 571640.6993 | G156: 520584.9419 | H156: 207134.8101 | I156: 388209.8208 | J156: 733301.7267 | K156: 876364.2056 | L156: 1182319.864
B157: NON-NETWORK EXPENDITURE | C157: IT and communications | D157: 1502717.218 | E157: 2281490.44 | F157: -255261.1214 | G157: 1407433.862 | H157: 9672395.412 | I157: 12435091.51 | J157: 15045013.32 | K157: 25364118.28 | L157: 28769650.9
C158: Motor vehicles | D158: 0 | E158: 0 | F158: 0 | G158: 0 | H158: 0 | I158: 0 | J158: 0 | K158: 74.48630612 | L158: 548.1613061
C159: Buildings and property | D159: 1429809.71 | E159: 1292583.81 | F159: 1109600.095 | G159: 1009724.55 | H159: 849667.375 | I159: 494013.4126 | J159: 456577.7676 | K159: 707121.055 | L159: 957940.5623
C160: Other | D160: 83325.76377 | E160: 122997.3521 | F160: 408123.2091 | G160: 471822.2122 | H160: 186539.313 | I160: 36772.7449 | J160: 50128.37242 | K160: 150429.0987 | L160: 179966.9537
B163: 2.12.3 - CONTRACT EXPENDITURE
D164: EXPENDITURE
D165: ($0's)
D166: =dms_y1 -> 2009-10 | E166: =dms_y2 -> 2010-11 | F166: =dms_y3 -> 2011-12 | G166: =dms_y4 -> 2012-13 | H166: =dms_y5 -> 2013-14 | I166: =dms_y6 -> 2014-15 | J166: =dms_y7 -> 2015-16 | K166: =dms_y8 -> 2016-17 | L166: =dms_y9 -> 2017-18
B167: VEGETATION MANAGEMENT | C167: =IF(ISBLANK(C13)," ",C13) -> HBRA | D167: 17196461.01 | E167: 17429475.32 | F167: 22068102.95 | G167: 26796093.82 | H167: 26631986.48 | I167: 26515363.73 | J167: 26409608.24 | K167: 25853916.19 | L167: 24696421.76
C168: LBRA | D168: 3358581.217 | E168: 3440727.116 | F168: 3882012.734 | G168: 5917777.109 | H168: 6743379.662 | I168: 5162629.758 | J168: 4553718.573 | K168: 5313735.201 | L168: 4728290.225
L169: 0
L170: 0
L171: 0
L172: 0
L173: 0
L174: 0
L175: 0
L176: 0
L177: 0
L178: 0
L179: 0
L180: 0
L181: 0
L182: 0
L183: 0
L184: 0
B185: ROUTINE MAINTENANCE | C185: Pole top, overhead line & service line maintenance | D185: 758556.3658 | E185: 897308.2074 | F185: 786349.8717 | G185: 877279.2783 | H185: 583037.8638 | I185: 1050332.418 | J185: 1232923.123 | K185: 224768.8783 | L185: 24121.00926
C186: Pole inspection and treatment | D186: 2690567.389 | E186: 3543843.43 | F186: 2697993.907 | G186: 1513831.887 | H186: 1838317.459 | I186: 2698003.526 | J186: 2734676.767 | K186: 1334055.555 | L186: 189798.766
C187: Overhead asset inspection | D187: 3192701.515 | E187: 4327959.843 | F187: 3429233.613 | G187: 2132418.663 | H187: 2553529.141 | I187: 1609333.776 | J187: 66994.80963 | K187: 28025.23516 | L187: 40659.74901
C188: Network underground cable maintenance | D188: 431681.1425 | E188: 391138.725 | F188: 192442.6335 | G188: 62775.892 | H188: 44696.7482 | I188: 7347.954699 | J188: 0 | K188: 0 | L188: 867.752808
C189: Distribution substation equipment & property maintenance | D189: 8110.59255 | E189: 15284.24625 | F189: 17342.27655 | G189: 17499.297 | H189: 15239.29384 | I189: 12669.6306 | J189: 94917.05379 | K189: 98591.08993 | L189: 33405.15848
C190: Zone substation equipment maintenance | D190: 40777.512 | E190: 15171.544 | F190: 11601.348 | G190: 11617.44 | H190: 17954.16389 | I190: 239570.796 | J190: 374253.5127 | K190: 169855.7654 | L190: 40286.23745
C191: Zone substation property maintenance | D191: 489064.092 | E191: 439782.232 | F191: 343509 | G191: 654724.812 | H191: 1067448.167 | I191: 882488.4474 | J191: 412732.1961 | K191: 105971.0106 | L191: 8828.589125
C192: Public lighting maintenance | D192: 0 | E192: 0 | F192: 0 | G192: 0 | H192: 0 | I192: 0 | J192: 0 | K192: 0 | L192: 0
C193: Scada & network control maintenance | D193: 28621.844 | E193: 12493.978 | F193: -12288.598 | G193: 1300.087 | H193: 1747.138749 | I193: 27002.74435 | J193: 29984.1528 | K193: 4189.763007 | L193: 22.59081315
C194: Protection systems maintenance | D194: 0 | E194: 0 | F194: 0 | G194: 0 | H194: 4743.054996 | I194: 133232.8573 | J194: 183156.2139 | K194: 60199.73169 | L194: 11499.12166
C195: Subtransmission asset maintenance - for dnsps with dual function assets | D195: 0 | E195: 0 | F195: 0 | G195: 0 | H195: 0 | I195: 0 | J195: 0 | K195: 0 | L195: 0
C196: Other | D196: -551772.47 | E196: -563704.7475 | F196: -307186.524 | G196: -83872.843 | H196: -54318.2352 | I196: -13098.5487 | J196: 0 | K196: 0 | L196: -27495.4195
B197: NON-ROUTINE MAINTENANCE | C197: Pole top, overhead line & service line maintenance | D197: 6332069.554 | E197: 6783778.213 | F197: 7484493.933 | G197: 8453761.367 | H197: 9332276.395 | I197: 5046836.874 | J197: 850699.7911 | K197: 364781.851 | L197: 29809.23032
C198: Pole inspection and treatment | D198: 0 | E198: 0 | F198: 0 | G198: 0 | H198: 0 | I198: 66126.37583 | J198: 360814.8157 | K198: 297192.1831 | L198: 5542.363468
C199: Overhead asset inspection | D199: 0 | E199: 0 | F199: 0 | G199: 0 | H199: 0 | I199: 964164.7646 | J199: 2477851.598 | K199: 1604345.055 | L199: 188706.6401
C200: Network underground cable maintenance | D200: 431681.1425 | E200: 391138.725 | F200: 395859.4215 | G200: 564983.028 | H200: 402270.7338 | I200: 234790.4488 | J200: 239637.444 | K200: 82402.04129 | L200: 18498.3425
C201: Distribution substation equipment & property maintenance | D201: 262242.4924 | E201: 494190.6287 | F201: 560733.6085 | G201: 565810.603 | H201: 492737.1675 | I201: 273120.9336 | J201: 473711.5755 | K201: 433313.3765 | L201: 60213.25382
C202: Zone substation equipment maintenance | D202: 13912.363 | E202: 11784.481 | F202: 9132.527 | G202: 16248.305 | H202: 41391.55028 | I202: 120328.965 | J202: 243856.412 | K202: 162469.1959 | L202: 22667.5152
C203: Zone substation property maintenance | D203: 122266.023 | E203: 109945.558 | F203: 85877.25 | G203: 163681.203 | H203: 266862.0418 | I203: 240305.7482 | J203: 99924.19178 | K203: 10790.8423 | L203: 16442.89757
C204: Public lighting maintenance | D204: 0 | E204: 0 | F204: 0 | G204: 0 | H204: 0 | I204: 0 | J204: 0 | K204: 0 | L204: 0
C205: SCADA & network control maintenance | D205: 4910.715 | E205: 996.633 | F205: -3021.765 | G205: 207.015 | H205: 4832.891996 | I205: 64321.23345 | J205: 89414.66149 | K205: 32259.94856 | L205: 3129.642524
C206: Protection systems maintenance | D206: 35915.936 | E206: 34029.784 | F206: -806.152 | G206: 1888.108 | H206: 19780.32799 | I206: 45268.17206 | J206: 91113.49002 | K206: 69230.3089 | L206: 7857.336633
C207: Subtransmission asset maintenance - for DNSP with dual function assets | D207: 0 | E207: 0 | F207: 0 | G207: 0 | H207: 0 | I207: 0 | J207: 0 | K207: 0 | L207: 93.38039164
C208: Other | D208: -551772.47 | E208: -563704.7475 | F208: -648411.776 | G208: -754855.587 | H208: -488864.1168 | I208: -475156.8703 | J208: -534462.6994 | K208: -520543.9433 | L208: -567524.5008
B209: OVERHEADS | C209: Network overheads | D209: 29085410.01 | E209: 28185609.49 | F209: 30872123.11 | G209: 35106631.34 | H209: 35929764.44 | I209: 32607241.38 | J209: 30764892.39 | K209: 16289381.27 | L209: 3517276.226
C210: Corporate overheads | D210: 25814949.7 | E210: 21238136.55 | F210: 19624852.04 | G210: 18696949.79 | H210: 17776553.04 | I210: 24526945.81 | J210: 21278948.69 | K210: 6775046.517 | L210: 1140861.649
B211: AUGMENTATION | C211: Subtransmission substations, switching stations, zone substations | D211: 3578533.299 | E211: 5698742.366 | F211: 5279664.758 | G211: 8452888.343 | H211: 7922174.963 | I211: 4867330.424 | J211: 4466523.804 | K211: 3385556.982 | L211: 11732365.26
C212: Subtransmission lines | D212: 353984.3034 | E212: 572365.5998 | F212: 503490.868 | G212: 1835010.023 | H212: 2336481.331 | I212: 1660346.404 | J212: 1086917.128 | K212: 690404.342 | L212: 3310402.23
C213: HV feeders | D213: 16172537.48 | E213: 13237189.23 | F213: 12352748.84 | G213: 18288971.44 | H213: 18874276.78 | I213: 14918074.1 | J213: 16600610.12 | K213: 15835831.83 | L213: 12564050.44
C214: Distribution substations | D214: 2845953.061 | E214: 1321522.344 | F214: 1943769.704 | G214: 4495183.949 | H214: 3053785.646 | I214: 696009.6667 | J214: 797779.6822 | K214: 1455712.188 | L214: 1795948.205
C215: LV feeders | D215: 514951.1292 | E215: 444511.6616 | F215: 701295.0078 | G215: 1960575.889 | H215: 1912220.66 | I215: 1352886.896 | J215: 1624298.969 | K215: 2040905.905 | L215: 1957807.497
C216: Other assets | H216: 0 | I216: 0 | J216: 0 | K216: 0 | L216: 0
B217: CONNECTIONS | C217: Simple and complex customer connections | D217: 48364441.75 | E217: 48036153.19 | F217: 45102112.86 | G217: 39532607.41 | H217: 41964129.53 | I217: 40704414.09 | J217: 43334082.23 | K217: 49665329.66 | L217: 50888814.9
B218: EMERGENCY RESPONSE | C218: Major storms | D218: 0 | E218: 0 | F218: 0 | G218: 0 | H218: 0 | I218: 0 | J218: 0 | K218: 42937.08849 | L218: 142933.816
C219: Major event days | D219: 9944296.609 | E219: 9798851.174 | F219: 10787393.48 | G219: 11001058.65 | H219: 10453165.33 | I219: 9212779.254 | J219: 10078379.04 | K219: 6350838.876 | L219: 142933.816
B220: PUBLIC LIGHTING | C220: All public lighting services | D220: 4477420.51 | E220: 4884419.675 | F220: 4742696.405 | G220: 4553628.19 | H220: 5089984.525 | I220: 4418089.083 | J220: 4751147.732 | K220: 6014729.574 | L220: 6743734.252
B221: METERING | C221: All metering services | D221: 66518972.96 | E221: 84425430.85 | F221: 88957445.31 | G221: 97999017.12 | H221: 73848598.92 | I221: 54853341.11 | J221: 34330730.14 | K221: 4963403.222 | L221: 4841132.162
B222: FEE-BASED SERVICES | C222: All fee-based services | D222: 5631772.268 | E222: 8305291.177 | F222: 11039147.89 | G222: 10432007.19 | H222: 9125082.822 | I222: 6555786.11 | J222: 2957730.257 | K222: 3083414.147 | L222: 4253419.586
... 240 more rows

Sheet 4.1 Public lighting
B1: =INDEX(dms_Worksheet_List,MATCH(dms_Model,dms_Model_List)) -> HISTORICAL CATEGORY ANALYSIS - FINANCIAL YEARS
B2: =INDEX(dms_TradingNameFull_List,MATCH(dms_TradingName,dms_TradingName_List)) -> AusNet Electricity Services Pty Ltd
B3: =dms_Header_Span -> 2009-10 to 2017-18
B4: 4.1 PUBLIC LIGHTING
B6: There are THREE tables on this worksheet. Each table has been 'grouped' (and 'sub-grouped') for easy navigation. See the Instructions sheet on how to group or ungroup data.
B8: 4.1.1 - DESCRIPTOR METRICS OVER YEAR
C9: LIGHT TYPE | E9: VOLUMES (0's)
E10: =dms_y1 -> 2009-10 | F10: =dms_y2 -> 2010-11 | G10: =dms_y3 -> 2011-12 | H10: =dms_y4 -> 2012-13 | I10: =dms_y5 -> 2013-14 | J10: =dms_y6 -> 2014-15 | K10: =dms_y7 -> 2015-16 | L10: =dms_y8 -> 2016-17 | M10: =dms_y9 -> 2017-18
B11: POPULATION OF LIGHTS | C11: 250W Colour Corrected Mercury Vapour | E11: 1338.868702 | F11: 1336.606107 | G11: 1322.373181 | H11: 1267.135776 | I11: 1226.5 | J11: 1209.5 | K11: 1184.5 | L11: 1072 | M11: 954
C12: 400W Colour Corrected Mercury Vapour | E12: 298.1273396 | F12: 290.3820189 | G12: 284.6723953 | H12: 277.4177161 | I12: 272.5 | J12: 271 | K12: 261.5 | L12: 243.5 | M12: 232.5
C13: 150W High Pressure Sodium | E13: 14839.93114 | F13: 15975.79341 | G13: 16894.11434 | H13: 17775.25207 | I13: 18551 | J13: 19024.5 | K13: 19523 | L13: 20409.5 | M13: 21337.5
C14: 250W High Pressure Sodium | E14: 9820.584167 | F14: 10199.7525 | G14: 10481.77785 | H14: 10642.10952 | I14: 10857.5 | J14: 11135 | K14: 11447.5 | L14: 11766.5 | M14: 12132
C15: 400W High Pressure Sodium | E15: 570.8480205 | F15: 568.5440616 | G15: 577.9889065 | H15: 574.2928654 | I15: 583 | J15: 601 | K15: 600 | L15: 620 | M15: 637
C16: 150W Metal Halide | E16: 7.99998885 | F16: 23.99996655 | G16: 31.9999777 | H16: 32 | I16: 32 | J16: 32.5 | K16: 33 | L16: 33 | M16: 33
C17: 50W Colour Corrected Mercury Vapour | E17: 947.3799212 | F17: 744.1397635 | G17: 671.3881106 | H17: 690.6282683 | I17: 681 | J17: 558 | K17: 342.5 | L17: 233.5 | M17: 208
C18: 80W Colour Corrected Mercury Vapour | E18: 84778.13406 | F18: 88502.40218 | G18: 89166.35592 | H18: 87600.58781 | I18: 87400 | J18: 82212 | K18: 59451 | L18: 37036.5 | M18: 29434.5
C19: 125W Colour Corrected Mercury Vapour | E19: 967.7119438 | F19: 919.1358313 | G19: 905.9646297 | H19: 903.0407421 | I19: 890 | J19: 833.5 | K19: 635 | L19: 444.5 | M19: 370.5
C20: 50W High Pressure Sodium | E20: 29.38863752 | F20: 88.16591256 | G20: 622.777275 | H20: 611.5 | I20: 95 | J20: 95 | K20: 94.5 | L20: 47 | M20: 0
C21: 100W High Pressure Sodium | E21: 1573.340077 | F21: 2004.020231 | G21: 2333.513547 | H21: 2625.333393 | I21: 2858 | J21: 2979.5 | K21: 3066 | L21: 3122 | M21: 3174.5
C22: 20W Fluorescent | E22: 0 | F22: 0 | G22: 0 | H22: 0 | I22: 2 | J22: 2 | K22: 0 | L22: 0 | M22: 0
C23: 14W T5 Fluorescent | E23: 182.1125534 | F23: 546.3376602 | G23: 1983.895497 | H23: 4676.67039 | I23: 6353 | J23: 12272 | K23: 22880 | L23: 28448 | M23: 29188.5
C24: 24W T5 Fluorescent | E24: 21.03825667 | F24: 63.11477 | G24: 106.7448405 | H24: 262.6683271 | I24: 424.5 | J24: 741.5 | K24: 1713 | L24: 2557.5 | M24: 2730.5
C25: 32W Compact Fluorescent | E25: 226.9122541 | F25: 680.7367623 | G25: 1549.652264 | H25: 2409.827756 | I25: 2717 | J25: 2962.5 | K25: 3190 | L25: 3461.5 | M25: 3543
C26: 42W Compact Fluorescent | E26: 108.4983973 | F26: 325.4951919 | G26: 706.3333733 | H26: 1507.836579 | I26: 2233.5 | J26: 2715.5 | K26: 3453 | L26: 4127 | M26: 4463
C27: 70W Metal Halide | E27: 1.291647174 | F27: 3.874941523 | G27: 18.08346107 | H27: 31.00016672 | I27: 31 | J27: 31 | K27: 31 | L27: 31 | M27: 31
C28: 1000W Metal Halide
C29: 100W Metal Halide | E29: 2.500063335 | F29: 7.500190006 | G29: 22.00008002 | H29: 33.99995335 | I29: 34 | J29: 34 | K29: 34 | L29: 34 | M29: 34
C30: 20W LED
C31: 14W LED
C32: 18W LED | E32: 0 | F32: 0 | G32: 0 | H32: 0 | I32: 0 | J32: 0 | K32: 12737 | L32: 30874.5 | M32: 40574.5
B183: 4.1.2 - DESCRIPTOR METRICS ANNUALLY
B186: SERVICE/SERVICE QUALITY | C186: DESCRIPTOR METRIC | E186: VOLUMES & EXPENDITURE
D187: UNITS | E187: =dms_y1 -> 2009-10 | F187: =dms_y2 -> 2010-11 | G187: =dms_y3 -> 2011-12 | H187: =dms_y4 -> 2012-13 | I187: =dms_y5 -> 2013-14 | J187: =dms_y6 -> 2014-15 | K187: =dms_y7 -> 2015-16 | L187: =dms_y8 -> 2016-17 | M187: =dms_y9 -> 2017-18
B188: LIGHT INSTALLATION | C188: Major road light installation | D188: 0's | E188: 98.27517641 | F188: 99.67370441 | G188: 99.67370441 | H188: 99.67370441 | I188: 23.9075745 | J188: 110.1514402 | K188: 110.1238657 | L188: 0 | M188: 0
C189: Minor road light installation | D189: 0's | E189: 276.7648236 | F189: 260.4862956 | G189: 230.52 | H189: 156.68 | I189: 71.7976799 | J189: 312.343326 | K189: 312.2656461 | L189: 0 | M189: 0
C190: Number of poles installed | D190: 0's | E190: 326.44 | F190: 280.6 | G190: 269.84 | H190: 180.44 | I190: 83.66 | J190: 1274 | K190: 3295 | L190: 3175.5 | M190: 3106.5
C191: Total cost | D191: $0s | E191: 2760176.155 | F191: 2956187.145 | G191: 2092504 | H191: 1574861.045 | I191: 2264863.51 | J191: 2339108.811 | K191: 2387173.531 | L191: 3714231.661 | M191: 5097877.581
B192: LIGHT REPLACEMENT | C192: Major road light replacement | D192: 0's | E192: 630.5624004 | F192: 536.3052846 | G192: 638 | H192: 830 | I192: 971.5 | J192: 1080 | K192: 925 | L192: 947.5 | M192: 1109
C193: Minor road light replacement | D193: 0's | E193: 909.3773413 | F193: 953.5398703 | G193: 1048.333333 | H193: 1197 | I193: 1378.5 | J193: 1397.5 | K193: 1112 | L193: 970 | M193: 1223.5
C194: Number of poles replaced | D194: 0's | E194: 197.1380802 | F194: 169.4551688 | G194: 146.5114451 | H194: 114.5 | I194: 0.1865 | J194: 57.114 | K194: 159.5 | L194: 253 | M194: 343
C195: Total cost | D195: $0s | E195: 760895.755 | F195: 748808.94 | G195: 825496.05 | H195: 1001870.485 | I195: 1189363.345 | J195: 923034.71 | K195: 1727802.135 | L195: 2782652.503 | M195: 2267008.083
B196: LIGHT MAINTENANCE | C196: Major road light maintenance | D196: 0's | E196: 2162.812111 | F196: 2002.654593 | G196: 2744.166667 | H196: 3110 | I196: 2806 | J196: 2305 | K196: 2036 | L196: 2081.5 | M196: 2086.5
C197: Minor road light maintenance | D197: 0's | E197: 3060.622541 | F197: 3420.3006 | G197: 4522.5 | H197: 4401 | I197: 4318.5 | J197: 4801 | K197: 5017.5 | L197: 5074 | M197: 5963.5
C198: Number of poles installed | D198: 0's | E198: 0 | F198: 0 | G198: 0 | H198: 0 | I198: 0 | J198: 0 | K198: 0 | L198: 0 | M198: 0
C199: Total cost | D199: $0s | E199: 1600036.195 | F199: 1783734.59 | G199: 2246493.15 | H199: 2300760.45 | I199: 1986208.345 | J199: 1821735.46 | K199: 2004665.586 | L199: 2142434.651 | M199: 2652600.93
B200: QUALITY OF SUPPLY | C200: Mean days to rectify/replace public lighting assets | D200: days | E200: 3 | F200: 4.5 | G200: 3.5 | H200: 2 | I200: 1.57 | J200: 1.185 | K200: 1.834605126 | L200: 2.099605126 | M200: 1.57
C201: GSO breaches | D201: 0's | E201: 92 | F201: 227.5 | G201: 189 | H201: 68.5 | I201: 93 | J201: 115.5 | K201: 68.5 | L201: 38 | M201: 26
C202: GSL payments | D202: $0s | E202: 920 | F202: 970 | G202: 585 | H202: 685 | I202: 930 | J202: 470.685 | K202: 1007.5 | L202: 950 | M202: 650
C203: Customer complaints | D203: 0's | E203: 13.5 | F203: 17 | G203: 16 | H203: 10.5 | I203: 8 | J203: 8.5 | K203: 13 | L203: 12 | M203: 11.5
B206: 4.1.3 - COST METRICS
E207: AVERAGE UNIT COST ($)
B208: ACTIVITY TYPE | C208: LIGHT TYPE | E208: =dms_y1 -> 2009-10 | F208: =dms_y2 -> 2010-11 | G208: =dms_y3 -> 2011-12 | H208: =dms_y4 -> 2012-13 | I208: =dms_y5 -> 2013-14 | J208: =dms_y6 -> 2014-15 | K208: =dms_y7 -> 2015-16 | L208: =dms_y8 -> 2016-17 | M208: =dms_y9 -> 2017-18
B209: LIGHT INSTALLATION | C209: DNSP to enter description for type of light | E209: 0 | F209: 0 | G209: 0 | H209: 0 | I209: 0 | J209: 0 | K209: 0 | L209: 0 | M209: 0
C210: Major Road - all light types | E210: 544.2781118 | F210: 553.1222783 | G210: 563.4433333 | H210: 572.425 | I210: 583.4416667 | J210: 591.34 | K210: 591.335 | L210: 637.805 | M210: 777.2177273
C211: CC Mercury Vapour 250W | E211: 0 | F211: 0 | G211: 0 | H211: 0 | I211: 0 | J211: 0 | K211: 0 | L211: 0 | M211: 0
C212: CC Mercury Vapour 400W | E212: 0 | F212: 0 | G212: 0 | H212: 0 | I212: 0 | J212: 0 | K212: 0 | L212: 0 | M212: 0
C213: HP Sodium 150W | E213: 0 | F213: 0 | G213: 0 | H213: 0 | I213: 0 | J213: 0 | K213: 0 | L213: 0 | M213: 0
C214: HP Sodium 250W | E214: 0 | F214: 0 | G214: 0 | H214: 0 | I214: 0 | J214: 0 | K214: 0 | L214: 0 | M214: 0
C215: HP Sodium 400W | E215: 0 | F215: 0 | G215: 0 | H215: 0 | I215: 0 | J215: 0 | K215: 0 | L215: 0 | M215: 0
C216: metal halide 150W | E216: 0 | F216: 0 | G216: 0 | H216: 0 | I216: 0 | J216: 0 | K216: 0 | L216: 0 | M216: 0
C217: CC Mercury Vapour 125W | E217: 406.7817874 | F217: 413.3917277 | G217: 421.1061111 | H217: 426.7061111 | I217: 213.9616667 | J217: 0 | K217: 188.5 | L217: 377.145 | M217: 389.115
C218: CC Mercury Vapour 50W | E218: 406.7817874 | F218: 413.3917277 | G218: 421.1061111 | H218: 426.7061111 | I218: 213.9616667 | J218: 0 | K218: 188.5 | L218: 377.145 | M218: 389.115
C219: CC Mercury Vapour 80W | E219: 319.8952514 | F219: 325.0933419 | G219: 331.16 | H219: 336.4383333 | I219: 342.91 | J219: 347.55 | K219: 362.275 | L219: 377.145 | M219: 389.115
C220: Compact Fluorescent 32W | E220: 404.2145299 | F220: 410.782754 | G220: 418.4483333 | H220: 425.1166667 | I220: 433.295 | J220: 439.16 | K220: 460.08 | L220: 481.32 | M220: 496.73
C221: Compact Fluorescent 42W | E221: 404.2145299 | F221: 410.782754 | G221: 418.4483333 | H221: 425.1166667 | I221: 433.295 | J221: 439.16 | K221: 460.08 | L221: 481.32 | M221: 496.73
C222: Fluorescent 20W | E222: 406.7817874 | F222: 413.3917277 | G222: 421.1061111 | H222: 426.7061111 | I222: 433.5416667 | J222: 439.16 | K222: 460.08 | L222: 481.32 | M222: 496.73
C223: HP Sodium 100W | E223: 406.7817874 | F223: 413.3917277 | G223: 421.1061111 | H223: 426.7061111 | I223: 433.5416667 | J223: 439.16 | K223: 460.08 | L223: 481.32 | M223: 496.73
C224: HP Sodium 50W | E224: 406.7817874 | F224: 413.3917277 | G224: 421.1061111 | H224: 426.7061111 | I224: 433.5416667 | J224: 439.16 | K224: 460.08 | L224: 481.32 | M224: 496.73
C225: metal halide 100W | E225: 406.7817874 | F225: 413.3917277 | G225: 421.1061111 | H225: 426.7061111 | I225: 433.5416667 | J225: 439.16 | K225: 460.08 | L225: 481.32 | M225: 496.73
C226: metal halide 70W | E226: 406.7817874 | F226: 413.3917277 | G226: 421.1061111 | H226: 426.7061111 | I226: 433.5416667 | J226: 439.16 | K226: 460.08 | L226: 481.32 | M226: 496.73
C227: T5 Fluor 14W | E227: 496.2355809 | F227: 504.2990874 | G227: 513.71 | H227: 518.5633333 | I227: 528.605 | J227: 539.14 | K227: 543.07 | L227: 547.535 | M227: 565.24
C228: T5 Fluor 24W | E228: 496.2355809 | F228: 504.2990874 | G228: 513.71 | H228: 518.5633333 | I228: 528.605 | J228: 539.14 | K228: 543.07 | L228: 547.535 | M228: 565.24
C229: Other Minor | E229: 0 | F229: 0 | G229: 0 | H229: 0 | I229: 220.9761111 | J229: 441.9522222 | K229: 480.9761111 | L229: 520.3375 | M229: 536.99
C230: LED 20W | E230: 0 | F230: 0 | G230: 0 | H230: 0 | I230: 0 | J230: 0 | K230: 337.5 | L230: 675.35 | M230: 696.875
C231: LED 18W | E231: 0 | F231: 0 | G231: 0 | H231: 0 | I231: 0 | J231: 0 | K231: 337.5 | L231: 675.35 | M231: 696.875
B279: LIGHT REPLACEMENT | C279: DNSP to enter description for type of light
C280: Major Road - all light types | E280: 544.2781118 | F280: 553.1222783 | G280: 563.4433333 | H280: 572.425 | I280: 583.4416667 | J280: 591.34 | K280: 591.335 | L280: 637.805 | M280: 777.2177273
C281: CC Mercury Vapour 250W | E281: 0 | F281: 0 | G281: 0 | H281: 0 | I281: 0 | J281: 0 | K281: 0 | L281: 0 | M281: 0
C282: CC Mercury Vapour 400W | E282: 0 | F282: 0 | G282: 0 | H282: 0 | I282: 0 | J282: 0 | K282: 0 | L282: 0 | M282: 0
C283: HP Sodium 150W | E283: 0 | F283: 0 | G283: 0 | H283: 0 | I283: 0 | J283: 0 | K283: 0 | L283: 0 | M283: 0
C284: HP Sodium 250W | E284: 0 | F284: 0 | G284: 0 | H284: 0 | I284: 0 | J284: 0 | K284: 0 | L284: 0 | M284: 0
C285: HP Sodium 400W | E285: 0 | F285: 0 | G285: 0 | H285: 0 | I285: 0 | J285: 0 | K285: 0 | L285: 0 | M285: 0
C286: metal halide 150W | E286: 0 | F286: 0 | G286: 0 | H286: 0 | I286: 0 | J286: 0 | K286: 0 | L286: 0 | M286: 0
C287: CC Mercury Vapour 125W | E287: 406.7817874 | F287: 413.3917277 | G287: 421.1061111 | H287: 426.7061111 | I287: 213.9616667 | J287: 0 | K287: 188.5 | L287: 377.145 | M287: 389.115
C288: CC Mercury Vapour 50W | E288: 406.7817874 | F288: 413.3917277 | G288: 421.1061111 | H288: 426.7061111 | I288: 213.9616667 | J288: 0 | K288: 188.5 | L288: 377.145 | M288: 389.115
C289: CC Mercury Vapour 80W | E289: 319.8952514 | F289: 325.0933419 | G289: 331.16 | H289: 336.4383333 | I289: 342.91 | J289: 347.55 | K289: 362.275 | L289: 377.145 | M289: 389.115
C290: Compact Fluorescent 32W | E290: 404.2145299 | F290: 410.782754 | G290: 418.4483333 | H290: 425.1166667 | I290: 433.295 | J290: 439.16 | K290: 460.08 | L290: 481.32 | M290: 496.73
C291: Compact Fluorescent 42W | E291: 404.2145299 | F291: 410.782754 | G291: 418.4483333 | H291: 425.1166667 | I291: 433.295 | J291: 439.16 | K291: 460.08 | L291: 481.32 | M291: 496.73
C292: Fluorescent 20W | E292: 406.7817874 | F292: 413.3917277 | G292: 421.1061111 | H292: 426.7061111 | I292: 433.5416667 | J292: 439.16 | K292: 460.08 | L292: 481.32 | M292: 496.73
C293: HP Sodium 100W | E293: 406.7817874 | F293: 413.3917277 | G293: 421.1061111 | H293: 426.7061111 | I293: 433.5416667 | J293: 439.16 | K293: 460.08 | L293: 481.32 | M293: 496.73
C294: HP Sodium 50W | E294: 406.7817874 | F294: 413.3917277 | G294: 421.1061111 | H294: 426.7061111 | I294: 433.5416667 | J294: 439.16 | K294: 460.08 | L294: 481.32 | M294: 496.73
C295: metal halide 100W | E295: 406.7817874 | F295: 413.3917277 | G295: 421.1061111 | H295: 426.7061111 | I295: 433.5416667 | J295: 439.16 | K295: 460.08 | L295: 481.32 | M295: 496.73
C296: metal halide 70W | E296: 406.7817874 | F296: 413.3917277 | G296: 421.1061111 | H296: 426.7061111 | I296: 433.5416667 | J296: 439.16 | K296: 460.08 | L296: 481.32 | M296: 496.73
C297: T5 Fluor 14W | E297: 496.2355809 | F297: 504.2990874 | G297: 513.71 | H297: 518.5633333 | I297: 528.605 | J297: 539.14 | K297: 543.07 | L297: 547.535 | M297: 565.24
C298: T5 Fluor 24W | E298: 496.2355809 | F298: 504.2990874 | G298: 513.71 | H298: 518.5633333 | I298: 528.605 | J298: 539.14 | K298: 543.07 | L298: 547.535 | M298: 565.24
C299: Other Minor | E299: 0 | F299: 0 | G299: 0 | H299: 0 | I299: 220.9761111 | J299: 441.9522222 | K299: 480.9761111 | L299: 520.3375 | M299: 536.99
C300: LED 20W | E300: 0 | F300: 0 | G300: 0 | H300: 0 | I300: 0 | J300: 0 | K300: 337.5 | L300: 675.35 | M300: 696.875
C301: LED 18W | E301: 0 | F301: 0 | G301: 0 | H301: 0 | I301: 0 | J301: 0 | K301: 337.5 | L301: 675.35 | M301: 696.875
B349: LIGHT MAINTENANCE | C349: DNSP to enter description for type of light
C350: Major Road - all light types | E350: 277.7063279 | F350: 282.2188757 | G350: 287.485 | H350: 292.0666667 | I350: 297.6883333 | J350: 301.72 | K350: 301.525 | L350: 301.33 | M350: 343.885
C351: CC Mercury Vapour 250W | E351: 0 | F351: 0 | G351: 0 | H351: 0 | I351: 0 | J351: 0 | K351: 0 | L351: 0 | M351: 0
C352: CC Mercury Vapour 400W | E352: 0 | F352: 0 | G352: 0 | H352: 0 | I352: 0 | J352: 0 | K352: 0 | L352: 0 | M352: 0
C353: HP Sodium 150W | E353: 0 | F353: 0 | G353: 0 | H353: 0 | I353: 0 | J353: 0 | K353: 0 | L353: 0 | M353: 0
C354: HP Sodium 250W | E354: 0 | F354: 0 | G354: 0 | H354: 0 | I354: 0 | J354: 0 | K354: 0 | L354: 0 | M354: 0
C355: HP Sodium 400W | E355: 0 | F355: 0 | G355: 0 | H355: 0 | I355: 0 | J355: 0 | K355: 0 | L355: 0 | M355: 0
C356: metal halide 150W | E356: 0 | F356: 0 | G356: 0 | H356: 0 | I356: 0 | J356: 0 | K356: 0 | L356: 0 | M356: 0
C357: CC Mercury Vapour 125W | E357: 187.6863711 | F357: 190.736153 | G357: 194.2955556 | H357: 197.3811111 | I357: 99.22222222 | J357: 0 | K357: 106 | L357: 212.575 | M357: 239.955
C358: CC Mercury Vapour 50W | E358: 187.6863711 | F358: 190.736153 | G358: 194.2955556 | H358: 197.3788889 | I358: 99.22 | J358: 0 | K358: 106 | L358: 212.575 | M358: 239.955
C359: CC Mercury Vapour 80W | E359: 185.5746473 | F359: 188.590115 | G359: 192.11 | H359: 195.1716667 | I359: 198.9216667 | J359: 201.61 | K359: 206.805 | L359: 212.575 | M359: 239.955
C360: Compact Fluorescent 32W | E360: 189.4987443 | F360: 192.5779761 | G360: 196.1716667 | H360: 199.265 | I360: 203.0983333 | J360: 205.88 | K360: 212.94 | L360: 220.195 | M360: 227.295
C361: Compact Fluorescent 42W | E361: 189.4987443 | F361: 192.5779761 | G361: 196.1716667 | H361: 199.265 | I361: 203.0983333 | J361: 205.88 | K361: 212.94 | L361: 220.195 | M361: 227.295
C362: Fluorescent 20W | E362: 187.6863711 | F362: 190.736153 | G362: 194.2955556 | H362: 197.3811111 | I362: 202.1622222 | J362: 205.88 | K362: 212.94 | L362: 220.195 | M362: 227.295
C363: HP Sodium 100W | E363: 187.6863711 | F363: 190.736153 | G363: 194.2955556 | H363: 197.3811111 | I363: 202.1622222 | J363: 205.88 | K363: 212.94 | L363: 220.195 | M363: 227.295
C364: HP Sodium 50W | E364: 187.6863711 | F364: 190.736153 | G364: 194.2955556 | H364: 197.3811111 | I364: 202.1622222 | J364: 205.88 | K364: 212.94 | L364: 220.195 | M364: 227.295
C365: metal halide 100W | E365: 187.6863711 | F365: 190.736153 | G365: 194.2955556 | H365: 197.3811111 | I365: 202.1622222 | J365: 205.88 | K365: 212.94 | L365: 220.195 | M365: 227.295
C366: metal halide 70W | E366: 187.6863711 | F366: 190.736153 | G366: 194.2955556 | H366: 197.3811111 | I366: 202.1622222 | J366: 205.88 | K366: 212.94 | L366: 220.195 | M366: 227.295
C367: T5 Fluor 14W | E367: 187.9857218 | F367: 191.0403679 | G367: 194.605 | H367: 197.7066667 | I367: 201.5066667 | J367: 204.23 | K367: 210.115 | L367: 216.495 | M367: 223.79
C368: T5 Fluor 24W | E368: 187.9857218 | F368: 191.0403679 | G368: 194.605 | H368: 197.7066667 | I368: 201.5066667 | J368: 204.23 | K368: 210.115 | L368: 216.495 | M368: 223.79
C369: Other Minor | E369: 0 | F369: 0 | G369: 0 | H369: 0 | I369: 101.9566667 | J369: 203.9133333 | K369: 209.4566667 | L369: 215.46 | M369: 232.74875
C370: LED 20W | E370: 0 | F370: 0 | G370: 0 | H370: 0 | I370: 0 | J370: 0 | K370: 106 | L370: 212.575 | M370: 239.955
C371: LED 18W | E371: 0 | F371: 0 | G371: 0 | H371: 0 | I371: 0 | J371: 0 | K371: 106 | L371: 212.575 | M371: 239.955

Sheet 4.2 Metering
B1: =INDEX(dms_Worksheet_List,MATCH(dms_Model,dms_Model_List)) -> HISTORICAL CATEGORY ANALYSIS - FINANCIAL YEARS
B2: =INDEX(dms_TradingNameFull_List,MATCH(dms_TradingName,dms_TradingName_List)) -> AusNet Electricity Services Pty Ltd
B3: =dms_Header_Span -> 2009-10 to 2017-18
B4: 4.2 METERING
B6: There are TWO tables on this worksheet. Each table has been 'grouped' (and 'sub-grouped') for easy navigation. See the Instructions sheet on how to group or ungroup data.
B8: 4.2.1 - METERING DESCRIPTOR METRIC
D9: VOLUMES (0's)
B10: ASSET CATEGORY | C10: ASSET SUBCATEGORY | D10: =dms_y1 -> 2009-10 | E10: =dms_y2 -> 2010-11 | F10: =dms_y3 -> 2011-12 | G10: =dms_y4 -> 2012-13 | H10: =dms_y5 -> 2013-14 | I10: =dms_y6 -> 2014-15 | J10: =dms_y7 -> 2015-16 | K10: =dms_y8 -> 2016-17 | L10: =dms_y9 -> 2017-18
B11: Meter Type 4 | C11: Single phase meter population | D11: 38057 | E11: 104720 | F11: 150947 | G11: 165216.5 | H11: 368317 | I11: 576250.5 | J11: 587155.5 | K11: 593858.5 | L11: 603444.5
C12: Multi phase meter population | D12: 0 | E12: 0 | F12: 16953 | G12: 55444.5 | H12: 104716.5 | I12: 131226.5 | J12: 130595.5 | K12: 131024.5 | L12: 132626
C13: Current transformer connected meter population | D13: 0 | E13: 44.5 | F13: 44.5 | G13: 1119 | H13: 2921.5 | I13: 3758 | J13: 3868 | K13: 3905 | L13: 4097.5
C14: Direct connect meter population | D14: 38057 | E14: 104675.5 | F14: 167855.5 | G14: 219542 | H14: 470112 | I14: 703719 | J14: 713883 | K14: 720978 | L14: 731973
B15: Meter Type 5 | C15: Single phase meter population | D15: 6660.5 | E15: 4178 | F15: 149 | G15: 206.5 | H15: 2814.5 | I15: 4566 | J15: 2316 | K15: 1021.5 | L15: 2032.5
C16: Multi phase meter population | D16: 4118 | E16: 2099.5 | F16: 44 | G16: 0 | H16: 0 | I16: 11.5 | J16: 347.5 | K16: 585 | L16: 529
C17: Current transformer connected meter population | D17: 189.5 | E17: 142.5 | F17: 44 | G17: 0 | H17: 0 | I17: 11.5 | J17: 97.5 | K17: 135.5 | L17: 76.5
C18: Direct connect meter population | D18: 10589 | E18: 6135 | F18: 149 | G18: 206.5 | H18: 2814.5 | I18: 4566 | J18: 2566 | K18: 1471 | L18: 2485
B19: Meter Type 6 | C19: Single phase meter population | D19: 11825 | E19: 6749.5 | F19: 2212 | G19: 1964.5 | H19: 3173 | I19: 7304.5 | J19: 8468.5 | K19: 11790 | L19: 13174.5
C20: Multi phase meter population | D20: 0 | E20: 901 | F20: 901 | G20: 0 | H20: 0 | I20: 0 | J20: 2096 | K20: 5228 | L20: 5480.5
C21: Current transformer connected meter population | D21: 0 | E21: 0.5 | F21: 0.5 | G21: 0 | H21: 0 | I21: 0 | J21: 29 | K21: 102 | L21: 107
C22: Direct connect meter population | D22: 11825 | E22: 7650 | F22: 3112.5 | G22: 1964.5 | H22: 3173 | I22: 7304.5 | J22: 10535.5 | K22: 16916 | L22: 18548
B25: 4.2.2 - COST METRICS
B26: EXPENDITURE
D27: EXPENDITURE ($0's)
B28: SERVICE SUBCATEGORY | C28: METER TYPE | D28: =dms_y1 -> 2009-10 | E28: =dms_y2 -> 2010-11 | F28: =dms_y3 -> 2011-12 | G28: =dms_y4 -> 2012-13 | H28: =dms_y5 -> 2013-14 | I28: =dms_y6 -> 2014-15 | J28: =dms_y7 -> 2015-16 | K28: =dms_y8 -> 2016-17 | L28: =dms_y9 -> 2017-18
B29: Meter purchase | C29: Meter Type 4 | D29: 17861344.32 | E29: 51612559.29 | F29: 68382285.86 | G29: 63852789.24 | H29: 42850518.33 | I29: 16243080.95 | J29: 6262506.291 | K29: 5156042.16 | L29: 4801484.54
C30: Meter Type 5 | D30: 0 | E30: 0 | F30: 0 | G30: 0 | H30: 0 | I30: 0 | J30: 0 | K30: 0 | L30: 0
C31: Meter Type 6 | D31: 0 | E31: 0 | F31: 0 | G31: 0 | H31: 0 | I31: 0 | J31: 0 | K31: 0 | L31: 0
B32: Meter testing | C32: Meter Type 4 | D32: 0 | E32: 8.930143278 | F32: 3814.634302 | G32: 57305.22556 | H32: 223380.785 | I32: 323464.2017 | J32: 236850.1229 | K32: 226821.9669 | L32: 183706.4121
C33: Meter Type 5 | D33: 0 | E33: 198.8446221 | F33: 50631.11013 | G33: 124762.035 | H33: 82731.64834 | I33: 15413.73314 | J33: 7216.561632 | K33: 1517.70836 | L33: 1313.001057
C34: Meter Type 6 | D34: 91123.55666 | E34: 67291.17523 | F34: 3549.994112 | G34: 9880.32344 | H34: 134373.4989 | I34: 228743.2053 | J34: 106801.3928 | K34: 65541.54639 | L34: 95179.75908
B35: Meter investigation | C35: Meter Type 4 | D35: 0 | E35: 14551.91964 | F35: 34907.66934 | G35: 247850.9493 | H35: 319257.2462 | I35: 187324.7637 | J35: 572404.8639 | K35: 1719378.813 | L35: 1583680.409
C36: Meter Type 5 | D36: 0 | E36: 324022.9045 | F36: 593772.3466 | G36: 585820.7883 | H36: 320609.6548 | I36: 8901.240161 | J36: 5535.218965 | K36: 2922.955459 | L36: 1750.668076
C37: Meter Type 6 | D37: 439733.6783 | E37: 472240.7759 | F37: 153023.8055 | G37: 45815.8984 | H37: 96387.73961 | I37: 131827.6049 | J37: 97176.90119 | K37: 55475.76907 | L37: 25025.76976
B38: Scheduled meter reading | C38: Meter Type 4 | D38: 0 | E38: 73015.79273 | F38: 235843.9935 | G38: 977356.0009 | H38: 814527.8002 | I38: 0 | J38: 0 | K38: 0 | L38: 0
C39: Meter Type 5 | D39: 0 | E39: 1625819.123 | F39: 3783578.82 | G39: 3289427.085 | H39: 1248964.728 | I39: 292103.7688 | J39: 230932.5502 | K39: 86035.10954 | L39: 1201788.002
C40: Meter Type 6 | D40: 3918255.575 | E40: 2641995.219 | F40: 823110.2012 | G40: 245992.1237 | H40: 1661231.046 | I40: 3776959.808 | J40: 3382277.139 | K40: 1687887.673 | L40: 559737.8978
B41: Special meter reading | C41: Meter Type 4 | D41: 0 | E41: 59098.55618 | F41: 200241.3735 | G41: 889536.6214 | H41: 1709207.878 | I41: 2107208.296 | J41: 2526687.686 | K41: 2228481.749 | L41: 1047144.551
C42: Meter Type 5 | D42: 0 | E42: 1315928.503 | F42: 3186318.774 | G42: 2910174.134 | H42: 1087303.19 | I42: 99858.14452 | J42: 55732.18439 | K42: 10364.73295 | L42: 93274.17261
C43: Meter Type 6 | D43: 3156966.77 | E43: 2193101.001 | F43: 674740.1672 | G43: 218306.73 | H43: 813427.6326 | I43: 1475994.143 | J43: 852046.8623 | K43: 278742.3276 | L43: 623394.1659
B44: New meter installation | C44: Meter Type 4 | D44: 0 | E44: 541119.2076 | F44: 1366465.613 | G44: 1628512.474 | H44: 803166.0689 | I44: 0 | J44: 0 | K44: 0 | L44: 0
C45: Meter Type 5 | D45: 816104.6111 | E45: 129596.0999 | F45: 0 | G45: 0 | H45: 0 | I45: 0 | J45: 0 | K45: 0 | L45: 0
C46: Meter Type 6 | D46: 2439229.299 | E46: 405306.9221 | F46: 0 | G46: 0 | H46: 0 | I46: 0 | J46: 0 | K46: 0 | L46: 0
B47: Meter replacement | C47: Meter Type 4 | D47: 3507832.56 | E47: 7675319.768 | F47: 15858362.34 | G47: 28234841.4 | H47: 23996239.3 | I47: 8762426.216 | J47: 2579292.66 | K47: 469521.2165 | L47: 112035.7685
C48: Meter Type 5 | D48: 1388746.657 | E48: 341973.9547 | F48: 21128.16654 | G48: 26187.86822 | H48: 8589.612008 | I48: 0 | J48: 0 | K48: 54096.8849 | L48: 283407.7635
C49: Meter Type 6 | D49: 242905.0915 | E49: 177707.8079 | F49: 304445.46 | G49: 248304.2052 | H49: 77754.66174 | I49: 0 | J49: 0 | K49: 969845.0536 | L49: 2398531.478
B50: Meter maintenance | C50: Meter Type 4 | D50: 0 | E50: 1526.995746 | F50: 3237.435228 | G50: 31159.07808 | H50: 153542.3229 | I50: 233633.2613 | J50: 278539.7174 | K50: 1168799.926 | L50: 1559251.031
C51: Meter Type 5 | D51: 0 | E51: 34001.12211 | F51: 56667.44995 | G51: 63580.90918 | H51: 47051.92736 | I51: 11138.39345 | J51: 5416.52398 | K51: 6221.260344 | L51: 5805.783789
C52: Meter Type 6 | D52: 166032.945 | E52: 56010.76715 | F52: 15669.69483 | G52: 5088.357742 | H52: 97001.7369 | I52: 165352.6972 | J52: 84096.79316 | K52: 32152.74029 | L52: 19936.84245
B53: Remote meter reading | C53: Meter Type 4 | D53: 0 | E53: 0 | F53: 0 | G53: 3500 | H53: 420295.5 | I53: 975149.12 | J53: 1690208.825 | K53: 2998334.785 | L53: 2793076.355
B54: Remote meter re-configuration | C54: Meter Type 4 | D54: 0 | E54: 0 | F54: 0 | G54: 0 | H54: 0 | I54: 0 | J54: 0 | K54: 16554.77036 | L54: 29019.05021
B55: Other metering | C55: Meter Type 4 | D55: 22171714.78 | E55: 25789772.02 | F55: 23787770.5 | G55: 19570649.31 | H55: 14188690.7 | I55: 9620610.233 | J55: 9296047.663 | K55: 8695226.188 | L55: 7224651.843
C56: Meter Type 5 | D56: 0 | E56: 0 | F56: 0 | G56: 0 | H56: 0 | I56: 0 | J56: 0 | K56: 428871.0118 | L56: 428871.0118
C57: Meter Type 6 | D57: 0 | E57: 0 | F57: 0 | G57: 0 | H57: 0 | I57: 0 | J57: 0 | K57: 0 | L57: 0
C58: Meter Type 7 | D58: 0 | E58: 0 | F58: 0 | G58: 0 | H58: 0 | I58: 0 | J58: 0 | K58: 0 | L58: 0
B59: IT infrastructure capex | C59: Meter Type 4 | D59: 32642029 | E59: 31029736.79 | F59: 23937309.25 | G59: 16839503.31 | H59: 12609105.38 | I59: 29015659.62 | J59: 53674126.82 | K59: 33664317.75 | L59: 914975.205
B60: IT infrastructure opex | C60: Meter Type 4 | D60: 2576136.594 | E60: 4235182.926 | F60: 4546768.581 | G60: 5392177.185 | H60: 11123224.16 | I60: 14781309.8 | J60: 11885647.59 | K60: 9020346.399 | L60: 7630531.899
B61: Communications infrastructure capex | C61: Meter Type 4 | D61: 4822710.695 | E61: 8858115.26 | F61: 16896597.43 | G61: 28145813.35 | H61: 17967807.31 | I61: 4401770.065 | J61: 9897308.849 | K61: 8646355.31 | L61: 3278611.02
B62: Communications infrastructure opex | C62: Meter Type 4 | D62: 530445.36 | E62: 1661115.35 | F62: 3107804.825 | G62: 5580179.275 | H62: 7883721.587 | I62: 8808413.22 | J62: 7091946.095 | K62: 4821147.804 | L62: 3939599.928
B64: VOLUMES
D65: VOLUMES (0's)
D66: =dms_y1 -> 2009-10 | E66: =dms_y2 -> 2010-11 | F66: =dms_y3 -> 2011-12 | G66: =dms_y4 -> 2012-13 | H66: =dms_y5 -> 2013-14 | I66: =dms_y6 -> 2014-15 | J66: =dms_y7 -> 2015-16 | K66: =dms_y8 -> 2016-17 | L66: =dms_y9 -> 2017-18
B67: Meter purchase | C67: Meter Type 4 | D67: 45476.5 | E67: 149773 | F67: 192286.5 | G67: 215966.5 | H67: 130488.5 | I67: 2160 | J67: 12600.5 | K67: 37272 | L67: 69478.5
C68: Meter Type 5 | D68: 0 | E68: 0 | F68: 0 | G68: 0 | H68: 0 | I68: 0 | J68: 0 | K68: 0 | L68: 0
C69: Meter Type 6 | D69: 0 | E69: 0 | F69: 0 | G69: 0 | H69: 0 | I69: 0 | J69: 0 | K69: 0 | L69: 0
B70: Meter testing | C70: Meter Type 4 | D70: 0 | E70: 0 | F70: 4.946289624 | G70: 24.87278931 | H70: 272.0492778 | I70: 529.7594491 | J70: 481.8717723 | K70: 368.2351013 | L70: 231
C71: Meter Type 5 | D71: 0 | E71: 0 | F71: 65.54702656 | G71: 93.23198692 | H71: 40.15428737 | I71: 25.14487493 | J71: 13.17764749 | K71: 2.002099561 | L71: 1.5
C72: Meter Type 6 | D72: 125 | E72: 0 | F72: 4.506683813 | G72: 6.895223768 | H72: 192.2964349 | I72: 372.095676 | J72: 196.9505802 | K72: 82.76279918 | L72: 127.5
B73: Meter investigation | C73: Meter Type 4 | D73: 0 | E73: 16.28835986 | F73: 59.55190643 | G73: 348.1389918 | H73: 441.0605762 | I73: 308.9368374 | J73: 1342.334951 | K73: 2589.083245 | L73: 2820.5
C74: Meter Type 5 | D74: 0 | E74: 362.6876591 | F74: 936.0056514 | G74: 996.8978858 | H74: 430.3152505 | I74: 14.62236465 | J74: 10.76235679 | K74: 4.875349192 | L74: 2
C75: Meter Type 6 | D75: 663.5 | E75: 522.0239811 | F75: 189.9424422 | G75: 75.9631224 | H75: 139.1241733 | I75: 215.940798 | J75: 197.9026918 | K75: 108.5414058 | L75: 40.5
B76: Scheduled meter reading | C76: Meter Type 4 | D76: 0 | E76: 48164.31095 | F76: 149709.1308 | G76: 504754.3528 | H76: 403209.5329 | I76: 0 | J76: 0 | K76: 0 | L76: 0
C77: Meter Type 5 | D77: 0 | E77: 1072459.188 | F77: 2418106.433 | G77: 1905847.988 | H77: 605774.7433 | I77: 90376 | J77: 48946 | K77: 6202 | L77: 46632.5
C78: Meter Type 6 | D78: 3134414 | E78: 2028155.501 | F78: 537615.9361 | G78: 140851.6591 | H78: 655841.7238 | I78: 1174784 | J78: 668826 | K78: 137262 | L78: 37260.5
B79: Special meter reading | C79: Meter Type 4 | D79: 0 | E79: 3175.095062 | F79: 10755.97639 | G79: 55627.05958 | H79: 111586.3882 | I79: 130055.7866 | J79: 158950.8017 | K79: 118228.7251 | L79: 30293.5
C80: Meter Type 5 | D80: 0 | E80: 70698.8184 | F80: 171158.8132 | G80: 167213.1407 | H80: 69895.67691 | I80: 6179.310645 | J80: 3264.025977 | K80: 439.2463724 | L80: 2164
C81: Meter Type 6 | D81: 196166.6364 | E81: 129423.3229 | F81: 36248.81042 | G81: 12666.29976 | H81: 53619.93487 | I81: 91508.90271 | J81: 50329.6723 | K81: 12124.02857 | L81: 15494.5
B82: New meter installation | C82: Meter Type 4 | D82: 0 | E82: 6745 | F82: 13733 | G82: 12364.5 | H82: 5376.5 | I82: 0 | J82: 0 | K82: 0 | L82: 0
C83: Meter Type 5 | D83: 3522.5 | E83: 1726 | F83: 0 | G83: 0 | H83: 0 | I83: 0 | J83: 0 | K83: 0 | L83: 0
C84: Meter Type 6 | D84: 10720.5 | E84: 5398 | F84: 0 | G84: 0 | H84: 0 | I84: 0 | J84: 0 | K84: 0 | L84: 0
B85: Meter replacement | C85: Meter Type 4 | D85: 38057 | E85: 104713.255 | F85: 167886.267 | G85: 220648.6355 | H85: 142184.6235 | I85: 22311.5 | J85: 3378 | K85: 1744.5 | L85: 152
C86: Meter Type 5 | D86: 7256 | E86: 4551.5 | F86: 193 | G86: 206.5 | H86: 58.5 | I86: 1 | J86: 0 | K86: 166.5 | L86: 440
C87: Meter Type 6 | D87: 1104.5 | E87: 2252.5 | F87: 3113 | G87: 1964.5 | H87: 520.5 | I87: 0 | J87: 0 | K87: 2985 | L87: 4689
B88: Meter maintenance | C88: Meter Type 4 | D88: 0 | E88: 101.3446677 | F88: 352.8799827 | G88: 1326.569973 | H88: 1259.203552 | I88: 382.1870064 | J88: 612.5362792 | K88: 4978.018167 | L88: 4625
C89: Meter Type 5 | D89: 0 | E89: 2256.609051 | F89: 5589.893842 | G89: 4826.888402 | H89: 1502.712119 | I89: 18.14905682 | J89: 10.0596172 | K89: 27.51906767 | L89: 26.5
C90: Meter Type 6 | D90: 636 | E90: 1572.546281 | F90: 1165.726175 | G90: 358.0416247 | H90: 267.5843293 | I90: 268.6639367 | J90: 159.9041036 | K90: 120.9627655 | L90: 91
B91: Remote meter reading | C91: Meter Type 4 | D91: 0 | E91: 38057 | F91: 58036.5 | G91: 212870 | H91: 390950 | I91: 411036.5 | J91: 555877.5 | K91: 718682 | L91: 748709
B92: Remote meter re-configuration | C92: Meter Type 4 | D92: 0 | E92: 0 | F92: 0 | G92: 0 | H92: 0 | I92: 0 | J92: 0 | K92: 3333 | L92: 8349.5

Sheet 4.3 Fee-based services
B1: =INDEX(dms_Worksheet_List,MATCH(dms_Model,dms_Model_List)) -> HISTORICAL CATEGORY ANALYSIS - FINANCIAL YEARS
B2: =INDEX(dms_TradingNameFull_List,MATCH(dms_TradingName,dms_TradingName_List)) -> AusNet Electricity Services Pty Ltd
B3: =dms_Header_Span -> 2009-10 to 2017-18
B4: 4.3 ANCILLARY SERVICES - FEE BASED SERVICES
B6: There is ONE table on this worksheet. The COLUMNS AND ROWS have been 'grouped' for easy navigation. See the Instructions sheet on how to group or ungroup data.
B8: 4.3.1 - COST METRICS FOR FEE-BASED SERVICES
B9: COMMON FEE-BASED SERVICES
C10: EXPENDITURE ($0's) | L10: VOLUMES (0's)
B11: SERVICE SUBCATEGORY | C11: =dms_y1 -> 2009-10 | D11: =dms_y2 -> 2010-11 | E11: =dms_y3 -> 2011-12 | F11: =dms_y4 -> 2012-13 | G11: =dms_y5 -> 2013-14 | H11: =dms_y6 -> 2014-15 | I11: =dms_y7 -> 2015-16 | J11: =dms_y8 -> 2016-17 | K11: =dms_y9 -> 2017-18 | L11: =dms_y1 -> 2009-10 | M11: =dms_y2 -> 2010-11 | N11: =dms_y3 -> 2011-12 | O11: =dms_y4 -> 2012-13 | P11: =dms_y5 -> 2013-14 | Q11: =dms_y6 -> 2014-15 | R11: =dms_y7 -> 2015-16 | S11: =dms_y8 -> 2016-17 | T11: =dms_y9 -> 2017-18
B12: Energisation | C12: 0 | D12: 0 | E12: 0 | F12: 0 | G12: 0 | H12: 0 | I12: 0 | J12: 0 | K12: 0 | L12: 0 | M12: 0 | N12: 0 | O12: 0 | P12: 0 | Q12: 0 | R12: 0 | S12: 0 | T12: 0
B13: De-energisation | C13: 0 | D13: 0 | E13: 0 | F13: 0 | G13: 0 | H13: 0 | I13: 0 | J13: 0 | K13: 0 | L13: 0 | M13: 0 | N13: 0 | O13: 0 | P13: 0 | Q13: 0 | R13: 0 | S13: 0 | T13: 0
B14: Re-energisation | C14: 0 | D14: 0 | E14: 0 | F14: 0 | G14: 0 | H14: 0 | I14: 0 | J14: 0 | K14: 0 | L14: 0 | M14: 0 | N14: 0 | O14: 0 | P14: 0 | Q14: 0 | R14: 0 | S14: 0 | T14: 0
B15: MISCELLANEOUS FEE-BASED SERVICES
B16: < Enter description of service >
B17: service truck visits | C17: 551858.9241 | D17: 2285939.982 | E17: 2999847.441 | F17: 2077178.427 | G17: 2067274.914 | H17: 1945034.392 | I17: 2089242.494 | J17: 2071564.002 | K17: 2193881.384 | L17: 6731 | M17: 11719 | N17: 12295 | O17: 8642.5 | P17: 8615 | Q17: 8186.5 | R17: 7656 | S17: 7271.5 | T17: 7426.5
B18: field officer visits | C18: 4441617.038 | D18: 3967119.676 | E18: 3626270.591 | F18: 4015421.224 | G18: 3968802.207 | H18: 3893197.161 | I18: 3371474.879 | J18: 2431395.924 | K18: 1763812.89 | L18: 168630.5 | M18: 184431 | N18: 205618 | O18: 219731.5 | P18: 214823 | Q18: 208406 | R18: 213065 | S18: 209978 | T18: 210502.5
B19: meter equipment tests | C19: 1167784.071 | D19: 2112562.572 | E19: 3981564.885 | F19: 4273969.527 | G19: 3674632.765 | H19: 3412624.569 | I19: 2463924.698 | J19: 1723061.41 | K19: 1804648.413 | L19: 8196.5 | M19: 19096 | N19: 32140 | O19: 32557.5 | P19: 25824.5 | Q19: 22972 | R19: 11942.5 | S19: 8272 | T19: 10999
B20: new connections | C20: 1082863.408 | D20: 2064218.557 | E20: 2809169.357 | F20: 2469450.102 | G20: 2470732.572 | H20: 2731132.756 | I20: 3177897.47 | J20: 3601430.332 | K20: 5369075.047 | L20: 16256.5 | M20: 16895.5 | N20: 15589.5 | O20: 13519.5 | P20: 13400.5 | Q20: 14743.5 | R20: 15310 | S20: 15958.5 | T20: 17110.5

Sheet 4.4 Quoted services
B1: =INDEX(dms_Worksheet_List,MATCH(dms_Model,dms_Model_List)) -> HISTORICAL CATEGORY ANALYSIS - FINANCIAL YEARS
B2: =INDEX(dms_TradingNameFull_List,MATCH(dms_TradingName,dms_TradingName_List)) -> AusNet Electricity Services Pty Ltd
B3: =dms_Header_Span -> 2009-10 to 2017-18
B4: 4.4 ANCILLARY SERVICES - QUOTED SERVICES
B6: There is ONE table on this worksheet. The COLUMNS have been 'grouped' for easy navigation. See the Instructions sheet on how to group or ungroup data.
B8: 4.4.1 - COST METRICS FOR QUOTED SERVICES
B9: SERVICE SUBCATEGORY | C9: EXPENDITURE ($0's) | L9: VOLUMES (0's)
C10: =dms_y1 -> 2009-10 | D10: =dms_y2 -> 2010-11 | E10: =dms_y3 -> 2011-12 | F10: =dms_y4 -> 2012-13 | G10: =dms_y5 -> 2013-14 | H10: =dms_y6 -> 2014-15 | I10: =dms_y7 -> 2015-16 | J10: =dms_y8 -> 2016-17 | K10: =dms_y9 -> 2017-18 | L10: =dms_y1 -> 2009-10 | M10: =dms_y2 -> 2010-11 | N10: =dms_y3 -> 2011-12 | O10: =dms_y4 -> 2012-13 | P10: =dms_y5 -> 2013-14 | Q10: =dms_y6 -> 2014-15 | R10: =dms_y7 -> 2015-16 | S10: =dms_y8 -> 2016-17 | T10: =dms_y9 -> 2017-18
B11: < Enter description for service subcategory >
B12: recoverable works | C12: 362096.8523 | D12: 611447.6475 | E12: 882019.0194 | F12: 800359.0327 | G12: 602179.0691 | H12: 571469.4521 | I12: 521490.9579 | J12: 403412.0034 | K12: 2246759.738 | L12: 258 | M12: 295.5 | N12: 335 | O12: 347 | P12: 361 | Q12: 282.5 | R12: 208.5 | S12: 166.5 | T12: 198

Sheet 5.3 MD - Network level
B1: =INDEX(dms_Worksheet_List,MATCH(dms_Model,dms_Model_List)) -> HISTORICAL CATEGORY ANALYSIS - FINANCIAL YEARS
B2: =INDEX(dms_TradingNameFull_List,MATCH(dms_TradingName,dms_TradingName_List)) -> AusNet Electricity Services Pty Ltd
B3: =dms_Header_Span -> 2009-10 to 2017-18
B4: 5.3 MAXIMUM DEMAND AT NETWORK LEVEL
B7: 5.3.1 - RAW AND WEATHER CORRECTED COINCIDENT MD AT NETWORK LEVEL (Summed at transmission connection point)
D8: VOLUMES (0's)
C9: UNIT | D9: =dms_y1 -> 2009-10 | E9: =dms_y2 -> 2010-11 | F9: =dms_y3 -> 2011-12 | G9: =dms_y4 -> 2012-13 | H9: =dms_y5 -> 2013-14 | I9: =dms_y6 -> 2014-15 | J9: =dms_y7 -> 2015-16 | K9: =dms_y8 -> 2016-17 | L9: =dms_y9 -> 2017-18
B10: Raw network coincident MD | C10: MW | D10: 1845.744944 | E10: 1741.144796 | F10: 1755.977996 | G10: 1770.811196 | H10: 1875.120232 | I10: 1873.243646 | J10: 1871.36706 | K10: 1669.974104 | L10: 1732.0895
B11: Date MD occurred | D11: 2010-01-11 | E11: 2011-02-01 | F11: 2012-01-18T12:00:00 | G11: 2013-01-04 | H11: 2014-01-17 | I11: 2015-01-15T08:30:00 | J11: 2016-01-13T17:00:00 | K11: 2017-01-23 | L11: 2018-01-19
B12: Half hour time period MD occurred | D12: 16:30:00 | E12: 13:30:00 | F12: 15:30:00 | G12: 17:30:00 | H12: 16:45:00 | I12: 21191.70312 | J12: 42382.70833 | K12: 17:30:00 | L12: 17:00:00
B13: Winter/summer peaking | D13: SUMMER | E13: SUMMER | F13: SUMMER | G13: SUMMER | H13: Summer | I13: SUMMER | J13: Summer | K13: Summer | L13: Summer
B14: Embedded generation | C14: MW | D14: 327.722324 | E14: 368.564508 | F14: 322.003214 | G14: 275.44192 | H14: 280.548996 | I14: 285.330046 | J14: 290.111096 | K14: 133.554372 | L14: 189.354676
B15: Weather corrected (10% POE) network coincident MD | C15: MW | J15: 1892.415693 | K15: 1993.348494 | L15: 1800.086466
B16: Weather corrected (50% POE) network coincident MD | C16: MW | J16: 1694.154566 | K16: 1784.513026 | L16: 1611.498318

Sheet 5.4 MD & utilisation-Spatial
B1: =INDEX(dms_Worksheet_List,MATCH(dms_Model,dms_Model_List)) -> HISTORICAL CATEGORY ANALYSIS - FINANCIAL YEARS
B2: =INDEX(dms_TradingNameFull_List,MATCH(dms_TradingName,dms_TradingName_List)) -> AusNet Electricity Services Pty Ltd
B3: =dms_Header_Span -> 2009-10 to 2017-18
B4: 5.4 MAXIMUM DEMAND AND UTILISATION AT SPATIAL LEVEL
B6: There are two tables on this worksheet. The tables have been sub-grouped for ease of navigation. See the Instructions sheet on how to group or ungroup tables.
B8: 5.4.1 - NON-COINCIDENT & COINCIDENT MAXIMUM DEMAND
B9: SUBTRANSMISSION SUBSTATION
F10: VOLUMES
B11: SUBSTATION | C11: FORECASTING ELEMENTS | D11: UNIT | E11: MAX DEMAND | F11: =dms_y1 -> 2009-10 | G11: =dms_y2 -> 2010-11 | H11: =dms_y3 -> 2011-12 | I11: =dms_y4 -> 2012-13 | J11: =dms_y5 -> 2013-14 | K11: =dms_y6 -> 2014-15 | L11: =dms_y7 -> 2015-16 | M11: =dms_y8 -> 2016-17 | N11: =dms_y9 -> 2017-18
B12: <Enter substation name> | C12: Substation Rating | D12: MVA | E12: Non-Coincident
E13: Coincident
C14: Raw Adjusted MD | D14: MW | E14: Non-Coincident
E15: Coincident
C16: Raw Adjusted MD | D16: MVA | E16: Non-Coincident
E17: Coincident
C18: Date MD occurred | E18: Non-Coincident
E19: Coincident
C20: Half hour time period MD occurred | E20: Non-Coincident
E21: Coincident
C22: Winter/Summer Peaking | E22: Non-Coincident
E23: Coincident
C24: Adjustments - Embedded generation | D24: MW | E24: Non-Coincident
E25: Coincident
C26: Weather Corrected 10% POE | D26: MW | E26: Non-Coincident
E27: Coincident
C28: Weather Corrected MD 10% POE | D28: MVA | E28: Non-Coincident
E29: Coincident
C30: Weather Corrected MD 50% POE | D30: MW | E30: Non-Coincident
E31: Coincident
C32: Weather Corrected MD 50% POE | D32: MVA | E32: Non-Coincident
E33: Coincident
B34: <Enter substation name> | C34: Substation Rating | D34: MVA | E34: Non-Coincident
E35: Coincident
C36: Raw Adjusted MD | D36: MW | E36: Non-Coincident
E37: Coincident
C38: Raw Adjusted MD | D38: MVA | E38: Non-Coincident
